Workbook

Sheet CAPA
B1: SPARTA | C1: Ver. | R1: DF | S1: Sudeste/Centro Oeste
B2: Helenístico | C2: 0.93 | M2: =C23 -> 153 | N2: =C22 -> 6600
C3: Macro Ver.
C4: 80.3
B6: EPB | C6: =VLOOKUP(B6,TabEmpresas[#Data],5,FALSE) -> NÃO SUPRIDA | L6: CodigoSamp | M6: Empresa | N6: Nome Completo | O6: IdSgtAg | P6: CodigoSamp | Q6: Supridora/suprida | R6: Financeiro 243 (TUSD) | S6: Databse Fin. 243
B7: =VLOOKUP(B6,TabEmpresas[#Data],2,FALSE) -> EPB - Energisa Paraíba - Distribuidora de Energia | C7: Revisão | G7: Últ. Atualização | L7: 396 | M7: AES SUL | N7: AES-SUL - AES SUL Distribuidora Gaúcha de Energia S/A. | O7: 101 | P7: 396 | Q7: NÃO SUPRIDA
B8: CÓDIGO DA EMPRESA | C8: ="D" & TEXT(C23-100,"00") -> D53 | F8: Info iniciais | G8: 2021-07-30T16:08:02 | L8: 7019 | M8: AME | N8: Amazonas Distribuidora de Energia S/A | O8: 102 | P8: 7019 | Q8: NÃO SUPRIDA
B9: Data do Reajuste/Revisão Anterior | C9: 44071 | F9: Energia do ano anterior (CM compra, MWh Mercado, R$ Mercado) | L9: 383 | M9: AMPLA | N9: AMPLA - Ampla Energia e Serviços S/A | O9: 103 | P9: 383 | Q9: NÃO SUPRIDA
B10: Data de Reajuste/Revisão em Processamento | C10: 44436 | F10: Perda de RB /Perdas Regulatórias /TUSDgONS-RB | L10: 391 | M10: BANDEIRANTE | N10: BANDEIRANTE - Bandeirante Energia S/A. | O10: 104 | P10: 391 | Q10: NÃO SUPRIDA
F11: Financeiros ano anterior (CVA 5º dia útil, RTE restante) | L11: 370 | M11: BOAVISTA | N11: Boa Vista - Boa Vista Energia S/A | O11: 105 | P11: 370 | Q11: NÃO SUPRIDA
F12: Encargos ano anterior (não RTE) | L12: 386 | M12: BRAGANTINA | N12: BRAGANTINA- Empresa Elétrica Bragantina S/A. | O12: 142 | P12: 386 | Q12: NÃO SUPRIDA
F13: Dados da Revisão, Fator X e DecFec | L13: 5216 | M13: CAIUA | N13: CAIUÁ-D - Caiuá Distribuição de Energia S/A | O13: 106 | P13: 5216 | Q13: NÃO SUPRIDA
F14: Previsão de Subsidios dos Processos Anteriores | L14: 31 | M14: CEA | N14: CEA - Companhia de Eletricidade do Amapá | O14: 107 | P14: 31 | Q14: NÃO SUPRIDA
B15: Período de Referencia final | C15: =DATE(YEAR($C$10),MONTH($C$10)-1,1) -> 44378 | F15: Conexão ano anterior | L15: 44 | M15: CEAL | N15: CEAL - Companhia Energética de Alagoas | O15: 108 | P15: 44 | Q15: NÃO SUPRIDA
B16: Período de Referencia inicial | C16: =DATE(YEAR($C$10)-1,MONTH($C$10),1) -> 44044 | F16: Energia (CCEAR, Bil., Itaipu) | G16: 2021-08-11T08:32:58 | L16: 5160 | M16: CEB | N16: CEB-DIS - CEB Distribuição S/A | O16: 109 | P16: 5160 | Q16: NÃO SUPRIDA
B17: Índice IGPM na data Revisão/Reajuste | C17: =VLOOKUP(C15,Índices!$B$7:$F$500,2,FALSE) -> 1084.095 | F17: CCEAR | L17: 5707 | M17: CEEE | N17: CEEE-D - Companhia Estadual de Distribuição de Energia Elétrica | O17: 110 | P17: 5707 | Q17: NÃO SUPRIDA
B18: Índice IPCA na data Revisão/Reajuste | C18: =VLOOKUP(C15,Índices!$B$7:$F$500,3,FALSE) -> 5825.37 | F18: Bilateral | L18: 5697 | M18: CELESC | N18: CELESC-DIS - Celesc Distribuição S.A. | O18: 111 | P18: 5697 | Q18: NÃO SUPRIDA
B19: IGPM para o período de Referência | C19: =VLOOKUP(DATE(YEAR($C$10),MONTH($C$10)-1,1),Índices!$B$7:$F$500,2,FALSE)/VLOOKUP(DATE(YEAR($C$9),MONTH($C$9)-1,1),Índices!$B$7:$F$500,2,FALSE)-1 -> 0.3382517594 | F19: Itaipu (Energia, Transporte, MUST) | L19: 6072 | M19: CELG | N19: CELG-D - Celg Distribuição S.A. | O19: 112 | P19: 6072 | Q19: NÃO SUPRIDA
B20: IPCA para o período de Referência | C20: =VLOOKUP(DATE(YEAR(C10),MONTH(C10)-1,1),Índices!$B$7:$F$500,3,FALSE)/VLOOKUP(DATE(YEAR($C$9),MONTH($C$9)-1,1),Índices!$B$7:$F$500,3,FALSE)-1 -> 0.08994822841 | F20: Cotas Lei/Angra | L20: 371 | M20: CELPA | N20: CELPA - Centrais Elétricas do Pará S/A. | O20: 113 | P20: 371 | Q20: NÃO SUPRIDA
B21: Dados Gerenciais | F21: Encargos DRP | G21: 2021-08-13T16:10:27 | L21: 43 | M21: CELPE | N21: CELPE - Companhia Energética de Pernambuco | O21: 114 | P21: 43 | Q21: NÃO SUPRIDA
B22: IdAgente | C22: =VLOOKUP(B6,TabEmpresas[#Data],4,FALSE) -> 6600 | F22: Indicadores Econômicos / Dólar | G22: 2021-08-10T10:54:25 | L22: 32 | M22: CELTINS | N22: CELTINS - Companhia de Energia Elétrica do Estado do Tocantins | O22: 115 | P22: 32 | Q22: NÃO SUPRIDA
B23: ID Concessão | C23: =VLOOKUP(B6,TabEmpresas[#Data],3,FALSE) -> 153 | F23: Tudo de Mercado | G23: 2021-08-10T18:13:58 | L23: 37 | M23: CEMAR | N23: CEMAR - Companhia Energética do Maranhão | O23: 116 | P23: 37 | Q23: NÃO SUPRIDA
F24: Rede Básica e Conexão | G24: 2021-08-09T19:53:27 | L24: 405 | M24: CEMAT | N24: CEMAT - Centrais Elétricas Matogrossenses S/A. | O24: 117 | P24: 405 | Q24: NÃO SUPRIDA
B25: Quadro para vínculos | F25: Histórico de Tarifas B1 Residencial | G25: 2021-07-30T16:21:00 | L25: 4950 | M25: CEMIG | N25: CEMIG-D - CEMIG Distribuição S/A | O25: 118 | P25: 4950 | Q25: NÃO SUPRIDA
B26: Descrição | C26: valor | F26: CVA | G26: 2021-08-16T13:36:18 | L26: 38 | M26: CEPISA | N26: CEPISA - Companhia Energética do Piauí | O26: 119 | P26: 38 | Q26: NÃO SUPRIDA
B27: (Exemplo) Efeito Consumidor Geral | C27: =LnkTxtEfeito -> 0.07078282162 | F27: CUSD | G27: 2021-07-30T16:20:46 | L27: 369 | M27: CERON | N27: CERON - Centrais Elétricas de Rondônia S/A. | O27: 120 | P27: 369 | Q27: NÃO SUPRIDA
B28: Contrato de concessão | C28: 019/2001-ANEEL | L28: 28 | M28: CERR | N28: CERR - Companhia Energética de Roraima | O28: 121 | P28: 28 | Q28: NÃO SUPRIDA
C29: 48500.004626/2020-32 | L29: 103 | M29: CHESP | N29: CHESP - Companhia Hidroelétrica São Patrício | O29: 123 | P29: 103 | Q29: SUPRIDA
B30: Período de Referencia | C30: =TEXT(C16,"mmmm/aaaa")& " a "&TEXT(C15,"mmmm/aaaa") -> agosto/2020 a julho/2021 | L30: 75 | M30: CNEE | N30: CNEE - Companhia Nacional de Energia Elétrica | O30: 127 | P30: 75 | Q30: NÃO SUPRIDA
B31: Neutralidade Total | C31: =SUM(Financeiros!D28:D35) -> -443143.5074 | L31: 82 | M31: COCEL | N31: COCEL - Companhia Campolarguense de Energia | O31: 128 | P31: 82 | Q31: SUPRIDA
B32: CVA Saldo a Compensar | C32: =SUM(Financeiros!D19:D27) -> 113381018.1 | L32: 47 | M32: COELBA | N32: COELBA - Companhia de Eletricidade do Estado da Bahia | O32: 129 | P32: 47 | Q32: NÃO SUPRIDA
B33: Reversão CDE | C33: =SUM(Financeiros!D79:D80) -> -76230.28282 | L33: 39 | M33: COELCE | N33: COELCE - Companhia Energética do Ceará | O33: 130 | P33: 39 | Q33: NÃO SUPRIDA
L34: 2904 | M34: COOPERALIANÇA | N34: COOPERALIANÇA - Cooperativa Aliança | O34: 131 | P34: 2904 | Q34: SUPRIDA
L35: 2866 | M35: COPEL | N35: COPEL-DIS - Copel Distribuição S/A | O35: 132 | P35: 2866 | Q35: NÃO SUPRIDA
L36: 40 | M36: COSERN | N36: COSERN - Companhia Energética do Rio Grande do Norte | O36: 133 | P36: 40 | Q36: NÃO SUPRIDA
L37: 69 | M37: CPFL Jaguari | N37: CPFL Jaguari - Companhia Jaguari de Energia | O37: 124 | P37: 69 | Q37: NÃO SUPRIDA
L38: 71 | M38: CPFL Leste Paulista | N38: =TabEmpresas[[#This Row],[Empresa]]&" - Companhia Leste Paulista de Energia " -> CPFL Leste Paulista - Companhia Leste Paulista de Energia | O38: 134 | P38: 71 | Q38: NÃO SUPRIDA
L39: 70 | M39: CPFL Mococa | N39: =TabEmpresas[[#This Row],[Empresa]]&" - Companhia Luz e Força de Mococa " -> CPFL Mococa - Companhia Luz e Força de Mococa | O39: 125 | P39: 70 | Q39: NÃO SUPRIDA
L40: 72 | M40: CPFL Santa Cruz | N40: =TabEmpresas[[#This Row],[Empresa]]&" - Companhia Luz e Força Santa Cruz " -> CPFL Santa Cruz - Companhia Luz e Força Santa Cruz | O40: 126 | P40: 72 | Q40: NÃO SUPRIDA
L41: 73 | M41: CPFL Sul Paulista | N41: =TabEmpresas[[#This Row],[Empresa]]&" - Companhia Sul Paulista de Energia " -> CPFL Sul Paulista - Companhia Sul Paulista de Energia | O41: 137 | P41: 73 | Q41: NÃO SUPRIDA
L42: 63 | M42: CPFL Paulista | N42: CPFL-Paulista - Companhia Paulista de Força e Luz | O42: 136 | P42: 63 | Q42: NÃO SUPRIDA
L43: 2937 | M43: CPFL Piratininga | N43: CPFL- Piratininga - Companhia Piratininga de Força e Luz | O43: 135 | P43: 2937 | Q43: NÃO SUPRIDA
L44: 95 | M44: DEMEI | N44: DEMEI - Departamento Municipal de Energia de Ijuí | O44: 138 | P44: 95 | Q44: SUPRIDA
L45: 51 | M45: DMED | N45: =TabEmpresas[[#This Row],[Empresa]]&" - DME Distribuição S.A" -> DMED - DME Distribuição S.A | O45: 139 | P45: 51 | Q45: NÃO SUPRIDA
L46: 6611 | M46: EBO | N46: EBO - Energisa Borborema – Distribuidora de Energia S.A. | O46: 140 | P46: 6611 | Q46: NÃO SUPRIDA
B47: Deslocar mercado | C47: Não | L47: 5217 | M47: EDEVP | N47: EDEVP - Empresa de Distribuição de Energia Vale Paranapanema S/A | O47: 141 | P47: 5217 | Q47: NÃO SUPRIDA
B48: Data de processamento em simulação | C48: 43811 | L48: 385 | M48: ELEKTRO | N48: ELEKTRO - Elektro Eletricidade e Serviços S/A. | O48: 145 | P48: 385 | Q48: NÃO SUPRIDA
L49: 26 | M49: ELETROACRE | N49: ELETROACRE - Companhia de Eletricidade do Acre | O49: 146 | P49: 26 | Q49: NÃO SUPRIDA
L50: 398 | M50: ELETROCAR | N50: ELETROCAR - Centrais Elétricas de Carazinho S/A. | O50: 147 | P50: 398 | Q50: SUPRIDA
L51: 390 | M51: ELETROPAULO | N51: ELETROPAULO - Eletropaulo Metropolitana Eletricidade de São Paulo S/A | O51: 148 | P51: 390 | Q51: NÃO SUPRIDA
L52: 6585 | M52: EMG | N52: EMG - Energisa Minas Gerais - Distribuidora de Energia S.A. | O52: 150 | P52: 6585 | Q52: NÃO SUPRIDA
L53: 404 | M53: ENERSUL | N53: ENERSUL - Empresa Energética de Mato Grosso do Sul S/A. | O53: 151 | P53: 404 | Q53: NÃO SUPRIDA
L54: 6612 | M54: ENF | N54: ENF - Energisa Nova Friburgo - Distribuidora de Energia S.A. | O54: 152 | P54: 6612 | Q54: SUPRIDA
L55: 6600 | M55: EPB | N55: EPB - Energisa Paraíba - Distribuidora de Energia | O55: 153 | P55: 6600 | Q55: NÃO SUPRIDA
L56: 380 | M56: ESCELSA | N56: ESCELSA - Espírito Santo Centrais Elétricas S/A. | O56: 154 | P56: 380 | Q56: NÃO SUPRIDA
L57: 6587 | M57: ESE | N57: ESE - Energisa Sergipe - Distribuidora de Energia S.A. | O57: 155 | P57: 6587 | Q57: NÃO SUPRIDA
L58: 83 | M58: FORCEL | N58: FORCEL - Força e Luz Coronel Vivida Ltda | O58: 156 | P58: 83 | Q58: SUPRIDA
L59: 399 | M59: HIDROPAN | N59: HIDROPAN - Hidroelétrica Panambi S/A. | O59: 157 | P59: 399 | Q59: SUPRIDA
L60: 87 | M60: IENERGIA | N60: IENERGIA - Iguaçu Distribuidora de Energia Elétrica Ltda | O60: 158 | P60: 87 | Q60: NÃO SUPRIDA
L61: 213 | M61: JARI | N61: JARI - Jari Celulose S/A | O61: 159 | P61: 213 | Q61: NÃO SUPRIDA
L62: 88 | M62: JOÃO CESA | N62: JOÃO CESA - Empresa Força e Luz João Cesa Ltda | O62: 143 | P62: 88 | Q62: SUPRIDA
L63: 382 | M63: LIGHT | N63: LIGHT - Light Serviços de Eletricidade S/A. | O63: 160 | P63: 382 | Q63: NÃO SUPRIDA
L64: 401 | M64: MUX Energia | N64: MUX Energia - Muxfeldt Marin & Cia. Ltda | O64: 161 | P64: 401 | Q64: SUPRIDA
L65: 84 | M65: OESTE | N65: CFLO - Companhia Força e Luz do Oeste | O65: 122 | P65: 84 | Q65: SUPRIDA
L66: 397 | M66: RGE | N66: RGE - Rio Grande Energia S/A. | O66: 162 | P66: 397 | Q66: NÃO SUPRIDA
L67: 381 | M67: SANTA MARIA | N67: SANTA MARIA - Empresa Luz e Força Santa Maria S/A. | O67: 149 | P67: 381 | Q67: SUPRIDA
L68: 46 | M68: SULGIPE | N68: SULGIPE - Companhia Sul Sergipana de Eletricidade | O68: 163 | P68: 46 | Q68: SUPRIDA
L69: 400 | M69: UHENPAL | N69: UHENPAL - Usina Hidroelétrica Nova Palma Ltda. | O69: 164 | P69: 400 | Q69: SUPRIDA
L70: 86 | M70: URUSSANGA | N70: URUSSANGA - Empresa Força e Luz Urussanga Ltda | O70: 144 | P70: 86 | Q70: SUPRIDA
L71: 1000040 | M71: ENERGISA Sul Sudeste | N71: ENERGISA SUL SUDESTE | O71: 165 | P71: 1000040 | Q71: NÃO SUPRIDA
L72: 1000041 | M72: NOVA SANTA CRUZ | N72: NOVA SANTA CRUZ | O72: 166 | P72: 1000041 | Q72: NÃO SUPRIDA
L73: 1000042 | M73: RGE SUL | N73: RGE SUL | O73: 167 | P73: 1000042 | Q73: NÃO SUPRIDA

Sheet BD
B1: Banco de Dados | M1: Anexo II | N1: =Resultado!$D$6 -> -0.001246225497
B2: =CAPA!B6 -> EPB | M2: Anexo I | N2: =Resultado!$D$8 -> 0.06219311862
B5: Informações do ano anterior | G5: Dados de abertura (Neutralidade e CVA saldo a compensar) | L5: Dados de Energia | S5: Dados para Revisão
B7: Encargos | G7: Encargo | H7: Valor | I7: Norma | L7: Cotas | M7: Valor da "Cota" | N7: Ano | O7: Custo Médio da Cota | S7: item | T7: Descrição | U7: Detalhe | V7: Valor
B8: CDE Energia: Conta ACR | C8: 1e-05 | G8: CCC | L8: Angra | M8: 0.01089902073 | N8: 2021 | O8: 249.64 | S8: 0 | T8: Duração do Ciclo de Revisão | V8: 4
B9: CDE Energia: Decreto | C9: 1e-05 | G9: CDE | H9: 81195133.04 | I9: REH 2.864/2021 | S9: 1 | T9: RI Limite de Neutralidade de Encargos (por grupo) | U9: RESIDENCIAL | V9: 0.0203
B10: TFSEE | C10: 3160245.593 | G10: CFURH | S10: 2 | T10: RI Limite de Neutralidade de Encargos (por grupo) | U10: INDUSTRIAL | V10: 0.02949878788
B11: CDE | C11: 71818541.71 | G11: ESS/EER | H11: 29645962.14 | I11: DSP 2.049/2021 | L11: Ano | M11: Cota Itaipu | S11: 3 | T11: RI Limite de Neutralidade de Encargos (por grupo) | U11: COMERCIAL | V11: 0.012845
G12: PROINFA | H12: 35878859.02 | I12: ReH 2.815/2020 | S12: 4 | T12: RI Limite de Neutralidade de Encargos (por grupo) | U12: RURAL | V12: 0.03557772727
B13: ESS/ERR | C13: 39636910.27 | G13: ONS | H13: 100978.29 | I13: Contribuição 2020 | S13: 5 | T13: RI Limite de Neutralidade de Encargos (por grupo) | U13: PoderPublico | V13: 0.019965
B14: PROINFA | C14: 29514592.22 | G14: TFSEE | S14: 6 | T14: RI Limite de Neutralidade de Encargos (por grupo) | U14: IlumPublica | V14: 0.03290651515
B15: P&D | C15: 19690859.38 | G15: EER | H15: 28196754.36 | I15: DSP 2.049/2021 | S15: 7 | T15: RI Limite de Neutralidade de Encargos (por grupo) | U15: ServPublico | V15: 0.02233560606
B16: ONS | C16: 85971.89286 | G16: TFSEE Fator de Carga | H16: 0.903 | S16: 11 | T16: RI Limite de outros componentes (por empresa) | U16: RESIDENCIAL | V16: 0.00888
G17: CDE Covid | H17: 34611900.61 | I17: DSP 939/2021 | S17: 12 | T17: RI Limite de outros componentes (por empresa) | U17: INDUSTRIAL | V17: 0.00543
B18: Pmix | C18: 193.6123325 | G18: CDE Covid TUSD% | S18: 13 | T18: RI Limite de outros componentes (por empresa) | U18: COMERCIAL | V18: 0.0055
B19: PN2020 | C19: 0.04938087549 | G19: CDE Covid TE% | S19: 14 | T19: RI Limite de outros componentes (por empresa) | U19: RURAL | V19: 0.00893
D20: <- apagar PT 2017 | S20: 15 | T20: RI Limite de outros componentes (por empresa) | U20: PoderPublico | V20: 0.00159
B21: PT2020 | C21: 0.09874 | D21: PT2020 | E21: 0.09874 | G21: Informações de Postergação | S21: 16 | T21: RI Limite de outros componentes (por empresa) | U21: IlumPublica | V21: 0.0001
B22: Perda RB total | C22: 0.02426569697 | L22: Mês | M22: Potência | N22: Tarifa | O22: Perdas | P22: Energia | S22: 17 | T22: RI Limite de outros componentes (por empresa) | U22: ServPublico | V22: 0.0001
G23: Tipo | H23: Valor | S23: 101 | T23: Parâmetros de Custos Operacionais | U23: CO1_Theta_inf | V23: 0.88305536
B24: CVA RB | C24: 7891825.996 | G24: Data Postergada | H24: 44436 | S24: 102 | T24: Parâmetros de Custos Operacionais | U24: CO2_Theta_centro | V24: 0.9585816885
B25: CVA CCC | C25: 0 | G25: Data Anterior | H25: 44436 | S25: 103 | T25: Parâmetros de Custos Operacionais | U25: CO3_Theta_sup | V25: 1
B26: CVA CDE | C26: 14912391.94 | G26: Diferença de Dias | H26: 0 | S26: 104 | T26: Parâmetros de Custos Operacionais | U26: CO4_Theta_ref | V26: 0.786868
B27: CVA CFURH | G27: MesesAdin | H27: 0 | S27: 105 | T27: Parâmetros de Custos Operacionais | U27: CO5_Opex_real | V27: 269558.8368
B28: CVA ESS\ERR | C28: -38792789.42 | G28: Reversão Subvenção CDE | S28: 106 | T28: Parâmetros de Custos Operacionais | U28: CO6_PMSOcorrigido | V28: 303062.3641
B29: CVA PROINFA | C29: -3921857.503 | G29: Data 4CRT | H29: 42975 | S29: 107 | T29: Parâmetros de Custos Operacionais | U29: CO7_FatorEscala | V29: 0.001399212063
B30: CVA TRANS. ITAIPU | C30: 0 | S30: 108 | T30: Parâmetros de Custos Operacionais | U30: CO8_u | V30: 3.299650892e-06
B31: CVA ENERGIA | C31: 52686635.1 | S31: 109 | T31: Parâmetros de Custos Operacionais | U31: CO9_Vs_Yrsub | V31: 1.67295118e-05
B32: CVA CDE E | C32: -9805576.224 | S32: 110 | T32: Parâmetros de Custos Operacionais | U32: CO10_Vs_Yrdist_a | V32: 8.364755899e-06
S33: 111 | T33: Parâmetros de Custos Operacionais | U33: CO11_Vs_Yralta | V33: 3.34590236e-06
S34: 112 | T34: Parâmetros de Custos Operacionais | U34: CO12_Vs_Ycons | V34: 2.578678718e-07
G35: Nome | H35: Valor | S35: 113 | T35: Parâmetros de Custos Operacionais | U35: CO13_Vs_Ymponderado | V35: 4.131162917e-09
G36: TUSDg Export DRP | H36: 0 | L36: Mês | M36: Potência | N36: Tarifa DRA | O36: Tarifa DRP | P36: Colunas1 | S36: 114 | T36: Parâmetros de Custos Operacionais | U36: CO14_Vs_Yd_perdas_dif2 | V36: 6.195226536e-07
G37: TUSDg ONS DRP | H37: 0 | S37: 115 | T37: Parâmetros de Custos Operacionais | U37: CO15_Vs_Yd_DEC_V8 | V37: 0
G38: TUSDg ONS DRA | H38: 0 | S38: 116 | T38: Parâmetros de Custos Operacionais | U38: CO16_P_AT | V38: 0.02141195049
B39: Rede Básica | G39: TUSDg Export DRA | H39: 0 | S39: 117 | T39: Parâmetros de Custos Operacionais | U39: CO17_P_MT | V39: 0.1615606011
C40: 12433267.69 | S40: 118 | T40: Parâmetros de Custos Operacionais | U40: CO18_P_BT | V40: 0.8170274485
S41: 119 | T41: Parâmetros de Custos Operacionais | U41: CO19_PMSO2013
G42: Fator X | H42: Valor | S42: 120 | T42: Parâmetros de Custos Operacionais | U42: CO20_Cont_Associativa | V42: 453050.1485
S43: 201 | T43: Parâmetros de Custos Operacionais | U43: pesoAT | V43: 0.03582559738
B44: Mercado | S44: 202 | T44: Parâmetros de Custos Operacionais | U44: pesoMT | V44: 0.1913686646
C45: 4524165.475 | S45: 203 | T45: Parâmetros de Custos Operacionais | U45: pesoBT | V45: 0.772805738
C46: 2063689451 | G46: DecFec Processo Anterior | H46: Valor | S46: 301 | T46: Financeiro de RTP | U46: Conselho de Consumidor | V46: 102934.17
G47: DEC A-2 | H47: 0 | S47: 2018 | T47: Financeiro de RTP | U47: Conselho de Consumidor | V47: 177420.01
B48: 2021 | C48: 92306.10238 | G48: DEC A-1 | H48: 0 | S48: 401 | T48: Duração do Próximo Ciclo de Revisão | V48: 4
B49: Detalhamento de Encargos ESS e CDE | G49: FEC A-2 | H49: 0
G50: FEC A-1 | H50: 0 | L50: Dado | M50: Valor | N50: Início | O50: Fim
L51: MUST | M51: 9039 | N51: 44013 | O51: 44377
G52: Dados de dólar | H52: Valor | L52: MUST | M52: 7919 | N52: 44378 | O52: 44742
G53: Dólar médio | H53: 5.187818182 | L53: Potência Max | M53: 11215 | N53: 43831 | O53: 44196
G54: Data Inicial | H54: 44391 | L54: Potência Max | M54: 10935 | N54: 44197 | O54: 44561
G55: Data Final | H55: 44420
G56: Último Dado Diponível | H56: 44417 | L56: Dados de perda | M56: Valor | O56: Agente | P56: Ressarcimento P&D
B57: Subsídios Concedidos (sem ajuste) | L57: Perdas RB | M57: 101723.0519
B58: Mês de Início | C58: Carga Fonte | D58: Geração | E58: Distribuição | F58: Água, Esgoto e Saneamento | G58: Rural | H58: Irrigante/Aquicultor | L58: Perdas DITs | M58: 14952.7611
B59: 2020-08-01 | C59: 1393608.008 | D59: 987873.5467 | E59: 0 | F59: 707715.0717 | G59: 1879821.861 | H59: 1918520.676
B60: 2021-08-01 | C60: 1435630.613 | D60: 1343552.041 | E60: 0 | F60: 506851.4958 | G60: 1459759.494 | H60: 2498118.188
B65: Data | C65: Tipo | D65: Valor | E65: Valor IGPM | F65: Valor IPCA | G65: EixoRef
B66: =DATE(YEAR(CAPA!C10),MONTH(CAPA!C10),1) -> 2021-08-01 | C66: =IF(CAPA!C7="Revisão",1,0) -> 1 | D66: =Resultado!L11 -> 596.9257618 | E66: =IFERROR(VLOOKUP(EDATE($B66,-1),Índices!$B$6:$F$500,2,FALSE)/VLOOKUP(EDATE(MIN($B$67:$B$81),-1),Índices!$B$6:$F$500,2,FALSE)*VLOOKUP(MIN($B$67:$B$81),$B$67:$D$81,3,FALSE),0) -> 877.55409 | F66: =IFERROR(VLOOKUP(EDATE($B66,-1),Índices!$B$6:$F$500,3,FALSE)/VLOOKUP(EDATE(MIN($B$67:$B$81),-1),Índices!$B$6:$F$500,3,FALSE)*VLOOKUP(MIN($B$67:$B$81),$B$67:$D$81,3,FALSE),0) -> 657.9703957 | G66: =IF(B66<>"",150+1,"") -> 151
B67: 2020-08-01 | C67: Reajuste | D67: 562.11
B68: 2019-08-01 | C68: Reajuste | D68: 545.4
B69: 2018-08-01 | C69: Reajuste | D69: 571.77
B70: 2017-08-01 | C70: Revisão | D70: 494.6
B71: 2017-04-01 | C71: RTE | D71: 434.87
B72: 2016-08-01 | C72: Reajuste | D72: 440.26
B73: 2015-08-01 | C73: Reajuste | D73: 418.17
B74: 2015-03-01 | C74: RTE | D74: 379.56
B75: 2014-08-01 | C75: Reajuste | D75: 367.87
B76: 2013-08-01 | C76: Revisão | D76: 304.45
B77: 2013-01-01 | C77: RTE | D77: 317.82
B78: 2012-08-01 | C78: Reajuste | D78: 387.65
B79: 2011-08-01 | C79: Reajuste | D79: 375.54
B84: Tabela de Resumo de Montante DRP ano anterior/ Montante Apurado pelo Mercado
B85: detalhe_grupo | C85: GrupoTarifa | D85: tipoBase | E85: tipofatura | F85: ValorCTAnterior_Sum | G85: ValorAnt_Sum | L85: Prcesso Anterior | N85: RTE
L86: MWh | M86: R$ | N86: MWh | O86: R$ | S86: DthEfetivaPagamento | T86: VlrGarantiaFinanceira
I87: BILATERAL | K87: valor | L87: 438963.6 | M87: 151684616.8 | S87: 44013 | T87: =42433.82*0 -> 0 | U87: <- Já considerado e m 2020
I88: CCEAR-DISP | J88: Alternativa | K88: valor | L88: 91183.01705 | M88: 21327017.96 | S88: 44044 | T88: 42433.82
I89: CCEAR-DISP | J89: Nova | K89: valor | L89: 1040252.612 | M89: 254623538.6 | S89: 44075 | T89: 42433.82
I90: CCEAR-QTD | J90: Alternativa | K90: valor | L90: 6288.387645 | M90: 1580028.164 | S90: 44105 | T90: 42433.84
I91: CCEAR-QTD | J91: Belo Monte | K91: valor | L91: 374343.3749 | M91: 50249422.61 | S91: 44136 | T91: 42433.78
I92: CCEAR-QTD | J92: Existente | K92: valor | L92: 28134.45 | M92: 5312894.197 | S92: 44166 | T92: 42433.8
I93: CCEAR-QTD | J93: Madeira | K93: valor | L93: 270031.1433 | M93: 39795408.05 | S93: 44197 | T93: 42433.79
I94: CCEAR-QTD | J94: Nova | K94: valor | L94: 502825.923 | M94: 101699757.1 | S94: 44228 | T94: 42433.82
I95: CCEN | K95: valor | L95: 150388.513 | M95: 40567301.39 | S95: 44256 | T95: 39118.3
I96: CCGF | K96: valor | L96: 1121823.782 | M96: 128554629 | S96: 44287 | T96: 40955.09
I97: PROINFA | K97: valor | L97: 91817.51851 | S97: 44317 | T97: 40955.09
I98: SOBRA/EXPOSIÇÃO | K98: valor | L98: 372082 | M98: 73544021 | S98: 44348 | T98: 40955.06
S99: 44378 | T99: 44254.39
V105: Empresa | W105: AT | X105: MT | Y105: BT
V106: 167 | W106: 0.02134 | X106: 0.35825 | Y106: 0.62041
V107: 102 | W107: 0.064 | X107: 0.32003 | Y107: 0.61596
V108: 103 | W108: 0.02996 | X108: 0.27106 | Y108: 0.69898
V109: 104 | W109: 0.07171 | X109: 0.2909 | Y109: 0.63739
V110: 105 | W110: 0.00823 | X110: 0.24677 | Y110: 0.745
I111: Agente | J111: idagente | K111: indexador | L111: database | M111: RAP do ciclo | N111: Colunas1 | O111: RAP atualizada | V111: 165 | W111: 0.00795 | X111: 0.22554 | Y111: 0.76651
O112: =M112*VLOOKUP(CAPA!C15,Índices!$B$6:$F$626,IF(BD!K112="IPCA",3,2),FALSE)/VLOOKUP(L112,Índices!$B$6:$F$626,IF(BD!K112="IPCA",3,2),FALSE) ->  | V112: 108 | W112: 0.06098 | X112: 0.1711 | Y112: 0.76792
O113: =M113*VLOOKUP(CAPA!C16,Índices!$B$6:$F$626,IF(BD!K113="IPCA",3,2),FALSE)/VLOOKUP(L113,Índices!$B$6:$F$626,IF(BD!K113="IPCA",3,2),FALSE) ->  | V113: 109 | W113: 0.01034 | X113: 0.24366 | Y113: 0.746
O114: =M114*VLOOKUP(CAPA!C17,Índices!$B$6:$F$626,IF(BD!K114="IPCA",3,2),FALSE)/VLOOKUP(L114,Índices!$B$6:$F$626,IF(BD!K114="IPCA",3,2),FALSE) ->  | V114: 110 | W114: 0.01165 | X114: 0.24322 | Y114: 0.74513
O115: =M115*VLOOKUP(CAPA!C18,Índices!$B$6:$F$626,IF(BD!K115="IPCA",3,2),FALSE)/VLOOKUP(L115,Índices!$B$6:$F$626,IF(BD!K115="IPCA",3,2),FALSE) ->  | V115: 111 | W115: 0.03791 | X115: 0.37961 | Y115: 0.58248
O116: =M116*VLOOKUP(CAPA!C19,Índices!$B$6:$F$626,IF(BD!K116="IPCA",3,2),FALSE)/VLOOKUP(L116,Índices!$B$6:$F$626,IF(BD!K116="IPCA",3,2),FALSE) ->  | V116: 112 | W116: 0.02273 | X116: 0.26361 | Y116: 0.71367
O117: =M117*VLOOKUP(CAPA!C20,Índices!$B$6:$F$626,IF(BD!K117="IPCA",3,2),FALSE)/VLOOKUP(L117,Índices!$B$6:$F$626,IF(BD!K117="IPCA",3,2),FALSE) ->  | V117: 113 | W117: 0.01263 | X117: 0.23345 | Y117: 0.75392
O118: =M118*VLOOKUP(CAPA!C21,Índices!$B$6:$F$626,IF(BD!K118="IPCA",3,2),FALSE)/VLOOKUP(L118,Índices!$B$6:$F$626,IF(BD!K118="IPCA",3,2),FALSE) ->  | V118: 114 | W118: 0.01726 | X118: 0.23794 | Y118: 0.7448
O119: =M119*VLOOKUP(CAPA!C22,Índices!$B$6:$F$626,IF(BD!K119="IPCA",3,2),FALSE)/VLOOKUP(L119,Índices!$B$6:$F$626,IF(BD!K119="IPCA",3,2),FALSE) ->  | V119: 115 | W119: 0.00993 | X119: 0.23087 | Y119: 0.7592
O120: =M120*VLOOKUP(CAPA!C23,Índices!$B$6:$F$626,IF(BD!K120="IPCA",3,2),FALSE)/VLOOKUP(L120,Índices!$B$6:$F$626,IF(BD!K120="IPCA",3,2),FALSE) ->  | S120: iddet1 | T120: valor | V120: 116 | W120: 0.00806 | X120: 0.16835 | Y120: 0.82359
O121: =M121*VLOOKUP(CAPA!C24,Índices!$B$6:$F$626,IF(BD!K121="IPCA",3,2),FALSE)/VLOOKUP(L121,Índices!$B$6:$F$626,IF(BD!K121="IPCA",3,2),FALSE) ->  | S121: 56 | T121: 44412 | V121: 117 | W121: 0.03028 | X121: 0.29131 | Y121: 0.67841
O122: =M122*VLOOKUP(CAPA!C25,Índices!$B$6:$F$626,IF(BD!K122="IPCA",3,2),FALSE)/VLOOKUP(L122,Índices!$B$6:$F$626,IF(BD!K122="IPCA",3,2),FALSE) ->  | S122: 57 | T122: 44392 | V122: 118 | W122: 0.04215 | X122: 0.2081 | Y122: 0.74975
O123: =M123*VLOOKUP(CAPA!C26,Índices!$B$6:$F$626,IF(BD!K123="IPCA",3,2),FALSE)/VLOOKUP(L123,Índices!$B$6:$F$626,IF(BD!K123="IPCA",3,2),FALSE) ->  | S123: 58 | T123: 44348 | V123: 119 | W123: 0.01807 | X123: 0.11713 | Y123: 0.8648
O124: =M124*VLOOKUP(CAPA!C27,Índices!$B$6:$F$626,IF(BD!K124="IPCA",3,2),FALSE)/VLOOKUP(L124,Índices!$B$6:$F$626,IF(BD!K124="IPCA",3,2),FALSE) ->  | V124: 120 | W124: - | X124: 0.17688 | Y124: 0.82312
O125: =M125*VLOOKUP(CAPA!C28,Índices!$B$6:$F$626,IF(BD!K125="IPCA",3,2),FALSE)/VLOOKUP(L125,Índices!$B$6:$F$626,IF(BD!K125="IPCA",3,2),FALSE) ->  | V125: 123 | W125: - | X125: 0.13612 | Y125: 0.86388
O126: =M126*VLOOKUP(CAPA!C29,Índices!$B$6:$F$626,IF(BD!K126="IPCA",3,2),FALSE)/VLOOKUP(L126,Índices!$B$6:$F$626,IF(BD!K126="IPCA",3,2),FALSE) ->  | V126: 166 | W126: 0.04257 | X126: 0.29652 | Y126: 0.66092
O127: =M127*VLOOKUP(CAPA!C30,Índices!$B$6:$F$626,IF(BD!K127="IPCA",3,2),FALSE)/VLOOKUP(L127,Índices!$B$6:$F$626,IF(BD!K127="IPCA",3,2),FALSE) ->  | V127: 128 | W127: - | X127: 0.40427 | Y127: 0.59573
O128: =M128*VLOOKUP(CAPA!C31,Índices!$B$6:$F$626,IF(BD!K128="IPCA",3,2),FALSE)/VLOOKUP(L128,Índices!$B$6:$F$626,IF(BD!K128="IPCA",3,2),FALSE) ->  | V128: 129 | W128: 0.02905 | X128: 0.24895 | Y128: 0.722
O129: =M129*VLOOKUP(CAPA!C32,Índices!$B$6:$F$626,IF(BD!K129="IPCA",3,2),FALSE)/VLOOKUP(L129,Índices!$B$6:$F$626,IF(BD!K129="IPCA",3,2),FALSE) ->  | V129: 130 | W129: 0.0175 | X129: 0.14397 | Y129: 0.83853
O130: =M130*VLOOKUP(CAPA!C33,Índices!$B$6:$F$626,IF(BD!K130="IPCA",3,2),FALSE)/VLOOKUP(L130,Índices!$B$6:$F$626,IF(BD!K130="IPCA",3,2),FALSE) ->  | S130: Nível | T130: Mercado Faturado A-6 | V130: 131 | W130: - | X130: 0.30099 | Y130: 0.69901
O131: =M131*VLOOKUP(CAPA!C34,Índices!$B$6:$F$626,IF(BD!K131="IPCA",3,2),FALSE)/VLOOKUP(L131,Índices!$B$6:$F$626,IF(BD!K131="IPCA",3,2),FALSE) ->  | S131: AT | T131: 668016.937 | V131: 132 | W131: 0.02757 | X131: 0.26424 | Y131: 0.70819
O132: =M132*VLOOKUP(CAPA!C35,Índices!$B$6:$F$626,IF(BD!K132="IPCA",3,2),FALSE)/VLOOKUP(L132,Índices!$B$6:$F$626,IF(BD!K132="IPCA",3,2),FALSE) ->  | S132: BT | T132: 2687866.548 | V132: 133 | W132: 0.01856 | X132: 0.19536 | Y132: 0.78608
S133: MT | T133: 866337.906 | V133: 135 | W133: 0.04788 | X133: 0.27054 | Y133: 0.68158
V134: 136 | W134: 0.06732 | X134: 0.35547 | Y134: 0.57721
V135: 138 | W135: - | X135: 0.07651 | Y135: 0.92349
V136: 139 | W136: - | X136: 0.35483 | Y136: 0.64517
V137: 140 | W137: 0.01004 | X137: 0.21058 | Y137: 0.77938
V138: 143 | W138: - | X138: 0.20409 | Y138: 0.79591
V139: 144 | W139: - | X139: 0.48131 | Y139: 0.51869
A140: NumBar | B140: Nome Conexão | C140: Tensão | D140: Posto Tarifário | E140: Tarifas Fronteiras - DRA | F140: Tarifa Fronteira - DRP | G140: Tarifas RB - DRA | H140: Tarifa RB - DRP | I140: M01 | J140: M02 | K140: M03 | L140: M04 | M140: M05 | N140: M06 | O140: M07 | P140: M08 | Q140: M09 | R140: M10 | S140: M11 | T140: M12 | V140: 145 | W140: 0.03725 | X140: 0.29306 | Y140: 0.66969
A141: 5249 | B141: PILOES - 138 kV (A) | C141: 138 | D141: Ponta | E141: 6117 | F141: 5323 | G141: 12643 | H141: 14464 | I141: 67.204 | J141: 67.204 | K141: 67.204 | L141: 67.204 | M141: 67.204 | N141: 75.523 | O141: 75.523 | P141: 75.523 | Q141: 75.523 | R141: 75.523 | S141: 75.523 | T141: 75.523 | V141: 146 | W141: - | X141: 0.14124 | Y141: 0.85876
A142: 5226 | B142: C.GRANDE II - 69 kV (A) | C142: 69 | D142: Ponta | E142: 6380 | F142: 5536 | G142: 2200 | H142: 1474 | I142: 80.777 | J142: 80.777 | K142: 80.777 | L142: 80.777 | M142: 80.777 | N142: 91.066 | O142: 91.066 | P142: 91.066 | Q142: 91.066 | R142: 91.066 | S142: 91.066 | T142: 91.066 | V142: 147 | W142: - | X142: 0.20977 | Y142: 0.79023
A143: 5623 | B143: COREMAS - 69 kV (A) | C143: 69 | D143: Ponta | E143: 6358 | F143: 5447 | G143: 1292 | H143: 751 | I143: 149.714 | J143: 149.714 | K143: 149.714 | L143: 149.714 | M143: 149.714 | N143: 170.805 | O143: 170.805 | P143: 170.805 | Q143: 170.805 | R143: 170.805 | S143: 170.805 | T143: 170.805 | V143: 148 | W143: 0.03455 | X143: 0.23757 | Y143: 0.72788
A144: 5203 | B144: GOIANINHA - 69 kV (A) | C144: 69 | D144: Ponta | E144: 7016 | F144: 5993 | G144: 2264 | H144: 1865 | I144: 65.548 | J144: 65.548 | K144: 65.548 | L144: 65.548 | M144: 65.548 | N144: 67.261 | O144: 67.261 | P144: 67.261 | Q144: 67.261 | R144: 67.261 | S144: 67.261 | T144: 67.261 | V144: 149 | W144: - | X144: 0.17399 | Y144: 0.82601
A145: 5213 | B145: MUSSURE II - 69 kV (A) | C145: 69 | D145: Ponta | E145: 7207 | F145: 6065 | G145: 953 | H145: 587 | I145: 267.198 | J145: 267.198 | K145: 267.198 | L145: 267.198 | M145: 267.198 | N145: 271.689 | O145: 271.689 | P145: 271.689 | Q145: 271.689 | R145: 271.689 | S145: 271.689 | T145: 271.689 | V145: 150 | W145: 0.03635 | X145: 0.17413 | Y145: 0.78952
A146: 5253 | B146: SANTA CRUZ II - 69 kV (A) | C146: 69 | D146: Ponta | E146: 5999 | F146: 5230 | G146: 12643 | H146: 14464 | I146: 13.095 | J146: 13.095 | K146: 13.095 | L146: 13.095 | M146: 13.095 | N146: 13.095 | O146: 13.095 | P146: 13.095 | Q146: 13.095 | R146: 13.095 | S146: 13.095 | T146: 13.095 | V146: 151 | W146: 0.02735 | X146: 0.28351 | Y146: 0.68915
A147: 5273 | B147: SANTA RITA II - 69 kV (A) | C147: 69 | D147: Ponta | E147: 7092 | F147: 6015 | G147: 874 | H147: 1034 | I147: 200.11 | J147: 200.11 | K147: 200.11 | L147: 200.11 | M147: 200.11 | N147: 205.167 | O147: 205.167 | P147: 205.167 | Q147: 205.167 | R147: 205.167 | S147: 205.167 | T147: 205.167 | V147: 152 | W147: 0.00215 | X147: 0.1412 | Y147: 0.85665
A148: 5249 | B148: PILOES - 138 kV (A) | C148: 138 | D148: Fora Ponta | E148: 6021 | F148: 5002 | G148: 12643 | H148: 14464 | I148: 69.123 | J148: 69.123 | K148: 69.123 | L148: 69.123 | M148: 69.123 | N148: 73.075 | O148: 73.075 | P148: 73.075 | Q148: 73.075 | R148: 73.075 | S148: 73.075 | T148: 73.075 | V148: 153 | W148: 0.03606 | X148: 0.17601 | Y148: 0.78793
A149: 5226 | B149: C.GRANDE II - 69 kV (A) | C149: 69 | D149: Fora Ponta | E149: 6310 | F149: 5248 | G149: 2200 | H149: 1474 | I149: 84.141 | J149: 84.141 | K149: 84.141 | L149: 84.141 | M149: 84.141 | N149: 90.218 | O149: 90.218 | P149: 90.218 | Q149: 90.218 | R149: 90.218 | S149: 90.218 | T149: 90.218 | V149: 154 | W149: 0.12913 | X149: 0.26626 | Y149: 0.60462
A150: 5623 | B150: COREMAS - 69 kV (A) | C150: 69 | D150: Fora Ponta | E150: 6330 | F150: 5219 | G150: 1292 | H150: 751 | I150: 162.255 | J150: 162.255 | K150: 162.255 | L150: 162.255 | M150: 162.255 | N150: 191.037 | O150: 191.037 | P150: 191.037 | Q150: 191.037 | R150: 191.037 | S150: 191.037 | T150: 191.037 | V150: 155 | W150: 0.04008 | X150: 0.23225 | Y150: 0.72768
A151: 5203 | B151: GOIANINHA - 69 kV (A) | C151: 69 | D151: Fora Ponta | E151: 7067 | F151: 5805 | G151: 2264 | H151: 1865 | I151: 73.282 | J151: 73.282 | K151: 73.282 | L151: 73.282 | M151: 73.282 | N151: 74.563 | O151: 74.563 | P151: 74.563 | Q151: 74.563 | R151: 74.563 | S151: 74.563 | T151: 74.563 | V151: 156 | W151: - | X151: 0.35985 | Y151: 0.64015
A152: 5213 | B152: MUSSURE II - 69 kV (A) | C152: 69 | D152: Fora Ponta | E152: 7316 | F152: 5918 | G152: 953 | H152: 587 | I152: 282.554 | J152: 282.554 | K152: 282.554 | L152: 282.554 | M152: 282.554 | N152: 284.808 | O152: 284.808 | P152: 284.808 | Q152: 284.808 | R152: 284.808 | S152: 284.808 | T152: 284.808 | V152: 157 | W152: - | X152: 0.15963 | Y152: 0.84037
A153: 5253 | B153: SANTA CRUZ II - 69 kV (A) | C153: 69 | D153: Fora Ponta | E153: 5891 | F153: 4894 | G153: 12643 | H153: 14464 | I153: 12.6 | J153: 12.6 | K153: 12.6 | L153: 12.6 | M153: 12.6 | N153: 12.6 | O153: 12.6 | P153: 12.6 | Q153: 12.6 | R153: 12.6 | S153: 12.6 | T153: 12.6 | V153: 158 | W153: - | X153: 0.33049 | Y153: 0.66951
A154: 5273 | B154: SANTA RITA II - 69 kV (A) | C154: 69 | D154: Fora Ponta | E154: 7152 | F154: 5830 | G154: 874 | H154: 1034 | I154: 214.596 | J154: 214.596 | K154: 214.596 | L154: 214.596 | M154: 214.596 | N154: 223.905 | O154: 223.905 | P154: 223.905 | Q154: 223.905 | R154: 223.905 | S154: 223.905 | T154: 223.905 | V154: 160 | W154: 0.1013 | X154: 0.22818 | Y154: 0.67051
V155: 161 | W155: - | X155: 0.28355 | Y155: 0.71645
V156: 163 | W156: 0.03507 | X156: 0.1664 | Y156: 0.79853
V157: 164 | W157: - | X157: 0.12897 | Y157: 0.87103
B441: Transmissora | C441: Indice de atualização | D441: ENCARGO DE CONEXÃO repassável | E441: Instalações com Estabelecimento de RAP que entraram em operação | F441: PA para repasse a tarifa | G441: PA Qualidade DIT | H441: ENCARGO DE CONEXÃO ou PA não rapassável a tarifa (REN 67/2004 ou 68/2004) | I441: PA Empreendimento Autorizado sem estabelecimento prévio de RAP | J441: Contrato
B442: CHESF | C442: IPCA | D442: 1794547.35 | E442: 0 | F442: -36309.18 | G442: 0 | H442: 0 | I442: 0 | J442: 017/2009
B443: CHESF | C443: IPCA | D443: 9043897.43 | E443: 0 | F443: 1784460.83 | G443: 0 | H443: 0 | I443: 0 | J443: 061/2001
B462: Empresa | C462: idsgtag | D462: dtConv | E462: VlrMontante | F462: VlrTarOutros | G462: VlrTarB4a | H462: VlrTarB4b
B469: Tabela de Financeiros para o cálculo da Neutralidade | G469: Tabela de Financeiros para o cálculo da Neutralidade de RB | M469: Tabela de Financeiros para o cálculo da Neutralidade CVA processamento
B470: Grupo Tarifa | C470: Detalhe Grupo | D470: Valor | E470: Percentual | G470: Tipo | H470: Detalhe | I470: Posto | J470: Unidade | K470: Valor | M470: Grupo Tarifa | N470: Detalhe Grupo | O470: Valor | P470: Percentual
B471: ENCARGO | C471: CDE | D471: 1006964.839 | G471: CUSTO | H471: CONEXÃO D | J471: R$ | K471: 0 | M471: ENCARGO | N471: CDE | O471: -1172292.727
B472: ENCARGO | C472: CDE Energia | D472: -281202.2045 | G472: CUSTO | H472: CONEXÃO T | J472: R$ | K472: 12433267.69 | M472: ENCARGO | N472: CDE Energia | O472: 579068.9413
B473: ENCARGO | C473: ESS/ERR | D473: -2405572.683 | G473: CUSTO | H473: EUSD | J473: R$ | K473: 10347090.22 | M473: ENCARGO | N473: ESS/ERR | O473: 8558721.537
B474: ENCARGO | C474: ONS | D474: 158.1973402 | G474: CUSTO | H474: EUST - CI | J474: R$ | K474: 1e-06 | M474: ENCARGO | N474: PROINFA | O474: -1449975.134
B475: ENCARGO | C475: PROINFA | D475: 556335.8788 | G475: CUSTO | H475: EUST - FR | J475: R$ | K475: 47534551.1 | M475: ENERGIA | N475: ENERGIA REQUERIDA SEM PERDAS | O475: -29440442.86
B476: ENCARGO | C476: TFSEE | D476: -7915.696259 | G476: CUSTO | H476: EUST - ITAIPU | J476: R$ | K476: 0 | M476: ENERGIA | N476: PERDAS NA RB (sobre as perdas na D) | O476: -129839.7418
B477: ENERGIA | C477: ENERGIA REQUERIDA SEM PERDAS | D477: 22332695.9 | G477: CUSTO | H477: EUST - RB | J477: R$ | K477: 139981258.1 | M477: ENERGIA | N477: PERDAS NA RB (sobre o mercado cativo) | O477: -714392.865
B478: ENERGIA | C478: PERDAS NA RB (sobre as perdas na D) | D478: 98492.79383 | G478: CUSTO | H478: TRANSPORTE ITAIPU | J478: R$ | K478: 0 | M478: ENERGIA | N478: PERDAS NÃO TÉCNICAS | O478: -1164762.536
B479: ENERGIA | C479: PERDAS NA RB (sobre o mercado cativo) | D479: 541918.4312 | G479: CUSTO | H479: TUSDg ONS (A2) | J479: R$ | K479: 0 | M479: ENERGIA | N479: PERDAS TÉCNICAS | O479: -4185990.091
B480: ENERGIA | C480: PERDAS NÃO TÉCNICAS | D480: 883556.2571 | G480: CUSTO | H480: TUSDg T (A2) | J480: R$ | K480: 0 | M480: TRANSPORTE TERCEIROS | N480: EUST - RB | O480: -95756.63151
B481: ENERGIA | C481: PERDAS TÉCNICAS | D481: 3175374.915 | G481: PARÂMETRO | I481: FORA PONTA | J481: MW | K481: 10549.97
B482: TRANSPORTE TERCEIROS | C482: EUSD | D482: 163401.1502 | G482: PARÂMETRO | I482: PONTA | J482: MW | K482: 9902.64
B483: TRANSPORTE TERCEIROS | C483: EUST - RB | D483: 189881.7474 | G483: PARÂMETRO | H483: EUST - FR | I483: FORA PONTA | J483: R$ | K483: 24276737.02
G484: PARÂMETRO | H484: EUST - FR | I484: PONTA | J484: R$ | K484: 23257814.08
G485: PARÂMETRO | H485: EUST - RB | I485: FORA PONTA | J485: R$ | K485: 72382754.4
G486: PARÂMETRO | H486: EUST - RB | I486: PONTA | J486: R$ | K486: 67598503.72
B561: Grupo Tarifa | C561: Detalhe Grupo | D561: Det3 | E561: Valor | G561: Grupo Tarifa | H561: Detalhe Grupo | I561: Det3 | J561: Valor
B562: ENCARGO | C562: CDE | D562: Covid Neutralidade | E562: -1053519.978 | G562: ENCARGO | H562: CDE | I562: Covid CVA | J562: -16257222.61
B563: ENCARGO | C563: CDE Energia | D563: Covid Neutralidade | E563: -125020.3175 | G563: ENCARGO | H563: CDE Energia | I563: Covid CVA | J563: 10498096.71
B564: ENCARGO | C564: ESS/ERR | D564: Covid Neutralidade | E564: -572857.2904 | G564: ENCARGO | H564: ESS/ERR | I564: Covid CVA | J564: 47800347.61
B565: ENCARGO | C565: ONS | D565: Covid Neutralidade | E565: -380.0844883 | G565: ENCARGO | H565: PROINFA | I565: Covid CVA | J565: 2517258.672
B566: ENCARGO | C566: PROINFA | D566: Covid Neutralidade | E566: -802374.8917 | G566: ENERGIA | H566: ENERGIA REQUERIDA SEM PERDAS | I566: Covid CVA | J566: -73471469.03
B567: ENCARGO | C567: TFSEE | D567: Covid Neutralidade | E567: 19018.22975 | G567: ENERGIA | H567: PERDAS NA RB (sobre as perdas na D) | I567: Covid CVA | J567: -324027.6178
B568: ENERGIA | C568: ENERGIA REQUERIDA SEM PERDAS | D568: Covid Demais Componentes | E568: -15404734.39 | G568: ENERGIA | H568: PERDAS NA RB (sobre o mercado cativo) | I568: Covid CVA | J568: -1782836.403
B569: ENERGIA | C569: PERDAS NA RB (sobre as perdas na D) | D569: Covid Demais Componentes | E569: -67938.74485 | G569: ENERGIA | H569: PERDAS NÃO TÉCNICAS | I569: Covid CVA | J569: -2906777.421
B570: ENERGIA | C570: PERDAS NA RB (sobre o mercado cativo) | D570: Covid Demais Componentes | E570: -373806.6166 | G570: ENERGIA | H570: PERDAS TÉCNICAS | I570: Covid CVA | J570: -10446542.63
B571: ENERGIA | C571: PERDAS NÃO TÉCNICAS | D571: Covid Demais Componentes | E571: -609462.8934 | G571: TRANSPORTE TERCEIROS | H571: EUST - RB | I571: Covid CVA | J571: -8078891.884
B572: ENERGIA | C572: PERDAS TÉCNICAS | D572: Covid Demais Componentes | E572: -2190322.538

Sheet Entrada
A1: Entrada de parâmetros para cálculo tarifário
B4: Energia | D4: Últ. Atulização | F4: Parâmetros para Revisão | P4: ="Caso de OR para a empresa é: " &IF(BD!C53=4,"caso 1","caso 3") -> Caso de OR para a empresa é: caso 3
D6: 44333 | F6: CAPEX - Ativos de Distribuição | J6: Custo Operacional Real do(s) último(s) ano(s) | P6: Outras Receitas
B7: Montante de Geração Própria | D7: 44333 | F7: (1) Ativo Imobilizado em Serviço (Valor Novo de Reposição) | G7: =G71*VLOOKUP(DATE(YEAR(CAPA!$C$10),MONTH(CAPA!$C$10)-1,1),Índices!$B$135:$D$638,3,0)/VLOOKUP(DATE(YEAR($G$70),MONTH($G$70)-1,1),Índices!$B$135:$D$638,3,0) -> 3985785213 | J7: Ano do Custo Operacional | L7: 2019 | M7: 2020 | P7: Tipo de Receita | Q7: ='VPB e Fator X'!G163 -> 2021-01-01 | R7: ='VPB e Fator X'!H163 -> 2020-12-01 | S7: ='VPB e Fator X'!I163 -> 2020-11-01 | T7: ='VPB e Fator X'!J163 -> 2020-10-01 | U7: ='VPB e Fator X'!K163 -> 2020-09-01 | V7: ='VPB e Fator X'!L163 -> 2020-08-01 | W7: ='VPB e Fator X'!M163 -> 2020-07-01 | X7: ='VPB e Fator X'!N163 -> 2020-06-01 | Y7: ='VPB e Fator X'!O163 -> 2020-05-01 | Z7: ='VPB e Fator X'!P163 -> 2020-04-01 | AA7: ='VPB e Fator X'!Q163 -> 2020-03-01 | AB7: ='VPB e Fator X'!R163 -> 2020-02-01 | AC7: ='VPB e Fator X'!S163 -> 2020-01-01 | AD7: ='VPB e Fator X'!T163 -> 2019-12-01 | AE7: ='VPB e Fator X'!U163 -> 2019-11-01 | AF7: ='VPB e Fator X'!V163 -> 2019-10-01 | AG7: ='VPB e Fator X'!W163 -> 2019-09-01 | AH7: ='VPB e Fator X'!X163 -> 2019-08-01 | AI7: ='VPB e Fator X'!Y163 -> 2019-07-01 | AJ7: ='VPB e Fator X'!Z163 -> 2019-06-01 | AK7: ='VPB e Fator X'!AA163 -> 2019-05-01 | AL7: ='VPB e Fator X'!AB163 -> 2019-04-01 | AM7: ='VPB e Fator X'!AC163 -> 2019-03-01 | AN7: ='VPB e Fator X'!AD163 -> 2019-02-01 | AO7: ='VPB e Fator X'!AE163 -> 2019-01-01 | AP7: ='VPB e Fator X'!AF163 -> 2018-12-01 | AQ7: ='VPB e Fator X'!AG163 -> 2018-11-01 | AR7: ='VPB e Fator X'!AH163 -> 2018-10-01 | AS7: ='VPB e Fator X'!AI163 -> 2018-09-01 | AT7: ='VPB e Fator X'!AJ163 -> 2018-08-01 | AU7: ='VPB e Fator X'!AK163 -> 2018-07-01 | AV7: ='VPB e Fator X'!AL163 -> 2018-06-01 | AW7: ='VPB e Fator X'!AM163 -> 2018-05-01 | AX7: ='VPB e Fator X'!AN163 -> 2018-04-01 | AY7: ='VPB e Fator X'!AO163 -> 2018-03-01 | AZ7: ='VPB e Fator X'!AP163 -> 2018-02-01 | BA7: ='VPB e Fator X'!AQ163 -> 2018-01-01 | BB7: ='VPB e Fator X'!AR163 -> 2017-12-01 | BC7: ='VPB e Fator X'!AS163 -> 2017-11-01 | BD7: ='VPB e Fator X'!AT163 -> 2017-10-01
B8: Custo médio da Geração Própria | D8: 44333 | F8: (2) Índice de Aproveitamento Integral | G8: =G72*VLOOKUP(DATE(YEAR(CAPA!$C$10),MONTH(CAPA!$C$10)-1,1),Índices!$B$135:$D$638,3,0)/VLOOKUP(DATE(YEAR($G$70),MONTH($G$70)-1,1),Índices!$B$135:$D$638,3,0) -> 7725129.872 | J8: CONTA PESSOAL | P8: Serviços Cobráveis | Q8: 220278.23 | R8: 245845.36 | S8: 216743.94 | T8: 165032.47 | U8: 136460.3 | V8: 97131.79 | W8: 52001.88 | X8: 43978.79 | Y8: 40278.15 | Z8: 97824.05 | AA8: 198189.69 | AB8: 228587.57 | AC8: 279705.84 | AD8: 312445.01 | AE8: 286166.67 | AF8: 274417.66 | AG8: 288051.11 | AH8: 229868.19 | AI8: 232704.22 | AJ8: 201729.86 | AK8: 220248.01 | AL8: 186026.45 | AM8: 163953.85 | AN8: 189846.34 | AO8: 202836.15 | AP8: 184129.96 | AQ8: 175787 | AR8: 191657.94 | AS8: 211440.45 | AT8: 202287.11 | AU8: 176169.12 | AV8: 155838.39 | AW8: 167844.95 | AX8: 165032.16 | AY8: 199003.13 | AZ8: 183138.42
D9: 44333 | F9: (3) Obrigações Especiais Bruta | G9: =G73*VLOOKUP(DATE(YEAR(CAPA!$C$10),MONTH(CAPA!$C$10)-1,1),Índices!$B$135:$D$638,3,0)/VLOOKUP(DATE(YEAR($G$70),MONTH($G$70)-1,1),Índices!$B$135:$D$638,3,0) -> 614435419.7 | J9: BMP - 610530501; 610550501; 610532501; 610552501 | K9: Remuneração | L9: 46211776.83 | M9: 42930833.12 | P9: Arrecadação de convênios ou valores pela fatura | Q9: 340836.07 | R9: 346814.31 | S9: 344070.77 | T9: 335222.56 | U9: 357403.13 | V9: 345544.57 | W9: 341330.16 | X9: 323086.79 | Y9: 307550.32 | Z9: 322468.53 | AA9: 319465.9 | AB9: 326588.25 | AC9: 352380.27 | AD9: 169581.96 | AE9: 158325.74 | AF9: 156026.83 | AG9: 536895.77 | AH9: 136058.72 | AI9: 517108.69 | AJ9: 670901.3 | AK9: 125143.97 | AL9: 136793.82 | AM9: 118869.35 | AN9: 133925.1 | AO9: 140727.98 | AP9: 137349.69 | AQ9: 138033.58 | AR9: 142894.37 | AS9: 107095.91 | AT9: 113455.68 | AU9: 114859.62 | AV9: 111042.58 | AW9: 206241.88 | AX9: 250289.17 | AY9: 110689.66 | AZ9: 259471
D10: 44333 | F10: (4) Bens Totalmente Depreciados | G10: =G74*VLOOKUP(DATE(YEAR(CAPA!$C$10),MONTH(CAPA!$C$10)-1,1),Índices!$B$135:$D$638,3,0)/VLOOKUP(DATE(YEAR($G$70),MONTH($G$70)-1,1),Índices!$B$135:$D$638,3,0) -> 403675715.5 | J10: BMP - 610530502; 610550502; 610532502; 610552502 | K10: Encargos | L10: 20896235.75 | M10: 20296972.78 | P10: Arrecadação de faturas de terceiros por estrutura própria
F11: (5) Base de Remuneração Bruta = (1)-(2)-(3)-(4) | G11: =G7-G8-G9-G10 -> 2959948948 | J11: BMP - 610530503; 610550503; 610532503; 610552503 | K11: Previdência Privada - Corrente | L11: 12225136.39 | M11: 9527095.92 | P11: Veiculação de publicidade
F12: (6) Depreciação Acumulada | G12: =G76*VLOOKUP(DATE(YEAR(CAPA!$C$10),MONTH(CAPA!$C$10)-1,1),Índices!$B$135:$D$638,3,0)/VLOOKUP(DATE(YEAR($G$70),MONTH($G$70)-1,1),Índices!$B$135:$D$638,3,0) -> 1889718077 | J12: BMP - 610530508; 610550508; 610532508; 610552508 | K12: Outros Benefícios | L12: 26961472.28 | M12: 28637196.01 | P12: Aluguel ou cessão onerosa de imóveis e espaços físicos
F13: (7) AIS Líquido (Valor de Mercado em Uso) | G13: =G7-G12 -> 2096067136 | J13: BMP - 610530506; 610550506; 610532506; 610552506 | K13: Despesas Rescisórias | L13: 0 | M13: 0 | P13: Compartilhamento de infraestrutura | Q13: 1026408.21 | R13: 1000922.2 | S13: 988065.17 | T13: 959189.27 | U13: 953397.42 | V13: 951592.08 | W13: 926249.84 | X13: 910979.4 | Y13: 894328.64 | Z13: 912832.22 | AA13: 856961.66 | AB13: 1333713.1 | AC13: 795811.73 | AD13: 1249070.47 | AE13: 1245318.53 | AF13: 1227044.65 | AG13: 1218640.23 | AH13: 1198920.64 | AI13: 1166086.46 | AJ13: 1214515.42 | AK13: 1205993.27 | AL13: 1133087.47 | AM13: 1076875.67 | AN13: 1020311.71 | AO13: 996639.02 | AP13: 943991.95 | AQ13: 1210409.77 | AR13: 707591.62 | AS13: 927621.08 | AT13: 747739.99 | AU13: 742207.9 | AV13: 1209985.22 | AW13: 892251.71 | AX13: 894366.7 | AY13: 886596.05 | AZ13: 872883.61
F14: (8) Índice de Aproveitamento Depreciado | G14: =G78*VLOOKUP(DATE(YEAR(CAPA!$C$10),MONTH(CAPA!$C$10)-1,1),Índices!$B$135:$D$638,3,0)/VLOOKUP(DATE(YEAR($G$70),MONTH($G$70)-1,1),Índices!$B$135:$D$638,3,0) -> 5952747.95 | J14: BMP - 610530507; 610550507; 610532507; 610552507 | K14: Participação nos Lucros e Resultados - PLR | L14: 13603110.71 | M14: 20613403.93 | P14: Serviços de avaliação técnica e aferição de medidores.
F15: (9) Valor da Base de Remuneração (VBR) | G15: =G13-G14 -> 2090114388 | J15: BMP - 610530599; 610550599; 610532599; 610552599 | K15: Outros | L15: 1542768.08 | M15: 1581475.39 | P15: Operacionalização de serviço de créditos tributários
F16: (10) Almoxarifado em Operação | G16: =G80*VLOOKUP(DATE(YEAR(CAPA!$C$10),MONTH(CAPA!$C$10)-1,1),Índices!$B$135:$D$638,3,0)/VLOOKUP(DATE(YEAR($G$70),MONTH($G$70)-1,1),Índices!$B$135:$D$638,3,0) -> 3402519.052 | J16: BMP - 610530510; 610550510; 610532510; 610552510 | K16: (-) Créditos de Tributos Recuperáveis | L16: 0 | M16: 0 | P16: Elaboração de projeto, construção, operação, manutenção ou reforma de:
F17: (11) Ativo Diferido | G17: =G81*VLOOKUP(DATE(YEAR(CAPA!$C$10),MONTH(CAPA!$C$10)-1,1),Índices!$B$135:$D$638,3,0)/VLOOKUP(DATE(YEAR($G$70),MONTH($G$70)-1,1),Índices!$B$135:$D$638,3,0) -> 0 | J17: BMP - 6105306; 6105506; 6105326; 6105526 | K17: Administradores | L17: 4185045.2 | M17: 5290018.29 | P17: (1) redes de distribuição de energia elétrica destinadas à regularização fundiária de interesse específico e ao atendimento dos empreendimentos de múltiplas unidades consumidoras;
F18: (12) Obrigações Especiais Líquida | G18: =G82*VLOOKUP(DATE(YEAR(CAPA!$C$10),MONTH(CAPA!$C$10)-1,1),Índices!$B$135:$D$638,3,0)/VLOOKUP(DATE(YEAR($G$70),MONTH($G$70)-1,1),Índices!$B$135:$D$638,3,0) -> 367435062.3 | K18: Subtotal | L18: =SUM(L9:L17) -> 125625545.2 | M18: =SUM(M9:M17) -> 128876995.4 | P18: (2) redes de energia elétrica destinadas ao acesso dos sistemas de distribuição ou transmissão;
F19: (13) Terrenos e Servidões | G19: =G83*VLOOKUP(DATE(YEAR(CAPA!$C$10),MONTH(CAPA!$C$10)-1,1),Índices!$B$135:$D$638,3,0)/VLOOKUP(DATE(YEAR($G$70),MONTH($G$70)-1,1),Índices!$B$135:$D$638,3,0) -> 36190118.13 | J19: CONTA MATERIAIS | P19: (3) subestações de energia;
F20: (14) Base de Rem. Líquida Total = (1)-(6)-(8)+(10)+(11)-(12)+(13) | G20: =G15+G16+G17-G18+G19 -> 1762271963 | J20: BMP - 610530701; 610550701; 610532701; 610552701 | K20: Materiais | L20: 20116293.96 | M20: 21536229.42 | P20: (4) instalações elétricas internas de unidades consumidoras;
F21: (15) Saldo RGR PLPT | G21: =G85*VLOOKUP(DATE(YEAR(CAPA!$C$10),MONTH(CAPA!$C$10)-1,1),Índices!$B$135:$D$638,3,0)/VLOOKUP(DATE(YEAR($G$70),MONTH($G$70)-1,1),Índices!$B$135:$D$638,3,0) -> 0 | J21: BMP - 610530799; 610550799; 610532799; 610552799 | K21: Outros | L21: 4608906.8 | M21: 2250626.69 | P21: (5) banco de capacitores:
F22: (16) Saldo RGR Demais Investimentos | G22: =G86*VLOOKUP(DATE(YEAR(CAPA!$C$10),MONTH(CAPA!$C$10)-1,1),Índices!$B$135:$D$638,3,0)/VLOOKUP(DATE(YEAR($G$70),MONTH($G$70)-1,1),Índices!$B$135:$D$638,3,0) -> 0 | J22: BMP - 610530710; 610550710; 610532710; 610552710 | K22: (-) Créditos de Tributos Recuperáveis | L22: -775507.16 | M22: -826800.96 | P22: (6) padrões de entrada de unidades consumidoras atendidas em baixa tensão;
F23: (17) Taxa de Depreciação | G23: =G87 -> 0.0388 | K23: Subtotal | L23: =SUM(L20:L22) -> 23949693.6 | M23: =SUM(M20:M22) -> 22960055.15 | P23: (7) sistemas de medição de energia elétrica;
F24: (18) Quota de Reintegração Regulatória = (5) * (17) | G24: =G23*G11 -> 114846019.2 | J24: CONTA TERCEIROS | P24: (8) geradores, incluindo-se unidades de microgeração e minigeração distribuída;
J25: RIT - RP 800 - Célula F20 | K25: Manut. e Conserv. Bens e Instalações vinculadas ao Serviço Concedido | L25: 13531166.23 | M25: 6183068.59 | P25: (9) sistemas de iluminação pública.
F26: Gasto do Conselho de Consumidores | J26: RIT - RP 800 - Célula F21 | K26: Auditoria e Consultoria | L26: 15452371.41 | M26: 16846807.49 | P26: Eficientização do consumo de energia elétrica e instalação de cogeração qualificada, desde que não enquadráveis nos projetos de Pesquisa e Desenvolvimento (P&D) ou de Eficiência Energética estabelecidos em lei
F27: =Indexador!D132 -> Despesa 2020 | G27: 22654.53 | H27: 44410 | J27: RIT - RP 800 - Célula F22 | K27: Serviços Jurídicos | L27: 1535922.47 | M27: 0 | P27: Serviços de comunicação de dados
F28: =Indexador!E132 -> Despesa 2019 | G28: 65658.67 | H28: 44410 | J28: RIT - RP 800 - Célula F23 | K28: Serviços de Informática | L28: 4561921.12 | M28: 5203099.76 | P28: Serviços de consultoria
F29: =Indexador!F132 -> Despesa 2018 | G29: 63954.91 | H29: 44410 | J29: RIT - RP 800 - Célula F26 | K29: Viagens (Passagens Aéreas, etc) | L29: 5404434.16 | M29: 2826557.64 | P29: Receita proveniente da comercialização de resultados de projetos de P&D
F30: =Indexador!G132 -> Despesa 2017 | G30: 32224.23 | H30: 44410 | J30: RIT - RP 800 - Célula F27 | K30: Transportes (inclui Fretes) | L30: 998862.62 | M30: 4010861.87
F31: =Indexador!H132 -> Despesa 2016 | G31: 175085.21 | H31: 44410 | J31: RIT - RP 800 - Célula F28 | K31: Propaganda e Publicidade (exceto Publicações Oficiais) | L31: 11967.72 | M31: 799239.95 | P31: Ultrapassagem de demanda e Excedente de reativos
F32: Perdas Regulatórias | J32: RIT - RP 800 - Célula F29 | K32: Publicações Oficiais | L32: 131218.27 | M32: 89700.97 | P32: Tipo de Receita | Q32: 2020-10-01 | R32: 2020-09-01 | S32: 2020-08-01 | T32: 2020-07-01 | U32: 2020-06-01 | V32: 2020-05-01 | W32: 2020-04-01 | X32: 2020-03-01 | Y32: 2020-02-01 | Z32: 2020-01-01 | AA32: 2019-12-01 | AB32: 2019-11-01 | AC32: 2019-10-01 | AD32: 2019-09-01 | AE32: 2019-08-01 | AF32: 2019-07-01 | AG32: 2019-06-01 | AH32: 2019-05-01 | AI32: 2019-04-01 | AJ32: 2019-03-01 | AK32: 2019-02-01 | AL32: 2019-01-01 | AM32: 2018-12-01 | AN32: 2018-11-01 | AO32: 2018-10-01 | AP32: 2018-09-01 | AQ32: 2018-08-01 | AR32: 2018-07-01 | AS32: 2018-06-01 | AT32: 2018-05-01 | AU32: 2018-04-01 | AV32: 2018-03-01 | AW32: 2018-02-01 | AX32: 2018-01-01 | AY32: 2017-12-01 | AZ32: 2017-11-01 | BA32: 2017-10-01 | BB32: 2017-09-01 | BC32: 2017-08-01 | BD32: 2017-07-01 | BE32: 2017-06-01 | BF32: 2017-05-01 | BG32: 2017-04-01 | BH32: 2017-03-01 | BI32: 2017-02-01 | BJ32: 2017-01-01 | BK32: 2016-12-01 | BL32: 2016-11-01
F33: Perdas Não Técnicas | G33: 0.06277911436 | H33: 44411 | J33: RIT - RP 800 - Célula F30 | K33: Serviço de Engenharia e Supervisão de Obras | L33: 0 | M33: 0 | P33: Ultrapassagem de demanda | Q33: 601604.1142 | R33: 601604.1142 | S33: 771633.0788 | T33: 688617.7265 | U33: 717040.2338 | V33: 848530.2524 | W33: 576629.5386 | X33: 399224.4595 | Y33: 305535.4204 | Z33: 422316.9078 | AA33: 433958.7581 | AB33: 865667.1773 | AC33: 892380.6135 | AD33: 712749.9838 | AE33: 904871.3996 | AF33: 807972.8392 | AG33: 764463.3446 | AH33: 550843.081 | AI33: 427646.7068 | AJ33: 451758.2372 | AK33: 444367.4812 | AL33: 606310.4228 | AM33: 747730.8994 | AN33: 819508.0434 | AO33: 638147.8209 | AP33: 621839.3678 | AQ33: 857446.7873 | AR33: 743026.6026 | AS33: 745359.2694 | AT33: 479957.0232 | AU33: 572808.935 | AV33: 336280.1659 | AW33: 295438.1833 | AX33: 432258.0481 | AY33: 578513.6963 | AZ33: 755826.8793 | BA33: 615650.9035 | BB33: 587132.8544 | BC33: 577786.128 | BD33: 514126.2761 | BE33: 444502.7435 | BF33: 411100.624 | BG33: 266585.1848 | BH33: 217811.2745 | BI33: 303190.4376 | BJ33: 455439.5586 | BK33: 458501.6561 | BL33: 446833.1942
F34: Perdas Técnicas | G34: 0.09583547454 | H34: 44411 | J34: RIT - RP 800 - Célula F31 | K34: Gestão Comercial | L34: 5367459.29 | M34: 11894965.23 | P34: Excedente de reativos | Q34: 807343.4958 | R34: 807343.4958 | S34: 949279.4912 | T34: 951433.3135 | U34: 836588.9662 | V34: 917972.4176 | W34: 975201.6214 | X34: 971844.3705 | Y34: 860664.1696 | Z34: 982919.6422 | AA34: 967567.5619 | AB34: 833949.5927 | AC34: 1011713.486 | AD34: 938388.2462 | AE34: 911011.2604 | AF34: 938665.4708 | AG34: 886802.0054 | AH34: 919511.869 | AI34: 1038665.103 | AJ34: 1027967.713 | AK34: 1081564.449 | AL34: 985963.0572 | AM34: 1048473.661 | AN34: 929585.5766 | AO34: 1046062.999 | AP34: 1027547.472 | AQ34: 1114489.013 | AR34: 1099755.347 | AS34: 1099136.731 | AT34: 1026853.787 | AU34: 945007.455 | AV34: 866925.9341 | AW34: 864271.2667 | AX34: 853356.5919 | AY34: 833007.5137 | AZ34: 863397.2807 | BA34: 866796.7865 | BB34: 966745.5856 | BC34: 1113980.332 | BD34: 1056664.754 | BE34: 1007935.777 | BF34: 941092.066 | BG34: 875965.6052 | BH34: 808603.0855 | BI34: 871148.7624 | BJ34: 954886.6414 | BK34: 754109.7239 | BL34: 966606.0858
J35: RIT - RP 800 - Célula F32 | K35: Outros Serviços Terceirizados | L35: 81389630.4 | M35: 74164263.31
F36: Dados da Revisão Anterior - Componente Pd | J36: RIT - RP 800 - Célula F33 | K36: (-) Créditos de Tributos Recuperáveis | L36: -1140662.18 | M36: -849415.21 | N36: BMP - Código 6105.3.08.10 | P36: Receitas Irrecuperáveis | Q36: Meses
F37: Data Base Ativos e Consumidores | G37: 42794 | H37: 44410 | J37: RIT - RP 800 - Célula F34 | K37: Transferências da Administração Central | L37: 0 | M37: 0 | N37: Linhas 25 a 29 já contemplam transferências da administração central. | P37: Faturamento Total | Q37: 49 | R37: 50 | S37: 51 | T37: 52 | U37: 53 | V37: 54 | W37: 55 | X37: 56 | Y37: 57 | Z37: 58 | AA37: 59 | AB37: 60
F38: Mercado AT (MWh) | G38: 680808.39 | H38: 44410 | K38: Subtotal | L38: =SUM(L25:L37) -> 127244291.5 | M38: =SUM(M25:M37) -> 121169149.6 | P38: 1.Residencial | Q38: 87360076.12 | R38: 84822928.34 | S38: 84410132.01 | T38: 74351260.02 | U38: 82102406.21 | V38: 83416747.65 | W38: 81677497.65 | X38: 84107085.22 | Y38: 91279675.58 | Z38: 91670920.46 | AA38: 98995131.26 | AB38: 94484799.92
F39: Mercado MT (MWh) | G39: 885163.73 | H39: 44410 | J39: CONTA SEGUROS | P39: 2.Industrial | Q39: 18760574.33 | R39: 19526054.95 | S39: 20646816.89 | T39: 18330328.94 | U39: 20659061.78 | V39: 20845585.62 | W39: 20882369.26 | X39: 20028150.11 | Y39: 22412516.53 | Z39: 22574427.81 | AA39: 23543588.56 | AB39: 23620151.48
F40: Mercado BT (MWh) | G40: 2786160.29 | H40: 44410 | J40: BMP - 610531001; 610551001; 610533001; 610553001 | K40: Seguros | L40: 1397807.45 | M40: -1059437.52 | P40: 3.Comercial | Q40: 38740172.91 | R40: 40022215.87 | S40: 37265051.85 | T40: 33306555.85 | U40: 35285208.73 | V40: 36289614.83 | W40: 35942257.78 | X40: 36630693.99 | Y40: 40097990.22 | Z40: 40510540.12 | AA40: 42231203.05 | AB40: 42865835.2
F41: Número de unidades consumidoras | G41: 1382644 | H41: 44410 | J41: BMP - 610531099; 610551099; 610533099; 610553099 | K41: Outros | L41: 0 | M41: 0 | P41: 4.Rural | Q41: 9097298.95 | R41: 8675502.11 | S41: 8384180.19 | T41: 7051176.31 | U41: 7176855.48 | V41: 6769921.67 | W41: 6492051.49 | X41: 6691694.35 | Y41: 7432930.81 | Z41: 7432584.7 | AA41: 8519464.6 | AB41: 9977486.99
J42: BMP - 610531010; 610551010; 610533010; 610553010 | K42: (-) Créditos de Tributos Recuperáveis | L42: 0 | M42: 0 | P42: 5.Poder Público | Q42: 12888317.2 | R42: 13688624.87 | S42: 12555012.91 | T42: 11245214.74 | U42: 11199045.75 | V42: 11780649.09 | W42: 12530251.51 | X42: 13344621.36 | Y42: 12257650.86 | Z42: 11963109.79 | AA42: 11388026.95 | AB42: 15164514.26
F43: OPEX | K43: Subtotal | L43: =SUM(L40:L42) -> 1397807.45 | M43: =SUM(M40:M42) -> -1059437.52 | P43: 6.Iluminação Pública | Q43: 5713339.65 | R43: 6120372.19 | S43: 5800470.84 | T43: 5696307.1 | U43: 4583191.5 | V43: 5450605.72 | W43: 5307029.64 | X43: 5627053.89 | Y43: 5631805.35 | Z43: 5718706.74 | AA43: 6599257.55 | AB43: 9023918.24
F44: Extensão de redes subterrâneas (Km) | G44: 0 | H44: 44410 | J44: CONTA TRIBUTOS | P44: 7.Serviço Público | Q44: 5293287.35 | R44: 5269318.73 | S44: 5102468.76 | T44: 4738742.54 | U44: 4895219.83 | V44: 4921817.31 | W44: 4772295.7 | X44: 4821957.11 | Y44: 5523803.31 | Z44: 5429665.07 | AA44: 6019013.81 | AB44: 5973821.19
F45: Extensão de rede de distribuição aérea (Km) | G45: 75571.062 | H45: 44410 | J45: BMP - 6105316; 6105516; 6105336; 6105536 | K45: Tributos | L45: 549890.02 | M45: =SUMIF($A$10:$A$899,H45,$H$10:$H$899)+SUMIF($A$10:$A$899,I45,$H$10:$H$899)+SUMIF($A$10:$A$899,J45,$H$10:$H$899)+SUMIF($A$10:$A$899,K45,$H$10:$H$899) -> 0
F46: Extensão de rede de alta tensão (Km) | G46: 2496.816 | H46: 44410 | K46: (+) Créditos de Tributos Recuperáveis | L46: =L45 -> 549890.02 | M46: =M45 -> 0 | P46: Receitas Irrecuperáveis | Q46: Meses
F47: ="% PNT / BT Real de "&IF(MONTH(LnkTxtDRPData)>6,YEAR(LnkTxtDRPData)-1,YEAR(LnkTxtDRPData)-2) & " (Medido)" -> % PNT / BT Real de 2020 (Medido) | G47: 0.09660205068 | H47: 44411 | J47: CONTA OUTROS | P47: Faturamento não recebido até dez do ano anterior | Q47: 49 | R47: 50 | S47: 51 | T47: 52 | U47: 53 | V47: 54 | W47: 55 | X47: 56 | Y47: 57 | Z47: 58 | AA47: 59 | AB47: 60
F48: ="% PNT / BT Real de "&IF(MONTH(LnkTxtDRPData)>6,YEAR(LnkTxtDRPData)-1,YEAR(LnkTxtDRPData)-2)-1 & " (Medido)" -> % PNT / BT Real de 2019 (Medido) | G48: 0.09784106379 | H48: 44411 | J48: BMP - 610531901; 610551901; 610533901; 610553901 | K48: Indenização por Perdas e Danos | L48: 7307501.37 | M48: 8340535.34 | P48: 1.Residencial | Q48: 813565.83 | R48: 831903.32 | S48: 718423.1 | T48: 835661.22 | U48: 755233.83 | V48: 726079.7 | W48: 698417.02 | X48: 714599.1 | Y48: 699108.03 | Z48: 650504.52 | AA48: 711481.65 | AB48: 594587.62
F49: ="% PNT / BT Real de "&IF(MONTH(LnkTxtDRPData)>6,YEAR(LnkTxtDRPData)-1,YEAR(LnkTxtDRPData)-2)-2 & " (Medido)" -> % PNT / BT Real de 2018 (Medido) | G49: 0.09104850214 | H49: 44411 | J49: BMP - 610531902; 610551902; 610533902; 610553902 | K49: Consumo Próprio de Energia | L49: 4021047.1 | M49: 3972931.26 | P49: 2.Industrial | Q49: 146867.44 | R49: 248406.19 | S49: 254484.01 | T49: 109015.96 | U49: 112463.85 | V49: 124943.98 | W49: 91549.43 | X49: 86956.75 | Y49: 109415.56 | Z49: 97897.13 | AA49: 105108.53 | AB49: 96816.55
F50: ="DEC Apurado "&IF(MONTH(LnkTxtDRPData)>3,YEAR(LnkTxtDRPData)-1,YEAR(LnkTxtDRPData)-2) -> DEC Apurado 2020 | G50: 14.22 | H50: 44410 | J50: BMP - 610531905 | K50: Despesas com Conselho de Consumidores | L50: 0 | M50: 0 | P50: 3.Comercial | Q50: 137476.73 | R50: 173826.23 | S50: 187648.72 | T50: 207176.99 | U50: 127032.22 | V50: 107249.06 | W50: 150553.81 | X50: 151494.93 | Y50: 213285.03 | Z50: 163124.45 | AA50: 192610.21 | AB50: 121761.56
F51: ="DEC Apurado "&IF(MONTH(LnkTxtDRPData)>3,YEAR(LnkTxtDRPData)-1,YEAR(LnkTxtDRPData)-2)-1 -> DEC Apurado 2019 | G51: 13.7 | H51: 44410 | J51: BMP - 610531903; 610551903; 610533903; 610553903 | K51: Taxa de Arrecadação | L51: 0 | M51: 0 | P51: 4.Rural | Q51: 112814.11 | R51: 104062.16 | S51: 82782.02 | T51: 80179.66 | U51: 90506.87 | V51: 77796.52 | W51: 74811.72 | X51: 65684.16 | Y51: 78036.05 | Z51: 86580.95 | AA51: 97647.27 | AB51: 96872.29
F52: ="DEC Apurado "&IF(MONTH(LnkTxtDRPData)>3,YEAR(LnkTxtDRPData)-1,YEAR(LnkTxtDRPData)-2)-2 -> DEC Apurado 2018 | G52: 13.77 | H52: 44410 | J52: BMP - 610531904; 610551904; 610533904; 610553904 | K52: Taxas Bancárias | L52: 0 | M52: 0 | P52: 5.Poder Público | Q52: 321.52 | R52: 439.58 | S52: 368.42 | T52: 722.51 | U52: 727.42 | V52: 672.23 | W52: 11863.11 | X52: 399690.89 | Y52: 375.05 | Z52: 379.73 | AA52: 630.46 | AB52: 510.69
F53: Meta de % PNT / BT (Medido) | G53: 0.08974603123 | H53: 44411 | J53: BMP - 610531910; 610551910; 610533910; 610553910 | K53: (-) Créditos de Tributos Recuperáveis | L53: 0 | M53: 0 | P53: 6.Iluminação Pública | Q53: 30.99 | R53: 29.92 | S53: 24.45 | T53: 32.68 | U53: 22.51 | V53: 18.04 | W53: 24.78 | X53: 22.43 | Y53: 12.39 | Z53: 15.36 | AA53: 14.07 | AB53: 23.53
F54: DEC 8 anos (Limite V8) | G54: 9.92 | H54: 44410 | K54: Subtotal | L54: =SUM(L48:L53) -> 11328548.47 | M54: =SUM(M48:M53) -> 12313466.6 | P54: 7.Serviço Público | Q54: 2301.02 | R54: 2112.32 | S54: 1564.55 | T54: 1297.12 | U54: 645.41 | V54: 894.36 | W54: 1214.24 | X54: 2182.06 | Y54: 88.71 | Z54: 269.43 | AA54: 77.01 | AB54: 79.44
J55: Demais
K56: Condenações Trabalhistas | L56: 1151287.18 | M56: 1103493.01 | N56: <- Declaração EPB | P56: Previsão CCEE | Q56: =DATE(YEAR(LnkTxtDRPData),MONTH(LnkTxtDRPData),DAY(1)) -> 2021-08-01 | R56: =DATE(YEAR(Q56),MONTH(Q56)+1,DAY(1)) -> 2021-09-01 | S56: =DATE(YEAR(R56),MONTH(R56)+1,DAY(1)) -> 2021-10-01 | T56: 2021-11-01 | U56: 2021-12-01 | V56: 2022-01-01 | W56: 2022-02-01 | X56: 2022-03-01 | Y56: 2022-04-01 | Z56: 2022-05-01 | AA56: 2022-06-01 | AB56: 2022-07-01
F57: Dados da última Revisão Tarifária | K57: Gastos com CCEE | L57: 483076.52 | M57: 421610.36 | N57: <- Declaração EPB | P57: GSF | Q57: 0.573 | R57: 0.611 | S57: 0.629 | T57: 0.63 | U57: 0.857 | V57: 0.966 | W57: 1.035 | X57: 1.032 | Y57: 0.949 | Z57: 0.86 | AA57: 0.775 | AB57: 0.735 | AC57: Apresentação InfoPLD 02/08/2021
F58: Custos Operacionais (CO3) | G58: 336731443.3 | H58: 44410 | J58: BMP - 611511401 | K58: Perdas na Alienação e Desativação | L58: 8788852.62 | M58: 6679382.16 | P58: PLD | Q58: 584 | R58: 560 | S58: 584 | T58: 226 | U58: 101 | V58: 129 | W58: 155 | X58: 152 | Y58: 87 | Z58: 50 | AA58: 108 | AB58: 166 | AC58: Apresentação InfoPLD 02/08/2021
F59: Receitas Irrecuperáveis - Encargos Setoriais (Vi) | G59: 2012076.078 | H59: 44410 | J59: BMP - 611112103 | K59: Ganhos na Alienação de Materiais | L59: -7363565.8 | M59: -2137761.1
F60: Demais Receitas Irrecuperáveis (Vse) | G60: 14129639.89 | H60: 44410
F61: Remuneração do Capital (RC) | G61: 169650555.1 | H61: 44410
F62: Quota de Reintegração Regulatória (QRR) | G62: 81545399.93 | H62: 44410
F63: Custo anual das instalações móveis e imóveis (CAIMI) | G63: 39152201.53 | H63: 44410
H64: 44309
F65: Índice de Produtividade + Mecanismo de Qualidade (Pd+Q) | G65: 0.0041 | H65: 44410
F66: Outras Receitas (OR) (inserir o valor positivo) | G66: 7039659.759 | H66: 44410
F67: Componente T - Última Revisão | G67: 0.003902591629 | H67: 44410
F70: Base de Ativios - SFF | G70: 44256
F71: (1) Ativo Imobilizado em Serviço (Valor Novo de Reposição) | G71: 3846931329
F72: (2) Índice de Aproveitamento Integral | G72: 7456007.42
F73: (3) Obrigações Especiais Bruta | G73: 593030165.8
F74: (4) Bens Totalmente Depreciados | G74: 389612754.7
F75: (5) Base de Remuneração Bruta = (1)-(2)-(3)-(4) | G75: =G71-G72-G73-G74 -> 2856832401 | H75: =G75*(Índices!$D$389/Índices!$D$341)/1000 -> 3362249.328
F76: (6) Depreciação Acumulada | G76: 1823885454
F77: (7) AIS Líquido (Valor de Mercado em Uso) | G77: =G71-G76 -> 2023045874
F78: (8) Índice de Aproveitamento Depreciado | G78: 5745370.45
F79: (9) Valor da Base de Remuneração (VBR) | G79: =G77-G78 -> 2017300504
F80: (10) Almoxarifado em Operação | G80: 3283984.57
F81: (11) Ativo Diferido | G81: 0
F82: (12) Obrigações Especiais Líquida | G82: 354634627
F83: (13) Terrenos e Servidões | G83: 34929353.14
F84: (14) Base de Rem. Líquida Total = (9)+(10)+(11)-(12)+(13) | G84: =G79+G80+G81-G82+G83 -> 1700879215 | H84: =G84*(Índices!$D$389/Índices!$D$341)/1000 -> 2001790.513
F85: (15) Saldo RGR PLPT | G85: =G106*F112 -> 0
F86: (16) Saldo RGR Demais Investimentos | G86: 0
F87: (17) Taxa de Depreciação | G87: 0.0388
F88: (18) Quota de Reintegração Regulatória = (5) * (17) | G88: =G87*G75 -> 110845097.2
F91: Base de Ativios - Ciclo anterior | G91: 42795
F92: (1) Ativo Imobilizado em Serviço (Valor Novo de Reposição) | G92: 2908904093 | H92: =G7/G92-1 -> 0.3702016587
F93: (2) Índice de Aproveitamento Integral | G93: 4367756.887 | H93: =G8/G93-1 -> 0.7686721289
F94: (3) Obrigações Especiais Bruta | G94: 465572788.8 | H94: 0.3197408321
F95: (4) Bens Totalmente Depreciados | G95: 357481514.8 | H95: 0.1292212289
F96: (5) Base de Remuneração Bruta = (1)-(2)-(3)-(4) | G96: =G92-G93-G94-G95 -> 2081482032 | H96: 0.4220391538 | J96: =G96*(Índices!$D$389/Índices!$D$341)/1000 -> 2449727.734
F97: (6) Depreciação Acumulada | G97: 1290945266 | H97: 0.4638250952
F98: (7) AIS Líquido (Valor de Mercado em Uso) | G98: =G92-G97 -> 1617958827 | H98: 0.2955009121
F99: (8) Índice de Aproveitamento Depreciado | G99: 2422396.48 | H99: 1.457379706
F100: (9) Valor da Base de Remuneração (VBR) | G100: =G98-G99 -> 1615536430 | H100: 0.2937587471
F101: (10) Almoxarifado em Operação | G101: 2060608.77 | H101: 0.6512203101
F102: (11) Ativo Diferido | G102: 0
F103: (12) Obrigações Especiais Líquida | G103: 336486080.8 | H103: 0.09197700374
F104: (13) Terrenos e Servidões | G104: 27951947.45 | H104: 0.2947261795
F105: (14) Base de Rem. Líquida Total = (1)-(6)-(8)+(10)+(11)-(12)+(13) | G105: =G100+G101+G102-G103+G104 -> 1309062906 | H105: 0.3462087689 | J105: =G105*(Índices!$D$389/Índices!$D$341)/1000 -> 1540655.963
F106: (15) Saldo RGR PLPT | G106: 0
F107: (16) Saldo RGR Demais Investimentos | G107: 0
F108: (17) Taxa de Depreciação | G108: 0.0389
F109: (18) Quota de Reintegração Regulatória = (5) * (17) | G109: =G96*G108 -> 80969651.06

Sheet Resultado
B1: =CAPA!C7&" "&CAPA!B6&"/"&YEAR(CAPA!$C$10) -> Revisão EPB/2021
B2: Resultado | F2: Parâmetros a serem considerados para os Reajustes subsequentes
B4: RA1 | D4: =D39+D44 -> 2130020752 | E4: 2130133139 | F4: FATOR X | K4: Última versão enviada: | L4: 24
B5: RA0 | D5: =Mercado!D24 -> 2132678550 | E5: 2132678550 | F5: Componente T do Fator X | G5: ='VPB e Fator X'!C36 -> 0.009388438382 | K5: Data de envio | L5: 2021-08-23T09:24:37
B6: Índice de Reposição/Reajuste (Anexo II) | D6: =D4/D5-1 -> -0.001246225497 | E6: -0.001193527831 | F6: Componente Pd do Fator X | G6: ='VPB e Fator X'!C33 -> 0.009097503771
B7: Componentes Financeiros | D7: =Financeiros!E8 -> 0.06343934412 | E7: 0.06343934412 | K7: Efeito Consumidor
B8: Índice de Reposição/Reajuste com Financeiros (Anexo I) | D8: =D6+D7 -> 0.06219311862 | E8: 0.06224581629 | F8: PERDAS | K8: Efeito Grupo A - Alta tensão | L8: 0.09088179926 | M8: 0.09088156423 | N8: =L8-M8 -> 2.350314332e-07
F9: Perdas Não Técnicas | G9: =Entrada!G33 -> 0.06277911436 | K9: Efeito Grupo B - Baixa tensão | L9: 0.06530549491 | M9: 0.06530555721 | N9: =L9-M9 -> -6.230787264e-08
C10: DRA | D10: DRP | E10: DRP | F10: Perdas Técnicas | G10: =Entrada!G34 -> 0.09583547454 | K10: Efeito tarifário médio AT+BT | L10: 0.07078282162 | M10: 0.07078282025 | N10: 1.369212965e-09
B11: TOTAL (Parcela A + Parcela B) | C11: =C44+C39 -> 1283493128 | D11: =D44+D39 -> 2130020752 | E11: 2130133139 | K11: Tarifa B1 - Residencial (R$) | L11: 596.9257618 | M11: 596.9257964 | N11: -3.460035509e-05
B12: Financeiros | D12: =Financeiros!D8 -> 141688274.8 | E12: 141688274.9 | N12: 0
D13: =D11+D12 -> 2271709027 | E13: 2271821414 | K13: Subvenção da CDE para descontos tarifários (Valores anuais) | N13: 0
D14: =D11+Financeiros!D8/(1+Mercado!G13) -> 2265316480 | K14: Subsídio Carga Fonte Incentivada | L14: 18510531.02 | M14: 18510526.64 | N14: 4.379676588
K15: Subsídio Geração Fonte Incentivada | L15: 17939381.25 | M15: 17939379.06 | N15: 2.191686187
B16: Parcela A | F16: Formação da Parcela B e Reposicionamento (Resumo) | K16: Subsídio Distribuição | L16: 0 | M16: 0 | N16: 0
K17: Subsídio Água, Esgoto e Saneamento | L17: 6034520.902 | M17: 6034520.805 | N17: 0.09701539297
C18: DRA | D18: DRP | E18: DRP | K18: Subsídio Rural | L18: 17138351.95 | M18: 17138352.63 | N18: -0.6775357574
B19: ENCARGOS | C19: =SUM(C20:C28) -> 169073812.5 | D19: =SUM(D20:D28) -> 205604347.2 | E19: 205715715 | F19: Custo de Administração, Operação e Manutenção (CAOM) | G19: =SUM(G20:G22) -> 460219104.5 | K19: Subsídio Irrigante/Aquicultor | L19: 29318374.91 | M19: 29318376.24 | N19: -1.330291059
B20: Reserva Global de Reversão – RGR | C20: 0 | D20: =Encargos!C16 -> 0 | E20: 0 | F20: Custos Operacionais (CO) | G20: ='VPB e Fator X'!C121 -> 438950207.7
B21: Conta de Consumo de Combustíveis – CCC | C21: 0 | D21: =Encargos!C9 -> 0 | E21: 0 | F21: Receitas Irrecuperáveis - Encargos Setoriais (Vi) | G21: ='VPB e Fator X'!C201 -> 1856215.772 | K21: Versão de Mercado
B22: Taxa de Fisc. de Serviços de E.E. – TFSEE | C22: =Mercado!I66 -> 3282384.372 | D22: =Encargos!C17 -> 2992189.986 | E22: 2992193.825 | F22: Demais Receitas Irrecuperáveis (Vse) | G22: ='VPB e Fator X'!C205 -> 19412680.97 | K22: Status de Sincronização de BDL | L22: Trabalha na pasta de rede
B23: Conta de Desenvolvimento Energético – CDE | C23: =Mercado!H66+Mercado!AA66+Mercado!AB66 -> 74034432.88 | D23: =Encargos!C10 -> 115807033.6 | E23: 115807033.6 | F23: Custo Anual dos Ativos (CAA) | G23: =SUM(G24:G26) -> 364682148.6 | K23: Última Sincronização | L23: 2021-08-10T17:52:16
B24: Compensação financeira - CFURH | C24: =Mercado!J66 -> 0 | D24: =Encargos!C11 -> 0 | E24: 0 | F24: Remuneração do Capital (RC) | G24: ='VPB e Fator X'!C95 -> 199890744.7
B25: Encargos Serv. Sist. - ESS e Energ. Reserv. - EER | C25: =Mercado!F66 -> 40710039.95 | D25: =Encargos!C12 -> 29645962.14 | E25: 29645962.14 | F25: Quota de Reintegração Regulatória (QRR) | G25: ='VPB e Fator X'!C77 -> 114846019.2
B26: PROINFA | C26: =Mercado!G66 -> 30514420.06 | D26: =Encargos!C13 -> 35878859.02 | E26: 35878859.02 | F26: Custo anual das instalações móveis e imóveis (CAIMI) | G26: ='VPB e Fator X'!C67 -> 49945384.7
B27: P&D e Eficiência Energética | C27: =Mercado!D66 -> 20443217.58 | D27: =Encargos!C15 -> 21179324.07 | E27: 21290688.07 | F27: Parcela B (VPB) | G27: =SUM(G23,G19) -> 824901253
B28: Contribuição ONS | C28: =Mercado!E66 -> 89317.62185 | D28: =Encargos!C14 -> 100978.29 | E28: 100978.29 | F28: Índice de Produtividade da Parcela B | G28: ='VPB e Fator X'!C33 -> 0.009097503771
B29: TRANSPORTE | C29: =SUM(C30:C37) -> 221225193 | D29: =SUM(D30:D37) -> 195910342.9 | E29: 195910342.9 | F29: Mecanismo de Incentivo à Qualidade | G29: ='VPB1'!F42 -> -0.001679374937
B30: Rede Básica | C30: ='RB e Conexão'!D6 -> 147830140.3 | D30: ='RB e Conexão'!E6 -> 123331370.8 | E30: 123331370.8 | F30: Parcela B com ajustes | G30: =(1-G28-G29)*G27 -> 818782029.3
B31: Rede Básica Fronteira | C31: ='RB e Conexão'!D7 -> 50149485.75 | D31: ='RB e Conexão'!E7 -> 47819753.18 | E31: 47819753.18 | F31: 2. Outras Receitas (OR) | G31: ='VPB e Fator X'!D186 -> 15044643.5
B32: Rede Básica ONS (A2) | C32: =VLOOKUP("TUSDg ONS DRA",TUSDG[],2,FALSE) -> 0 | D32: =VLOOKUP("TUSDg ONS DRP",TUSDG[],2,FALSE) -> 0 | E32: 0 | F32: Ultrapassagem de Demanda | G32: ='VPB e Fator X'!D193 -> 3422977.48
B33: Rede Básica Export. (A2) | C33: =VLOOKUP("TUSDg Export DRA",TUSDG[],2,FALSE) -> 0 | D33: =VLOOKUP("TUSDg Export DRP",TUSDG[],2,FALSE) -> 0 | E33: 0 | F33: Excedente de Reativos | G33: ='VPB e Fator X'!D194 -> 5653070.355
B34: MUST Itaipu | C34: ='RB e Conexão'!D8 -> 0 | D34: ='RB e Conexão'!E8 -> 0 | E34: 0 | F34: Parcela B deduzidas as outras receitas | G34: =G30-G31-G32-G33 -> 794661337.9
B35: Transporte de Itaipu | C35: =SUMPRODUCT(itaiputransporte[Potência],itaiputransporte[Tarifa DRA]) -> 0 | D35: =SUMPRODUCT(itaiputransporte[Potência],itaiputransporte[Tarifa DRP]) -> 0 | E35: 0
B36: Conexão | C36: =IF(YEAR(CAPA!C10)=2013,Entrada!C46,BD!C40) -> 12433267.69 | D36: ='RB e Conexão'!E9 -> 12774773.89 | E36: 12774773.89 | F36: Receita Requerida (RR) | G36: =G30+D39 -> 2154141443
B37: Uso do sistema de distribuição e CCD | C37: =CUSD!C14 -> 10812299.24 | D37: =CUSD!D14+CUSD!E14 -> 11984445.02 | E37: 11984445.02 | F37: Outras Receitas (OR) | G37: =G31 -> 15044643.5
B38: ENERGIA | C38: =Energia!C15 -> 893194122.4 | D38: =Energia!D15 -> 933844723.9 | E38: 933844723.9 | F38: Receita Verificada (RV) | G38: =Mercado!D24 -> 2132678550
B39: VPA (ENCARGO + TRANSPORTE + ENERGIA) | C39: =C38+C29+C19 -> 1283493128 | D39: =D19+D29+D38 -> 1335359414 | E39: 1335470782
B41: Parcela B
C43: VPB0 | D43: VPB1 | E43: VPB1
B44: ="Parcela B "&IF(CAPA!C7="Revisão","(menos Outras Receitas)",) -> Parcela B (menos Outras Receitas) | C44: ='VPB1'!C10 -> 0 | D44: ='VPB1'!C12 -> 794661337.9 | E44: 794662357.3
E46: =D44-E44 -> -1019.346032
E48: =E46/E13 -> -4.486910924e-07

Sheet Votos e NTs
B2: Tabelas | D2: Gráficos
B4: Consumidores | D4: Análise de Impacto da RTA na Tarfia | K4: Composição da Receita | O4: Composição da Receita com Tributos | T4: Composição da Receita com detalhamento de Encargos | X4: Evolução da Tarifa B1 Residencial
B5: Mercado
B6: Encargos
B7: Custo do Transporte de Energia
B8: Perdas
B9: Energia Requerida
B10: Energia na DRA
B11: Contratos
B12: Fator X
B13: Parcela B
B14: CVA em Processamento
B15: Financeiros
B16: Subsídios
B17: Efeito Médio AT + BT
B18: Avaliação RTA
B19: Variação do Custo de Energia
B20: Dados dos Gráficos
X23: Ano | Y23: Tipo | Z23: Tipo Ano | AA23: B1 - Residencial | AB23: IGPM | AC23: IPCA | AD23: Data
E24: Impacto da RTA na Tarifa | H24: Valores (R$) | K24: Composição da Receita | L24: Valores (R$) | O24: Composição da Receita com Tributos | T24: Composição da Receita com detalhamento de Encargos | X24: 2011 | Y24: Reajuste | Z24: Reajuste 2011 | AA24: 375.54 | AB24: 375.54 | AC24: 375.54 | AD24: 2011-07-01
E25: Encargos Setoriais | H25: =IF(CAPA!C7="Reajuste",BO245,'NT Revisao'!AX203) -> 0.01712894552 | K25: Custo de Distribuição | L25: =Resultado!D44 -> 794661337.9 | O25: Custo de Distribuição | Q25: =L25/$Q$33 -> 0.2658905396 | T25: Custo de Distribuição | V25: =Resultado!D44 -> 794661337.9 | X25: =YEAR(BD!B78) -> 2012 | Y25: =BD!C78 -> Reajuste | Z25: =CONCATENATE(Y25," ",X25) -> Reajuste 2012 | AA25: =BD!D78 -> 387.65 | AB25: =AB24*VLOOKUP(AD25,Índices!$B$147:$D$495,2,0)/VLOOKUP(AD24,Índices!$B$147:$D$495,2,0) -> 400.6047636 | AC25: =AC24*VLOOKUP(AD25,Índices!$B$147:$D$495,3,0)/VLOOKUP(AD24,Índices!$B$147:$D$495,3,0) -> 395.0621253 | AD25: =DATE(YEAR(BD!B78),(MONTH(BD!B78))-1,1) -> 2012-07-01
E26: Custos de Transmissão | H26: =IF(CAPA!C7="Reajuste",BO255,'NT Revisao'!AX213) -> -0.0118699792 | K26: Custo de Energia | L26: =Resultado!D38 -> 933844723.9 | O26: Custo de Energia | Q26: =L26/$Q$33 -> 0.3124607499 | T26: Custo de Energia | V26: =Resultado!D38 -> 933844723.9 | X26: =YEAR(BD!B77) -> 2013 | Y26: =BD!C77 -> RTE | Z26: =CONCATENATE(Y26," ",X26) -> RTE 2013 | AA26: =BD!D77 -> 317.82 | AB26: =AB25*VLOOKUP(AD26,Índices!$B$147:$D$495,2,0)/VLOOKUP(AD25,Índices!$B$147:$D$495,2,0) -> 413.0391981 | AC26: =AC25*VLOOKUP(AD26,Índices!$B$147:$D$495,3,0)/VLOOKUP(AD25,Índices!$B$147:$D$495,3,0) -> 406.8946748 | AD26: =DATE(YEAR(BD!B77),(MONTH(BD!B77))-1,1) -> 2012-12-01
E27: Custos de Aquisição de Energia | H27: =IF(CAPA!C7="Reajuste",BO264,'NT Revisao'!AX222) -> 0.01906081977 | K27: Custo de Transmissão | L27: =Resultado!D29 -> 195910342.9 | O27: Custo de Transmissão | Q27: =L27/$Q$33 -> 0.06555082564 | T27: Custo de Transmissão | V27: =Resultado!D29 -> 195910342.9 | X27: =YEAR(BD!B76) -> 2013 | Y27: =BD!C76 -> Revisão | Z27: =CONCATENATE(Y27," ",X27) -> Revisão 2013 | AA27: =BD!D76 -> 304.45 | AB27: =AB26*VLOOKUP(AD27,Índices!$B$147:$D$495,2,0)/VLOOKUP(AD26,Índices!$B$147:$D$495,2,0) -> 421.3412333 | AC27: =AC26*VLOOKUP(AD27,Índices!$B$147:$D$495,3,0)/VLOOKUP(AD26,Índices!$B$147:$D$495,3,0) -> 419.8352551 | AD27: =DATE(YEAR(BD!B76),(MONTH(BD!B76))-1,1) -> 2013-07-01
E28: Distribuição | H28: =IF(CAPA!C7="Reajuste",BO265,'NT Revisao'!AX223) -> -0.02556601159 | K28: Encargos Setoriais | L28: =Resultado!D19 -> 205604347.2 | O28: Encargos Setoriais | Q28: =L28/$Q$33 -> 0.0687944011 | T28: PROINFA | V28: =Resultado!D26 -> 35878859.02 | X28: =YEAR(BD!B75) -> 2014 | Y28: =BD!C75 -> Reajuste | Z28: =CONCATENATE(Y28," ",X28) -> Reajuste 2014 | AA28: =BD!D75 -> 367.87 | AB28: =AB27*VLOOKUP(AD28,Índices!$B$147:$D$495,2,0)/VLOOKUP(AD27,Índices!$B$147:$D$495,2,0) -> 443.7589946 | AC28: =AC27*VLOOKUP(AD28,Índices!$B$147:$D$495,3,0)/VLOOKUP(AD27,Índices!$B$147:$D$495,3,0) -> 447.1339271 | AD28: =DATE(YEAR(BD!B75),(MONTH(BD!B75))-1,1) -> 2014-07-01
E29: Componentes Financeiros | H29: =IF(CAPA!C7="Reajuste",BO268,'NT Revisao'!AX232) -> 0.06343934412 | O29: ICMS | Q29: =Mercado!G9 -> 0.2455748637 | T29: CDE | V29: =Resultado!D23 -> 115807033.6 | X29: =YEAR(BD!B74) -> 2015 | Y29: =BD!C74 -> RTE | Z29: =CONCATENATE(Y29," ",X29) -> RTE 2015 | AA29: =BD!D74 -> 379.56 | AB29: =AB28*VLOOKUP(AD29,Índices!$B$147:$D$495,2,0)/VLOOKUP(AD28,Índices!$B$147:$D$495,2,0) -> 456.5504102 | AC29: =AC28*VLOOKUP(AD29,Índices!$B$147:$D$495,3,0)/VLOOKUP(AD28,Índices!$B$147:$D$495,3,0) -> 469.906728 | AD29: =DATE(YEAR(BD!B74),(MONTH(BD!B74))-1,1) -> 2015-02-01
E30: Retirada dos Financeiros Anteriores | H30: =IF(CAPA!C7="Reajuste",BO320,'NT Revisao'!AX284) -> 0.008589702999 | O30: PIS/COFINS | Q30: =Mercado!$G$10 -> 0.04172862 | T30: ESS/EER | V30: =Resultado!D25 -> 29645962.14 | X30: =YEAR(BD!B73) -> 2015 | Y30: =BD!C73 -> Reajuste | Z30: Reajuste 2015 | AA30: =BD!D73 -> 418.17 | AB30: =AB29*VLOOKUP(AD30,Índices!$B$147:$D$495,2,0)/VLOOKUP(AD29,Índices!$B$147:$D$495,2,0) -> 474.7005888 | AC30: =AC29*VLOOKUP(AD30,Índices!$B$147:$D$495,3,0)/VLOOKUP(AD29,Índices!$B$147:$D$495,3,0) -> 489.8727433 | AD30: =DATE(YEAR(BD!B73),(MONTH(BD!B73))-1,1) -> 2015-07-01
E31: Efeito Médio Consumidor | H31: =SUM(H25:H30) -> 0.07078282162 | O31: Imposto por dentro | Q31: =LnkTxtPisCofins+LnkTxtICMS -> 0.2873034837 | T31: Outros | V31: =Resultado!D27+Resultado!D28+Resultado!D24+Resultado!D22 -> 24272492.35 | X31: =YEAR(BD!B72) -> 2016 | Y31: =BD!C72 -> Reajuste | Z31: Reajuste 2016 | AA31: =BD!D72 -> 440.26 | AB31: =AB30*VLOOKUP(AD31,Índices!$B$147:$D$495,2,0)/VLOOKUP(AD30,Índices!$B$147:$D$495,2,0) -> 529.9193217 | AC31: =AC30*VLOOKUP(AD31,Índices!$B$147:$D$495,3,0)/VLOOKUP(AD30,Índices!$B$147:$D$495,3,0) -> 532.6669047 | AD31: =DATE(YEAR(BD!B72),(MONTH(BD!B72))-1,1) -> 2016-07-01
O32: Tributos Totais por Fora | Q32: =(Q29+Q30)/(1-Q29-Q30) -> 0.4031217736 | X32: =YEAR(BD!B71) -> 2017 | Y32: =BD!C71 -> RTE | Z32: RTE 2017 | AA32: =BD!D71 -> 434.87 | AB32: =AB31*VLOOKUP(AD32,Índices!$B$147:$D$495,2,0)/VLOOKUP(AD31,Índices!$B$147:$D$495,2,0) -> 539.2736818 | AC32: =AC31*VLOOKUP(AD32,Índices!$B$147:$D$495,3,0)/VLOOKUP(AD31,Índices!$B$147:$D$495,3,0) -> 544.6056263 | AD32: =DATE(YEAR(BD!B71),(MONTH(BD!B71))-1,1) -> 2017-03-01
O33: Receita com Tributos | Q33: =SUM(V25:V31)/(1-Q29-Q30) -> 2988678495 | X33: =YEAR(BD!B70) -> 2017 | Y33: =BD!C70 -> Revisão | Z33: Revisão 2017 | AA33: =BD!D70 -> 494.6 | AB33: =AB32*VLOOKUP(AD33,Índices!$B$147:$D$495,2,0)/VLOOKUP(AD32,Índices!$B$147:$D$495,2,0) -> 521.1162179 | AC33: =AC32*VLOOKUP(AD33,Índices!$B$147:$D$495,3,0)/VLOOKUP(AD32,Índices!$B$147:$D$495,3,0) -> 547.1108377 | AD33: =DATE(YEAR(BD!B70),(MONTH(BD!B70))-1,1) -> 2017-07-01
X34: =YEAR(BD!B69 ) -> 2018 | Y34: =BD!C69 -> Reajuste | Z34: Reajuste 2018 | AA34: =BD!D69 -> 571.77 | AB34: =AB33*VLOOKUP(AD34,Índices!$B$147:$D$495,2,0)/VLOOKUP(AD33,Índices!$B$147:$D$495,2,0) -> 564.0462228 | AC34: =AC33*VLOOKUP(AD34,Índices!$B$147:$D$495,3,0)/VLOOKUP(AD33,Índices!$B$147:$D$495,3,0) -> 571.6479038 | AD34: =DATE(YEAR(BD!B69),(MONTH(BD!B69))-1,1) -> 2018-07-01
X35: =YEAR(BD!B68) -> 2019 | Y35: =BD!C68 -> Reajuste | Z35: Reajuste 2019 | AA35: =(BD!D68) -> 545.4 | AB35: =AB34*VLOOKUP(AD35,Índices!$B$147:$D$495,2,0)/VLOOKUP(AD34,Índices!$B$147:$D$495,2,0) -> 600.1053546 | AC35: =AC34*VLOOKUP(AD35,Índices!$B$147:$D$495,3,0)/VLOOKUP(AD34,Índices!$B$147:$D$495,3,0) -> 590.0665162 | AD35: =DATE(YEAR(BD!B68),(MONTH(BD!B68))-1,1) -> 2019-07-01
X36: =YEAR(BD!B67) -> 2020 | Y36: Reajuste | Z36: Reajuste 2020 | AA36: =BD!D67 -> 562.11 | AB36: =AB35*VLOOKUP(AD36,Índices!$B$147:$D$495,2,0)/VLOOKUP(AD35,Índices!$B$147:$D$495,2,0) -> 629.8578215 | AC36: =AC35*VLOOKUP(AD36,Índices!$B$147:$D$495,3,0)/VLOOKUP(AD35,Índices!$B$147:$D$495,3,0) -> 602.2345246 | AD36: =DATE(YEAR(BD!B67),(MONTH(BD!B67))-4,1) -> 2020-04-01
X37: =YEAR(BD!B66) -> 2021 | Y37: Revisão | Z37: Revisão 2021 | AA37: =BD!D66 -> 596.9257618 | AB37: =AB36*VLOOKUP(AD37,Índices!$B$147:$D$495,2,0)/VLOOKUP(AD36,Índices!$B$147:$D$495,2,0) -> 877.55409 | AC37: =AC36*VLOOKUP(AD37,Índices!$B$147:$D$495,3,0)/VLOOKUP(AD36,Índices!$B$147:$D$495,3,0) -> 657.9703957 | AD37: =DATE(YEAR(BD!B66),(MONTH(BD!B66))-1,1) -> 2021-07-01
AA38: =AA37/AA24-1 -> 0.5895131326 | AB38: =AB37/AB24-1 -> 1.336779278 | AC38: =AC37/AC24-1 -> 0.7520647486
B39: TabCons | E39: Voltar
B40: Classe de Consumo | C40: Nº de Unidades Consumidoras* | D40: Consumo de Energia (MWh) | E40: Participação no Consumo (%)
B41: Residencial | C41: =Mercado!F41 -> 1242310 | D41: =Mercado!G41 -> 156155.049 | E41: =D41/$D$49 -> 0.4180644753
B42: Industrial | C42: =Mercado!F42 -> 4022 | D42: =Mercado!G42 -> 68240.996 | E42: 0.1826974944
B43: Comercial | C43: =Mercado!F43 -> 96392 | D43: =Mercado!G43 -> 52963.101 | E43: 0.1417949094
B44: Rural | C44: =Mercado!F44 -> 137935 | D44: =Mercado!G44 -> 23639.601 | E44: 0.06328887508
B45: Iluminação Pública | C45: =Mercado!F45 -> 755 | D45: =Mercado!G45 -> 20833.823 | E45: 0.05577713521
B46: Poder Público | C46: =Mercado!F46 -> 17018 | D46: =Mercado!G46 -> 16902.382 | E46: 0.04525172582
B47: Serviço Público | C47: =Mercado!F47 -> 1000 | D47: =Mercado!G47 -> 17436.663 | E47: 0.04668212405
B48: Demais classes | C48: =Mercado!F48 -> 315 | D48: =Mercado!G48 -> 17347.443 | E48: 0.04644326073
B49: Total | C49: =SUM(C41:C48) -> 1499747 | D49: =SUM(D41:D48) -> 373519.058 | E49: =SUM(E41:E48) -> 1
B50: *Nota: dados do último mês informado pela empresa
G51: TabMercado | I51: Voltar
G52: Subgrupos | H52: Mercado (MWh) | I52: Receita (R$) | J52: Colunas1
G53: Fornecimento | H53: =SUM(H54:H60) -> 3813676.159 | I53: =SUM(I54:I60) -> 1986970898 | J53: =IF(ABS(H53)+ABS(I53)>0,1,0) -> 1
G54: A1 (230 kV ou mais) | H54: =Mercado!C10 -> 0 | I54: =Mercado!D10 -> 0 | J54: 0
G55: A2 (88 a 138 kV) | H55: =Mercado!C11 -> 0 | I55: =Mercado!D11 -> 0 | J55: 0
G56: A3 (69 kV) | H56: =Mercado!C12 -> 103384.027 | I56: =Mercado!D12 -> 32060307.26 | J56: 1
G57: A3a (30 kV a 44 kV) | H57: =Mercado!C13 -> 0 | I57: =Mercado!D13 -> 0 | J57: 0
G58: A4 (2,3 kV a 25 kV) | H58: =Mercado!C14 -> 584476.489 | I58: =Mercado!D14 -> 280987837 | J58: 1
G59: As | H59: =Mercado!C15 -> 0 | I59: =Mercado!D15 -> 0 | J59: 0
G60: BT (menor que 2,3 kV) | H60: =Mercado!C16 -> 3125815.643 | I60: =Mercado!D16 -> 1673922754 | J60: 1
G61: Suprimento | H61: =Mercado!C17 -> 0 | I61: =Mercado!D17 -> 0 | J61: 0
G62: Livres A1 | H62: =Mercado!C18 -> 0 | I62: =Mercado!D18 -> 0 | J62: 0
G63: Demais Livres | H63: =Mercado!C19 -> 717873.292 | I63: =Mercado!D19 -> 99577577.76 | J63: 1
G64: Distribuição | H64: =Mercado!C20 -> 206376.932 | I64: =Mercado!D20 -> 19559982.56 | J64: 1
G65: Geração | H65: =Mercado!C21 -> 0 | I65: =Mercado!D21 -> 26570091.68 | J65: 1
G66: Total | H66: =SUM(H54:H65) -> 4737926.383 | I66: =SUM(I54:I65) -> 2132678550
K68: TabEnc | N68: Voltar
K69: Encargos Setoriais | L69: DRA (R$) | M69: DRP (R$) | N69: Dispositivo Legal | O69: Colunas1
K70: Taxa de Fisc. de Serviços de E.E. – TFSEE | L70: =Resultado!C22 -> 3282384.372 | M70: =Resultado!D22 -> 2992189.986 | N70: =Encargos!D17 -> Conforme módulo 5.5 do PRORET | O70: =IF(ABS(L70)+ABS(M70)>0,1,0) -> 1
K71: Conta de Desenvolvimento Energético – CDE | L71: =Resultado!C23 -> 74034432.88 | M71: =Resultado!D23 -> 115807033.6 | N71: =Encargos!D10 -> REH 2.864/2021 e DSP 939/2021 | O71: 1
K72: Compensação financeira - CFURH | L72: =Resultado!C24 -> 0 | M72: =Resultado!D24 -> 0 | N72: =Encargos!D11 -> 0 | O72: 0
K73: Encargos Serv. Sist. - ESS e Energ. Reserv. - EER | L73: =Resultado!C25 -> 40710039.95 | M73: =Resultado!D25 -> 29645962.14 | N73: =Encargos!D12 -> DSP 2.049/2021 | O73: 1
K74: PROINFA | L74: =Resultado!C26 -> 30514420.06 | M74: =Resultado!D26 -> 35878859.02 | N74: =Encargos!$D$13 -> ReH 2.815/2020 | O74: 1
K75: P&D e Eficiência Energética | L75: =Resultado!C27 -> 20443217.58 | M75: =Resultado!D27 -> 21179324.07 | N75: Res. Normativa nº 316/2008 | O75: 1
K76: Contribuição ONS | L76: =Resultado!C28 -> 89317.62185 | M76: =Resultado!D28 -> 100978.29 | N76: =Encargos!$D$14 -> Contribuição 2020 | O76: 1
K77: Total de Encargos Tarifários | L77: =SUM(L70:L76) -> 169073812.5 | M77: =SUM(M70:M76) -> 205604347.2
P79: TabTrans | R79: Voltar
P80: Componente | Q80: DRA (R$) | R80: DRP (R$) | S80: Colunas1
P81: Rede Básica | Q81: =Resultado!C30 -> 147830140.3 | R81: =Resultado!D30 -> 123331370.8 | S81: =IF(ABS(Q81)+ABS(R81)>0,1,0) -> 1
P82: Rede Básica Fronteira | Q82: =Resultado!C31 -> 50149485.75 | R82: =Resultado!D31 -> 47819753.18 | S82: 1
P83: Rede Básica ONS (A2) | Q83: =Resultado!C32 -> 0 | R83: =Resultado!D32 -> 0 | S83: 0
P84: Rede Básica Export. (A2) | Q84: =Resultado!C33 -> 0 | R84: =Resultado!D33 -> 0 | S84: 0
P85: MUST Itaipu | Q85: =Resultado!C34 -> 0 | R85: =Resultado!D34 -> 0 | S85: 0
P86: Transporte de Itaipu | Q86: =Resultado!C35 -> 0 | R86: =Resultado!D35 -> 0 | S86: 0
P87: Conexão | Q87: =Resultado!C36 -> 12433267.69 | R87: =Resultado!D36 -> 12774773.89 | S87: 1
P88: Uso do sistema de distribuição | Q88: =Resultado!C37 -> 10812299.24 | R88: =Resultado!D37 -> 11984445.02 | S88: 1
P89: Total dos Custos de Transporte | Q89: =SUM(Q81:Q88) -> 221225193 | R89: =SUM(R81:R88) -> 195910342.9
T91: TabPerdas | V91: Voltar
T92: Perdas | U92: DRA | V92: DRP | W92: Referência
T93: Não Técnica (s/ Baixa Tensão) | U93: =Energia!H13 -> 0.04938087549 | V93: =Energia!I13 -> 0.06277911436 | W93: REH XXXX/20XX
T94: Técnica (s/ merc. injetado) | U94: =Energia!H14 -> 0.09874 | V94: =Energia!I14 -> 0.09583547454 | W94: =W93 -> REH XXXX/20XX
T95: Rede Básica (s/ merc. Injetado) | U95: =Energia!H15 -> 0.02426569697 | V95: =Energia!I15 -> 0.02236726659 | W95: CCEE (últimos 12 meses)
T96: Mercado Baixa Tensão (MWh) | U96: =Mercado!$C$16 -> 3125815.643 | V96: =Mercado!$C$16 -> 3125815.643 | W96: SAMP
Y98: TabEnergia | AA98: Voltar
Y99: Descrição | Z99: DRA (MWh) | AA99: DRP (MWh)
Y100: Mercado Total | Z100: =AA100 -> 3813676.159 | AA100: =Z101+Z102 -> 3813676.159 | AB100: Colunas1
Y101: Fornecimento | Z101: =Energia!H5 -> 3813676.159 | AA101: =Z101 -> 3813676.159 | AB101: =IF(Z101<>0,1,0) -> 1
Y102: Suprimento | Z102: =Energia!C8 -> 0 | AA102: =Z102 -> 0 | AB102: =IF(Z102<>0,1,0) -> 0
Y103: Consumidores Livres | Z103: =Energia!H7 -> 924250.224 | AA103: =Z103 -> 924250.224 | AB103: =IF(Z103<>0,1,0) -> 1
Y104: Consumidores Rede Básica | Z104: =Energia!H8 -> 0 | AA104: =Z104 -> 0 | AB104: =IF(Z104<>0,1,0) -> 0
Y105: Perdas Totais | Z105: =Z106+Z107 -> 799635.9731 | AA105: =AA106+AA107 -> 835900.4039
Y106: Perdas Rede Básica | Z106: =SUM(Energia!H18:H19) -> 109293.1595 | AA106: =SUM(Energia!I18:I19) -> 101723.0519
Y107: Perdas na Distribuição | Z107: =SUM(Z108:Z109) -> 690342.8135 | AA107: =SUM(AA108:AA109) -> 734177.352
Y108: Perda Não Técnica | Z108: =Energia!H16 -> 154355.5131 | AA108: =Energia!I16 -> 196235.9377
Y109: Perda Técnica | Z109: =Energia!H17 -> 535987.3005 | AA109: =Energia!I17 -> 537941.4143
Y110: Energia Requerida | Z110: =Z100+Z105 -> 4613312.132 | AA110: =AA100+AA105 -> 4649576.563
AC112: TabEDRA | AE112: Voltar
AC113: Energia Requerida (MWh) | AD113: Tarifa Média (R$/MWh) | AE113: Energia Requerida (R$)
AC114: ='Votos e NTs'!Z110 -> 4613312.132 | AD114: =Energia!C14 -> 193.6123325 | AE114: =AD114*AC114 -> 893194122.4
AG116: TabContratos | AK116: Voltar
AG117: Contratos | AH117: Contratado (MWh) | AI117: Considerado (MWh) | AJ117: Tarifa (R$/MWh) | AK117: Despesa (R$) | AL117: Colunas1
AG118: Bilateral | AH118: =SUM(Energia!H145:H191) -> 221285.76 | AI118: =SUM(Energia!M145:M191) -> 261453.8655 | AJ118: =AK118/AI118 -> 420.4 | AK118: =SUM(Energia!N145:N191) -> 109915205.1 | AL118: =IF(AI118=0,0,1) -> 1
AG119: AMBIENTE REGULADO - CCEAR | AH119: =SUM(AH120:AH124) -> 2376052.286 | AI119: =SUM(AI120:AI124) -> 2807356.672 | AJ119: =IFERROR(AK119/AI119,0) -> 220.3884829 | AK119: =SUM(AK120:AK124) -> 618709077.9 | AL119: =IF(AI119=0,0,1) -> 1
AG120: Existente - CCEAR-DSP | AH120: =SUMPRODUCT((Energia!$J$49:$J$140),(Energia!$T$49:$T$140=18)*(INT(Energia!$S$49:$S$140/10000)=2)) -> 0 | AI120: =SUMPRODUCT((Energia!$K$49:$K$140),(Energia!$T$49:$T$140=18)*(INT(Energia!$S$49:$S$140/10000)=2)) -> 0 | AJ120: 0 | AK120: =IFERROR(SUMPRODUCT((Energia!$U$49:$U$140),(Energia!$T$49:$T$140=18)*(INT(Energia!$S$49:$S$140/10000)=2))*AI120/AH120,0) -> 0 | AL120: 0
AG121: Existente - CCEAR-QTD | AH121: =SUMPRODUCT((Energia!$J$49:$J$140),(Energia!$T$49:$T$140=1)*(INT(Energia!$S$49:$S$140/10000)=2)) -> 0 | AI121: =SUMPRODUCT((Energia!$K$49:$K$140),(Energia!$T$49:$T$140=1)*(INT(Energia!$S$49:$S$140/10000)=2)) -> 0 | AJ121: 0 | AK121: =IFERROR(SUMPRODUCT((Energia!$U$49:$U$140),(Energia!$T$49:$T$140=1)*(INT(Energia!$S$49:$S$140/10000)=2))*AI121/AH121,0) -> 0 | AL121: 0
AG122: Nova e Alternativa- CCEAR-DSP | AH122: =SUMPRODUCT((Energia!$J$49:$J$140),(Energia!$T$49:$T$140=18)*(INT(Energia!$S$49:$S$140/10000)=1))+SUMPRODUCT((Energia!$J$49:$J$140),(Energia!$T$49:$T$140=18)*(INT(Energia!$S$49:$S$140/10000)=3)) -> 1218509.128 | AI122: =SUMPRODUCT((Energia!$K$49:$K$140),(Energia!$T$49:$T$140=18)*(INT(Energia!$S$49:$S$140/10000)=1))+SUMPRODUCT((Energia!$K$49:$K$140),(Energia!$T$49:$T$140=18)*(INT(Energia!$S$49:$S$140/10000)=3)) -> 1439694.635 | AJ122: 259.2409211 | AK122: =(SUMPRODUCT((Energia!$U$49:$U$140),(Energia!$T$49:$T$140=18)*(INT(Energia!$S$49:$S$140/10000)=1))+SUMPRODUCT((Energia!$U$49:$U$140),(Energia!$T$49:$T$140=18)*(INT(Energia!$S$49:$S$140/10000)=3)))*AI122/AH122 -> 373227763.4 | AL122: 1
AG123: Nova e Alternativa- CCEAR-QTD | AH123: =SUMPRODUCT((Energia!$J$49:$J$140),(Energia!$T$49:$T$140=1)*(INT(Energia!$S$49:$S$140/10000)=1))+SUMPRODUCT((Energia!$J$49:$J$140),(Energia!$T$49:$T$140=1)*(INT(Energia!$S$49:$S$140/10000)=3)) -> 513168.64 | AI123: =SUMPRODUCT((Energia!$K$49:$K$140),(Energia!$T$49:$T$140=1)*(INT(Energia!$S$49:$S$140/10000)=1))+SUMPRODUCT((Energia!$K$49:$K$140),(Energia!$T$49:$T$140=1)*(INT(Energia!$S$49:$S$140/10000)=3)) -> 606319.7406 | AJ123: 218.0039233 | AK123: =(SUMPRODUCT((Energia!$U$49:$U$140),(Energia!$T$49:$T$140=1)*(INT(Energia!$S$49:$S$140/10000)=1))+SUMPRODUCT((Energia!$U$49:$U$140),(Energia!$T$49:$T$140=1)*(INT(Energia!$S$49:$S$140/10000)=3)))*AI123/AH123 -> 132180082.2 | AL123: 1
AG124: Madeira e Belo Monte | AH124: =SUMPRODUCT((Energia!$J$49:$J$140)*(INT(Energia!$S$49:$S$140/10000)=5)) -> 644374.518 | AI124: =SUMPRODUCT((Energia!$K$49:$K$140)*(INT(Energia!$S$49:$S$140/10000)=5)) -> 761342.2959 | AJ124: 148.8177301 | AK124: =(SUMPRODUCT((Energia!U49:U140)*(INT(Energia!S49:S140/10000)=5)))*AI124/AH124 -> 113301232.3 | AL124: 1
AG125: =Energia!B20 -> Energia Base | AH125: =SUM(AH126:AH130) -> 1352088.53 | AI125: =SUM(AI126:AI130) -> 1580766.026 | AJ125: 129.8234132 | AK125: =SUM(AK126:AK130) -> 205220440.9 | AL125: 1
AG126: =Energia!B21 -> Geração Própria | AH126: =Energia!H33 -> 0 | AI126: =Energia!C21 -> 0 | AJ126: =Energia!D21 -> 0 | AK126: =AJ126*AI126 -> 0 | AL126: 0
AG127: =Energia!B22 -> Cota Angra I/Angra II | AH127: =Energia!H34 -> 151039.1671 | AI127: =Energia!C22 -> 178456.0112 | AJ127: =Energia!D22 -> 249.64 | AK127: =AJ127*AI127 -> 44549758.64 | AL127: 1
AG128: =Energia!B23 -> Cotas Lei n º 12783/2013 | AH128: =Energia!H35 -> 1108743.26 | AI128: =Energia!C23 -> 1310003.912 | AJ128: =Energia!D23 -> 122.6490095 | AK128: =AJ128*AI128 -> 160670682.3 | AL128: 1
AG129: =Energia!B24 -> Itaipu (tirando as perdas) | AH129: =Energia!H36 -> 0 | AI129: =Energia!C24 -> 0 | AJ129: =Energia!D24 -> 0 | AK129: =AJ129*AI129 -> 0 | AL129: 0
AG130: =Energia!B25 -> PROINFA | AH130: =Energia!C25 -> 92306.10238 | AI130: =Energia!C25 -> 92306.10238 | AJ130: =Energia!D25 -> 0 | AK130: =AJ130*AI130 -> 0 | AL130: 1
AG131: Total | AH131: =AH119+AH125 -> 3728140.815 | AI131: =AI119+AI125+AI118 -> 4649576.563 | AJ131: =AK131/AI131 -> 200.8451116 | AK131: =AK119+AK125+AK118 -> 933844723.9
AM133: TabFatorX | AN133: Voltar
AM134: Componentes | AN134: Valor
AM135: Componente Pd do Fator X | AN135: ='VPB1'!F40 -> 0
AM136: Componente T do Fator X | AN136: ='VPB1'!F41 -> 0
AM137: Componente Q do Fator X | AN137: ='VPB1'!F42 -> -0.001679374937
AM138: Fator X | AN138: ='VPB1'!F43 -> -0.001679374937
AP140: TabParcelaB | AQ140: Voltar
AP141: Descrição | AQ141: Valores | AR141: Referência
AP142: (1) Parcela B - DRA (R$) | AQ142: =Resultado!C44 -> 0 | AR142: TUSD aplicada ao Mercado
AP143: (2) IGP-M | AQ143: ='VPB1'!F38 -> 0.3382517594 | AR143: SGT/ANEEL
AP144: (3) Fator X | AQ144: =LnkTxtFatorX -> -0.001679374937
AP145: (3.1) Componente Pd do Fator X | AQ145: =+LnkTxtPD -> 0.009097503771 | AR145: REH XXXX/XXXX ou Pd Ex-Post
AP146: (3.2) Componente T do Fator X | AQ146: =LnkTxtFatorT -> 0 | AR146: REH XXXX/XXXX
AP147: (3.3) Componente Q do Fator X | AQ147: =LnkTxtFatorQ -> -0.001679374937 | AR147: PRORET 2.5 A
AP148: Parcela B - DRP (R$) = [(1)*((2)-(3))] | AQ148: =Resultado!D44 -> 794661337.9
AT150: TabCVA | AW150: Voltar
AT151: Descrição | AU151: Delta (R$) | AV151: 5° Dia Útil Anterior (R$) | AW151: 12 Meses Subseqüentes (R$) | AX151: Colunas1
AT152: ="CVA "&CVA!B9 -> CVA CCC | AU152: =CVA!C9 -> 0 | AV152: =CVA!D9 -> 0 | AW152: =CVA!E9 -> 0 | AX152: =IF(AU152<>0,1,0) -> 0
AT153: ="CVA "&CVA!B10 -> CVA CDE | AU153: =CVA!C10 -> 9770266.241 | AV153: =CVA!D10 -> 9946108.623 | AW153: =CVA!E10 -> 10166908.78 | AX153: 1
AT154: ="CVA "&CVA!B11 -> CVA CDE Energia | AU154: =CVA!C11 -> -1248124.578 | AV154: =CVA!D11 -> -1280745.094 | AW154: =CVA!E11 -> -1309177.191 | AX154: 1
AT155: ="CVA "&CVA!B12 -> CVA Rede Básica | AU155: =CVA!C12 -> 22919111.84 | AV155: =CVA!D12 -> 23369308.39 | AW155: =CVA!E12 -> 23888098.93 | AX155: 1
AT156: ="CVA "&CVA!B13 -> CVA Compra Energia | AU156: =CVA!C13 -> 80293895.08 | AV156: =CVA!D13 -> 81599524.61 | AW156: =CVA!E13 -> 83411005.75 | AX156: 1
AT157: ="CVA "&CVA!B14 -> CVA CFURH | AU157: =CVA!C14 -> 0 | AV157: =CVA!D14 -> 0 | AW157: =CVA!E14 -> 0 | AX157: 0
AT158: ="CVA "&CVA!B15 -> CVA Transporte Itaipu | AU158: =CVA!C15 -> 0 | AV158: =CVA!D15 -> 0 | AW158: =CVA!E15 -> 0 | AX158: 0
AT159: ="CVA "&CVA!B16 -> CVA Proinfa | AU159: =CVA!C16 -> 4174411.568 | AV159: =CVA!D16 -> 4233407.807 | AW159: =CVA!E16 -> 4327387.991 | AX159: 1
AT160: ="CVA "&CVA!B17 -> CVA ESS/ERR | AU160: =CVA!C17 -> 24558625.49 | AV160: =CVA!D17 -> 25085729.84 | AW160: =CVA!E17 -> 25642624.34 | AX160: 1
AT161: Total | AU161: =SUM(AU152:AU160) -> 140468185.6 | AV161: =SUM(AV152:AV160) -> 142953334.2 | AW161: =SUM(AW152:AW160) -> 146126848.6
AY163: TabFin | BA163: Voltar
AY164: Componentes Financeiros | AZ164: Valor (R$) | BA164: Participação | BB164: Colunas1 | BC164: Colunas2
AY165: CVA em processamento - Energia | AZ165: =SUMIFS(Financeiros[Valor],Financeiros[idDet1],19,Financeiros[id_Grupo_TARIFA],2,Financeiros[idDet2],60,Financeiros[idDet3],999) -> 83411005.75 | BA165: =AZ165/Financeiros!$D$6 -> 0.03734634713 | BB165: =IF(AZ165<>0,1,0) -> 1
AY166: CVA em processamento -Transporte | AZ166: =SUMIFS(Financeiros[Valor],Financeiros[idDet1],19,Financeiros[id_Grupo_TARIFA],1,Financeiros[idDet2],60,Financeiros[idDet3],999) -> 23888098.93 | BA166: =AZ166/Financeiros!$D$6 -> 0.01069562975 | BB166: 1
AY167: CVA em processamento - Encargos Setoriais | AZ167: =SUMIFS(Financeiros[Valor],Financeiros[idDet1],19,Financeiros[id_Grupo_TARIFA],3,Financeiros[idDet2],60,Financeiros[idDet3],999) -> 38827743.93 | BA167: =AZ167/Financeiros!$D$6 -> 0.01738468911 | BB167: 1
AY168: Saldo a Compensar CVA-Ano Anterior + Ajustes | AZ168: =SUMIFS(Financeiros[Valor],Financeiros[idDet1],19,Financeiros[idDet2],64, Financeiros[idDet3],999) -> -842290.9278 | BA168: =AZ168/Financeiros!$D$6 -> -0.0003771263647 | BB168: =IF(AZ168<>0,1,0) -> 1
AY169: Neutralidade de Parcela A - Encargos Setoriais e Conta Covid | AZ169: =SUMIFS(Financeiros[Valor],Financeiros[idDet1],20,Financeiros[idDet2],60, Financeiros[idDet3],999) -> -2085679.732 | BA169: =AZ169/Financeiros!$D$6 -> -0.0009338398282 | BB169: =IF(AZ169<>0,1,0) -> 1
AY170: Sobrecontratação/exposição de energia | AZ170: =SUMIFS(Financeiros[Valor],Financeiros[idDet1],22,Financeiros[id_Grupo_TARIFA],2,Financeiros[idDet2],60, Financeiros[idDet3],106)+SUMIFS(Financeiros[Valor],Financeiros[idDet1],22,Financeiros[id_Grupo_TARIFA],2,Financeiros[idDet2],60, Financeiros[idDet3],101) -> 8675793.173 | BA170: =AZ170/Financeiros!$D$6 -> 0.00388448959 | BB170: 1
AY171: Garantias financeiras na contratação regulada de energia (CCEAR) | AZ171: =SUMIFS(Financeiros[Valor],Financeiros[idDet1],22,Financeiros[id_Grupo_TARIFA],2,Financeiros[idDet2],60, Financeiros[idDet3],102) -> 510907.7002 | BA171: =AZ171/Financeiros!$D$6 -> 0.0002287532221 | BB171: 1
AY172: Previsão de Risco Hidrológico | AZ172: =SUMIFS(Financeiros[Valor],Financeiros[idDet1],22,Financeiros[id_Grupo_TARIFA],2,Financeiros[idDet2],60, Financeiros[idDet3],220) -> 99229967.75 | BA172: =AZ172/Financeiros!$D$6 -> 0.04442911086 | BB172: 1
AY173: Ajuste ref. equilíbrio econômico-financeiro TUSDg | AZ173: =SUMIFS(Financeiros[Valor],Financeiros[idDet1],22,Financeiros[id_Grupo_TARIFA],4,Financeiros[idDet2],60, Financeiros[idDet3],137) -> 0 | BA173: =AZ173/Financeiros!$D$6 -> 0 | BB173: 0
AY174: Repasse de ultrapassagem de Supridas/Permissionárias de Energia | AZ174: =SUMIFS(Financeiros[Valor],Financeiros[idDet1],22,Financeiros[id_Grupo_TARIFA],2,Financeiros[idDet2],60, Financeiros[idDet3],187) -> 0 | BA174: =AZ174/Financeiros!$D$6 -> 0 | BB174: 0
AY175: Ajuste CUSD | AZ175: =SUMIFS(Financeiros[Valor],Financeiros[idDet1],22,Financeiros[id_Grupo_TARIFA],1,Financeiros[idDet2],60, Financeiros[idDet3],119) -> 410225.658 | BA175: =AZ175/Financeiros!$D$6 -> 0.0001836739611 | BB175: 1
AY176: Repasse de compensação DIC/FIC | AZ176: =SUMIFS(Financeiros[Valor],Financeiros[idDet1],22,Financeiros[id_Grupo_TARIFA],1,Financeiros[idDet2],60, Financeiros[idDet3],178) -> -76230.28282 | BA176: =AZ176/Financeiros!$D$6 -> -3.413125856e-05 | BB176: 1
AY177: Compensação ref. acordos bilaterais de CCEAR | AZ177: =SUMIFS(Financeiros[Valor],Financeiros[idDet1],22,Financeiros[id_Grupo_TARIFA],2,Financeiros[idDet2],60, Financeiros[idDet3],230) -> 136603.7206 | BA177: =AZ177/Financeiros!$D$6 -> 6.116279167e-05 | BB177: 1
AY178: Conselho de Consumidores | AZ178: =SUMIFS(Financeiros[Valor],Financeiros[idDet1],22,Financeiros[id_Grupo_TARIFA],4,Financeiros[idDet2],60, Financeiros[idDet3],188) -> -926865.2079 | BA178: =AZ178/Financeiros!$D$6 -> -0.000414993555 | BB178: 1
AY179: Reversão do Risco Hidrológico | AZ179: =SUMIFS(Financeiros[Valor],Financeiros[idDet1],22,Financeiros[id_Grupo_TARIFA],2,Financeiros[idDet2],62, Financeiros[idDet3],220) -> -71492291.1 | BA179: =AZ179/Financeiros!$D$6 -> -0.03200987563 | BB179: 1
AY180: Ressarcimento de P&D | AZ180: =SUMIFS(Financeiros[Valor],Financeiros[idDet1],22,Financeiros[id_Grupo_TARIFA],3,Financeiros[idDet2],60, Financeiros[idDet3],231) -> 0 | BA180: =AZ180/Financeiros!$D$6 -> 0 | BB180: 0
AY181: Modicidade Tarifária (RENs 414/2010 e 376/2009) | AZ181: =Financeiros!D78 -> -1377001.123 | BA181: =AZ181/Financeiros!$D$6 -> -0.0006165368885 | BB181: =IF(AZ181<>0,1,0) -> 1
AY182: ICMS não compesando na compra de energia | AZ182: =SUMIFS(Financeiros[Valor],Financeiros[idDet1],22,Financeiros[idDet2],60,Financeiros[idDet3],300) -> 0 | BA182: =AZ182/Financeiros!$D$6 -> 0 | BB182: =IF(AZ182<>0,1,0) -> 0
AY183: Reperfilamento de custos de Transporte | AZ183: =SUMIFS(Financeiros[Valor],Financeiros[idDet1],22,Financeiros[idDet2],60,Financeiros[idDet3],999)-AZ181 -> 0 | BA183: =AZ183/Financeiros!$D$6 -> 0 | BB183: =IF(AZ183<>0,1,0) -> 0
AY184: Reversão Conta-Covid - CVA em processamento - Energia | AZ184: =SUMIFS(Financeiros[Valor],Financeiros[idDet1],19,Financeiros[id_Grupo_TARIFA],2,Financeiros[idDet2],60,Financeiros[idDet3],233) -> 68692124.77 | BA184: =AZ184/Financeiros!$D$6 -> 0.03075613241 | BB184: 1 | BC184: =SUM(BA184:BA189) -> -0.006181663167
AY185: Reversão Conta-Covid - CVA em processamento -Transporte | AZ185: =SUMIFS(Financeiros[Valor],Financeiros[idDet1],19,Financeiros[id_Grupo_TARIFA],1,Financeiros[idDet2],60,Financeiros[idDet3],233) -> 5321359.792 | BA185: =AZ185/Financeiros!$D$6 -> 0.002382579472 | BB185: 1
AY186: Reversão Conta-Covid - CVA em processamento - Encargos Setoriais | AZ186: =SUMIFS(Financeiros[Valor],Financeiros[idDet1],19,Financeiros[id_Grupo_TARIFA],3,Financeiros[idDet2],60,Financeiros[idDet3],233) -> -39485731.05 | BA186: =AZ186/Financeiros!$D$6 -> -0.0176792955 | BB186: 1
AY187: Reversão Conta-Covid - Saldo a Compensar CVA-Ano Anterior + Ajustes | AZ187: =SUMIFS(Financeiros[Valor],Financeiros[idDet1],19,Financeiros[idDet2],64, Financeiros[idDet3],236) -> -54635219.57 | BA187: =AZ187/Financeiros!$D$6 -> -0.02446230995 | BB187: 1
AY188: Reversão Conta-Covid - Neutralidade de Parcela A | AZ188: =SUMIFS(Financeiros[Valor],Financeiros[idDet1],20,Financeiros[idDet2],60, Financeiros[idDet3],234) -> -1428107.324 | BA188: =AZ188/Financeiros!$D$6 -> -0.0006394191195 | BB188: 1
AY189: Reversão Conta-Covid - Sobrecontratação | AZ189: =SUMIFS(Financeiros[Valor],Financeiros[idDet1],22,Financeiros[idDet2],60, Financeiros[idDet3],235)-SUMIFS(Financeiros[Valor],Financeiros[idDet1],22,Financeiros[id_Grupo_TARIFA],4,Financeiros[idDet2],60, Financeiros[idDet3],235) -> 7729169.767 | BA189: =AZ189/Financeiros!$D$6 -> 0.003460649522 | BB189: 1
AY190: Reversão Conta Covid - Parcela B | AZ190: =SUMIFS(Financeiros[Valor],Financeiros[idDet1],22,Financeiros[id_Grupo_TARIFA],4,Financeiros[idDet2],60, Financeiros[idDet3],235) -> 0 | BA190: =AZ190/Financeiros!$D$6 -> 0 | BB190: 0
AY191: Reversão Conta Covid - Diferimento | BA191: =AZ191/Financeiros!$D$6 -> 0 | BB191: 0
AY192: Reversão Conta Covid - Postergação | BA192: =AZ192/Financeiros!$D$6 -> 0 | BB192: 0
AY193: Prorrogação das tarifas (abril/2020 a jun/2020) | AZ193: =Postergação!C6+Postergação!C5 -> 0 | BA193: =AZ193/Financeiros!$D$6 -> 0 | BB193: =IF(AZ193<>0,1,0) -> 0
AY194: Reversão de Créditos de Pis/Cofins | AZ194: =Financeiros!D120 -> -22795309.78 | BA194: =AZ194/Financeiros!$D$6 -> -0.01020634561 | BB194: 1
BA195: =AZ195/Financeiros!$D$6 -> 0 | BB195: 0
BA196: =AZ196/Financeiros!$D$6 -> 0 | BB196: 0
BA197: =AZ197/Financeiros!$D$6 -> 0 | BB197: 0
BA198: =AZ198/Financeiros!$D$6 -> 0 | BB198: 0
BA199: =AZ199/Financeiros!$D$6 -> 0 | BB199: 0
BA200: =AZ200/Financeiros!$D$6 -> 0 | BB200: 0
BA201: =AZ201/Financeiros!$D$6 -> 0 | BB201: =IF(AZ201<>0,1,0) -> 0
BA202: =AZ202/Financeiros!$D$6 -> 0 | BB202: =IF(AZ202<>0,1,0) -> 0
BA203: =AZ203/Financeiros!$D$6 -> 0 | BB203: =IF(AZ203<>0,1,0) -> 0
BA204: =AZ204/Financeiros!$D$6 -> 0 | BB204: =IF(AZ204<>0,1,0) -> 0
BA205: =AZ205/Financeiros!$D$6 -> 0 | BB205: 0
BA206: =AZ206/Financeiros!$D$6 -> 0 | BB206: 0
BA207: =AZ207/Financeiros!$D$6 -> 0 | BB207: 0
BA208: =AZ208/Financeiros!$D$6 -> 0 | BB208: 0
BA209: =AZ209/Financeiros!$D$6 -> 0 | BB209: 0
BA210: =AZ210/Financeiros!$D$6 -> 0 | BB210: 0
BA211: =AZ211/Financeiros!$D$6 -> 0 | BB211: 0
BA212: =AZ212/Financeiros!$D$6 -> 0 | BB212: 0
BA213: =AZ213/Financeiros!$D$6 -> 0 | BB213: 0
BA214: =AZ214/Financeiros!$D$6 -> 0 | BB214: 0
... 141 more rows

Sheet NT Revisao
B2: Tabelas
B4: Custo Operacional
B5: Receitas Irrecuperáveis
B6: Remuneração do Capital e Quota de Reintegração
B7: CAIMI
B8: Parcela B Ajustada
B9: Outras Receitas
B10: Cálculo das Perdas
B11: Energia Requerida
B12: Transmissão
B13: Encargos Setoriais
B18: Custo Operacional | E18: Voltar
B19: Limites de Eficiência
B20: Descrição | C20: Limite Inferior | D20: Centro | E20: Limite Superior
B21: 1. Eficiência | C21: ='VPB e Fator X'!C133 -> 0.88305536 | D21: ='VPB e Fator X'!C131 -> 0.9585816885 | E21: ='VPB e Fator X'!C132 -> 1
B22: 2. OPEX Benchmarking (Atualizado) - R$ | C22: ='VPB e Fator X'!C136 -> 395105696.6 | D22: =(E22+C22)/2 -> 421267982.4 | E22: ='VPB e Fator X'!C135 -> 447430268.3
B24: Comparação com intervalo de CO eficientes
B25: Descrição | C25: Valor
B26: 3. OPEX nas tarifas - R$ | C26: ='VPB e Fator X'!C111 -> 446363696.1
B27: 4. Meta estudo de eficiência - R$ | C27: ='VPB e Fator X'!C114 -> 446363696.1
B28: 5. Variação Anual (%) | C28: ='VPB e Fator X'!C115 -> 0
B29: 6. Meta da eficiência aplicado o limite de 5% a.a. | C29: ='VPB e Fator X'!C117 -> 446363696.1
B31: Avaliação do prêmio de eficiência
B32: Descrição | C32: Reais
B33: 7. OPEX Real - R$ | C33: ='VPB e Fator X'!C118 -> 322546491.3
B34: 8. Meta OPEX | C34: ='VPB e Fator X'!C114 -> 446363696.1
B35: 9. Relação OPEX Real / Meta OPEX | C35: ='VPB e Fator X'!C119 -> 1.383873978
B36: 10. Meta OPEX aplicada a regra de compartilhamento | C36: ='VPB e Fator X'!C120 -> 416709742.8
B38: 11. Número de anos no ciclo | C38: 4
B39: 12. OPEX na revisão [ = 3. + (10. - 3.) / 11.] | C39: ='VPB e Fator X'!C121 -> 438950207.7
G41: Receitas Irrecuperáveis | J41: Voltar
G42: Descrição | H42: Receita Base (R$) | I42: % RI | J42: RI (R$)
G43: Encargos Setoriais | H43: ='VPB e Fator X'!C202/(1-'VPB e Fator X'!C203) -> 288487936.2 | I43: ='VPB e Fator X'!C204 -> 0.006434292525 | J43: =Resultado!G21 -> 1856215.772
G44: Restante da Receita | H44: =SUM('VPB e Fator X'!C206:C208,'VPB e Fator X'!C26)/(1-'VPB e Fator X'!C203) -> 2890589206 | I44: ='VPB e Fator X'!C209 -> 0.006715821442 | J44: =Resultado!G22 -> 19412680.97
G45: Total | H45: =SUM(H43:H44) -> 3179077142 | I45: =J45/H45 -> 0.006690273872 | J45: =SUM(J43:J44) -> 21268896.74
L47: Remuneração do Capital e Quota de Reintegração | M47: Voltar
L48: Descrição | N48: Colunas1
L49: (1) Ativo Imobilizado em Serviço (Valor Novo de Reposição) | M49: ='VPB e Fator X'!C71 -> 3985785213 | N49: =IF(M49=0,0,1) -> 1
L50: (2) Índice de Aproveitamento Integral | M50: ='VPB e Fator X'!C72 -> 7725129.872 | N50: 1
L51: (3) Obrigações Especiais Bruta | M51: ='VPB e Fator X'!C73 -> 614435419.7 | N51: 1
L52: (4) Bens Totalmente Depreciados | M52: ='VPB e Fator X'!C74 -> 403675715.5 | N52: 1
L53: (5) Base de Remuneração Bruta = (1)-(2)-(3)-(4) | M53: ='VPB e Fator X'!C75 -> 2959948948 | N53: 1
L54: (6) Depreciação Acumulada | M54: ='VPB e Fator X'!C82 -> 1889718077 | N54: 1
L55: (7) AIS Líquido (Valor de Mercado em Uso) | M55: ='VPB e Fator X'!C83 -> 2096067136 | N55: 1
L56: (8) Índice de Aproveitamento Depreciado | M56: ='VPB e Fator X'!C84 -> 5952747.95 | N56: 1
L57: (9) Valor da Base de Remuneração (VBR) = (1)-(6)-(8) | M57: ='VPB e Fator X'!C85 -> 2090114388 | N57: 1
L58: (10) Almoxarifado em Operação | M58: ='VPB e Fator X'!C86 -> 3402519.052 | N58: 1
L59: (11) Ativo Diferido | M59: ='VPB e Fator X'!C87 -> 0
L60: (12) Obrigações Especiais Líquida | M60: ='VPB e Fator X'!C88 -> 367435062.3 | N60: 1
L61: (13) Terrenos e Servidões | M61: ='VPB e Fator X'!C89 -> 36190118.13 | N61: 1
L62: (14) Base de Remuneração Líquida Total = (9)+(10)+(11)-(12)+(13) | M62: ='VPB e Fator X'!C90 -> 1762271963 | N62: 1
L63: (15) Base de Remuneração Ativos Concessionária | M63: =M62-M69-M72 -> 1762271963 | N63: =IF(M63=0,0,1) -> 1
L64: (16) WACC | M64: ='VPB e Fator X'!F81 -> 0.1063543545 | N64: =IF(M63=0,0,1) -> 1
L65: (17) Remuneração Ativos Concessionária | M65: =M63*M64 -> 187425297.1 | N65: 1
L66: (18) Base Obrigações Especiais | M66: ='VPB e Fator X'!G91 -> 614435419.7 | N66: =IF(M66=0,0,1) -> 1
L67: (19) Taxa de Remuneração das Obrigações Especiais | M67: ='VPB e Fator X'!G95/'VPB e Fator X'!G91 -> 0.02028764482 | N67: =IF(M66=0,0,1) -> 1
L68: (20) Remuneração de Obrigações Especiais | M68: =M66*M67 -> 12465447.56 | N68: =IF(M68=0,0,1) -> 1
L69: (21) Saldo RGR/PLPT | M69: ='VPB e Fator X'!C91 -> 0 | N69: 0
L70: (22) Taxa RGR/PLPT | M70: ='VPB e Fator X'!F82 -> 0.02168624234 | N70: =IF(M69=0,0,1) -> 0
L71: (23) Remuneração RGR/PLPT | M71: =M69*M70 -> 0 | N71: =IF(M71=0,0,1) -> 0
L72: (24) Saldo RGR/Demais Investimentos | M72: ='VPB e Fator X'!C92 -> 0 | N72: =IF(M72=0,0,1) -> 0
L73: (25) Saldo RGR/Demais Investimentos | M73: ='VPB e Fator X'!H83 -> 0 | N73: =IF(M72=0,0,1) -> 0
L74: (26) Remuneração RGR Demais Investimentos | M74: =M72*M73 -> 0 | N74: =IF(M74=0,0,1) -> 0
L75: (21) Remuneração do Capital = (17)+(20) | M75: =M65+M68++M71+M74 -> 199890744.7 | N75: 1
L76: (16) Saldo RGR Demais Investimentos | M76: ='VPB e Fator X'!C92 -> 0 | N76: 0
L77: (22) Taxa de Depreciação | M77: ='VPB e Fator X'!C76 -> 0.0388 | N77: 1
L78: (23) Quota de Reintegração Regulatória = (5) * (22) | M78: ='VPB e Fator X'!C77 -> 114846019.2 | N78: 1
O80: CAIMI | P80: Voltar
O81: Descrição | P81: Valores (R$)
O82: ='VPB e Fator X'!B60 -> (1) Base de Anuidade Regulatória (BAR) | P82: ='VPB e Fator X'!C60 -> 286172356.8
O83: ='VPB e Fator X'!B61 -> (2) Base de Anuidade - Infraestrutura de imóveis e móveis administrativos (BARA) | P83: ='VPB e Fator X'!C61 -> 128777560.6
O84: ='VPB e Fator X'!B62 -> (3) Base de Anuidade - Veículos (BARV) | P84: ='VPB e Fator X'!C62 -> 34340682.82
O85: ='VPB e Fator X'!B63 -> (4) Base de Anuidade - Sistemas de Informática (BARI) | P85: ='VPB e Fator X'!C63 -> 123054113.4
O86: ='VPB e Fator X'!B64 -> (5) Anuidade - Infraestrutura de imóveis e móveis administrativos (CAL) | P86: ='VPB e Fator X'!C64 -> 13452004.63
O87: ='VPB e Fator X'!B65 -> (6) Anuidade - Veículos (CAV) | P87: ='VPB e Fator X'!C65 -> 6731952.409
O88: ='VPB e Fator X'!B66 -> (7) Anuidade - Sistemas de Informática (CAI) | P88: ='VPB e Fator X'!C66 -> 29761427.66
O89: ='VPB e Fator X'!B67 -> (8) CAIMI = (5)+(6)+(7) | P89: ='VPB e Fator X'!C67 -> 49945384.7
R91: Parcela B ajustada | S91: Voltar
R92: Descrição | S92: Valores
R93: =Resultado!F19 -> Custo de Administração, Operação e Manutenção (CAOM) | S93: =Resultado!G19 -> 460219104.5
R94: =Resultado!F20 -> Custos Operacionais (CO) | S94: =Resultado!G20 -> 438950207.7
R95: =Resultado!F21 -> Receitas Irrecuperáveis - Encargos Setoriais (Vi) | S95: =Resultado!G21 -> 1856215.772
R96: =Resultado!F22 -> Demais Receitas Irrecuperáveis (Vse) | S96: =Resultado!G22 -> 19412680.97
R97: =Resultado!F23 -> Custo Anual dos Ativos (CAA) | S97: =Resultado!G23 -> 364682148.6
R98: =Resultado!F24 -> Remuneração do Capital (RC) | S98: =Resultado!G24 -> 199890744.7
R99: =Resultado!F25 -> Quota de Reintegração Regulatória (QRR) | S99: =Resultado!G25 -> 114846019.2
R100: =Resultado!F26 -> Custo anual das instalações móveis e imóveis (CAIMI) | S100: =Resultado!G26 -> 49945384.7
R101: =Resultado!F27 -> Parcela B (VPB) | S101: =Resultado!G27 -> 824901253
R102: =Resultado!F28 -> Índice de Produtividade da Parcela B | S102: =Resultado!G28 -> 0.009097503771
R103: =Resultado!F29 -> Mecanismo de Incentivo à Qualidade | S103: =Resultado!G29 -> -0.001679374937
R104: =Resultado!F30 -> Parcela B com ajustes | S104: =Resultado!G30 -> 818782029.3
U106: Outras Receitas | W106: Voltar | X106: Colunas1
U107: Descrição das atividades | V107: Compartilhamento | W107: Receita Regulatória | X107: =IF(W107=0,0,1) -> 1
U108: Serviços Cobráveis | V108: 0.6 | W108: ='VPB e Fator X'!D165 -> 1972941.272 | X108: 1
U109: ='VPB e Fator X'!B166 -> Arrecadação de convênios ou valores pela fatura e arredação por terceiros | V109: 0.6 | W109: ='VPB e Fator X'!D166 -> 2552534.805 | X109: 1
U110: ='VPB e Fator X'!B167 -> Receita proveniente da comercialização de resultados de projetos de P&D | V110: 0.5 | W110: ='VPB e Fator X'!D167 -> 0 | X110: 0
U111: ='VPB e Fator X'!B168 -> Veiculação de publicidade | V111: 0.6 | W111: ='VPB e Fator X'!D168 -> 0 | X111: 0
U112: ='VPB e Fator X'!B169 -> Aluguel ou cessão onerosa de imóveis e espaços físicos | V112: 0.6 | W112: ='VPB e Fator X'!D169 -> 0 | X112: 0
U113: ='VPB e Fator X'!B170 -> Compartilhamento de infraestrutura (Média 24 meses) | V113: 0.6 | W113: ='VPB e Fator X'!D170 -> 10519167.42 | X113: 1
U114: ='VPB e Fator X'!B171 -> Serviços de avaliação técnica e aferição de medidores. | V114: 0.6 | W114: ='VPB e Fator X'!D171 -> 0 | X114: 0
U115: ='VPB e Fator X'!B172 -> Operacionalização de serviço de créditos tributários | V115: 0.6 | W115: ='VPB e Fator X'!D172 -> 0 | X115: 0
U116: Elaboração de projeto, construção, operação, manutenção ou reforma de: | X116: 1
U117: (1) redes de distribuição de energia elétrica destinadas à regularização fundiária de interesse específico e ao atendimento dos empreendimentos de múltiplas unidades consumidoras; | V117: 0.6 | W117: ='VPB e Fator X'!D174 -> 0 | X117: 0
U118: (2) redes de energia elétrica destinadas ao acesso dos sistemas de distribuição ou transmissão; | V118: 0.6 | W118: ='VPB e Fator X'!D175 -> 0 | X118: 0
U119: (3) subestações de energia; | V119: 0.6 | W119: ='VPB e Fator X'!D176 -> 0 | X119: 0
U120: (4) instalações elétricas internas de unidades consumidoras; | V120: 0.6 | W120: ='VPB e Fator X'!D177 -> 0 | X120: 0
U121: (5) banco de capacitores: | V121: 0.6 | W121: ='VPB e Fator X'!D178 -> 0 | X121: =IF(W121=0,0,1) -> 0
U122: (6) padrões de entrada de unidades consumidoras atendidas em baixa tensão; | V122: 0.6 | W122: ='VPB e Fator X'!D179 -> 0 | X122: =IF(W121=0,0,1) -> 0
U123: (7) sistemas de medição de energia elétrica; | V123: 0.6 | W123: ='VPB e Fator X'!D180 -> 0 | X123: 0
U124: (8) geradores, incluindo-se unidades de microgeração e minigeração distribuída; | V124: 0.3 | W124: ='VPB e Fator X'!D181 -> 0 | X124: =IF(W124=0,0,1) -> 0
U125: (9) sistemas de iluminação pública. | V125: 0.6 | W125: ='VPB e Fator X'!D182 -> 0 | X125: =IF(W124=0,0,1) -> 0
U126: Eficientização do consumo de energia elétrica e instalação de cogeração qualificada, desde que não enquadráveis nos projetos de Pesquisa e Desenvolvimento (P&D) ou de Eficiência Energética estabelecidos em lei | V126: 0.3 | W126: ='VPB e Fator X'!D183 -> 0 | X126: =IF(W126=0,0,1) -> 0
U127: Serviços de comunicação de dados | V127: 0.3 | W127: ='VPB e Fator X'!D184 -> 0 | X127: 0
U128: Serviços de consultoria | V128: 0.6 | W128: ='VPB e Fator X'!D185 -> 0 | X128: =IF(W127=0,0,1) -> 0
U129: Total | W129: =SUM(W108:W128) -> 15044643.5 | X129: =IF(W129=0,0,1) -> 1
Y131: UDER | AA131: Voltar
Y132: Descrição | Z132: Média Anual Bruta | AA132: Média Anual Líquida Corrigida (SELIC)
Y133: Ultrapassagem de Demanda - UD | Z133: =SUM(Entrada!Q33:BL33)/4 -> 6929632.112 | AA133: ='VPB e Fator X'!D193 -> 3422977.48
Y134: Excedente de Reativos - ER | Z134: =SUM(Entrada!Q34:BL34)/4 -> 11351191.66 | AA134: ='VPB e Fator X'!D194 -> 5653070.355
Y135: UDER | Z135: =SUM(Z133:Z134) -> 18280823.77 | AA135: =SUM(AA133:AA134) -> 9076047.835
X136: =IF(W136=0,0,1) -> 0
X137: =IF(W137=0,0,1) -> 0
AC138: Calculo das Perdas | AD138: Voltar
AC139: Cálculo do Ponto de Partida
AC140: Descrição | AD140: Perda Não Técnica (% BT)
AC141: Meta Ciclo Anterior Faturada | AD141: 0.0494
AC142: Ajuste Medido x Faturado | AD142: 0.02445930139
X143: =IF(W143=0,0,1) -> 0 | AC143: Meta Ciclo anterior Medida | AD143: 0.1580324546
AC144: Média Histórica Medida | AD144: 0.09288099555
AC145: Ponto de Partida Medido | AD145: 0.075
AC147: Cálculo do Ponto de Partida e Chegada após análise de flexibilização
AC148: Descrição | AD148: Modelo C | AE148: Modelo G | AF148: Modelo K
AC149: Empresa Benchmark | AD149: ESE | AE149: COSERN | AF149: COSERN
AC150: PNT/BT Benchmark | AD150: 0.08913487824 | AE150: 0.07151861733 | AF150: 0.07151861733
AC151: PNT/BT CELPE - Referência ciclo anterior | AD151: 0.09220167675 | AE151: 0.09220167675 | AF151: 0.09220167675
AC152: Probabilidade de Comparação | AD152: 0.6698297173 | AE152: 0.2441730116 | AF152: 0.3764097534
AC153: PNT/BT Meta baseada em cada Benchmark | AD153: 0.09014744397 | AE153: 0.08715143184 | AF153: 0.08441637145
AC154: PNT/BT Média dos Benchmarks (medido) | AE154: =AVERAGE(AD153:AF153) -> 0.08723841576
AC155: Ponto de Partida | AE155: 0.08723841576
AC156: Ponta de Chegada | AE156: 0.08723841576
AC157: PNT/BT Meta (medido) | AE157: =MIN(AE156:AF156) -> 0.08723841576
AC159: Trajetória
AC160: Descrição | AD160: Ponto Partida | AE160: =YEAR(CAPA!C10) -> 2021 | AF160: =AE160+1 -> 2022 | AG160: =AF160+1 -> 2023 | AH160: =AG160+1 -> 2024
AC161: Trajetória PNT/BT Medido | AD161: 0.08723841576 | AE161: 0.08723841576 | AF161: 0.08723841576 | AG161: 0.08723841576 | AH161: 0.08723841576
AC162: Velocidade de Redução (a.a) | AD162: 0 | AE162: 0 | AF162: 0 | AG162: 0 | AH162: 0
AC163: Limite de Redução (a.a) | AD163: Não se aplica | AE163: Não se aplica | AF163: Não se aplica | AG163: Não se aplica | AH163: Não se aplica
AC164: Diferença entre medido e faturado | AD164: =AD142 -> 0.02445930139 | AE164: =AD164 -> 0.02445930139 | AF164: =AE164 -> 0.02445930139 | AG164: =AF164 -> 0.02445930139 | AH164: =AG164 -> 0.02445930139
AC165: Referencial Regulatório PNT/BT | AD165: =AD161-AD164 -> 0.06277911436 | AE165: =AE161-AE164 -> 0.06277911436 | AF165: =AF161-AF164 -> 0.06277911436 | AG165: =AG161-AG164 -> 0.06277911436 | AH165: =AH161-AH164 -> 0.06277911436
AC166: Referencial Regulatório PT/Einj | AD166: =LnkTxtPT -> 0.09583547454 | AE166: =LnkTxtPT -> 0.09583547454 | AF166: =LnkTxtPT -> 0.09583547454 | AG166: =LnkTxtPT -> 0.09583547454 | AH166: =LnkTxtPT -> 0.09583547454
AJ168: Energia Requerida | AK168: Voltar
AJ169: Descrição | AK169: Energia (MWh)
AJ170: Perdas na Rede Básica | AK170: =Energia!I18+Energia!I19 -> 101723.0519
AJ171: Perdas na Distribuição | AK171: =AK172+AK173 -> 734177.352
AJ172: Perdas Técnicas | AK172: =Energia!I17 -> 537941.4143
AJ173: Perdas Não Técnicas | AK173: =Energia!I16 -> 196235.9377
AJ174: Energia Vendida | AK174: =Energia!D6 -> 3813676.159
AJ175: Energia Requerida | AK175: =SUM(AK170:AK171,AK174) -> 4649576.563
AM177: Transmissão | AN177: Voltar
AM178: Descrição | AN178: Valor (R$) | AO178: Colunas1
AM179: Rede Básica | AN179: =Resultado!D30 -> 123331370.8 | AO179: =IF(AN179=0,0,1) -> 1
AM180: Rede Básica Fronteira | AN180: =Resultado!D31 -> 47819753.18 | AO180: =IF(AN180=0,0,1) -> 1
AM181: Rede Básica ONS (A2) | AN181: =Resultado!D32 -> 0 | AO181: 0
AM182: Rede Básica Export. (A2) | AN182: =Resultado!D33 -> 0 | AO182: 0
AM183: MUST Itaipu | AN183: =Resultado!D34 -> 0 | AO183: 0
AM184: Transporte de Itaipu | AN184: =Resultado!D35 -> 0 | AO184: 0
AM185: Conexão | AN185: =Resultado!D36 -> 12774773.89 | AO185: 1
AM186: Uso do sistema de distribuição | AN186: =Resultado!D37 -> 11984445.02 | AO186: 1
AM187: Total | AN187: =SUM(AN179:AN186) -> 195910342.9
AP189: Encargos Setoriais | AQ189: Voltar
AP190: Descrição | AQ190: Valor (R$) | AR190: Dispositivo Legal | AS190: Colunas1
AP191: Taxa de Fisc. de Serviços de E.E. – TFSEE | AQ191: =Resultado!D22 -> 2992189.986 | AR191: Conforme módulo 5.5 do PRORET | AS191: =IF(AQ191=0,0,1) -> 1
AP192: Conta de Desenvolvimento Energético – CDE | AQ192: =Resultado!D23 -> 115807033.6 | AR192: =Encargos!D10 -> REH 2.864/2021 e DSP 939/2021 | AS192: 1
AP193: Compensação financeira - CFURH | AQ193: =Resultado!D24 -> 0 | AR193: =Encargos!D11 -> 0 | AS193: 0
AP194: Encargos Serv. Sist. - ESS e Energ. Reserv. - EER | AQ194: =Resultado!D25 -> 29645962.14 | AR194: =Encargos!D12 -> DSP 2.049/2021 | AS194: 1
AP195: PROINFA | AQ195: =Resultado!D26 -> 35878859.02 | AR195: =Encargos!D13 -> ReH 2.815/2020 | AS195: 1
AP196: P&D, Efic.Energ e Ressarc.ICMS Sist.Isol. | AQ196: =Resultado!D27 -> 21179324.07 | AR196: Res. Normativa nº 316/2008 | AS196: 1
AP197: ONS | AQ197: =Resultado!D28 -> 100978.29 | AR197: =Encargos!D14 -> Contribuição 2020 | AS197: 1
AP198: Total | AQ198: =SUM(AQ191:AQ197) -> 205604347.2
AT200: TabRevAvalRTE
AT201: Descrição | AU201: Receita Verificada (R$) | AV201: Receita Requerida (R$) | AW201: Variação | AX201: Participação na Revisão | AY201: Participação na Receita
AT202: PARCELA A | AU202: =AU203+AU213+AU222 -> 1283493128 | AV202: =AV203+AV213+AV222 -> 1335359414 | AW202: =IF(ISERROR(AV202/AU202-1),0,AV202/AU202-1) -> 0.04041025621 | AX202: =IF(ISERROR((AV202-AU202)/$AU$230),0,(AV202-AU202)/$AU$230) -> 0.02431978609 | AY202: =IF(ISERROR(AV202/($AV$230)),0,AV202/($AV$230)) -> 0.6269231944
AT203: Encargos Setoriais | AU203: =SUM(AU204:AU212) -> 169073812.5 | AV203: =SUM(AV204:AV212) -> 205604347.2 | AW203: =IF(ISERROR(AV203/AU203-1),0,AV203/AU203-1) -> 0.2160626424 | AX203: 0.01712894552 | AY203: 0.09652692208 | AZ203: Colunas1 | BA203: =SUM(AU204:AU205,AU209:AU212) -> 169073812.5 | BB203: =SUM(AV204:AV205,AV209:AV212) -> 170992446.5 | BC203: =BB203/BA203-1 -> 0.01134790807
AT204: Taxa de Fisc. de Serviços de E.E. – TFSEE | AU204: =SUM(DADOS_MercadoBase[TFSEE]) -> 3282384.372 | AV204: =Resultado!D22 -> 2992189.986 | AW204: =IF(ISERROR(AV204/AU204-1),0,AV204/AU204-1) -> -0.08840962931 | AX204: -0.0001360703823 | AY204: 0.001404770345 | AZ204: =IF(SUM(AU204:AV204)<>0,1,0) -> 1
AT205: Conta de Desenvolvimento Energético – CDE (USO) | AU205: =SUM(DADOS_MercadoBase[CDE],DADOS_MercadoBase[RTE_CDE_E]) -> 74034432.88 | AV205: =Encargos!G22 -> 81195133.04 | AW205: =IF(ISERROR(AV205/AU205-1),0,AV205/AU205-1) -> 0.09672121316 | AX205: 0.003357608751 | AY205: 0.03811940939 | AZ205: 1
AT206: Conta de Desenv. Energético – CDE Conta-Covid (TUSD) | AU206: =SUM(DADOS_MercadoBase[CDE_E_Dec],DADOS_MercadoBase[RTE_CDE_E_Dec]) -> 1.027073999e-05 | AV206: =Encargos!G23 -> 14228608.83 | AW206: - | AX206: 0.006671708133 | AY206: 0.006680032961 | AZ206: 1 | BA206: =AX206+AX207 -> 0.01622930966
AT207: Conta de Desenv. Energético – CDE Conta-Covid (TE) | AU207: =SUM(DADOS_MercadoBase[CDE_E_ACR],DADOS_MercadoBase[RTE_CDE_E_ACR]) -> 1.027073999e-05 | AV207: =Encargos!G24 -> 20383291.78 | AW207: - | AX207: 0.009557601531 | AY207: 0.00956952732 | AZ207: 1
AT208: Compensação financeira - CFURH | AU208: =SUM(DADOS_MercadoBase[CFURH]) -> 0 | AV208: =Resultado!D24 -> 0 | AW208: =IF(ISERROR(AV208/AU208-1),0,AV208/AU208-1) -> 0 | AX208: 0 | AY208: 0 | AZ208: 0
AT209: Encargos Serv. Sist. - ESS e Energ. Reserv. - EER | AU209: =SUM(DADOS_MercadoBase[ESSERR]) -> 40710039.95 | AV209: =Resultado!D25 -> 29645962.14 | AW209: -0.271777621 | AX209: -0.005187878787 | AY209: 0.01391815648 | AZ209: 1
AT210: PROINFA | AU210: =SUM(DADOS_MercadoBase[PROINFA]) -> 30514420.06 | AV210: =Resultado!D26 -> 35878859.02 | AW210: 0.1758001281 | AX210: 0.002515352796 | AY210: 0.01684437064 | AZ210: 1
AT211: P&D, Efic.Energ e Ressarc.ICMS Sist.Isol. | AU211: =SUM(DADOS_MercadoBase[PeD],DADOS_MercadoBase[RTE_PeD]) -> 20443217.58 | AV211: =Resultado!D27 -> 21179324.07 | AW211: 0.03600736951 | AX211: 0.0003451558555 | AY211: 0.009943247761 | AZ211: 1
AT212: ONS | AU212: =Resultado!C28 -> 89317.62185 | AV212: =Resultado!D28 -> 100978.29 | AW212: 0.1305528283 | AX212: 5.467616367e-06 | AY212: 4.740718602e-05 | AZ212: 1
AT213: Custos de Transmissão | AU213: =SUM(AU214:AU221) -> 221225193 | AV213: =SUM(AV214:AV221) -> 195910342.9 | AW213: -0.1144302314 | AX213: -0.0118699792 | AY213: 0.09197579073 | AZ213: 1
AT214: Rede Básica | AU214: ='RB e Conexão'!D6 -> 147830140.3 | AV214: =Resultado!D30 -> 123331370.8 | AW214: -0.1657224257 | AX214: -0.01148732398 | AY214: 0.05790148792 | AZ214: 1
AT215: Rede Básica Fronteira | AU215: ='RB e Conexão'!D7 -> 50149485.75 | AV215: =Resultado!D31 -> 47819753.18 | AW215: -0.04645576176 | AX215: -0.001092397428 | AY215: 0.02245036962 | AZ215: 1
AT216: Rede Básica ONS (A2) | AU216: =VLOOKUP("TUSDg ONS DRA",TUSDG[#Data],2,FALSE) -> 0 | AV216: =Resultado!D32 -> 0 | AW216: 0 | AX216: 0 | AY216: 0 | AZ216: 0
AT217: Rede Básica Export. (A2) | AU217: =VLOOKUP("TUSDg Export DRA",TUSDG[#Data],2,FALSE) -> 0 | AV217: =Resultado!D33 -> 0 | AW217: 0 | AX217: 0 | AY217: 0 | AZ217: 0
AT218: MUST Itaipu | AU218: =SUM(DADOS_MercadoBase[TUST_ITAIPU]) -> 0 | AV218: =Resultado!D34 -> 0 | AW218: 0 | AX218: 0 | AY218: 0 | AZ218: 0
AT219: Transporte de Itaipu | AU219: =SUMPRODUCT(itaiputransporte[Potência],itaiputransporte[Tarifa DRA]) -> 0 | AV219: =Resultado!D35 -> 0 | AW219: 0 | AX219: 0 | AY219: 0 | AZ219: 0
AT220: Conexão | AU220: ='RB e Conexão'!D9 -> 12433267.69 | AV220: =Resultado!D36 -> 12774773.89 | AW220: 0.0274671315 | AX220: 0.0001601301794 | AY220: 0.005997487997 | AZ220: 1
AT221: Uso do sistema de distribuição | AU221: =CUSD!C14 -> 10812299.24 | AV221: =Resultado!D37 -> 11984445.02 | AW221: 0.1084085585 | AX221: 0.0005496120244 | AY221: 0.005626445192 | AZ221: 1
... 69 more rows

Sheet Apresentação
B2: Efeito Médio | L2: Efeito Médio CP x Final | U2: Composição Tarifária - Tributos | Z2: Composição Tarifária - ICMS & PIS/COFINS | AD2: Composição Tarifária - sem Tributos
Z18: Composição da Receita com Tributos | AD18: Composição da Receita sem Tributos - Encargos Segregados
U19: =Z19 -> Custo de Distribuição | W19: =AB19 -> 0.2658905396 | Z19: =AD19 -> Custo de Distribuição | AB19: =AF19/$AB$25 -> 0.2658905396 | AD19: Custo de Distribuição | AF19: =IF(CAPA!C7="Reajuste",'Votos e NTs'!BO265,'NT Revisao'!AV223) -> 794661337.9
U20: =Z20 -> Custo de Energia | W20: =AB20 -> 0.3124607499 | Z20: =AD20 -> Custo de Energia | AB20: =AF20/AB25 -> 0.3124607499 | AD20: Custo de Energia | AF20: =IF(CAPA!C8="Reajuste",'Votos e NTs'!BO264,'NT Revisao'!AV222) -> 933844723.9 | AN20: ='NT Revisao'!AT224 -> Custos Operacionais | AQ20: ='NT Revisao'!AX224 -> -0.005002946886
U21: =Z21 -> Custo de Transporte | W21: =AB21 -> 0.06555082564 | Z21: =AD21 -> Custo de Transporte | AB21: =AF21/$AB$25 -> 0.06555082564 | AD21: Custo de Transporte | AF21: =IF(CAPA!C8="Reajuste",'Votos e NTs'!BO255,'NT Revisao'!AV213) -> 195910342.9 | AN21: ='NT Revisao'!AT225 -> Anuidades | AQ21: ='NT Revisao'!AX225 -> -0.001452598603
U22: =Z22 -> Encargos Setoriais | W22: =AB22 -> 0.0687944011 | Z22: Encargos Setoriais | AB22: =SUM(AF22:AF25/$AB$25) -> 0.0687944011 | AD22: PROINFA | AF22: =IF(CAPA!C9="Reajuste",'Votos e NTs'!BO252,'NT Revisao'!AV210) -> 35878859.02 | AN22: ='NT Revisao'!AT226 -> Remuneração | AQ22: ='NT Revisao'!AX226 -> -0.01398655376
C23: Impacto da RTA na Tarifa | M23: Impacto da RTA na Tarifa | P23: CP 030/21 | Q23: Final | U23: Tributos | W23: =AB23+AB24 -> 0.2873034837 | Z23: ='Votos e NTs'!O29 -> ICMS | AB23: =Mercado!G9 -> 0.2455748637 | AD23: CDE | AF23: =IF(CAPA!C10="Reajuste",SUM('Votos e NTs'!BL247:BL249),SUM('NT Revisao'!AV205:AV207)) -> 115807033.6 | AN23: ='NT Revisao'!AT227 -> Depreciação | AQ23: ='NT Revisao'!AX227 -> 0.002010726376
C24: Encargos Setoriais | F24: =IF(CAPA!C7="Reajuste",'Votos e NTs'!BO245,'NT Revisao'!AX203) -> 0.01712894552 | M24: Encargos Setoriais | P24: ='AP x Final'!I4 -> 0.02282124718 | Q24: =F24 -> 0.01712894552 | Z24: ='Votos e NTs'!O30 -> PIS/COFINS | AB24: =Mercado!G10 -> 0.04172862 | AD24: ESS/EER | AF24: =IF(CAPA!C11="Reajuste",'Votos e NTs'!BO251,'NT Revisao'!AV209) -> 29645962.14 | AN24: ='NT Revisao'!AT228 -> Receitas Irrecuperáveis | AQ24: ='NT Revisao'!AX228 -> -0.0002836277398
C25: Transporte | F25: =IF(CAPA!C7="Reajuste",'Votos e NTs'!BO255,'NT Revisao'!AX213) -> -0.0118699792 | M25: Custos de Transporte | P25: ='AP x Final'!I14 -> -0.01752136512 | Q25: -0.0118699792 | Z25: TOTAL com Impostos | AB25: =AF26/(1-AB23-AB24) -> 2988678495 | AD25: Outros | AF25: =AF26-SUM(AF19:AF24) -> 24272492.35 | AN25: ='NT Revisao'!AT229 -> Outras Receitas + Exc. Reativos + Ult. Demanda | AQ25: ='NT Revisao'!AX229 -> -0.006851010975
C26: Compra de Energia | F26: =IF(CAPA!C7="Reajuste",'Votos e NTs'!BO264,'NT Revisao'!AX222) -> 0.01906081977 | M26: Custos de Compra de Energia | P26: ='AP x Final'!I23 -> 0.01841487901 | Q26: 0.01906081977 | AD26: TOTAL | AF26: =IF(CAPA!C13="Reajuste",'Votos e NTs'!BO266,'NT Revisao'!AV230) -> 2130020752 | AN26: Parcela B | AQ26: =SUM(AQ20:AQ25) -> -0.02556601159
C27: Distribuição | F27: =IF(CAPA!C7="Reajuste",'Votos e NTs'!BO265,'NT Revisao'!AX223) -> -0.02556601159 | M27: Distribuição | P27: ='AP x Final'!I24 -> -0.02964988451 | Q27: -0.02556601159
C28: Componentes Financeiros | F28: =IF(CAPA!C7="Reajuste",'Votos e NTs'!BO268,'NT Revisao'!AX232) -> 0.06343934412 | M28: Componentes Financeiros | P28: ='AP x Final'!I34 -> 0.06778049455 | Q28: 0.06343934412
C29: Retirada dos Financeiros Anteriores | F29: =F30-SUM(F24:F28) -> 0.008589702999 | M29: Retirada dos Financeiros Anteriores | P29: =P30-SUM(P24:P28) -> 0.008851632999 | Q29: 0.008589702999
C30: Efeito Médio Consumidor | F30: =Resultado!L10 -> 0.07078282162 | M30: Efeito Médio Consumidor | P30: ='AP x Final'!I73 -> 0.07069700412 | Q30: =SUM(Q24:Q29) -> 0.07078282162
C34: Efeito Subgrupo
C35: GRUPO | D35: EFEITO
C36: Grupo A | D36: =Resultado!L8 -> 0.09088179926
C37: Grupo B | D37: =Resultado!L9 -> 0.06530549491
C38: Grupos A+B | D38: =Resultado!L10 -> 0.07078282162
F40: Compra de Energia
F41: Contratos | G41: Montantes (MWh) | J41: Preço (R$/MWh) | M41: Impacto Processo
G42: Processo Anterior | H42: Processo Atual | I42: Variação | J42: Processo Anterior | K42: Processo Atual | L42: Variação | N42: Colunas1
F43: CCEAR | G43: =(SUM('Votos e NTs'!BS326:BS329)+'Votos e NTs'!BS$338*SUM('Votos e NTs'!BS326:BS329)/SUM('Votos e NTs'!BS$326:BS$337)) -> 1706757.332 | H43: =(SUM('Votos e NTs'!BT326:BT329)+'Votos e NTs'!BT$338*SUM('Votos e NTs'!BT326:BT329)/SUM('Votos e NTs'!BT$326:BT$337)) -> 1773119.155 | I43: =IFERROR(H43/G43-1,"") -> 0.03888181508 | J43: =IFERROR(SUM('Votos e NTs'!BY326:BY329)/SUM('Votos e NTs'!BS326:BS329),"") -> 230.4469547 | K43: =IFERROR(SUM('Votos e NTs'!BZ326:BZ329)/SUM('Votos e NTs'!BT326:BT329),"") -> 247.0206718 | L43: =IFERROR(K43/J43-1,"") -> 0.07191987902 | M43: =SUM('Votos e NTs'!CE345:CE348) -> 0.01909207415 | N43: =IF(G43+H43=0,0,1) -> 1
F44: Ajuste - CCEAR | G44: =('Votos e NTs'!BS333+'Votos e NTs'!BS$338*'Votos e NTs'!BS333/SUM('Votos e NTs'!BS$326:BS$337)) -> 0 | H44: =('Votos e NTs'!BT333+'Votos e NTs'!BT$338*'Votos e NTs'!BT333/SUM('Votos e NTs'!BT$326:BT$337)) -> 0 | J44: =IFERROR('Votos e NTs'!BY333/'Votos e NTs'!BS333,"") ->  | K44: =IFERROR('Votos e NTs'!BZ333/'Votos e NTs'!BT333,"") ->  | L44: =IFERROR(K44/J44-1,"") ->  | M44: ='Votos e NTs'!CE352 -> 0 | N44: 0
F45: Madeira e Belo Monte | G45: =('Votos e NTs'!BS330+'Votos e NTs'!BS$338*'Votos e NTs'!BS330/SUM('Votos e NTs'!BS$326:BS$337)) -> 659076.6596 | H45: =('Votos e NTs'!BT330+'Votos e NTs'!BT$338*'Votos e NTs'!BT330/SUM('Votos e NTs'!BT$326:BT$337)) -> 659795.2705 | I45: 0.001090329808 | J45: =IFERROR('Votos e NTs'!BY330/'Votos e NTs'!BS330,"") -> 139.7398999 | K45: =IFERROR('Votos e NTs'!BZ330/'Votos e NTs'!BT330,"") -> 148.8177301 | L45: =IFERROR(K45/J45-1,"") -> 0.06496233494 | M45: ='Votos e NTs'!CE349 -> 0.003885636463 | N45: 1
F46: Cota Angra I e Angra II | G46: =('Votos e NTs'!BS331+'Votos e NTs'!BS$338*'Votos e NTs'!BS331/SUM('Votos e NTs'!BS$326:BS$337)) -> 153819.7989 | H46: =('Votos e NTs'!BT331+'Votos e NTs'!BT$338*'Votos e NTs'!BT331/SUM('Votos e NTs'!BT$326:BT$337)) -> 154653.7383 | I46: 0.005421534966 | J46: =IFERROR('Votos e NTs'!BY331/'Votos e NTs'!BS331,"") -> 269.75 | K46: =IFERROR('Votos e NTs'!BZ331/'Votos e NTs'!BT331,"") -> 249.64 | L46: =IFERROR(K46/J46-1,"") -> -0.07455050973 | M46: ='Votos e NTs'!CE350 -> -0.001569547622 | N46: 1
F47: Cotas Lei n º 12.783/2013 | G47: =('Votos e NTs'!BS332+'Votos e NTs'!BS$338*'Votos e NTs'!BS332/SUM('Votos e NTs'!BS$326:BS$337)) -> 1147419.475 | H47: =('Votos e NTs'!BT332+'Votos e NTs'!BT$338*'Votos e NTs'!BT332/SUM('Votos e NTs'!BT$326:BT$337)) -> 1135276.984 | I47: -0.01058243374 | J47: =IFERROR('Votos e NTs'!BY332/'Votos e NTs'!BS332,"") -> 114.594316 | K47: =IFERROR('Votos e NTs'!BZ332/'Votos e NTs'!BT332,"") -> 122.6490095 | L47: =IFERROR(K47/J47-1,"") -> 0.07028876992 | M47: ='Votos e NTs'!CE351 -> 0.006639803894 | N47: 1
F48: Itaipu | G48: =('Votos e NTs'!BS334+'Votos e NTs'!BS$338*'Votos e NTs'!BS334/SUM('Votos e NTs'!BS$326:BS$337)) -> 0 | H48: =('Votos e NTs'!BT334+'Votos e NTs'!BT$338*'Votos e NTs'!BT334/SUM('Votos e NTs'!BT$326:BT$337)) -> 0 | J48: =IFERROR('Votos e NTs'!BY334/'Votos e NTs'!BS334,"") ->  | K48: =IFERROR('Votos e NTs'!BZ334/'Votos e NTs'!BT334,"") ->  | M48: ='Votos e NTs'!CE353 -> 0 | N48: 0
F49: Bilateral | G49: =('Votos e NTs'!BS335+'Votos e NTs'!BS$338*'Votos e NTs'!BS335/SUM('Votos e NTs'!BS$326:BS$337)) -> 448979.0565 | H49: =('Votos e NTs'!BT335+'Votos e NTs'!BT$338*'Votos e NTs'!BT335/SUM('Votos e NTs'!BT$326:BT$337)) -> 226581.4271 | I49: -0.4953407651 | J49: =IFERROR('Votos e NTs'!BY335/'Votos e NTs'!BS335,"") -> 345.5516967 | K49: =IFERROR('Votos e NTs'!BZ335/'Votos e NTs'!BT335,"") -> 420.4 | L49: 0.2166052257 | M49: ='Votos e NTs'!CE354 -> -0.009012830146 | N49: 1
F50: Geração Própria | G50: =('Votos e NTs'!BS336+'Votos e NTs'!BS$338*'Votos e NTs'!BS336/SUM('Votos e NTs'!BS$326:BS$337)) -> 0 | H50: =('Votos e NTs'!BT336+'Votos e NTs'!BT$338*'Votos e NTs'!BT336/SUM('Votos e NTs'!BT$326:BT$337)) -> 0 | J50: =IFERROR('Votos e NTs'!BY336/'Votos e NTs'!BS336,"") ->  | K50: =IFERROR('Votos e NTs'!BZ336/'Votos e NTs'!BT336,"") ->  | M50: ='Votos e NTs'!CE355 -> 0 | N50: 0
F51: Montante de Reposição | G51: =('Votos e NTs'!BS337+'Votos e NTs'!BS$338*'Votos e NTs'!BS337/SUM('Votos e NTs'!BS$326:BS$337)) -> 0 | H51: =('Votos e NTs'!BT337+'Votos e NTs'!BT$338*'Votos e NTs'!BT337/SUM('Votos e NTs'!BT$326:BT$337)) -> 0 | J51: =IFERROR('Votos e NTs'!BY337/'Votos e NTs'!BS337,"") ->  | K51: =IFERROR('Votos e NTs'!BZ337/'Votos e NTs'!BT337,"") ->  | M51: ='Votos e NTs'!CE356 -> 0 | N51: 0
F52: Proinfa | G52: ='Votos e NTs'!BS338 -> 91817.51851 | H52: ='Votos e NTs'!BT338 -> 92306.10238 | I52: 0.005321248923 | J52: =IFERROR('Votos e NTs'!BY338/'Votos e NTs'!BS338,"") -> 0 | K52: =IFERROR('Votos e NTs'!BZ338/'Votos e NTs'!BT338,"") -> 0 | M52: ='Votos e NTs'!CE357 -> 2.568303455e-05 | N52: 1
F53: Total | G53: =SUM(G43:G52) -> 4207869.841 | H53: =SUM(H43:H52) -> 4041732.678 | I53: -0.03948248616 | J53: ='Votos e NTs'!BV340 -> 193.6123325 | K53: ='Votos e NTs'!BW340 -> 200.8451116 | L53: 0.03735701677 | M53: =SUM(M43:M52) -> 0.01906081977
O55: Encargos Setoriais
O56: Encargos Setoriais | P56: Processo Anterior (mil R$) | Q56: Processo Atual (mil R$) | R56: Impacto Processo | S56: Colunas1
O57: TFSEE | P57: ='Votos e NTs'!BL246/1000 -> 3282.384372 | Q57: ='Votos e NTs'!BM246/1000 -> 2992.189986 | R57: ='Votos e NTs'!BO246 -> -0.0001360703823 | S57: =IF(P57+Q57=0,0,1) -> 1
O58: CDE (USO) | P58: ='Votos e NTs'!BL247/1000 -> 74034.43288 | Q58: ='Votos e NTs'!BM247/1000 -> 81195.13304 | R58: ='Votos e NTs'!BO247 -> 0.003357608751 | S58: 1
O59: CDE Conta Covid (TUSD) | P59: ='Votos e NTs'!BL248/1000 -> 1.027073999e-08 | Q59: ='Votos e NTs'!BM248/1000 -> 14228.60883 | R59: ='Votos e NTs'!BO248 -> 0.006671708133 | S59: 1
O60: CDE Conta Covid (TE) | P60: ='Votos e NTs'!BL249/1000 -> 1.027073999e-08 | Q60: ='Votos e NTs'!BM249/1000 -> 20383.29178 | R60: ='Votos e NTs'!BO249 -> 0.009557601531 | S60: 1
O61: Compensação financeira - CFURH | P61: ='Votos e NTs'!BL250/1000 -> 0 | Q61: ='Votos e NTs'!BM250/1000 -> 0 | R61: ='Votos e NTs'!BO250 -> 0 | S61: 0
O62: ESS/EER | P62: ='Votos e NTs'!BL251/1000 -> 40710.03995 | Q62: ='Votos e NTs'!BM251/1000 -> 29645.96214 | R62: ='Votos e NTs'!BO251 -> -0.005187878787 | S62: 1
O63: PROINFA | P63: ='Votos e NTs'!BL252/1000 -> 30514.42006 | Q63: ='Votos e NTs'!BM252/1000 -> 35878.85902 | R63: ='Votos e NTs'!BO252 -> 0.002515352796 | S63: 1
O64: P&D | P64: ='Votos e NTs'!BL253/1000 -> 20443.21758 | Q64: ='Votos e NTs'!BM253/1000 -> 21179.32407 | R64: ='Votos e NTs'!BO253 -> 0.0003451558555 | S64: 1
O65: ONS | P65: ='Votos e NTs'!BL254/1000 -> 89.31762185 | Q65: ='Votos e NTs'!BM254/1000 -> 100.97829 | R65: ='Votos e NTs'!BO254 -> 5.467616367e-06 | S65: 1
O66: Total de Encargos | P66: =SUM(P57:P65) -> 169073.8125 | Q66: =SUM(Q57:Q65) -> 205604.3472 | R66: =SUM(R57:R65) -> 0.01712894552
T68: Custos de Transporte
T69: Custos de Transporte | U69: Processo Anterior (mil R$) | V69: Processo Atual (mil R$) | W69: Impacto Processo | X69: Colunas1
T70: Rede Básica | U70: ='Votos e NTs'!BL256/1000 -> 147830.1403 | V70: ='Votos e NTs'!BM256/1000 -> 123331.3708 | W70: ='Votos e NTs'!BO256 -> -0.01148732398 | X70: =IF(U70+V70=0,0,1) -> 1
T71: Rede Básica Fronteira | U71: ='Votos e NTs'!BL257/1000 -> 50149.48575 | V71: ='Votos e NTs'!BM257/1000 -> 47819.75318 | W71: ='Votos e NTs'!BO257 -> -0.001092397428 | X71: 1
T72: Rede Básica ONS (A2) | U72: ='Votos e NTs'!BL258/1000 -> 0 | V72: ='Votos e NTs'!BM258/1000 -> 0 | W72: ='Votos e NTs'!BO258 -> 0 | X72: 0
T73: Rede Básica Export. (A2) | U73: ='Votos e NTs'!BL259/1000 -> 0 | V73: ='Votos e NTs'!BM259/1000 -> 0 | W73: ='Votos e NTs'!BO259 -> 0 | X73: 0
T74: MUST Itaipu | U74: ='Votos e NTs'!BL260/1000 -> 0 | V74: ='Votos e NTs'!BM260/1000 -> 0 | W74: ='Votos e NTs'!BO260 -> 0 | X74: 0
T75: Transporte de Itaipu | U75: ='Votos e NTs'!BL261/1000 -> 0 | V75: ='Votos e NTs'!BM261/1000 -> 0 | W75: ='Votos e NTs'!BO261 -> 0 | X75: 0
T76: Conexão | U76: ='Votos e NTs'!BL262/1000 -> 12433.26769 | V76: ='Votos e NTs'!BM262/1000 -> 12774.77389 | W76: ='Votos e NTs'!BO262 -> 0.0001601301794 | X76: 1
T77: Uso do sistema de distribuição | U77: ='Votos e NTs'!BL263/1000 -> 10812.29924 | V77: ='Votos e NTs'!BM263/1000 -> 11984.44502 | W77: ='Votos e NTs'!BO263 -> 0.0005496120244 | X77: 1
T78: Total do Transporte | U78: =SUM(U70:U77) -> 221225.193 | V78: =SUM(V70:V77) -> 195910.3429 | W78: =SUM(W70:W77) -> -0.0118699792
Y80: Parcela B - Reajuste
Y81: Descrição | AA81: Valor | AB81: Referência
Y82: (1) Parcela B Processo Anterior (mil R$) | AA82: ='Votos e NTs'!AQ142/1000 -> 0 | AB82: TUSD fio B aplicada ao Mercado
Y83: (2) Fator DR1/Fator PB | AA83: ='VPB1'!C38 -> 169073812.5 | AB83: SGT/ANEEL
Y84: (3) Parcela B Processo Anterior sem UDEROR (mil R$) | AA84: =AA82*AA83 -> 0 | AB84: SGT/ANEEL
Y85: (4) IPCA | AA85: =LnkTxtIPCA -> 0.08994822841 | AB85: Indicador econômico oficial
Y86: (5) Fator X | AA86: =SUM(AA87:AA89) -> -0.001679374937 | AB86: Pd + T + Q
Y87: (5.1) Componente Pd do Fator X | AA87: ='VPB1'!F40 -> 0 | AB87: ='Votos e NTs'!AR146 -> REH XXXX/XXXX
Y88: (5.2) Componente T do Fator X | AA88: ='VPB1'!F41 -> 0 | AB88: ='Votos e NTs'!AR147 -> PRORET 2.5 A
Y89: (5.3) Componente Q do Fator X | AA89: ='VPB1'!F42 -> -0.001679374937 | AB89: ='Votos e NTs'!AR148 -> 0
Y90: (6) UDEROR | AA90: =SUM(AA91:AA93) -> 0 | AB90: UD + ER + OR
Y91: (6.1) Outras Receitas (OR) | AA91: ='Votos e NTs'!AQ169/1000 -> 0 | AB91: Valores fiscalizados - SFF
Y92: (6.2) Excedente de Reativos (ER) | AA92: ='Votos e NTs'!AQ170/1000 -> 0 | AB92: Valores fiscalizados - SFF
Y93: (6.3) Ultrapassagem de Demanda (UD) | AA93: ='Votos e NTs'!AQ171/1000 -> 0 | AB93: Valores fiscalizados - SFF
Y94: (7) ONS | AB94: 0
Y95: Parcela B Atual (mil R$) | AA95: =AA84*(1+AA85-AA86)-AA90 -> 0
AD97: Financeiros
AD98: Componentes Financeiros | AF98: Valor (mil R$) | AG98: Impacto Processo
AD99: CVA em processamento - Energia | AF99: =SUMIFS(Financeiros[Valor],Financeiros[idDet1],19,Financeiros[id_Grupo_TARIFA],2,Financeiros[idDet2],60,Financeiros[idDet3],999)/1000 -> 83411.00575 | AG99: =1000*AF99/Financeiros!$D$5 -> 0.03911091324
AD100: CVA em processamento -Transporte | AF100: =SUMIFS(Financeiros[Valor],Financeiros[idDet1],19,Financeiros[id_Grupo_TARIFA],1,Financeiros[idDet2],60,Financeiros[idDet3],999)/1000 -> 23888.09893 | AG100: =1000*AF100/Financeiros!$D$5 -> 0.01120098429
AD101: CVA em processamento - Encargos Setoriais | AF101: =SUMIFS(Financeiros[Valor],Financeiros[idDet1],19,Financeiros[id_Grupo_TARIFA],3,Financeiros[idDet2],60,Financeiros[idDet3],999)/1000 -> 38827.74393 | AG101: =1000*AF101/Financeiros!$D$5 -> 0.01820609295
AD102: Saldo a Compensar CVA-Ano Anterior + Ajustes | AF102: =SUMIFS(Financeiros[Valor],Financeiros[idDet1],19,Financeiros[idDet2],64, Financeiros[idDet3],999)/1000 -> -842.2909278 | AG102: =1000*AF102/Financeiros!$D$5 -> -0.0003949450928
AD103: Neutralidade de Parcela A - Encargos Setoriais | AF103: =SUMIFS(Financeiros[Valor],Financeiros[idDet1],20,Financeiros[idDet2],60,Financeiros[idDet3],999)/1000 -> -2085.679732 | AG103: =1000*AF103/Financeiros!$D$5 -> -0.00097796254
AD104: Sobrecontratação/exposição de energia | AF104: =SUMIFS(Financeiros[Valor],Financeiros[idDet1],22,Financeiros[id_Grupo_TARIFA],2,Financeiros[idDet2],60,Financeiros[idDet3],106)/1000+SUMIFS(Financeiros[Valor],Financeiros[idDet1],22,Financeiros[id_Grupo_TARIFA],2,Financeiros[idDet2],60,Financeiros[idDet3],101)/1000 -> 8675.793174 | AG104: =1000*AF104/Financeiros!$D$5 -> 0.004068026648
AD105: Previsão de Risco Hidrológico | AF105: =SUMIFS(Financeiros[Valor],Financeiros[idDet1],22,Financeiros[id_Grupo_TARIFA],2,Financeiros[idDet2],60,Financeiros[idDet3],220)/1000 -> 99229.96775 | AG105: =1000*AF105/Financeiros!$D$5 -> 0.0465283283
AD106: Reversão do Risco Hidrológico | AF106: =SUMIFS(Financeiros[Valor],Financeiros[idDet1],22,Financeiros[id_Grupo_TARIFA],2,Financeiros[idDet2],62,Financeiros[idDet3],220)/1000 -> -71492.2911 | AG106: =1000*AF106/Financeiros!$D$5 -> -0.03352230044
AD107: Reperfilamento de RBSE | AF107: =SUMIFS(Financeiros[Valor],Financeiros[idDet1],22,Financeiros[id_Grupo_TARIFA],1,Financeiros[idDet2],60,Financeiros[idDet3],999)/1000 -> 0 | AG107: =1000*AF107/Financeiros!$D$5 -> 0
AD108: ICMS não compesando na compra de energia | AF108: ='Votos e NTs'!AZ182/1000 -> 0 | AG108: =1000*AF108/Financeiros!$D$5 -> 0
AD109: Reversão Conta-Covid - CVA em processamento | AF109: =SUMIFS(Financeiros[Valor],Financeiros[idDet1],19,Financeiros[idDet2],60,Financeiros[idDet3],233)/1000 -> 34527.75352 | AG109: =1000*AF109/Financeiros!$D$5 -> 0.01618985361
AD110: Reversão Conta-Covid - Saldo a Compensar | AF110: =SUMIFS(Financeiros[Valor],Financeiros[idDet1],19,Financeiros[idDet2],64,Financeiros[idDet3],236)/1000 -> -54635.21957 | AG110: =1000*AF110/Financeiros!$D$5 -> -0.02561812213
AD111: Reversão Conta-Covid - Neutralidade de Parcela A | AF111: =SUMIFS(Financeiros[Valor],Financeiros[idDet1],20,Financeiros[idDet2],60,Financeiros[idDet3],234)/1000 -> -1428.107324 | AG111: =1000*AF111/Financeiros!$D$5 -> -0.0006696308376
AD112: Reversão Conta-Covid - Sobrecontratação | AF112: =SUMIFS(Financeiros[Valor],Financeiros[idDet1],22,Financeiros[idDet2],60,Financeiros[idDet3],235)/1000 -> 7729.169767 | AG112: =1000*AF112/Financeiros!$D$5 -> 0.00362416069
AD113: Reversão Conta Covid - Postergação | AF113: =SUMIFS(Financeiros[Valor],Financeiros[idDet1],22,Financeiros[idDet2],60,Financeiros[idDet3],196)/1000-AF114-AF115 -> 22795.30978 | AG113: =1000*AF113/Financeiros!$D$5 -> 0.0106885821
AD114: Prorrogação de Tarifas (abr/20 a jun/20) | AF114: =(Postergação!C5+Postergação!C6)/1000 -> 0 | AG114: =1000*AF114/Financeiros!$D$5 -> 0
AD115: Diferimento CELPE | AF115: ='Votos e NTs'!AZ194/1000 -> -22795.30978 | AG115: =1000*AF115/Financeiros!$D$5 -> -0.0106885821
AD116: Demais Financeiros | AF116: =AF117-SUM(AF99:AF115) -> -24117.66932 | AG116: =1000*AF116/Financeiros!$D$5 -> -0.01130862844
AD117: Total | AF117: ='Votos e NTs'!AZ223/1000 -> 141688.2748 | AG117: =SUM(AG99:AG116) -> 0.06643677024
AI119: B1 x Inflação
AJ120: Variação
AI121: IGP-M | AJ121: ='Votos e NTs'!$AB$38 -> 1.336779278
AI122: IPCA | AJ122: ='Votos e NTs'!$AC$38 -> 0.7520647486
AI123: Tarifa B1 | AJ123: ='Votos e NTs'!$AA$38 -> 0.5895131326
AL125: Financeiros
AL126: Resultado Bandeiras Tarifárias | AM126: Valor (mil R$) | AN126: Impacto Processo
AL127: Usinas com contrato por disponibilidade - CCEAR-D | AM127: -66519.46164 | AN127: -0.01144423021
AL128: Risco Hidrológico das usinas que repactuaram | AM128: 128197.3185 | AN128: 0.02205549458
AL129: Risco Hidrológico das usinas cotistas - CCGF | AM129: 103147.5557 | AN129: 0.01774584977
AL130: Risco Hidrológico da UHE ITAIPU | AM130: 87452.43744 | AN130: 0.01504560924
AL131: Encargos de Energia de Reserva - EER e de Serviço do Sistema - ESS | AM131: -102050.9453 | AN131: -0.01755718527
AL132: Resultado Mercado de Curto Prazo - MCP | AM132: 28529.54764 | AN132: 0.004908318602
AL133: Custo Total | AM133: 178756.4523 | AN133: 0.03075385671
AL134: Recolhimento pelas Bandeiras Tarifárias | AM134: -162443.7101 | AN134: -0.0279473581
AL135: Previsão do Risco Hidrológico no Processo Tarifário de 2018 | AM135: -162780.8718 | AN135: -0.02800536451
AL136: Receita Total | AM136: =AM134+AM135 -> -325224.5819 | AN136: =AN135+AN134 -> -0.05595272261
AL137: Custo não coberto antecipadamente | AM137: -146468.1296 | AN137: -0.0251988659
AP139: Remuneração do Capital
AP140: Descrição | AQ140: Ciclo Anterior | AR140: Ciclo Atual
AP141: Base Líquida (mil R$) | AQ141: ='Avaliação Parcela B'!J125/1000 ->  | AR141: ='Avaliação Parcela B'!K125/1000 -> 
AP142: Remuneração | AQ142: ='Avaliação Parcela B'!G126 -> 1640140878 | AR142: ='Avaliação Parcela B'!H126 -> 1749199202
AT144: Quota de Reintegração
AT145: Descrição | AU145: Ciclo Anterior | AV145: Ciclo Atual
AT146: Base Bruta (mil R$) | AU146: ='Avaliação Parcela B'!J158/1000 ->  | AV146: ='Avaliação Parcela B'!K158/1000 -> 
AT147: Depreciação | AU147: ='Avaliação Parcela B'!G159 -> 2725415753 | AV147: ='Avaliação Parcela B'!H159 -> 2937991665
AX149: Parcela B - Revisão
AX150: Descrição | AY150: Processo Anterior (mil R$) | AZ150: Processo Atual (mil R$) | BA150: Variação | BB150: Participação na Revisão
AX151: ='NT Revisao'!AT224 -> Custos Operacionais | AY151: ='NT Revisao'!AU224 -> 446363696.1 | AZ151: ='NT Revisao'!AV224 -> 435694018.5 | BA151: ='NT Revisao'!AW222 -> 0.04551149684 | BB151: ='NT Revisao'!AX224 -> -0.005002946886
AX152: ='NT Revisao'!AT225 -> Anuidades | AY152: ='NT Revisao'!AU225 -> 52672809.28 | AZ152: ='NT Revisao'!AV225 -> 49574883.4 | BA152: ='NT Revisao'!AW223 -> -0.06420751356 | BB152: ='NT Revisao'!AX225 -> -0.001452598603
AX153: ='NT Revisao'!AT226 -> Remuneração | AY153: ='NT Revisao'!AU226 -> 228236752.6 | AZ153: ='NT Revisao'!AV226 -> 198407929.4 | BA153: ='NT Revisao'!AW224 -> -0.02390355131 | BB153: ='NT Revisao'!AX226 -> -0.01398655376
AX154: ='NT Revisao'!AT227 -> Depreciação | AY154: ='NT Revisao'!AU227 -> 109705843.6 | AZ154: ='NT Revisao'!AV227 -> 113994076.6 | BA154: ='NT Revisao'!AW225 -> -0.05881451787 | BB154: ='NT Revisao'!AX227 -> 0.002010726376
AX155: ='NT Revisao'!AT228 -> Receitas Irrecuperáveis | AY155: ='NT Revisao'!AU228 -> 21716008.12 | AZ155: ='NT Revisao'!AV228 -> 21111121.33 | BA155: ='NT Revisao'!AW226 -> -0.1306924624 | BB155: ='NT Revisao'!AX228 -> -0.0002836277398
AX156: Out.Receitas+Exc.Reativos+Ult.Demanda | AY156: ='NT Revisao'!AU229 -> -9509687.184 | AZ156: ='NT Revisao'!AV229 -> -24120691.34 | BA156: ='NT Revisao'!AW227 -> 0.03908846486 | BB156: ='NT Revisao'!AX229 -> -0.006851010975
AX157: ='NT Revisao'!AN220 -> 0 | AY157: ='NT Revisao'!AP220/1000 -> 0 | AZ157: ='NT Revisao'!AQ220/1000 -> 0 | BA157: ='NT Revisao'!AR220 -> 0 | BB157: ='NT Revisao'!AS220 -> 0
AX158: PARCELA B | AY158: =SUM(AY151:AY157) -> 849185422.4 | AZ158: =SUM(AZ151:AZ157) -> 794661337.9 | BA158: ='NT Revisao'!AW229 -> 1.53643373 | BB158: =SUM(BB151:BB156) -> -0.02556601159
BD162: Enel RJ | BE162: 683.87 | BG162: 1 | BH162: Enel RJ | BJ162: 714.44
BD163: Celpa | BE163: 683.6 | BG163: 2 | BH163: Celpa | BJ163: 703.21
BD164: AmE | BE164: 664.84 | BG164: =BG163+1 -> 3 | BH164: EMS | BJ164: 700.36
BD165: Light | BE165: 663.1 | BG165: =BG164+1 -> 4 | BH165: Light | BJ165: 694.05
BD166: ENF | BE166: 649.89 | BG166: 5 | BH166: AmE | BJ166: 693.49
BD167: Eflul | BE167: 648.12 | BG167: 6 | BH167: EMT | BJ167: 690.12
BD168: EFLJC | BE168: 639.05 | BG168: 7 | BH168: ENF | BJ168: 662.44
BD169: Sulgipe | BE169: 636.31 | BG169: 8 | BH169: Forcel | BJ169: 654.63
BD170: Cemar | BE170: 630.18 | BG170: 9 | BH170: ETO | BJ170: 647.35
BD171: Cemig-D | BE171: 628.33 | BG171: 10 | BH171: Cemig | BJ171: 644.23
BD172: EMT | BE172: 626.84 | BG172: 11 | BH172: Eflul | BJ172: 641.69
BD173: Forcel | BE173: 619.01 | BG173: 12 | BH173: EFLJC | BJ173: 639.85
BD174: Roraima Energia | BE174: 617.77 | BG174: 13 | BH174: Celpe 2021 | BI174: Celpe 2021 | BJ174: 628.4189439
BD175: EMS | BE175: 608.65 | BG175: 14 | BH175: Cemar | BJ175: 628.21
BD176: Hidropan | BE176: 600.74 | BG176: 15 | BH176: EMG | BJ176: 627.73
BD177: ETO | BE177: 600.08 | BG177: 16 | BH177: Coelba | BJ177: 624.64
BD178: EMG | BE178: 595.83 | BG178: 17 | BH178: Sulgipe | BJ178: 619.22
BD179: Ceron | BE179: 576.82 | BG179: 18 | BH179: Hidropan | BJ179: 602.62
BD180: Chesp | BE180: 573.14 | BG180: 19 | BH180: CPFL Paulista | BJ180: 601.57
BD181: Uhenpal | BE181: 572.49 | BG181: 20 | BH181: Chesp | BJ181: 599.53
BD182: Eletroacre | BE182: 569.84 | BG182: 21 | BH182: Enel CE | BJ182: 594.36
BD183: Cepisa | BE183: 569.48 | BG183: 22 | BH183: ELFSM | BJ183: 593.39
BD184: RGE | BE184: 560.27 | BG184: 23 | BH184: RGE (agrupada) | BJ184: 589.57
BD185: Cocel | BE185: 557.12 | BG185: 24 | BH185: ESE | BJ185: 585.6
BD186: Coelba | BE186: 552.13 | BG186: 25 | BH186: Ceal | BJ186: 583.31
BD187: Celpe | BE187: 549.33 | BG187: 26 | BH187: Eletroacre | BJ187: 581.91
BD188: CPFL Santa Cruz | BE188: 547.69 | BG188: 27 | BH188: Cepisa | BJ188: 581.82
BD189: EPB | BE189: 545.4 | BG189: 28 | BH189: Roraima Energia | BJ189: 574.69
BD190: Eletrocar | BE190: 541.57 | BG190: 29 | BH190: Celpe 2020 | BI190: Celpe 2020 | BJ190: 574.34
BD191: CEA | BE191: 537.18 | BG191: 30 | BH191: Uhenpal | BJ191: 571.71
BD192: Ceal | BE192: 535.25 | BG192: 31 | BH192: CPFL Santa Cruz | BJ192: 564.97
BD193: Celg-D | BE193: 533.68 | BG193: 32 | BH193: Cosern | BJ193: 563.55
BD194: Elektro | BE194: 531.87 | BG194: 33 | BH194: EPB | BJ194: 562.11
BD195: ESE | BE195: 530.72 | BG195: 34 | BH195: Cocel | BJ195: 561.58
BD196: Enel CE | BE196: 529.49 | BG196: 35 | BH196: Eletrocar | BJ196: 561.45
BD197: EDP ES | BE197: 525.81 | BG197: 36 | BH197: EDP ES | BJ197: 557
BD198: EDP SP | BE198: 525.73 | BG198: 37 | BH198: Elektro | BJ198: 555.05
BD199: CPFL Paulista | BE199: 523.02 | BG199: 38 | BH199: CEEE-D | BJ199: 548.97
BD200: CEB-DIS | BE200: 518.01 | BG200: 39 | BH200: Enel GO | BJ200: 547.39
BD201: ELFSM | BE201: 517.96 | BG201: 40 | BH201: EDP SP | BJ201: 546.11
BD202: Copel-DIS | BE202: 517.61 | BG202: 41 | BH202: Demei | BJ202: 537.88
BD203: Eletropaulo | BE203: 515.59 | BG203: 42 | BH203: Enel SP | BJ203: 534.19
BD204: CEEE-D | BE204: 515.07 | BG204: 43 | BH204: CPFL Piratininga | BJ204: 533.55
BD205: Ienergia | BE205: 510.62 | BG205: 44 | BH205: MuxEnergia | BJ205: 527.79
BD206: DMED | BE206: 507.42 | BG206: 45 | BH206: DMED | BJ206: 525.57
BD207: Demei | BE207: 507.03 | BG207: 46 | BH207: CEB-DIS | BJ207: 514.78
BD208: Cosern | BE208: 505.53 | BG208: 47 | BH208: Ceron | BJ208: 514.38
BD209: EBO | BE209: 497.66 | BG209: =BG208+1 -> 48 | BH209: ESS (agrupada) | BJ209: 513.89
BD210: Sul Sudeste | BE210: 497.35 | BG210: 49 | BH210: Copel-DIS | BJ210: 512.77
BD211: CPFL Piratininga | BE211: 490.18 | BG211: 50 | BH211: Ienergia | BJ211: 512.48
BD212: MuxEnergia | BE212: 485.22 | BG212: 51 | BH212: Cooperaliança | BJ212: 512
BD213: Celesc-DIS | BE213: 469.78 | BG213: 52 | BH213: Celesc-DIS | BJ213: 505.99
BD214: Cooperaliança | BE214: 467.6 | BG214: 53 | BH214: CEA | BJ214: 505.25
BG215: 54 | BH215: EBO | BJ215: 497.66
CE218: DEC | CV218: FEC
CG219: =CH219-1 -> 2012 | CH219: 2013 | CI219: 2014 | CJ219: 2015 | CK219: 2016 | CL219: 2017 | CM219: 2018 | CN219: 2019 | CO219: =CP219-1 -> 2020 | CP219: =YEAR(CAPA!$C$10) -> 2021 | CQ219: =CP219+1 -> 2022 | CR219: =CQ219+1 -> 2023 | CS219: =CR219+1 -> 2024 | CT219: =CS219+1 -> 2025 | CX219: =CY219-1 -> 2012 | CY219: 2013 | CZ219: 2014 | DA219: 2015 | DB219: 2016 | DC219: 2017 | DD219: 2018 | DE219: 2019 | DF219: =DG219-1 -> 2020 | DG219: =YEAR(CAPA!$C$10) -> 2021 | DH219: =DG219+1 -> 2022 | DI219: =DH219+1 -> 2023 | DJ219: =DI219+1 -> 2024 | DK219: =DJ219+1 -> 2025
CE220: DEC Apurado | CH220: 23.76 | CI220: 25.51 | CJ220: 19.31 | CK220: 15.8 | CL220: 16.98 | CM220: 12.51 | CN220: 11.96 | CO220: 12.41 | CV220: FEC Apurado | CY220: 8.87 | CZ220: 8.84 | DA220: 8.12 | DB220: 7.13 | DC220: 7.56 | DD220: 8.97 | DE220: 5.69 | DF220: 5.56
CE221: DEC Limite | CH221: 16.39 | CI221: 16.39 | CJ221: 15.48 | CK221: 14.71 | CL221: 13.91 | CM221: 13.82 | CN221: 13.67 | CO221: 13.35 | CP221: 13.22 | CV221: FEC Limite | CY221: 12.48 | CZ221: 12.05 | DA221: 11.04 | DB221: 10.19 | DC221: 9.35 | DD221: 9.26 | DE221: 8.7 | DF221: 8.33 | DG221: 8.1
CE222: DEC Limite Proposto | CQ222: 12.92 | CR222: 12.33 | CS222: 11.86 | CT222: 11.48 | CV222: FEC Limite Proposto | DH222: 8.05 | DI222: 7.25 | DJ222: 7.05 | DK222: 6.68
DM242: Parcela B / Mercado
DM244: Grandes
DM245: Reg | DN245: Distribuidora | DO245: PB/Mcdo | DP245: Média | DQ245: Parcela B | DR245: Mercado | DS245: Proc.Tar
DM246: N | DN246: ETO | DO246: =DQ246/DR246 -> 265.4071894 | DP246: =$DP$282 -> 157.1340272 | DQ246: 639963261.2 | DR246: 2411250.662 | DS246: 2020
DM247: N | DN247: Eletroacre | DO247: 262.1465373 | DP247: 157.1340272 | DQ247: 287816729.4 | DR247: 1097923.064 | DS247: 2020
DM248: CO | DN248: EMT | DO248: 246.7591507 | DP248: 157.1340272 | DQ248: 2384063093 | DR248: 9661498.209 | DS248: 2021
DM249: N | DN249: Equatorial PA | DO249: 238.5668194 | DP249: 157.1340272 | DQ249: 2059159218 | DR249: 8631373.062 | DS249: 2020
DM250: N | DN250: Cemar | DO250: 234.2860346 | DP250: 157.1340272 | DQ250: 1473020968 | DR250: 6287276.026 | DS250: 2020
DM251: CO | DN251: EMS | DO251: 233.1547235 | DP251: 157.1340272 | DQ251: 1338673092 | DR251: 5741565.396 | DS251: 2021
DM252: NE | DN252: Equatorial PI | DO252: 225.4201543 | DP252: 157.1340272 | DQ252: 847371044 | DR252: 3759074.012 | DS252: 2020
DM253: NE | DN253: Coelba | DO253: 223.125744 | DP253: 157.1340272 | DQ253: 4496925221 | DR253: 20154219.5 | DS253: 2021
DM254: N | DN254: CEA | DO254: =DQ254/DR254 -> 202.1486891 | DP254: 157.1340272 | DQ254: 208334410.9 | DR254: 1030599.861 | DS254: 2020
... 49 more rows

Sheet Financeiros
B1: Financeiros | D1: Anexo II | E1: =Resultado!$D$6 -> -0.001246225497 | G1: Tabela Auxiliar
D2: Anexo I | E2: =Resultado!$D$8 -> 0.06219311862 | G2: Energia
G3: Energia - Energia de Revenda | N3: =Energia!$D$6/Energia!$D$5 -> 0.8202201012
G4: Energia - Perda Não Técnica | N4: =Energia!D10/Energia!$D$5 -> 0.0422051202
C5: Receita Verificada | D5: =Mercado!D24 -> 2132678550 | G5: Energia - Perda Técnica | N5: =Energia!D11/Energia!$D$5 -> 0.1156968612
C6: Base de divisão p/Financeiros | D6: =D5*(IF(Mercado!G13<0,1,Mercado!G13+1)) -> 2233444825 | G6: Energia - Perda Rede Básica sobre Dist. | N6: =Energia!D12/Energia!$D$5 -> 0.003531835714
G7: Energia - Perda Rede Básica sobre mercado Cat. | N7: =Energia!D13/Energia!$D$5 -> 0.01834608167
C8: Total dos financeiros | D8: =SUM(D10:D335) -> 141688274.8 | E8: =SUM(E10:E335) -> 0.06343934412
C9: Nome do Financeiro | D9: Valor | E9: Percentual | F9: Tipo | G9: Grupo Tarifário | H9: idDet1 | I9: idDet2 | J9: idDet3 | K9: id_Grupo_TARIFA | L9: id_Detalhe_Grupo_TARIFA | M9: id_Tipo_Tarifa | P9: Tipo | Q9: idDet1 | R9: idDet2 | S9: idDet3 | V9: Tipo | W9: id_Grupo_TARIFA | X9: id_Detalhe_Grupo_TARIFA | Y9: id_Tipo_Tarifa
C10: CVA ccc | D10: =CVA!$E$9 -> 0 | E10: =IF(ISERROR(D10/$D$6),0,D10/$D$6) -> 0 | F10: CVA | G10: Encargo - CCC | H10: =IFERROR(VLOOKUP(Financeiros[[#This Row],[Tipo]],RefTabTipo[],2,FALSE),0) -> 19 | I10: =IFERROR(VLOOKUP(Financeiros[[#This Row],[Tipo]],RefTabTipo[],3,FALSE),0) -> 60 | J10: =IFERROR(VLOOKUP(Financeiros[[#This Row],[Tipo]],RefTabTipo[],4,FALSE),0) -> 999 | K10: =IFERROR(VLOOKUP(Financeiros[[#This Row],[Grupo Tarifário]],RefTabGrupoTarifa[],2,FALSE),0) -> 3 | L10: =IFERROR(VLOOKUP(Financeiros[[#This Row],[Grupo Tarifário]],RefTabGrupoTarifa[],3,FALSE),0) -> 13 | M10: =IFERROR(VLOOKUP(Financeiros[[#This Row],[Grupo Tarifário]],RefTabGrupoTarifa[],4,FALSE),0) -> 9 | P10: (Perm) 0.3% P&D | Q10: 22 | R10: 60 | S10: 192 | V10: Encargo - ESS/EER | W10: 3 | X10: 17 | Y10: 9 | AB10: Encargo - ESS/EER
C11: CVA cde | D11: =CVA!$E$10 -> 10166908.78 | E11: =IF(ISERROR(D11/$D$6),0,D11/$D$6) -> 0.004552119966 | F11: CVA | G11: Encargo - CDE - TUSD | H11: =IFERROR(VLOOKUP(Financeiros[[#This Row],[Tipo]],RefTabTipo[],2,FALSE),0) -> 19 | I11: =IFERROR(VLOOKUP(Financeiros[[#This Row],[Tipo]],RefTabTipo[],3,FALSE),0) -> 60 | J11: =IFERROR(VLOOKUP(Financeiros[[#This Row],[Tipo]],RefTabTipo[],4,FALSE),0) -> 999 | K11: =IFERROR(VLOOKUP(Financeiros[[#This Row],[Grupo Tarifário]],RefTabGrupoTarifa[],2,FALSE),0) -> 3 | L11: =IFERROR(VLOOKUP(Financeiros[[#This Row],[Grupo Tarifário]],RefTabGrupoTarifa[],3,FALSE),0) -> 15 | M11: =IFERROR(VLOOKUP(Financeiros[[#This Row],[Grupo Tarifário]],RefTabGrupoTarifa[],4,FALSE),0) -> 9 | P11: (Perm) Ajuste Rede Básica | Q11: 22 | R11: 60 | S11: 196 | V11: Encargo - CCC | W11: 3 | X11: 13 | Y11: 9 | AB11: Encargo - CCC
C12: CVA cde energia | D12: =CVA!E11 -> -1309177.191 | E12: -0.0005861694794 | F12: CVA | G12: Encargo - CDE - TE | H12: =IFERROR(VLOOKUP(Financeiros[[#This Row],[Tipo]],RefTabTipo[],2,FALSE),0) -> 19 | I12: =IFERROR(VLOOKUP(Financeiros[[#This Row],[Tipo]],RefTabTipo[],3,FALSE),0) -> 60 | J12: =IFERROR(VLOOKUP(Financeiros[[#This Row],[Tipo]],RefTabTipo[],4,FALSE),0) -> 999 | K12: =IFERROR(VLOOKUP(Financeiros[[#This Row],[Grupo Tarifário]],RefTabGrupoTarifa[],2,FALSE),0) -> 3 | L12: =IFERROR(VLOOKUP(Financeiros[[#This Row],[Grupo Tarifário]],RefTabGrupoTarifa[],3,FALSE),0) -> 25 | M12: =IFERROR(VLOOKUP(Financeiros[[#This Row],[Grupo Tarifário]],RefTabGrupoTarifa[],4,FALSE),0) -> 9 | P12: (Perm) Baixa Renda | Q12: 22 | R12: 60 | S12: 191 | V12: Encargo - CDE - TE | W12: 3 | X12: 25 | Y12: 9 | AB12: Encargo - CDE - TUSD | AC12: Encargo - CDE - TUSD - TUSD
C13: CVA RB - Nodal | D13: =IFERROR(CVA!$E$12*Resultado!D30/SUM(Resultado!$D$30:$D$34),0) -> 17213746.07 | E13: 0.007707262732 | F13: CVA | G13: Rede Básica - Genérico | H13: =IFERROR(VLOOKUP(Financeiros[[#This Row],[Tipo]],RefTabTipo[],2,FALSE),0) -> 19 | I13: =IFERROR(VLOOKUP(Financeiros[[#This Row],[Tipo]],RefTabTipo[],3,FALSE),0) -> 60 | J13: =IFERROR(VLOOKUP(Financeiros[[#This Row],[Tipo]],RefTabTipo[],4,FALSE),0) -> 999 | K13: =IFERROR(VLOOKUP(Financeiros[[#This Row],[Grupo Tarifário]],RefTabGrupoTarifa[],2,FALSE),0) -> 1 | L13: =IFERROR(VLOOKUP(Financeiros[[#This Row],[Grupo Tarifário]],RefTabGrupoTarifa[],3,FALSE),0) -> 1 | M13: =IFERROR(VLOOKUP(Financeiros[[#This Row],[Grupo Tarifário]],RefTabGrupoTarifa[],4,FALSE),0) -> 9 | P13: (Perm) Cusd Energia | Q13: 22 | R13: 60 | S13: 190 | V13: Encargo - CDE - TUSD | W13: 3 | X13: 15 | Y13: 9 | AB13: Encargo - CDE - TE | AC13: Encargo - CDE - TE
C14: CVA RB - Fronteira | D14: =IFERROR(CVA!$E$12*Resultado!D31/SUM(Resultado!$D$30:$D$34),0) -> 6674352.865 | E14: 0.002988367023 | F14: CVA | G14: Rede Básica - Genérico | H14: =IFERROR(VLOOKUP(Financeiros[[#This Row],[Tipo]],RefTabTipo[],2,FALSE),0) -> 19 | I14: =IFERROR(VLOOKUP(Financeiros[[#This Row],[Tipo]],RefTabTipo[],3,FALSE),0) -> 60 | J14: =IFERROR(VLOOKUP(Financeiros[[#This Row],[Tipo]],RefTabTipo[],4,FALSE),0) -> 999 | K14: =IFERROR(VLOOKUP(Financeiros[[#This Row],[Grupo Tarifário]],RefTabGrupoTarifa[],2,FALSE),0) -> 1 | L14: =IFERROR(VLOOKUP(Financeiros[[#This Row],[Grupo Tarifário]],RefTabGrupoTarifa[],3,FALSE),0) -> 1 | M14: =IFERROR(VLOOKUP(Financeiros[[#This Row],[Grupo Tarifário]],RefTabGrupoTarifa[],4,FALSE),0) -> 9 | P14: (Perm) Encargos | Q14: 22 | R14: 60 | S14: 193 | V14: Encargo - CFURH | W14: 3 | X14: 16 | Y14: 9 | AB14: Encargo - ONS
C15: CVA RB - TUSDg EXP | D15: =IFERROR(CVA!$E$12*Resultado!D33/SUM(Resultado!$D$30:$D$34),0) -> 0 | E15: 0 | F15: CVA | G15: Rede Básica - Genérico | H15: =IFERROR(VLOOKUP(Financeiros[[#This Row],[Tipo]],RefTabTipo[],2,FALSE),0) -> 19 | I15: =IFERROR(VLOOKUP(Financeiros[[#This Row],[Tipo]],RefTabTipo[],3,FALSE),0) -> 60 | J15: =IFERROR(VLOOKUP(Financeiros[[#This Row],[Tipo]],RefTabTipo[],4,FALSE),0) -> 999 | K15: =IFERROR(VLOOKUP(Financeiros[[#This Row],[Grupo Tarifário]],RefTabGrupoTarifa[],2,FALSE),0) -> 1 | L15: =IFERROR(VLOOKUP(Financeiros[[#This Row],[Grupo Tarifário]],RefTabGrupoTarifa[],3,FALSE),0) -> 1 | M15: =IFERROR(VLOOKUP(Financeiros[[#This Row],[Grupo Tarifário]],RefTabGrupoTarifa[],4,FALSE),0) -> 9 | P15: (Perm) Encargos a compensar | Q15: 22 | R15: 60 | S15: 195 | V15: Encargo - ONS | W15: 3 | X15: 20 | Y15: 9 | AB15: Encargo - Proinra | AC15: Encargo - Proinfa
C16: CVA RB - TUSDg ONS | D16: =IFERROR(CVA!$E$12*Resultado!D32/SUM(Resultado!$D$30:$D$34),0) -> 0 | E16: 0 | F16: CVA | G16: Rede Básica - Genérico | H16: =IFERROR(VLOOKUP(Financeiros[[#This Row],[Tipo]],RefTabTipo[],2,FALSE),0) -> 19 | I16: =IFERROR(VLOOKUP(Financeiros[[#This Row],[Tipo]],RefTabTipo[],3,FALSE),0) -> 60 | J16: =IFERROR(VLOOKUP(Financeiros[[#This Row],[Tipo]],RefTabTipo[],4,FALSE),0) -> 999 | K16: =IFERROR(VLOOKUP(Financeiros[[#This Row],[Grupo Tarifário]],RefTabGrupoTarifa[],2,FALSE),0) -> 1 | L16: =IFERROR(VLOOKUP(Financeiros[[#This Row],[Grupo Tarifário]],RefTabGrupoTarifa[],3,FALSE),0) -> 1 | M16: =IFERROR(VLOOKUP(Financeiros[[#This Row],[Grupo Tarifário]],RefTabGrupoTarifa[],4,FALSE),0) -> 9 | P16: (Perm) outros | Q16: 22 | R16: 60 | S16: 194 | V16: Encargo - P&D | W16: 3 | X16: 19 | Y16: 9 | AB16: Encargo - RGR
C17: CVA RB - EUST Itaipu | D17: =IFERROR(CVA!$E$12*Resultado!D34/SUM(Resultado!$D$30:$D$34),0) -> 0 | E17: 0 | F17: CVA | G17: Rede Básica - Genérico | H17: =IFERROR(VLOOKUP(Financeiros[[#This Row],[Tipo]],RefTabTipo[],2,FALSE),0) -> 19 | I17: =IFERROR(VLOOKUP(Financeiros[[#This Row],[Tipo]],RefTabTipo[],3,FALSE),0) -> 60 | J17: =IFERROR(VLOOKUP(Financeiros[[#This Row],[Tipo]],RefTabTipo[],4,FALSE),0) -> 999 | K17: =IFERROR(VLOOKUP(Financeiros[[#This Row],[Grupo Tarifário]],RefTabGrupoTarifa[],2,FALSE),0) -> 1 | L17: =IFERROR(VLOOKUP(Financeiros[[#This Row],[Grupo Tarifário]],RefTabGrupoTarifa[],3,FALSE),0) -> 1 | M17: =IFERROR(VLOOKUP(Financeiros[[#This Row],[Grupo Tarifário]],RefTabGrupoTarifa[],4,FALSE),0) -> 9 | P17: 5º DIA ÚTIL | Q17: 22 | R17: 60 | S17: 172 | V17: Encargo - PROINFA | W17: 3 | X17: 18 | Y17: 9 | AB17: Encargo - TFSEE
C18: CVA - Transporte Itaipu | D18: =CVA!E15 -> 0 | E18: 0 | F18: CVA | G18: Transporte - Tranporte Itaipu | H18: =IFERROR(VLOOKUP(Financeiros[[#This Row],[Tipo]],RefTabTipo[],2,FALSE),0) -> 19 | I18: =IFERROR(VLOOKUP(Financeiros[[#This Row],[Tipo]],RefTabTipo[],3,FALSE),0) -> 60 | J18: =IFERROR(VLOOKUP(Financeiros[[#This Row],[Tipo]],RefTabTipo[],4,FALSE),0) -> 999 | K18: =IFERROR(VLOOKUP(Financeiros[[#This Row],[Grupo Tarifário]],RefTabGrupoTarifa[],2,FALSE),0) -> 1 | L18: =IFERROR(VLOOKUP(Financeiros[[#This Row],[Grupo Tarifário]],RefTabGrupoTarifa[],3,FALSE),0) -> 21 | M18: =IFERROR(VLOOKUP(Financeiros[[#This Row],[Grupo Tarifário]],RefTabGrupoTarifa[],4,FALSE),0) -> 9 | P18: Água, esgoto e saneamento | Q18: 22 | R18: 60 | S18: 183 | V18: Encargo - RGR | W18: 3 | X18: 12 | Y18: 9 | AB18: Encargo - CFURH
C19: CVA - Energia - Energia de Revenda | D19: =CVA!$E$13*Energia!D6/Energia!$D$5 -> 68415383.58 | E19: 0.03063222462 | F19: CVA | G19: Energia - Energia de Revenda | H19: =IFERROR(VLOOKUP(Financeiros[[#This Row],[Tipo]],RefTabTipo[],2,FALSE),0) -> 19 | I19: =IFERROR(VLOOKUP(Financeiros[[#This Row],[Tipo]],RefTabTipo[],3,FALSE),0) -> 60 | J19: =IFERROR(VLOOKUP(Financeiros[[#This Row],[Tipo]],RefTabTipo[],4,FALSE),0) -> 999 | K19: =IFERROR(VLOOKUP(Financeiros[[#This Row],[Grupo Tarifário]],RefTabGrupoTarifa[],2,FALSE),0) -> 2 | L19: =IFERROR(VLOOKUP(Financeiros[[#This Row],[Grupo Tarifário]],RefTabGrupoTarifa[],3,FALSE),0) -> 11 | M19: =IFERROR(VLOOKUP(Financeiros[[#This Row],[Grupo Tarifário]],RefTabGrupoTarifa[],4,FALSE),0) -> 9 | P19: Ajuste CERTEL | Q19: 22 | R19: 60 | S19: 152 | V19: Encargo - TFSEE | W19: 3 | X19: 14 | Y19: 9 | AB19: Encargo - P&D | AC19: Encargo - P&D - TE
C20: CVA - Energia - Perda Não Técnica | D20: =CVA!$E$13*Energia!D10/Energia!$D$5 -> 3520371.524 | E20: 0.00157620707 | F20: CVA | G20: Energia - Perda Não Técnica | H20: =IFERROR(VLOOKUP(Financeiros[[#This Row],[Tipo]],RefTabTipo[],2,FALSE),0) -> 19 | I20: =IFERROR(VLOOKUP(Financeiros[[#This Row],[Tipo]],RefTabTipo[],3,FALSE),0) -> 60 | J20: =IFERROR(VLOOKUP(Financeiros[[#This Row],[Tipo]],RefTabTipo[],4,FALSE),0) -> 999 | K20: =IFERROR(VLOOKUP(Financeiros[[#This Row],[Grupo Tarifário]],RefTabGrupoTarifa[],2,FALSE),0) -> 2 | L20: =IFERROR(VLOOKUP(Financeiros[[#This Row],[Grupo Tarifário]],RefTabGrupoTarifa[],3,FALSE),0) -> 9 | M20: =IFERROR(VLOOKUP(Financeiros[[#This Row],[Grupo Tarifário]],RefTabGrupoTarifa[],4,FALSE),0) -> 9 | P20: Ajuste Financeiro Conteminas | Q20: 22 | R20: 60 | S20: 153 | V20: Energia - Energia de Revenda | W20: 2 | X20: 11 | Y20: 9 | AC20: Encargo - P&D - TUSD
C21: CVA - Energia - Perda Técnica | D21: =CVA!$E$13*Energia!D11/Energia!$D$5 -> 9650391.556 | E21: 0.004320855141 | F21: CVA | G21: Energia - Perda Técnica | H21: =IFERROR(VLOOKUP(Financeiros[[#This Row],[Tipo]],RefTabTipo[],2,FALSE),0) -> 19 | I21: =IFERROR(VLOOKUP(Financeiros[[#This Row],[Tipo]],RefTabTipo[],3,FALSE),0) -> 60 | J21: =IFERROR(VLOOKUP(Financeiros[[#This Row],[Tipo]],RefTabTipo[],4,FALSE),0) -> 999 | K21: =IFERROR(VLOOKUP(Financeiros[[#This Row],[Grupo Tarifário]],RefTabGrupoTarifa[],2,FALSE),0) -> 2 | L21: =IFERROR(VLOOKUP(Financeiros[[#This Row],[Grupo Tarifário]],RefTabGrupoTarifa[],3,FALSE),0) -> 8 | M21: =IFERROR(VLOOKUP(Financeiros[[#This Row],[Grupo Tarifário]],RefTabGrupoTarifa[],4,FALSE),0) -> 9 | P21: Ajuste Financeiro Despesa de Rede Básica Consumidor A1 | Q21: 22 | R21: 60 | S21: 131 | V21: Energia - Genérico | W21: 2 | X21: 30 | Y21: 9 | AB21: Energia - Energia de Revenda
C22: CVA - Energia - Perda de RB sobre a distribuição | D22: =CVA!$E$13*Energia!D12/Energia!$D$5 -> 294593.969 | E22: 0.0001319011626 | F22: CVA | G22: Energia - Perda Rede Básica sobre Dist. | H22: =IFERROR(VLOOKUP(Financeiros[[#This Row],[Tipo]],RefTabTipo[],2,FALSE),0) -> 19 | I22: =IFERROR(VLOOKUP(Financeiros[[#This Row],[Tipo]],RefTabTipo[],3,FALSE),0) -> 60 | J22: =IFERROR(VLOOKUP(Financeiros[[#This Row],[Tipo]],RefTabTipo[],4,FALSE),0) -> 999 | K22: =IFERROR(VLOOKUP(Financeiros[[#This Row],[Grupo Tarifário]],RefTabGrupoTarifa[],2,FALSE),0) -> 2 | L22: =IFERROR(VLOOKUP(Financeiros[[#This Row],[Grupo Tarifário]],RefTabGrupoTarifa[],3,FALSE),0) -> 10 | M22: =IFERROR(VLOOKUP(Financeiros[[#This Row],[Grupo Tarifário]],RefTabGrupoTarifa[],4,FALSE),0) -> 9 | P22: Ajuste financeiro postergação RTP 2011 | Q22: 22 | R22: 60 | S22: 169 | V22: Energia - Perda Não Técnica | W22: 2 | X22: 9 | Y22: 9 | AB22: Energia - Perda Não Técnica | AC22: Perdas - Perda Não Técnica
C23: CVA - Energia - Perda de RB sobre o mercado cativo | D23: =CVA!$E$13*Energia!D13/Energia!$D$5 -> 1530265.123 | E23: 0.0006851591344 | F23: CVA | G23: Energia - Perda Rede Básica sobre mercado Cat. | H23: =IFERROR(VLOOKUP(Financeiros[[#This Row],[Tipo]],RefTabTipo[],2,FALSE),0) -> 19 | I23: =IFERROR(VLOOKUP(Financeiros[[#This Row],[Tipo]],RefTabTipo[],3,FALSE),0) -> 60 | J23: =IFERROR(VLOOKUP(Financeiros[[#This Row],[Tipo]],RefTabTipo[],4,FALSE),0) -> 999 | K23: =IFERROR(VLOOKUP(Financeiros[[#This Row],[Grupo Tarifário]],RefTabGrupoTarifa[],2,FALSE),0) -> 2 | L23: =IFERROR(VLOOKUP(Financeiros[[#This Row],[Grupo Tarifário]],RefTabGrupoTarifa[],3,FALSE),0) -> 24 | M23: =IFERROR(VLOOKUP(Financeiros[[#This Row],[Grupo Tarifário]],RefTabGrupoTarifa[],4,FALSE),0) -> 9 | P23: Ajuste Financeiro ref. recálculo Reajuste/Revisão ano anterior | Q23: 22 | R23: 60 | S23: 161 | V23: Energia - Perda Rede Básica sobre Dist. | W23: 2 | X23: 10 | Y23: 9 | AB23: Energia - Perda Rede Básica sobre Dist. | AC23: Perdas - Perda Rede Básica sobre Dist.
C24: CVA - Encargos - PROINFA | D24: =CVA!E16 -> 4327387.991 | E24: 0.001937539688 | F24: CVA | G24: Encargo - PROINFA | H24: =IFERROR(VLOOKUP(Financeiros[[#This Row],[Tipo]],RefTabTipo[],2,FALSE),0) -> 19 | I24: =IFERROR(VLOOKUP(Financeiros[[#This Row],[Tipo]],RefTabTipo[],3,FALSE),0) -> 60 | J24: =IFERROR(VLOOKUP(Financeiros[[#This Row],[Tipo]],RefTabTipo[],4,FALSE),0) -> 999 | K24: =IFERROR(VLOOKUP(Financeiros[[#This Row],[Grupo Tarifário]],RefTabGrupoTarifa[],2,FALSE),0) -> 3 | L24: =IFERROR(VLOOKUP(Financeiros[[#This Row],[Grupo Tarifário]],RefTabGrupoTarifa[],3,FALSE),0) -> 18 | M24: =IFERROR(VLOOKUP(Financeiros[[#This Row],[Grupo Tarifário]],RefTabGrupoTarifa[],4,FALSE),0) -> 9 | P24: Ajuste Financeiro referente à TUSD-G Geradoras/DIT's - Res 497/2007 | Q24: 22 | R24: 60 | S24: 136 | V24: Energia - Perda Rede Básica sobre mercado Cat. | W24: 2 | X24: 24 | Y24: 9 | AB24: Energia - Perda Rede Básica sobre mercado Cat. | AC24: Perdas - Perda Rede Básica sobre mercado Cat.
C25: CVA - Encargos - CFURH | D25: =CVA!E14 -> 0 | E25: 0 | F25: CVA | G25: Encargo - CFURH | H25: =IFERROR(VLOOKUP(Financeiros[[#This Row],[Tipo]],RefTabTipo[],2,FALSE),0) -> 19 | I25: =IFERROR(VLOOKUP(Financeiros[[#This Row],[Tipo]],RefTabTipo[],3,FALSE),0) -> 60 | J25: =IFERROR(VLOOKUP(Financeiros[[#This Row],[Tipo]],RefTabTipo[],4,FALSE),0) -> 999 | K25: =IFERROR(VLOOKUP(Financeiros[[#This Row],[Grupo Tarifário]],RefTabGrupoTarifa[],2,FALSE),0) -> 3 | L25: =IFERROR(VLOOKUP(Financeiros[[#This Row],[Grupo Tarifário]],RefTabGrupoTarifa[],3,FALSE),0) -> 16 | M25: =IFERROR(VLOOKUP(Financeiros[[#This Row],[Grupo Tarifário]],RefTabGrupoTarifa[],4,FALSE),0) -> 9 | P25: Ajuste Financeiro RGR Janeiro 2013 | Q25: 22 | R25: 60 | S25: 177 | V25: Energia - Perda Técnica | W25: 2 | X25: 8 | Y25: 9 | AB25: Energia - Perda Técnica | AC25: Perdas - Perda Técnica
C26: CVA - Encargos - ESS/EER | D26: =CVA!E17 -> 25642624.34 | E26: 0.01148119893 | F26: CVA | G26: Encargo - ESS/EER | H26: =IFERROR(VLOOKUP(Financeiros[[#This Row],[Tipo]],RefTabTipo[],2,FALSE),0) -> 19 | I26: =IFERROR(VLOOKUP(Financeiros[[#This Row],[Tipo]],RefTabTipo[],3,FALSE),0) -> 60 | J26: =IFERROR(VLOOKUP(Financeiros[[#This Row],[Tipo]],RefTabTipo[],4,FALSE),0) -> 999 | K26: =IFERROR(VLOOKUP(Financeiros[[#This Row],[Grupo Tarifário]],RefTabGrupoTarifa[],2,FALSE),0) -> 3 | L26: =IFERROR(VLOOKUP(Financeiros[[#This Row],[Grupo Tarifário]],RefTabGrupoTarifa[],3,FALSE),0) -> 17 | M26: =IFERROR(VLOOKUP(Financeiros[[#This Row],[Grupo Tarifário]],RefTabGrupoTarifa[],4,FALSE),0) -> 9 | P26: Ajuste ref. equilíbrio econômico-financeiro TUSDg (A2) | Q26: 22 | R26: 60 | S26: 137 | V26: Liminar - Parcela A | W26: 3 | X26: 40 | Y26: 9 | AB26: Receita Irrecuperável | AC26: Perdas - Receita Irrecuperável
C27: Saldo a Compensar CVAccc | D27: =IFERROR(CVA!G24,0) -> 0 | E27: 0 | F27: CVA Saldo a compensar | G27: Encargo - CCC | H27: =IFERROR(VLOOKUP(Financeiros[[#This Row],[Tipo]],RefTabTipo[],2,FALSE),0) -> 19 | I27: =IFERROR(VLOOKUP(Financeiros[[#This Row],[Tipo]],RefTabTipo[],3,FALSE),0) -> 64 | J27: =IFERROR(VLOOKUP(Financeiros[[#This Row],[Tipo]],RefTabTipo[],4,FALSE),0) -> 999 | K27: =IFERROR(VLOOKUP(Financeiros[[#This Row],[Grupo Tarifário]],RefTabGrupoTarifa[],2,FALSE),0) -> 3 | L27: =IFERROR(VLOOKUP(Financeiros[[#This Row],[Grupo Tarifário]],RefTabGrupoTarifa[],3,FALSE),0) -> 13 | M27: =IFERROR(VLOOKUP(Financeiros[[#This Row],[Grupo Tarifário]],RefTabGrupoTarifa[],4,FALSE),0) -> 9 | P27: Ajuste Trajetória de Perdas Não Técnicas 1º ciclo de RTP | Q27: 22 | R27: 60 | S27: 162 | V27: Parcela B | W27: 4 | X27: 999 | Y27: 9 | AB27: Transporte - Rede Básica | AC27: Transporte - Rede Básica
C28: Saldo a Compensar CVAcde | D28: =IFERROR(CVA!G25,0) -> -478745.7743 | E28: -0.0002143530786 | F28: CVA Saldo a compensar | G28: Encargo - CDE - TUSD | H28: =IFERROR(VLOOKUP(Financeiros[[#This Row],[Tipo]],RefTabTipo[],2,FALSE),0) -> 19 | I28: =IFERROR(VLOOKUP(Financeiros[[#This Row],[Tipo]],RefTabTipo[],3,FALSE),0) -> 64 | J28: =IFERROR(VLOOKUP(Financeiros[[#This Row],[Tipo]],RefTabTipo[],4,FALSE),0) -> 999 | K28: =IFERROR(VLOOKUP(Financeiros[[#This Row],[Grupo Tarifário]],RefTabGrupoTarifa[],2,FALSE),0) -> 3 | L28: =IFERROR(VLOOKUP(Financeiros[[#This Row],[Grupo Tarifário]],RefTabGrupoTarifa[],3,FALSE),0) -> 15 | M28: =IFERROR(VLOOKUP(Financeiros[[#This Row],[Grupo Tarifário]],RefTabGrupoTarifa[],4,FALSE),0) -> 9 | P28: Baixa Renda | Q28: 22 | R28: 60 | S28: 107 | V28: Receita Irrecuperável | W28: 5 | X28: 99 | Y28: 9 | AB28: Transporte - Conexão D
C29: Saldo a Compensar CVA cde energia | D29: =IFERROR(CVA!G26,0) -> 276437.9575 | E29: 0.000123772011 | F29: CVA Saldo a compensar | G29: Encargo - CDE - TE | H29: =IFERROR(VLOOKUP(Financeiros[[#This Row],[Tipo]],RefTabTipo[],2,FALSE),0) -> 19 | I29: =IFERROR(VLOOKUP(Financeiros[[#This Row],[Tipo]],RefTabTipo[],3,FALSE),0) -> 64 | J29: =IFERROR(VLOOKUP(Financeiros[[#This Row],[Tipo]],RefTabTipo[],4,FALSE),0) -> 999 | K29: =IFERROR(VLOOKUP(Financeiros[[#This Row],[Grupo Tarifário]],RefTabGrupoTarifa[],2,FALSE),0) -> 3 | L29: =IFERROR(VLOOKUP(Financeiros[[#This Row],[Grupo Tarifário]],RefTabGrupoTarifa[],3,FALSE),0) -> 25 | M29: =IFERROR(VLOOKUP(Financeiros[[#This Row],[Grupo Tarifário]],RefTabGrupoTarifa[],4,FALSE),0) -> 9 | P29: BDO Uruguaiana | Q29: 22 | R29: 60 | S29: 147 | V29: Rede Básica - Genérico | W29: 1 | X29: 1 | Y29: 9 | AB29: Transporte - Conexão T
C30: Saldo a Compensar CVA RB - Nodal | D30: =IFERROR(CVA!G$27*Resultado!D30/SUM(Resultado!$D$30:$D$34),0) -> -173546.0169 | E30: -7.770329265e-05 | F30: CVA Saldo a compensar | G30: Rede Básica - Genérico | H30: =IFERROR(VLOOKUP(Financeiros[[#This Row],[Tipo]],RefTabTipo[],2,FALSE),0) -> 19 | I30: =IFERROR(VLOOKUP(Financeiros[[#This Row],[Tipo]],RefTabTipo[],3,FALSE),0) -> 64 | J30: =IFERROR(VLOOKUP(Financeiros[[#This Row],[Tipo]],RefTabTipo[],4,FALSE),0) -> 999 | K30: =IFERROR(VLOOKUP(Financeiros[[#This Row],[Grupo Tarifário]],RefTabGrupoTarifa[],2,FALSE),0) -> 1 | L30: =IFERROR(VLOOKUP(Financeiros[[#This Row],[Grupo Tarifário]],RefTabGrupoTarifa[],3,FALSE),0) -> 1 | M30: =IFERROR(VLOOKUP(Financeiros[[#This Row],[Grupo Tarifário]],RefTabGrupoTarifa[],4,FALSE),0) -> 9 | P30: Compensação financeira devido à violação dos limites de continuidade | Q30: 22 | R30: 60 | S30: 168 | V30: Transporte - CI | W30: 1 | X30: 22 | Y30: 9 | AB30: Transporte - EUSD | AC30: Transporte - CUSD
C31: Saldo a Compensar CVA RB - Fronteira | D31: =IFERROR(CVA!G$27*Resultado!D31/SUM(Resultado!$D$30:$D$34),0) -> -67289.67365 | E31: -3.012820056e-05 | F31: CVA Saldo a compensar | G31: Rede Básica - Genérico | H31: =IFERROR(VLOOKUP(Financeiros[[#This Row],[Tipo]],RefTabTipo[],2,FALSE),0) -> 19 | I31: =IFERROR(VLOOKUP(Financeiros[[#This Row],[Tipo]],RefTabTipo[],3,FALSE),0) -> 64 | J31: =IFERROR(VLOOKUP(Financeiros[[#This Row],[Tipo]],RefTabTipo[],4,FALSE),0) -> 999 | K31: =IFERROR(VLOOKUP(Financeiros[[#This Row],[Grupo Tarifário]],RefTabGrupoTarifa[],2,FALSE),0) -> 1 | L31: =IFERROR(VLOOKUP(Financeiros[[#This Row],[Grupo Tarifário]],RefTabGrupoTarifa[],3,FALSE),0) -> 1 | M31: =IFERROR(VLOOKUP(Financeiros[[#This Row],[Grupo Tarifário]],RefTabGrupoTarifa[],4,FALSE),0) -> 9 | P31: Complemento de Receita A1 - abertura 2009 | Q31: 22 | R31: 60 | S31: 142 | V31: Transporte - Conexão D | W31: 1 | X31: 4 | Y31: 9 | AB31: Transporte - EUST Itaipu | AC31: Transporte - Rede Básica Itaipu
C32: Saldo a Compensar CVA RB - TUSDg EXP | D32: =IFERROR(CVA!G$27*Resultado!D33/SUM(Resultado!$D$30:$D$34),0) -> 0 | E32: 0 | F32: CVA Saldo a compensar | G32: Rede Básica - Genérico | H32: =IFERROR(VLOOKUP(Financeiros[[#This Row],[Tipo]],RefTabTipo[],2,FALSE),0) -> 19 | I32: =IFERROR(VLOOKUP(Financeiros[[#This Row],[Tipo]],RefTabTipo[],3,FALSE),0) -> 64 | J32: =IFERROR(VLOOKUP(Financeiros[[#This Row],[Tipo]],RefTabTipo[],4,FALSE),0) -> 999 | K32: =IFERROR(VLOOKUP(Financeiros[[#This Row],[Grupo Tarifário]],RefTabGrupoTarifa[],2,FALSE),0) -> 1 | L32: =IFERROR(VLOOKUP(Financeiros[[#This Row],[Grupo Tarifário]],RefTabGrupoTarifa[],3,FALSE),0) -> 1 | M32: =IFERROR(VLOOKUP(Financeiros[[#This Row],[Grupo Tarifário]],RefTabGrupoTarifa[],4,FALSE),0) -> 9 | P32: Complemento de Receita A1 – Abertura ano anterior | Q32: 22 | R32: 60 | S32: 133 | V32: Transporte - Conexão T | W32: 1 | X32: 3 | Y32: 9 | AB32: Transporte - Fronteira | AC32: Transporte - Fronteira
C33: Saldo a Compensar CVA RB - TUSDg ONS | D33: =IFERROR(CVA!G$27*Resultado!D32/SUM(Resultado!$D$30:$D$34),0) -> 0 | E33: 0 | F33: CVA Saldo a compensar | G33: Rede Básica - Genérico | H33: =IFERROR(VLOOKUP(Financeiros[[#This Row],[Tipo]],RefTabTipo[],2,FALSE),0) -> 19 | I33: =IFERROR(VLOOKUP(Financeiros[[#This Row],[Tipo]],RefTabTipo[],3,FALSE),0) -> 64 | J33: =IFERROR(VLOOKUP(Financeiros[[#This Row],[Tipo]],RefTabTipo[],4,FALSE),0) -> 999 | K33: =IFERROR(VLOOKUP(Financeiros[[#This Row],[Grupo Tarifário]],RefTabGrupoTarifa[],2,FALSE),0) -> 1 | L33: =IFERROR(VLOOKUP(Financeiros[[#This Row],[Grupo Tarifário]],RefTabGrupoTarifa[],3,FALSE),0) -> 1 | M33: =IFERROR(VLOOKUP(Financeiros[[#This Row],[Grupo Tarifário]],RefTabGrupoTarifa[],4,FALSE),0) -> 9 | P33: Concatenação dos CUSDs | Q33: 22 | R33: 60 | S33: 119 | V33: Transporte - EUSD | W33: 1 | X33: 7 | Y33: 9 | AB33: Transporte - Tranporte Itaipu
C34: Saldo a Compensar CVA RB - EUST Itaipu | D34: =IFERROR(CVA!G$27*Resultado!D34/SUM(Resultado!$D$30:$D$34),0) -> 0 | E34: 0 | F34: CVA Saldo a compensar | G34: Transporte - EUST Itaipu | H34: =IFERROR(VLOOKUP(Financeiros[[#This Row],[Tipo]],RefTabTipo[],2,FALSE),0) -> 19 | I34: =IFERROR(VLOOKUP(Financeiros[[#This Row],[Tipo]],RefTabTipo[],3,FALSE),0) -> 64 | J34: =IFERROR(VLOOKUP(Financeiros[[#This Row],[Tipo]],RefTabTipo[],4,FALSE),0) -> 999 | K34: =IFERROR(VLOOKUP(Financeiros[[#This Row],[Grupo Tarifário]],RefTabGrupoTarifa[],2,FALSE),0) -> 1 | L34: =IFERROR(VLOOKUP(Financeiros[[#This Row],[Grupo Tarifário]],RefTabGrupoTarifa[],3,FALSE),0) -> 23 | M34: =IFERROR(VLOOKUP(Financeiros[[#This Row],[Grupo Tarifário]],RefTabGrupoTarifa[],4,FALSE),0) -> 9 | P34: Concatenação financeiros | Q34: 22 | R34: 60 | S34: 118 | V34: Transporte - EUST Itaipu | W34: 1 | X34: 23 | Y34: 9 | AB34: Transporte - TUSDg T | AC34: Transporte - TUSDg T
C35: Saldo a Compensar CVA - Transporte Itaipu | D35: =IFERROR(CVA!G30,0) -> 0 | E35: 0 | F35: CVA Saldo a compensar | G35: Transporte - Tranporte Itaipu | H35: =IFERROR(VLOOKUP(Financeiros[[#This Row],[Tipo]],RefTabTipo[],2,FALSE),0) -> 19 | I35: =IFERROR(VLOOKUP(Financeiros[[#This Row],[Tipo]],RefTabTipo[],3,FALSE),0) -> 64 | J35: =IFERROR(VLOOKUP(Financeiros[[#This Row],[Tipo]],RefTabTipo[],4,FALSE),0) -> 999 | K35: =IFERROR(VLOOKUP(Financeiros[[#This Row],[Grupo Tarifário]],RefTabGrupoTarifa[],2,FALSE),0) -> 1 | L35: =IFERROR(VLOOKUP(Financeiros[[#This Row],[Grupo Tarifário]],RefTabGrupoTarifa[],3,FALSE),0) -> 21 | M35: =IFERROR(VLOOKUP(Financeiros[[#This Row],[Grupo Tarifário]],RefTabGrupoTarifa[],4,FALSE),0) -> 9 | P35: Concatenação Suprimento | Q35: 22 | R35: 60 | S35: 117 | V35: Transporte - Fronteira | W35: 1 | X35: 2 | Y35: 9 | AB35: Transporte - TUSDg ONS
C36: Saldo a Compensar CVA - Energia - Energia de Revenda | D36: =IFERROR(CVA!$G$28*Financeiros!N3,0) -> -1337672.236 | E36: -0.0005989278179 | F36: CVA Saldo a compensar | G36: Energia - Energia de Revenda | H36: =IFERROR(VLOOKUP(Financeiros[[#This Row],[Tipo]],RefTabTipo[],2,FALSE),0) -> 19 | I36: =IFERROR(VLOOKUP(Financeiros[[#This Row],[Tipo]],RefTabTipo[],3,FALSE),0) -> 64 | J36: =IFERROR(VLOOKUP(Financeiros[[#This Row],[Tipo]],RefTabTipo[],4,FALSE),0) -> 999 | K36: =IFERROR(VLOOKUP(Financeiros[[#This Row],[Grupo Tarifário]],RefTabGrupoTarifa[],2,FALSE),0) -> 2 | L36: =IFERROR(VLOOKUP(Financeiros[[#This Row],[Grupo Tarifário]],RefTabGrupoTarifa[],3,FALSE),0) -> 11 | M36: =IFERROR(VLOOKUP(Financeiros[[#This Row],[Grupo Tarifário]],RefTabGrupoTarifa[],4,FALSE),0) -> 9 | P36: Consultoria Campanha de Medidas - Res. 166/2005 | Q36: 22 | R36: 60 | S36: 143 | V36: Transporte - Rede Básica | W36: 1 | X36: 1 | Y36: 9 | AB36: Liminar - Parcela A
C37: Saldo a Compensar CVA - Energia - Perda Não Técnica | D37: =IFERROR(CVA!$G$28*Financeiros!N4,0) -> -68831.05818 | E37: -3.081833829e-05 | F37: CVA Saldo a compensar | G37: Energia - Perda Não Técnica | H37: =IFERROR(VLOOKUP(Financeiros[[#This Row],[Tipo]],RefTabTipo[],2,FALSE),0) -> 19 | I37: =IFERROR(VLOOKUP(Financeiros[[#This Row],[Tipo]],RefTabTipo[],3,FALSE),0) -> 64 | J37: =IFERROR(VLOOKUP(Financeiros[[#This Row],[Tipo]],RefTabTipo[],4,FALSE),0) -> 999 | K37: =IFERROR(VLOOKUP(Financeiros[[#This Row],[Grupo Tarifário]],RefTabGrupoTarifa[],2,FALSE),0) -> 2 | L37: =IFERROR(VLOOKUP(Financeiros[[#This Row],[Grupo Tarifário]],RefTabGrupoTarifa[],3,FALSE),0) -> 9 | M37: =IFERROR(VLOOKUP(Financeiros[[#This Row],[Grupo Tarifário]],RefTabGrupoTarifa[],4,FALSE),0) -> 9 | P37: Consultoria para Reavaliação de Ativos - Res. 493/2002 | Q37: 22 | R37: 60 | S37: 144 | V37: Transporte - Tranporte Itaipu | W37: 1 | X37: 21 | Y37: 9 | AB37: Transporte - CI
C38: Saldo a Compensar CVA - Energia - Perda Técnica | D38: =IFERROR(CVA!$G$28*Financeiros!N5,0) -> -188686.523 | E38: -8.448228533e-05 | F38: CVA Saldo a compensar | G38: Energia - Perda Técnica | H38: =IFERROR(VLOOKUP(Financeiros[[#This Row],[Tipo]],RefTabTipo[],2,FALSE),0) -> 19 | I38: =IFERROR(VLOOKUP(Financeiros[[#This Row],[Tipo]],RefTabTipo[],3,FALSE),0) -> 64 | J38: =IFERROR(VLOOKUP(Financeiros[[#This Row],[Tipo]],RefTabTipo[],4,FALSE),0) -> 999 | K38: =IFERROR(VLOOKUP(Financeiros[[#This Row],[Grupo Tarifário]],RefTabGrupoTarifa[],2,FALSE),0) -> 2 | L38: =IFERROR(VLOOKUP(Financeiros[[#This Row],[Grupo Tarifário]],RefTabGrupoTarifa[],3,FALSE),0) -> 8 | M38: =IFERROR(VLOOKUP(Financeiros[[#This Row],[Grupo Tarifário]],RefTabGrupoTarifa[],4,FALSE),0) -> 9 | P38: Consumidor A1 - Ativos de Conexão já considerados na Parcela B | Q38: 22 | R38: 60 | S38: 134 | V38: Transporte - TUSDg ONS | W38: 1 | X38: 5 | Y38: 9 | AB38: Parcela B
C39: Saldo a Compensar CVA - Energia - Perda de RB sobre a distribuição | D39: =IFERROR(CVA!$G$28*Financeiros!N6,0) -> -5759.964391 | E39: -2.578959787e-06 | F39: CVA Saldo a compensar | G39: Energia - Perda Rede Básica sobre Dist. | H39: =IFERROR(VLOOKUP(Financeiros[[#This Row],[Tipo]],RefTabTipo[],2,FALSE),0) -> 19 | I39: =IFERROR(VLOOKUP(Financeiros[[#This Row],[Tipo]],RefTabTipo[],3,FALSE),0) -> 64 | J39: =IFERROR(VLOOKUP(Financeiros[[#This Row],[Tipo]],RefTabTipo[],4,FALSE),0) -> 999 | K39: =IFERROR(VLOOKUP(Financeiros[[#This Row],[Grupo Tarifário]],RefTabGrupoTarifa[],2,FALSE),0) -> 2 | L39: =IFERROR(VLOOKUP(Financeiros[[#This Row],[Grupo Tarifário]],RefTabGrupoTarifa[],3,FALSE),0) -> 10 | M39: =IFERROR(VLOOKUP(Financeiros[[#This Row],[Grupo Tarifário]],RefTabGrupoTarifa[],4,FALSE),0) -> 9 | P39: Consumidor A1 - Ativos de Conexão/DIT já considerados na Parcela A | Q39: 22 | R39: 60 | S39: 135 | V39: Transporte - TUSDg T | W39: 1 | X39: 6 | Y39: 9
C40: Saldo a Compensar CVA - Energia - Perda de RB sobre o mercado cativo | D40: =IFERROR(CVA!$G$28*Financeiros!N7,0) -> -29920.07151 | E40: -1.339637817e-05 | F40: CVA Saldo a compensar | G40: Energia - Perda Rede Básica sobre mercado Cat. | H40: =IFERROR(VLOOKUP(Financeiros[[#This Row],[Tipo]],RefTabTipo[],2,FALSE),0) -> 19 | I40: =IFERROR(VLOOKUP(Financeiros[[#This Row],[Tipo]],RefTabTipo[],3,FALSE),0) -> 64 | J40: =IFERROR(VLOOKUP(Financeiros[[#This Row],[Tipo]],RefTabTipo[],4,FALSE),0) -> 999 | K40: =IFERROR(VLOOKUP(Financeiros[[#This Row],[Grupo Tarifário]],RefTabGrupoTarifa[],2,FALSE),0) -> 2 | L40: =IFERROR(VLOOKUP(Financeiros[[#This Row],[Grupo Tarifário]],RefTabGrupoTarifa[],3,FALSE),0) -> 24 | M40: =IFERROR(VLOOKUP(Financeiros[[#This Row],[Grupo Tarifário]],RefTabGrupoTarifa[],4,FALSE),0) -> 9 | P40: Consumidor A1 - Despesa de Rede Básica | Q40: 22 | R40: 60 | S40: 132 | V40: Conta Covid - Postergação TE | W40: 99 | X40: 999 | Y40: 2
C41: Saldo a Compensar CVA - Encargos - PROINFA | D41: =IFERROR(CVA!G31,0) -> 138079.4652 | E41: 6.182353988e-05 | F41: CVA Saldo a compensar | G41: Encargo - PROINFA | H41: =IFERROR(VLOOKUP(Financeiros[[#This Row],[Tipo]],RefTabTipo[],2,FALSE),0) -> 19 | I41: =IFERROR(VLOOKUP(Financeiros[[#This Row],[Tipo]],RefTabTipo[],3,FALSE),0) -> 64 | J41: =IFERROR(VLOOKUP(Financeiros[[#This Row],[Tipo]],RefTabTipo[],4,FALSE),0) -> 999 | K41: =IFERROR(VLOOKUP(Financeiros[[#This Row],[Grupo Tarifário]],RefTabGrupoTarifa[],2,FALSE),0) -> 3 | L41: =IFERROR(VLOOKUP(Financeiros[[#This Row],[Grupo Tarifário]],RefTabGrupoTarifa[],3,FALSE),0) -> 18 | M41: =IFERROR(VLOOKUP(Financeiros[[#This Row],[Grupo Tarifário]],RefTabGrupoTarifa[],4,FALSE),0) -> 9 | P41: Consumidor Livre Fonte Incentivada TUSD - Res 77/2004 | Q41: 22 | R41: 60 | S41: 110 | V41: Conta Covid - Postergação TUSD | W41: 99 | X41: 999 | Y41: 1
C42: Saldo a Compensar CVA - Encargos - CFURH | D42: =IFERROR(CVA!G29,0) -> 0 | E42: 0 | F42: CVA Saldo a compensar | G42: Encargo - CFURH | H42: =IFERROR(VLOOKUP(Financeiros[[#This Row],[Tipo]],RefTabTipo[],2,FALSE),0) -> 19 | I42: =IFERROR(VLOOKUP(Financeiros[[#This Row],[Tipo]],RefTabTipo[],3,FALSE),0) -> 64 | J42: =IFERROR(VLOOKUP(Financeiros[[#This Row],[Tipo]],RefTabTipo[],4,FALSE),0) -> 999 | K42: =IFERROR(VLOOKUP(Financeiros[[#This Row],[Grupo Tarifário]],RefTabGrupoTarifa[],2,FALSE),0) -> 3 | L42: =IFERROR(VLOOKUP(Financeiros[[#This Row],[Grupo Tarifário]],RefTabGrupoTarifa[],3,FALSE),0) -> 16 | M42: =IFERROR(VLOOKUP(Financeiros[[#This Row],[Grupo Tarifário]],RefTabGrupoTarifa[],4,FALSE),0) -> 9 | P42: Cooperativa | Q42: 22 | R42: 60 | S42: 109
C43: Saldo a Compensar CVA - Encargos - ESS/EER | D43: =IFERROR(CVA!G32,0) -> 1093642.967 | E43: 0.0004896664358 | F43: CVA Saldo a compensar | G43: Encargo - ESS/EER | H43: =IFERROR(VLOOKUP(Financeiros[[#This Row],[Tipo]],RefTabTipo[],2,FALSE),0) -> 19 | I43: =IFERROR(VLOOKUP(Financeiros[[#This Row],[Tipo]],RefTabTipo[],3,FALSE),0) -> 64 | J43: =IFERROR(VLOOKUP(Financeiros[[#This Row],[Tipo]],RefTabTipo[],4,FALSE),0) -> 999 | K43: =IFERROR(VLOOKUP(Financeiros[[#This Row],[Grupo Tarifário]],RefTabGrupoTarifa[],2,FALSE),0) -> 3 | L43: =IFERROR(VLOOKUP(Financeiros[[#This Row],[Grupo Tarifário]],RefTabGrupoTarifa[],3,FALSE),0) -> 17 | M43: =IFERROR(VLOOKUP(Financeiros[[#This Row],[Grupo Tarifário]],RefTabGrupoTarifa[],4,FALSE),0) -> 9 | P43: Custos de implantação da contabilidade regulatória - REN 396/2010 | Q43: 22 | R43: 60 | S43: 167
C44: Neutralidade da Parcela A - CDE | D44: =Encargos!E30 -> -2245072.251 | E44: -0.00100520605 | F44: Neutralidade | G44: Encargo - CDE - TUSD | H44: =IFERROR(VLOOKUP(Financeiros[[#This Row],[Tipo]],RefTabTipo[],2,FALSE),0) -> 20 | I44: =IFERROR(VLOOKUP(Financeiros[[#This Row],[Tipo]],RefTabTipo[],3,FALSE),0) -> 60 | J44: =IFERROR(VLOOKUP(Financeiros[[#This Row],[Tipo]],RefTabTipo[],4,FALSE),0) -> 999 | K44: =IFERROR(VLOOKUP(Financeiros[[#This Row],[Grupo Tarifário]],RefTabGrupoTarifa[],2,FALSE),0) -> 3 | L44: =IFERROR(VLOOKUP(Financeiros[[#This Row],[Grupo Tarifário]],RefTabGrupoTarifa[],3,FALSE),0) -> 15 | M44: =IFERROR(VLOOKUP(Financeiros[[#This Row],[Grupo Tarifário]],RefTabGrupoTarifa[],4,FALSE),0) -> 9 | P44: Custos de implantação da contabilidade regulatória - REN 396/2010 | Q44: 22 | R44: 60 | S44: 167
C45: Neutralidade da Parcela A - CDE Energia | D45: =SUM(Encargos!E27:E28) -> -5.48591008e-07 | E45: -2.456255027e-16 | F45: Neutralidade | G45: Encargo - CDE - TE | H45: =IFERROR(VLOOKUP(Financeiros[[#This Row],[Tipo]],RefTabTipo[],2,FALSE),0) -> 20 | I45: =IFERROR(VLOOKUP(Financeiros[[#This Row],[Tipo]],RefTabTipo[],3,FALSE),0) -> 60 | J45: =IFERROR(VLOOKUP(Financeiros[[#This Row],[Tipo]],RefTabTipo[],4,FALSE),0) -> 999 | K45: =IFERROR(VLOOKUP(Financeiros[[#This Row],[Grupo Tarifário]],RefTabGrupoTarifa[],2,FALSE),0) -> 3 | L45: =IFERROR(VLOOKUP(Financeiros[[#This Row],[Grupo Tarifário]],RefTabGrupoTarifa[],3,FALSE),0) -> 25 | M45: =IFERROR(VLOOKUP(Financeiros[[#This Row],[Grupo Tarifário]],RefTabGrupoTarifa[],4,FALSE),0) -> 9 | P45: CVA | Q45: 19 | R45: 60 | S45: 999
C46: Neutralidade da Parcela A - CFURH | D46: =Encargos!E31 -> 0 | E46: 0 | F46: Neutralidade | G46: Encargo - CFURH | H46: =IFERROR(VLOOKUP(Financeiros[[#This Row],[Tipo]],RefTabTipo[],2,FALSE),0) -> 20 | I46: =IFERROR(VLOOKUP(Financeiros[[#This Row],[Tipo]],RefTabTipo[],3,FALSE),0) -> 60 | J46: =IFERROR(VLOOKUP(Financeiros[[#This Row],[Tipo]],RefTabTipo[],4,FALSE),0) -> 999 | K46: =IFERROR(VLOOKUP(Financeiros[[#This Row],[Grupo Tarifário]],RefTabGrupoTarifa[],2,FALSE),0) -> 3 | L46: =IFERROR(VLOOKUP(Financeiros[[#This Row],[Grupo Tarifário]],RefTabGrupoTarifa[],3,FALSE),0) -> 16 | M46: =IFERROR(VLOOKUP(Financeiros[[#This Row],[Grupo Tarifário]],RefTabGrupoTarifa[],4,FALSE),0) -> 9 | P46: CVA Saldo a compensar | Q46: 19 | R46: 64 | S46: 999
C47: Neutralidade da Parcela A - ESS/ERR | D47: =Encargos!E32 -> -1087222.628 | E47: -0.0004867918005 | F47: Neutralidade | G47: Encargo - ESS/EER | H47: =IFERROR(VLOOKUP(Financeiros[[#This Row],[Tipo]],RefTabTipo[],2,FALSE),0) -> 20 | I47: =IFERROR(VLOOKUP(Financeiros[[#This Row],[Tipo]],RefTabTipo[],3,FALSE),0) -> 60 | J47: =IFERROR(VLOOKUP(Financeiros[[#This Row],[Tipo]],RefTabTipo[],4,FALSE),0) -> 999 | K47: =IFERROR(VLOOKUP(Financeiros[[#This Row],[Grupo Tarifário]],RefTabGrupoTarifa[],2,FALSE),0) -> 3 | L47: =IFERROR(VLOOKUP(Financeiros[[#This Row],[Grupo Tarifário]],RefTabGrupoTarifa[],3,FALSE),0) -> 17 | M47: =IFERROR(VLOOKUP(Financeiros[[#This Row],[Grupo Tarifário]],RefTabGrupoTarifa[],4,FALSE),0) -> 9 | P47: Déficit - Programa Luz Para Todos | Q47: 22 | R47: 60 | S47: 120
C48: Neutralidade da Parcela A - ONS | D48: =Encargos!E35 -> -3389.693434 | E48: -1.517697413e-06 | F48: Neutralidade | G48: Encargo - ONS | H48: =IFERROR(VLOOKUP(Financeiros[[#This Row],[Tipo]],RefTabTipo[],2,FALSE),0) -> 20 | I48: =IFERROR(VLOOKUP(Financeiros[[#This Row],[Tipo]],RefTabTipo[],3,FALSE),0) -> 60 | J48: =IFERROR(VLOOKUP(Financeiros[[#This Row],[Tipo]],RefTabTipo[],4,FALSE),0) -> 999 | K48: =IFERROR(VLOOKUP(Financeiros[[#This Row],[Grupo Tarifário]],RefTabGrupoTarifa[],2,FALSE),0) -> 3 | L48: =IFERROR(VLOOKUP(Financeiros[[#This Row],[Grupo Tarifário]],RefTabGrupoTarifa[],3,FALSE),0) -> 20 | M48: =IFERROR(VLOOKUP(Financeiros[[#This Row],[Grupo Tarifário]],RefTabGrupoTarifa[],4,FALSE),0) -> 9 | P48: Descontos Água/Esgoto/Saneam - Despacho nº 3629/11 | Q48: 22 | R48: 60 | S48: 171
C49: Neutralidade da Parcela A - PROINFA | D49: =Encargos!E33 -> -1013001.163 | E49: -0.0004535599675 | F49: Neutralidade | G49: Encargo - PROINFA | H49: =IFERROR(VLOOKUP(Financeiros[[#This Row],[Tipo]],RefTabTipo[],2,FALSE),0) -> 20 | I49: =IFERROR(VLOOKUP(Financeiros[[#This Row],[Tipo]],RefTabTipo[],3,FALSE),0) -> 60 | J49: =IFERROR(VLOOKUP(Financeiros[[#This Row],[Tipo]],RefTabTipo[],4,FALSE),0) -> 999 | K49: =IFERROR(VLOOKUP(Financeiros[[#This Row],[Grupo Tarifário]],RefTabGrupoTarifa[],2,FALSE),0) -> 3 | L49: =IFERROR(VLOOKUP(Financeiros[[#This Row],[Grupo Tarifário]],RefTabGrupoTarifa[],3,FALSE),0) -> 18 | M49: =IFERROR(VLOOKUP(Financeiros[[#This Row],[Grupo Tarifário]],RefTabGrupoTarifa[],4,FALSE),0) -> 9 | P49: Devolução de receita CSN | Q49: 22 | R49: 60 | S49: 181
C50: Neutralidade da Parcela A - TFSEE | D50: =Encargos!E29 -> -123741.6897 | E50: -5.540396088e-05 | F50: Neutralidade | G50: Encargo - TFSEE | H50: =IFERROR(VLOOKUP(Financeiros[[#This Row],[Tipo]],RefTabTipo[],2,FALSE),0) -> 20 | I50: =IFERROR(VLOOKUP(Financeiros[[#This Row],[Tipo]],RefTabTipo[],3,FALSE),0) -> 60 | J50: =IFERROR(VLOOKUP(Financeiros[[#This Row],[Tipo]],RefTabTipo[],4,FALSE),0) -> 999 | K50: =IFERROR(VLOOKUP(Financeiros[[#This Row],[Grupo Tarifário]],RefTabGrupoTarifa[],2,FALSE),0) -> 3 | L50: =IFERROR(VLOOKUP(Financeiros[[#This Row],[Grupo Tarifário]],RefTabGrupoTarifa[],3,FALSE),0) -> 14 | M50: =IFERROR(VLOOKUP(Financeiros[[#This Row],[Grupo Tarifário]],RefTabGrupoTarifa[],4,FALSE),0) -> 9 | P50: Diferença de abertura tarifária de financeiros da Revisão | Q50: 22 | R50: 60 | S50: 138
C51: ="Sobrecontratação/Reversão de "&Financeiros[[#This Row],[Grupo Tarifário]] -> Sobrecontratação/Reversão de Energia - Energia de Revenda | D51: =SUM(IF(ISERROR(Indexador!$F$16),0,Indexador!$F$16),CVA!$I$9)*N3 -> 7116059.955 | E51: 0.003186136444 | F51: SOBRECONTRATAÇÃO | G51: Energia - Energia de Revenda | H51: =IFERROR(VLOOKUP(Financeiros[[#This Row],[Tipo]],RefTabTipo[],2,FALSE),0) -> 22 | I51: =IFERROR(VLOOKUP(Financeiros[[#This Row],[Tipo]],RefTabTipo[],3,FALSE),0) -> 60 | J51: =IFERROR(VLOOKUP(Financeiros[[#This Row],[Tipo]],RefTabTipo[],4,FALSE),0) -> 106 | K51: =IFERROR(VLOOKUP(Financeiros[[#This Row],[Grupo Tarifário]],RefTabGrupoTarifa[],2,FALSE),0) -> 2 | L51: =IFERROR(VLOOKUP(Financeiros[[#This Row],[Grupo Tarifário]],RefTabGrupoTarifa[],3,FALSE),0) -> 11 | M51: =IFERROR(VLOOKUP(Financeiros[[#This Row],[Grupo Tarifário]],RefTabGrupoTarifa[],4,FALSE),0) -> 9 | P51: Diferencial Eletronuclear - Lei nº 12.111/2009 | Q51: 22 | R51: 60 | S51: 176
C52: ="Sobrecontratação/Reversão de "&Financeiros[[#This Row],[Grupo Tarifário]] -> Sobrecontratação/Reversão de Energia - Perda Não Técnica | D52: =SUM(IF(ISERROR(Indexador!$F$16),0,Indexador!$F$16),CVA!$I$9)*N4 -> 366162.8938 | E52: 0.0001639453501 | F52: SOBRECONTRATAÇÃO | G52: Energia - Perda Não Técnica | H52: =IFERROR(VLOOKUP(Financeiros[[#This Row],[Tipo]],RefTabTipo[],2,FALSE),0) -> 22 | I52: =IFERROR(VLOOKUP(Financeiros[[#This Row],[Tipo]],RefTabTipo[],3,FALSE),0) -> 60 | J52: =IFERROR(VLOOKUP(Financeiros[[#This Row],[Tipo]],RefTabTipo[],4,FALSE),0) -> 106 | K52: =IFERROR(VLOOKUP(Financeiros[[#This Row],[Grupo Tarifário]],RefTabGrupoTarifa[],2,FALSE),0) -> 2 | L52: =IFERROR(VLOOKUP(Financeiros[[#This Row],[Grupo Tarifário]],RefTabGrupoTarifa[],3,FALSE),0) -> 9 | M52: =IFERROR(VLOOKUP(Financeiros[[#This Row],[Grupo Tarifário]],RefTabGrupoTarifa[],4,FALSE),0) -> 9 | P52: Diferimento Cálculo Econômico da Energia Comprada | Q52: 22 | R52: 60 | S52: 166
C53: ="Sobrecontratação/Reversão de "&Financeiros[[#This Row],[Grupo Tarifário]] -> Sobrecontratação/Reversão de Energia - Perda Técnica | D53: =SUM(IF(ISERROR(Indexador!$F$16),0,Indexador!$F$16),CVA!$I$9)*N5 -> 1003762.039 | E53: 0.0004494232529 | F53: SOBRECONTRATAÇÃO | G53: Energia - Perda Técnica | H53: =IFERROR(VLOOKUP(Financeiros[[#This Row],[Tipo]],RefTabTipo[],2,FALSE),0) -> 22 | I53: =IFERROR(VLOOKUP(Financeiros[[#This Row],[Tipo]],RefTabTipo[],3,FALSE),0) -> 60 | J53: =IFERROR(VLOOKUP(Financeiros[[#This Row],[Tipo]],RefTabTipo[],4,FALSE),0) -> 106 | K53: =IFERROR(VLOOKUP(Financeiros[[#This Row],[Grupo Tarifário]],RefTabGrupoTarifa[],2,FALSE),0) -> 2 | L53: =IFERROR(VLOOKUP(Financeiros[[#This Row],[Grupo Tarifário]],RefTabGrupoTarifa[],3,FALSE),0) -> 8 | M53: =IFERROR(VLOOKUP(Financeiros[[#This Row],[Grupo Tarifário]],RefTabGrupoTarifa[],4,FALSE),0) -> 9 | P53: Diferimento REH Nº 1.176, de 28/06/2011 | Q53: 22 | R53: 60 | S53: 170
C54: ="Sobrecontratação/Reversão de "&Financeiros[[#This Row],[Grupo Tarifário]] -> Sobrecontratação/Reversão de Energia - Perda Rede Básica sobre Dist. | D54: =SUM(IF(ISERROR(Indexador!$F$16),0,Indexador!$F$16),CVA!$I$9)*N6 -> 30641.47617 | E54: 1.371937906e-05 | F54: SOBRECONTRATAÇÃO | G54: Energia - Perda Rede Básica sobre Dist. | H54: =IFERROR(VLOOKUP(Financeiros[[#This Row],[Tipo]],RefTabTipo[],2,FALSE),0) -> 22 | I54: =IFERROR(VLOOKUP(Financeiros[[#This Row],[Tipo]],RefTabTipo[],3,FALSE),0) -> 60 | J54: =IFERROR(VLOOKUP(Financeiros[[#This Row],[Tipo]],RefTabTipo[],4,FALSE),0) -> 106 | K54: =IFERROR(VLOOKUP(Financeiros[[#This Row],[Grupo Tarifário]],RefTabGrupoTarifa[],2,FALSE),0) -> 2 | L54: =IFERROR(VLOOKUP(Financeiros[[#This Row],[Grupo Tarifário]],RefTabGrupoTarifa[],3,FALSE),0) -> 10 | M54: =IFERROR(VLOOKUP(Financeiros[[#This Row],[Grupo Tarifário]],RefTabGrupoTarifa[],4,FALSE),0) -> 9 | P54: Efeito de Acordo Bilateral com geradores | Q54: 22 | R54: 60 | S54: 230
C55: ="Sobrecontratação/Reversão de "&Financeiros[[#This Row],[Grupo Tarifário]] -> Sobrecontratação/Reversão de Energia - Perda Rede Básica sobre mercado Cat. | D55: =SUM(IF(ISERROR(Indexador!$F$16),0,Indexador!$F$16),CVA!$I$9)*N7 -> 159166.8101 | E55: 7.126516325e-05 | F55: SOBRECONTRATAÇÃO | G55: Energia - Perda Rede Básica sobre mercado Cat. | H55: =IFERROR(VLOOKUP(Financeiros[[#This Row],[Tipo]],RefTabTipo[],2,FALSE),0) -> 22 | I55: =IFERROR(VLOOKUP(Financeiros[[#This Row],[Tipo]],RefTabTipo[],3,FALSE),0) -> 60 | J55: =IFERROR(VLOOKUP(Financeiros[[#This Row],[Tipo]],RefTabTipo[],4,FALSE),0) -> 106 | K55: =IFERROR(VLOOKUP(Financeiros[[#This Row],[Grupo Tarifário]],RefTabGrupoTarifa[],2,FALSE),0) -> 2 | L55: =IFERROR(VLOOKUP(Financeiros[[#This Row],[Grupo Tarifário]],RefTabGrupoTarifa[],3,FALSE),0) -> 24 | M55: =IFERROR(VLOOKUP(Financeiros[[#This Row],[Grupo Tarifário]],RefTabGrupoTarifa[],4,FALSE),0) -> 9 | P55: ESS/EER-Chesf | Q55: 22 | R55: 60 | S55: 150
C56: Reversão de Angra III - Supridora (ESS/EER) | D56: ='Financeiro RTE'!H22 -> 0 | E56: 0 | F56: Reversão de Angra III - Supridora (ESS/EER) - CVA | G56: Encargo - ESS/EER | H56: =IFERROR(VLOOKUP(Financeiros[[#This Row],[Tipo]],RefTabTipo[],2,FALSE),0) -> 19 | I56: =IFERROR(VLOOKUP(Financeiros[[#This Row],[Tipo]],RefTabTipo[],3,FALSE),0) -> 60 | J56: =IFERROR(VLOOKUP(Financeiros[[#This Row],[Tipo]],RefTabTipo[],4,FALSE),0) -> 221 | K56: =IFERROR(VLOOKUP(Financeiros[[#This Row],[Grupo Tarifário]],RefTabGrupoTarifa[],2,FALSE),0) -> 3 | L56: =IFERROR(VLOOKUP(Financeiros[[#This Row],[Grupo Tarifário]],RefTabGrupoTarifa[],3,FALSE),0) -> 17 | M56: =IFERROR(VLOOKUP(Financeiros[[#This Row],[Grupo Tarifário]],RefTabGrupoTarifa[],4,FALSE),0) -> 9 | P56: Estorno do ICMS para compra de combustível | Q56: 22 | R56: 60 | S56: 122
C57: Reversão de Angra III - Suprida (Energia) | D57: ='Financeiro RTE'!I22+'Financeiro RTE'!J22 -> 0 | E57: 0 | F57: Reversão de Angra III - Suprida (Energia) - CVA | G57: Energia - Genérico | H57: =IFERROR(VLOOKUP(Financeiros[[#This Row],[Tipo]],RefTabTipo[],2,FALSE),0) -> 19 | I57: =IFERROR(VLOOKUP(Financeiros[[#This Row],[Tipo]],RefTabTipo[],3,FALSE),0) -> 60 | J57: =IFERROR(VLOOKUP(Financeiros[[#This Row],[Tipo]],RefTabTipo[],4,FALSE),0) -> 222 | K57: =IFERROR(VLOOKUP(Financeiros[[#This Row],[Grupo Tarifário]],RefTabGrupoTarifa[],2,FALSE),0) -> 2 | L57: =IFERROR(VLOOKUP(Financeiros[[#This Row],[Grupo Tarifário]],RefTabGrupoTarifa[],3,FALSE),0) -> 30 | M57: =IFERROR(VLOOKUP(Financeiros[[#This Row],[Grupo Tarifário]],RefTabGrupoTarifa[],4,FALSE),0) -> 9 | P57: Exposição CCEAR entre Submercados | Q57: 22 | R57: 60 | S57: 101
C58: =Financeiros[[#This Row],[Tipo]]&" de "&Financeiros[[#This Row],[Grupo Tarifário]] -> Garantias financeiras na contratação regulada de energia (CCEAR) de Energia - Energia de Revenda | D58: =CVA!$I$10*N3 -> 419056.7656 | E58: 0.000187627991 | F58: Garantias financeiras na contratação regulada de energia (CCEAR) | G58: Energia - Energia de Revenda | H58: =IFERROR(VLOOKUP(Financeiros[[#This Row],[Tipo]],RefTabTipo[],2,FALSE),0) -> 22 | I58: =IFERROR(VLOOKUP(Financeiros[[#This Row],[Tipo]],RefTabTipo[],3,FALSE),0) -> 60 | J58: =IFERROR(VLOOKUP(Financeiros[[#This Row],[Tipo]],RefTabTipo[],4,FALSE),0) -> 102 | K58: =IFERROR(VLOOKUP(Financeiros[[#This Row],[Grupo Tarifário]],RefTabGrupoTarifa[],2,FALSE),0) -> 2 | L58: =IFERROR(VLOOKUP(Financeiros[[#This Row],[Grupo Tarifário]],RefTabGrupoTarifa[],3,FALSE),0) -> 11 | M58: =IFERROR(VLOOKUP(Financeiros[[#This Row],[Grupo Tarifário]],RefTabGrupoTarifa[],4,FALSE),0) -> 9 | P58: Financeiro de Reversão Angra III - Suprida (EUSD) | Q58: 22 | R58: 60 | S58: 223
C59: =Financeiros[[#This Row],[Tipo]]&" de "&Financeiros[[#This Row],[Grupo Tarifário]] -> Garantias financeiras na contratação regulada de energia (CCEAR) de Energia - Perda Não Técnica | D59: =CVA!$I$10*N4 -> 21562.9209 | E59: 9.654557236e-06 | F59: Garantias financeiras na contratação regulada de energia (CCEAR) | G59: Energia - Perda Não Técnica | H59: =IFERROR(VLOOKUP(Financeiros[[#This Row],[Tipo]],RefTabTipo[],2,FALSE),0) -> 22 | I59: =IFERROR(VLOOKUP(Financeiros[[#This Row],[Tipo]],RefTabTipo[],3,FALSE),0) -> 60 | J59: =IFERROR(VLOOKUP(Financeiros[[#This Row],[Tipo]],RefTabTipo[],4,FALSE),0) -> 102 | K59: =IFERROR(VLOOKUP(Financeiros[[#This Row],[Grupo Tarifário]],RefTabGrupoTarifa[],2,FALSE),0) -> 2 | L59: =IFERROR(VLOOKUP(Financeiros[[#This Row],[Grupo Tarifário]],RefTabGrupoTarifa[],3,FALSE),0) -> 9 | M59: =IFERROR(VLOOKUP(Financeiros[[#This Row],[Grupo Tarifário]],RefTabGrupoTarifa[],4,FALSE),0) -> 9 | P59: Financeiro de Reversão RTE - CDE Energia | Q59: 19 | R59: 60 | S59: 217
C60: =Financeiros[[#This Row],[Tipo]]&" de "&Financeiros[[#This Row],[Grupo Tarifário]] -> Garantias financeiras na contratação regulada de energia (CCEAR) de Energia - Perda Técnica | D60: =CVA!$I$10*N5 -> 59110.41729 | E60: 2.646602979e-05 | F60: Garantias financeiras na contratação regulada de energia (CCEAR) | G60: Energia - Perda Técnica | H60: =IFERROR(VLOOKUP(Financeiros[[#This Row],[Tipo]],RefTabTipo[],2,FALSE),0) -> 22 | I60: =IFERROR(VLOOKUP(Financeiros[[#This Row],[Tipo]],RefTabTipo[],3,FALSE),0) -> 60 | J60: =IFERROR(VLOOKUP(Financeiros[[#This Row],[Tipo]],RefTabTipo[],4,FALSE),0) -> 102 | K60: =IFERROR(VLOOKUP(Financeiros[[#This Row],[Grupo Tarifário]],RefTabGrupoTarifa[],2,FALSE),0) -> 2 | L60: =IFERROR(VLOOKUP(Financeiros[[#This Row],[Grupo Tarifário]],RefTabGrupoTarifa[],3,FALSE),0) -> 8 | M60: =IFERROR(VLOOKUP(Financeiros[[#This Row],[Grupo Tarifário]],RefTabGrupoTarifa[],4,FALSE),0) -> 9 | P60: Financeiro de Reversão RTE - CDE Uso | Q60: 19 | R60: 60 | S60: 217
C61: =Financeiros[[#This Row],[Tipo]]&" de "&Financeiros[[#This Row],[Grupo Tarifário]] -> Garantias financeiras na contratação regulada de energia (CCEAR) de Energia - Perda Rede Básica sobre Dist. | D61: =CVA!$I$10*N6 -> 1804.442062 | E61: 8.079187995e-07 | F61: Garantias financeiras na contratação regulada de energia (CCEAR) | G61: Energia - Perda Rede Básica sobre Dist. | H61: =IFERROR(VLOOKUP(Financeiros[[#This Row],[Tipo]],RefTabTipo[],2,FALSE),0) -> 22 | I61: =IFERROR(VLOOKUP(Financeiros[[#This Row],[Tipo]],RefTabTipo[],3,FALSE),0) -> 60 | J61: =IFERROR(VLOOKUP(Financeiros[[#This Row],[Tipo]],RefTabTipo[],4,FALSE),0) -> 102 | K61: =IFERROR(VLOOKUP(Financeiros[[#This Row],[Grupo Tarifário]],RefTabGrupoTarifa[],2,FALSE),0) -> 2 | L61: =IFERROR(VLOOKUP(Financeiros[[#This Row],[Grupo Tarifário]],RefTabGrupoTarifa[],3,FALSE),0) -> 10 | M61: =IFERROR(VLOOKUP(Financeiros[[#This Row],[Grupo Tarifário]],RefTabGrupoTarifa[],4,FALSE),0) -> 9 | P61: Financeiro de Reversão RTE - Energia | Q61: 19 | R61: 60 | S61: 218
C62: =Financeiros[[#This Row],[Tipo]]&" de "&Financeiros[[#This Row],[Grupo Tarifário]] -> Garantias financeiras na contratação regulada de energia (CCEAR) de Energia - Perda Rede Básica sobre mercado Cat. | D62: =CVA!$I$10*N7 -> 9373.154393 | E62: 4.196725294e-06 | F62: Garantias financeiras na contratação regulada de energia (CCEAR) | G62: Energia - Perda Rede Básica sobre mercado Cat. | H62: =IFERROR(VLOOKUP(Financeiros[[#This Row],[Tipo]],RefTabTipo[],2,FALSE),0) -> 22 | I62: =IFERROR(VLOOKUP(Financeiros[[#This Row],[Tipo]],RefTabTipo[],3,FALSE),0) -> 60 | J62: =IFERROR(VLOOKUP(Financeiros[[#This Row],[Tipo]],RefTabTipo[],4,FALSE),0) -> 102 | K62: =IFERROR(VLOOKUP(Financeiros[[#This Row],[Grupo Tarifário]],RefTabGrupoTarifa[],2,FALSE),0) -> 2 | L62: =IFERROR(VLOOKUP(Financeiros[[#This Row],[Grupo Tarifário]],RefTabGrupoTarifa[],3,FALSE),0) -> 24 | M62: =IFERROR(VLOOKUP(Financeiros[[#This Row],[Grupo Tarifário]],RefTabGrupoTarifa[],4,FALSE),0) -> 9 | P62: Financeiro de Reversão RTE - Transporte | Q62: 22 | R62: 60 | S62: 219
C63: =Financeiros[[#This Row],[Tipo]]&" de "&Financeiros[[#This Row],[Grupo Tarifário]] -> Repasse de ultrapassagem de Supridas/Permissionárias de Energia - Energia de Revenda | D63: =(-FinanceiroSuprimento)*N3 -> 0 | E63: 0 | F63: Repasse de ultrapassagem de Supridas/Permissionárias | G63: Energia - Energia de Revenda | H63: =IFERROR(VLOOKUP(Financeiros[[#This Row],[Tipo]],RefTabTipo[],2,FALSE),0) -> 22 | I63: =IFERROR(VLOOKUP(Financeiros[[#This Row],[Tipo]],RefTabTipo[],3,FALSE),0) -> 60 | J63: =IFERROR(VLOOKUP(Financeiros[[#This Row],[Tipo]],RefTabTipo[],4,FALSE),0) -> 187 | K63: =IFERROR(VLOOKUP(Financeiros[[#This Row],[Grupo Tarifário]],RefTabGrupoTarifa[],2,FALSE),0) -> 2 | L63: =IFERROR(VLOOKUP(Financeiros[[#This Row],[Grupo Tarifário]],RefTabGrupoTarifa[],3,FALSE),0) -> 11 | M63: =IFERROR(VLOOKUP(Financeiros[[#This Row],[Grupo Tarifário]],RefTabGrupoTarifa[],4,FALSE),0) -> 9 | P63: Financeiro RTE - CDE | Q63: 22 | R63: 60 | S63: 217
C64: =Financeiros[[#This Row],[Tipo]]&" de "&Financeiros[[#This Row],[Grupo Tarifário]] -> Repasse de ultrapassagem de Supridas/Permissionárias de Energia - Perda Não Técnica | D64: =(-FinanceiroSuprimento)*N4 -> 0 | E64: 0 | F64: Repasse de ultrapassagem de Supridas/Permissionárias | G64: Energia - Perda Não Técnica | H64: =IFERROR(VLOOKUP(Financeiros[[#This Row],[Tipo]],RefTabTipo[],2,FALSE),0) -> 22 | I64: =IFERROR(VLOOKUP(Financeiros[[#This Row],[Tipo]],RefTabTipo[],3,FALSE),0) -> 60 | J64: =IFERROR(VLOOKUP(Financeiros[[#This Row],[Tipo]],RefTabTipo[],4,FALSE),0) -> 187 | K64: =IFERROR(VLOOKUP(Financeiros[[#This Row],[Grupo Tarifário]],RefTabGrupoTarifa[],2,FALSE),0) -> 2 | L64: =IFERROR(VLOOKUP(Financeiros[[#This Row],[Grupo Tarifário]],RefTabGrupoTarifa[],3,FALSE),0) -> 9 | M64: =IFERROR(VLOOKUP(Financeiros[[#This Row],[Grupo Tarifário]],RefTabGrupoTarifa[],4,FALSE),0) -> 9 | P64: Financeiro RTE - Energia | Q64: 22 | R64: 60 | S64: 218
C65: =Financeiros[[#This Row],[Tipo]]&" de "&Financeiros[[#This Row],[Grupo Tarifário]] -> Repasse de ultrapassagem de Supridas/Permissionárias de Energia - Perda Técnica | D65: =(-FinanceiroSuprimento)*N5 -> 0 | E65: 0 | F65: Repasse de ultrapassagem de Supridas/Permissionárias | G65: Energia - Perda Técnica | H65: =IFERROR(VLOOKUP(Financeiros[[#This Row],[Tipo]],RefTabTipo[],2,FALSE),0) -> 22 | I65: =IFERROR(VLOOKUP(Financeiros[[#This Row],[Tipo]],RefTabTipo[],3,FALSE),0) -> 60 | J65: =IFERROR(VLOOKUP(Financeiros[[#This Row],[Tipo]],RefTabTipo[],4,FALSE),0) -> 187 | K65: =IFERROR(VLOOKUP(Financeiros[[#This Row],[Grupo Tarifário]],RefTabGrupoTarifa[],2,FALSE),0) -> 2 | L65: =IFERROR(VLOOKUP(Financeiros[[#This Row],[Grupo Tarifário]],RefTabGrupoTarifa[],3,FALSE),0) -> 8 | M65: =IFERROR(VLOOKUP(Financeiros[[#This Row],[Grupo Tarifário]],RefTabGrupoTarifa[],4,FALSE),0) -> 9 | P65: Financeiro RTE - Transporte | Q65: 22 | R65: 60 | S65: 219
C66: =Financeiros[[#This Row],[Tipo]]&" de "&Financeiros[[#This Row],[Grupo Tarifário]] -> Repasse de ultrapassagem de Supridas/Permissionárias de Energia - Perda Rede Básica sobre Dist. | D66: =(-FinanceiroSuprimento)*N6 -> 0 | E66: 0 | F66: Repasse de ultrapassagem de Supridas/Permissionárias | G66: Energia - Perda Rede Básica sobre Dist. | H66: =IFERROR(VLOOKUP(Financeiros[[#This Row],[Tipo]],RefTabTipo[],2,FALSE),0) -> 22 | I66: =IFERROR(VLOOKUP(Financeiros[[#This Row],[Tipo]],RefTabTipo[],3,FALSE),0) -> 60 | J66: =IFERROR(VLOOKUP(Financeiros[[#This Row],[Tipo]],RefTabTipo[],4,FALSE),0) -> 187 | K66: =IFERROR(VLOOKUP(Financeiros[[#This Row],[Grupo Tarifário]],RefTabGrupoTarifa[],2,FALSE),0) -> 2 | L66: =IFERROR(VLOOKUP(Financeiros[[#This Row],[Grupo Tarifário]],RefTabGrupoTarifa[],3,FALSE),0) -> 10 | M66: =IFERROR(VLOOKUP(Financeiros[[#This Row],[Grupo Tarifário]],RefTabGrupoTarifa[],4,FALSE),0) -> 9 | P66: Furnas | Q66: 22 | R66: 60 | S66: 186
C67: =Financeiros[[#This Row],[Tipo]]&" de "&Financeiros[[#This Row],[Grupo Tarifário]] -> Repasse de ultrapassagem de Supridas/Permissionárias de Energia - Perda Rede Básica sobre mercado Cat. | D67: =(-FinanceiroSuprimento)*N7 -> 0 | E67: 0 | F67: Repasse de ultrapassagem de Supridas/Permissionárias | G67: Energia - Perda Rede Básica sobre mercado Cat. | H67: =IFERROR(VLOOKUP(Financeiros[[#This Row],[Tipo]],RefTabTipo[],2,FALSE),0) -> 22 | I67: =IFERROR(VLOOKUP(Financeiros[[#This Row],[Tipo]],RefTabTipo[],3,FALSE),0) -> 60 | J67: =IFERROR(VLOOKUP(Financeiros[[#This Row],[Tipo]],RefTabTipo[],4,FALSE),0) -> 187 | K67: =IFERROR(VLOOKUP(Financeiros[[#This Row],[Grupo Tarifário]],RefTabGrupoTarifa[],2,FALSE),0) -> 2 | L67: =IFERROR(VLOOKUP(Financeiros[[#This Row],[Grupo Tarifário]],RefTabGrupoTarifa[],3,FALSE),0) -> 24 | M67: =IFERROR(VLOOKUP(Financeiros[[#This Row],[Grupo Tarifário]],RefTabGrupoTarifa[],4,FALSE),0) -> 9 | P67: Garantias financeiras na contratação regulada de energia (CCEAR) | Q67: 22 | R67: 60 | S67: 102
C68: Conselho de Consumidores | D68: =IF(AND(CAPA!C7="Revisão",SUM(Indexador!D139:G139)<0),SUM(Indexador!D139:G139),0) -> -926865.2079 | E68: -0.000414993555 | F68: ReN 451/2011 - Reversão de orçamento do Conselho de Consumidor | G68: Parcela B | H68: =IFERROR(VLOOKUP(Financeiros[[#This Row],[Tipo]],RefTabTipo[],2,FALSE),0) -> 22 | I68: =IFERROR(VLOOKUP(Financeiros[[#This Row],[Tipo]],RefTabTipo[],3,FALSE),0) -> 60 | J68: =IFERROR(VLOOKUP(Financeiros[[#This Row],[Tipo]],RefTabTipo[],4,FALSE),0) -> 188 | K68: =IFERROR(VLOOKUP(Financeiros[[#This Row],[Grupo Tarifário]],RefTabGrupoTarifa[],2,FALSE),0) -> 4 | L68: =IFERROR(VLOOKUP(Financeiros[[#This Row],[Grupo Tarifário]],RefTabGrupoTarifa[],3,FALSE),0) -> 999 | M68: =IFERROR(VLOOKUP(Financeiros[[#This Row],[Grupo Tarifário]],RefTabGrupoTarifa[],4,FALSE),0) -> 9 | P68: Genérico | Q68: 22 | R68: 60 | S68: 999
C69: Ajuste CUSD | D69: =+Indexador!D117 -> 410225.658 | E69: 0.0001836739611 | F69: Concatenação dos CUSDs | G69: Transporte - EUSD | H69: =IFERROR(VLOOKUP(Financeiros[[#This Row],[Tipo]],RefTabTipo[],2,FALSE),0) -> 22 | I69: =IFERROR(VLOOKUP(Financeiros[[#This Row],[Tipo]],RefTabTipo[],3,FALSE),0) -> 60 | J69: =IFERROR(VLOOKUP(Financeiros[[#This Row],[Tipo]],RefTabTipo[],4,FALSE),0) -> 119 | K69: =IFERROR(VLOOKUP(Financeiros[[#This Row],[Grupo Tarifário]],RefTabGrupoTarifa[],2,FALSE),0) -> 1 | L69: =IFERROR(VLOOKUP(Financeiros[[#This Row],[Grupo Tarifário]],RefTabGrupoTarifa[],3,FALSE),0) -> 7 | M69: =IFERROR(VLOOKUP(Financeiros[[#This Row],[Grupo Tarifário]],RefTabGrupoTarifa[],4,FALSE),0) -> 9 | P69: Geração Fonte Incentivada TUSD G - Res 77/2004 | Q69: 22 | R69: 60 | S69: 111
C70: Previsão de Risco Hidrológico | D70: =LnkTxtprevisaoriscohidro*Financeiros!N3 -> 81390414.19 | E70: 0.03644164981 | F70: Previsão de Risco Hidrológico | G70: Energia - Energia de Revenda | H70: =IFERROR(VLOOKUP(Financeiros[[#This Row],[Tipo]],RefTabTipo[],2,FALSE),0) -> 22 | I70: =IFERROR(VLOOKUP(Financeiros[[#This Row],[Tipo]],RefTabTipo[],3,FALSE),0) -> 60 | J70: =IFERROR(VLOOKUP(Financeiros[[#This Row],[Tipo]],RefTabTipo[],4,FALSE),0) -> 220 | K70: =IFERROR(VLOOKUP(Financeiros[[#This Row],[Grupo Tarifário]],RefTabGrupoTarifa[],2,FALSE),0) -> 2 | L70: =IFERROR(VLOOKUP(Financeiros[[#This Row],[Grupo Tarifário]],RefTabGrupoTarifa[],3,FALSE),0) -> 11 | M70: =IFERROR(VLOOKUP(Financeiros[[#This Row],[Grupo Tarifário]],RefTabGrupoTarifa[],4,FALSE),0) -> 9 | P70: ICMS substituição tributária | Q70: 22 | R70: 60 | S70: 300
C71: Previsão de Risco Hidrológico | D71: =LnkTxtprevisaoriscohidro*Financeiros!N4 -> 4188012.717 | E71: 0.001875135964 | F71: Previsão de Risco Hidrológico | G71: Energia - Perda Não Técnica | H71: =IFERROR(VLOOKUP(Financeiros[[#This Row],[Tipo]],RefTabTipo[],2,FALSE),0) -> 22 | I71: =IFERROR(VLOOKUP(Financeiros[[#This Row],[Tipo]],RefTabTipo[],3,FALSE),0) -> 60 | J71: =IFERROR(VLOOKUP(Financeiros[[#This Row],[Tipo]],RefTabTipo[],4,FALSE),0) -> 220 | K71: =IFERROR(VLOOKUP(Financeiros[[#This Row],[Grupo Tarifário]],RefTabGrupoTarifa[],2,FALSE),0) -> 2 | L71: =IFERROR(VLOOKUP(Financeiros[[#This Row],[Grupo Tarifário]],RefTabGrupoTarifa[],3,FALSE),0) -> 9 | M71: =IFERROR(VLOOKUP(Financeiros[[#This Row],[Grupo Tarifário]],RefTabGrupoTarifa[],4,FALSE),0) -> 9 | P71: Implantação do Manual de Controle Patrimonial - MCPSE | Q71: 22 | R71: 60 | S71: 145
C72: Previsão de Risco Hidrológico | D72: =LnkTxtprevisaoriscohidro*Financeiros!N5 -> 11480595.81 | E72: 0.005140308673 | F72: Previsão de Risco Hidrológico | G72: Energia - Perda Técnica | H72: =IFERROR(VLOOKUP(Financeiros[[#This Row],[Tipo]],RefTabTipo[],2,FALSE),0) -> 22 | I72: =IFERROR(VLOOKUP(Financeiros[[#This Row],[Tipo]],RefTabTipo[],3,FALSE),0) -> 60 | J72: =IFERROR(VLOOKUP(Financeiros[[#This Row],[Tipo]],RefTabTipo[],4,FALSE),0) -> 220 | K72: =IFERROR(VLOOKUP(Financeiros[[#This Row],[Grupo Tarifário]],RefTabGrupoTarifa[],2,FALSE),0) -> 2 | L72: =IFERROR(VLOOKUP(Financeiros[[#This Row],[Grupo Tarifário]],RefTabGrupoTarifa[],3,FALSE),0) -> 8 | M72: =IFERROR(VLOOKUP(Financeiros[[#This Row],[Grupo Tarifário]],RefTabGrupoTarifa[],4,FALSE),0) -> 9 | P72: Irrigação e AqUicultura - Res 207/2006 | Q72: 22 | R72: 60 | S72: 112
C73: Previsão de Risco Hidrológico | D73: =LnkTxtprevisaoriscohidro*Financeiros!N6 -> 350463.944 | E73: 0.0001569163205 | F73: Previsão de Risco Hidrológico | G73: Energia - Perda Rede Básica sobre Dist. | H73: =IFERROR(VLOOKUP(Financeiros[[#This Row],[Tipo]],RefTabTipo[],2,FALSE),0) -> 22 | I73: =IFERROR(VLOOKUP(Financeiros[[#This Row],[Tipo]],RefTabTipo[],3,FALSE),0) -> 60 | J73: =IFERROR(VLOOKUP(Financeiros[[#This Row],[Tipo]],RefTabTipo[],4,FALSE),0) -> 220 | K73: =IFERROR(VLOOKUP(Financeiros[[#This Row],[Grupo Tarifário]],RefTabGrupoTarifa[],2,FALSE),0) -> 2 | L73: =IFERROR(VLOOKUP(Financeiros[[#This Row],[Grupo Tarifário]],RefTabGrupoTarifa[],3,FALSE),0) -> 10 | M73: =IFERROR(VLOOKUP(Financeiros[[#This Row],[Grupo Tarifário]],RefTabGrupoTarifa[],4,FALSE),0) -> 9 | P73: Liminar ABRACE | Q73: 22 | R73: 85 | S73: 85
C74: Previsão de Risco Hidrológico | D74: =LnkTxtprevisaoriscohidro*Financeiros!N7 -> 1820481.092 | E74: 0.0008151000963 | F74: Previsão de Risco Hidrológico | G74: Energia - Perda Rede Básica sobre mercado Cat. | H74: =IFERROR(VLOOKUP(Financeiros[[#This Row],[Tipo]],RefTabTipo[],2,FALSE),0) -> 22 | I74: =IFERROR(VLOOKUP(Financeiros[[#This Row],[Tipo]],RefTabTipo[],3,FALSE),0) -> 60 | J74: =IFERROR(VLOOKUP(Financeiros[[#This Row],[Tipo]],RefTabTipo[],4,FALSE),0) -> 220 | K74: =IFERROR(VLOOKUP(Financeiros[[#This Row],[Grupo Tarifário]],RefTabGrupoTarifa[],2,FALSE),0) -> 2 | L74: =IFERROR(VLOOKUP(Financeiros[[#This Row],[Grupo Tarifário]],RefTabGrupoTarifa[],3,FALSE),0) -> 24 | M74: =IFERROR(VLOOKUP(Financeiros[[#This Row],[Grupo Tarifário]],RefTabGrupoTarifa[],4,FALSE),0) -> 9 | P74: Limite de repasse DSP 3865/2010 (redução contratos FURNAS) | Q74: 22 | R74: 60 | S74: 146
C75: Ajuste Angra III Abril/2017 (Supridora) | D75: =Indexador!D127 -> 0 | E75: =IF(ISERROR(D75/$D$6),0,D75/$D$6) -> 0 | F75: Reversão de Angra III - Supridora (ESS/EER) - CVA | G75: Encargo - ESS/EER | H75: =IFERROR(VLOOKUP(Financeiros[[#This Row],[Tipo]],RefTabTipo[],2,FALSE),0) -> 19 | I75: =IFERROR(VLOOKUP(Financeiros[[#This Row],[Tipo]],RefTabTipo[],3,FALSE),0) -> 60 | J75: =IFERROR(VLOOKUP(Financeiros[[#This Row],[Tipo]],RefTabTipo[],4,FALSE),0) -> 221 | K75: =IFERROR(VLOOKUP(Financeiros[[#This Row],[Grupo Tarifário]],RefTabGrupoTarifa[],2,FALSE),0) -> 3 | L75: =IFERROR(VLOOKUP(Financeiros[[#This Row],[Grupo Tarifário]],RefTabGrupoTarifa[],3,FALSE),0) -> 17 | M75: =IFERROR(VLOOKUP(Financeiros[[#This Row],[Grupo Tarifário]],RefTabGrupoTarifa[],4,FALSE),0) -> 9 | P75: Neutralidade | Q75: 20 | R75: 60 | S75: 999
C76: Ajuste Angra III Abril/2017 (Suprida) | D76: =Indexador!E127 -> 0 | E76: 0 | F76: Reversão de Angra III - Suprida (Energia) - CVA | G76: Energia - Genérico | H76: =IFERROR(VLOOKUP(Financeiros[[#This Row],[Tipo]],RefTabTipo[],2,FALSE),0) -> 19 | I76: =IFERROR(VLOOKUP(Financeiros[[#This Row],[Tipo]],RefTabTipo[],3,FALSE),0) -> 60 | J76: =IFERROR(VLOOKUP(Financeiros[[#This Row],[Tipo]],RefTabTipo[],4,FALSE),0) -> 222 | K76: =IFERROR(VLOOKUP(Financeiros[[#This Row],[Grupo Tarifário]],RefTabGrupoTarifa[],2,FALSE),0) -> 2 | L76: =IFERROR(VLOOKUP(Financeiros[[#This Row],[Grupo Tarifário]],RefTabGrupoTarifa[],3,FALSE),0) -> 30 | M76: =IFERROR(VLOOKUP(Financeiros[[#This Row],[Grupo Tarifário]],RefTabGrupoTarifa[],4,FALSE),0) -> 9 | P76: Neutralidade no repasse de Furnas | Q76: 22 | R76: 60 | S76: 151
E77: 0 | H77: =IFERROR(VLOOKUP(Financeiros[[#This Row],[Tipo]],RefTabTipo[],2,FALSE),0) -> 0 | I77: =IFERROR(VLOOKUP(Financeiros[[#This Row],[Tipo]],RefTabTipo[],3,FALSE),0) -> 0 | J77: =IFERROR(VLOOKUP(Financeiros[[#This Row],[Tipo]],RefTabTipo[],4,FALSE),0) -> 0 | K77: =IFERROR(VLOOKUP(Financeiros[[#This Row],[Grupo Tarifário]],RefTabGrupoTarifa[],2,FALSE),0) -> 0 | L77: =IFERROR(VLOOKUP(Financeiros[[#This Row],[Grupo Tarifário]],RefTabGrupoTarifa[],3,FALSE),0) -> 0 | M77: =IFERROR(VLOOKUP(Financeiros[[#This Row],[Grupo Tarifário]],RefTabGrupoTarifa[],4,FALSE),0) -> 0 | P77: O&M | Q77: 22 | R77: 60 | S77: 164
C78: Reversão de créditos de rescisão contratual e migração de consumidores (REN 376 e 414) | D78: =-'Mitigação Efeito 2021'!H14 -> -1377001.123 | E78: -0.0006165368885 | F78: Genérico | G78: Parcela B | H78: =IFERROR(VLOOKUP(Financeiros[[#This Row],[Tipo]],RefTabTipo[],2,FALSE),0) -> 22 | I78: =IFERROR(VLOOKUP(Financeiros[[#This Row],[Tipo]],RefTabTipo[],3,FALSE),0) -> 60 | J78: =IFERROR(VLOOKUP(Financeiros[[#This Row],[Tipo]],RefTabTipo[],4,FALSE),0) -> 999 | K78: =IFERROR(VLOOKUP(Financeiros[[#This Row],[Grupo Tarifário]],RefTabGrupoTarifa[],2,FALSE),0) -> 4 | L78: =IFERROR(VLOOKUP(Financeiros[[#This Row],[Grupo Tarifário]],RefTabGrupoTarifa[],3,FALSE),0) -> 999 | M78: =IFERROR(VLOOKUP(Financeiros[[#This Row],[Grupo Tarifário]],RefTabGrupoTarifa[],4,FALSE),0) -> 9 | P78: Outras Receitas | Q78: 22 | R78: 60 | S78: 173
E79: 0 | H79: =IFERROR(VLOOKUP(Financeiros[[#This Row],[Tipo]],RefTabTipo[],2,FALSE),0) -> 0 | I79: =IFERROR(VLOOKUP(Financeiros[[#This Row],[Tipo]],RefTabTipo[],3,FALSE),0) -> 0 | J79: =IFERROR(VLOOKUP(Financeiros[[#This Row],[Tipo]],RefTabTipo[],4,FALSE),0) -> 0 | K79: =IFERROR(VLOOKUP(Financeiros[[#This Row],[Grupo Tarifário]],RefTabGrupoTarifa[],2,FALSE),0) -> 0 | L79: =IFERROR(VLOOKUP(Financeiros[[#This Row],[Grupo Tarifário]],RefTabGrupoTarifa[],3,FALSE),0) -> 0 | M79: =IFERROR(VLOOKUP(Financeiros[[#This Row],[Grupo Tarifário]],RefTabGrupoTarifa[],4,FALSE),0) -> 0 | P79: P & D, Eficiência Energética e Ressarc. ICMS Sistemas Isolados | Q79: 22 | R79: 60 | S79: 121
C80: Repasse de compensação DIC/FIC | D80: =-Indexador!D173 -> -76230.28282 | E80: -3.413125856e-05 | F80: Repasse de compensação DIC/FIC | G80: Transporte - EUSD | H80: =IFERROR(VLOOKUP(Financeiros[[#This Row],[Tipo]],RefTabTipo[],2,FALSE),0) -> 22 | I80: =IFERROR(VLOOKUP(Financeiros[[#This Row],[Tipo]],RefTabTipo[],3,FALSE),0) -> 60 | J80: =IFERROR(VLOOKUP(Financeiros[[#This Row],[Tipo]],RefTabTipo[],4,FALSE),0) -> 178 | K80: =IFERROR(VLOOKUP(Financeiros[[#This Row],[Grupo Tarifário]],RefTabGrupoTarifa[],2,FALSE),0) -> 1 | L80: =IFERROR(VLOOKUP(Financeiros[[#This Row],[Grupo Tarifário]],RefTabGrupoTarifa[],3,FALSE),0) -> 7 | M80: =IFERROR(VLOOKUP(Financeiros[[#This Row],[Grupo Tarifário]],RefTabGrupoTarifa[],4,FALSE),0) -> 9 | P80: PA de Conexão/DIT | Q80: 22 | R80: 60 | S80: 127
E81: 0 | F81: Efeito de Acordo Bilateral com geradores | G81: Energia - Energia de Revenda | H81: =IFERROR(VLOOKUP(Financeiros[[#This Row],[Tipo]],RefTabTipo[],2,FALSE),0) -> 22 | I81: =IFERROR(VLOOKUP(Financeiros[[#This Row],[Tipo]],RefTabTipo[],3,FALSE),0) -> 60 | J81: =IFERROR(VLOOKUP(Financeiros[[#This Row],[Tipo]],RefTabTipo[],4,FALSE),0) -> 230 | K81: =IFERROR(VLOOKUP(Financeiros[[#This Row],[Grupo Tarifário]],RefTabGrupoTarifa[],2,FALSE),0) -> 2 | L81: =IFERROR(VLOOKUP(Financeiros[[#This Row],[Grupo Tarifário]],RefTabGrupoTarifa[],3,FALSE),0) -> 11 | M81: =IFERROR(VLOOKUP(Financeiros[[#This Row],[Grupo Tarifário]],RefTabGrupoTarifa[],4,FALSE),0) -> 9 | P81: PA RB Fronteira | Q81: 22 | R81: 60 | S81: 128
C82: Ajuste ref. equilíbrio econômico-financeiro TUSDg (A2) | E82: 0 | F82: Ajuste ref. equilíbrio econômico-financeiro TUSDg (A2) | G82: Parcela B | H82: =IFERROR(VLOOKUP(Financeiros[[#This Row],[Tipo]],RefTabTipo[],2,FALSE),0) -> 22 | I82: =IFERROR(VLOOKUP(Financeiros[[#This Row],[Tipo]],RefTabTipo[],3,FALSE),0) -> 60 | J82: =IFERROR(VLOOKUP(Financeiros[[#This Row],[Tipo]],RefTabTipo[],4,FALSE),0) -> 137 | K82: =IFERROR(VLOOKUP(Financeiros[[#This Row],[Grupo Tarifário]],RefTabGrupoTarifa[],2,FALSE),0) -> 4 | L82: =IFERROR(VLOOKUP(Financeiros[[#This Row],[Grupo Tarifário]],RefTabGrupoTarifa[],3,FALSE),0) -> 999 | M82: =IFERROR(VLOOKUP(Financeiros[[#This Row],[Grupo Tarifário]],RefTabGrupoTarifa[],4,FALSE),0) -> 9 | P82: Parcela Restante do Delta PB | Q82: 22 | R82: 60 | S82: 129
C83: ="Recálculo Sobrecontratação/Reversão de "&Financeiros[[#This Row],[Grupo Tarifário]] -> Recálculo Sobrecontratação/Reversão de Energia - Energia de Revenda | D83: =CVA!$I$11*N3 -> 0 | E83: 0 | F83: SOBRECONTRATAÇÃO | G83: Energia - Energia de Revenda | H83: =IFERROR(VLOOKUP(Financeiros[[#This Row],[Tipo]],RefTabTipo[],2,FALSE),0) -> 22 | I83: =IFERROR(VLOOKUP(Financeiros[[#This Row],[Tipo]],RefTabTipo[],3,FALSE),0) -> 60 | J83: =IFERROR(VLOOKUP(Financeiros[[#This Row],[Tipo]],RefTabTipo[],4,FALSE),0) -> 106 | K83: =IFERROR(VLOOKUP(Financeiros[[#This Row],[Grupo Tarifário]],RefTabGrupoTarifa[],2,FALSE),0) -> 2 | L83: =IFERROR(VLOOKUP(Financeiros[[#This Row],[Grupo Tarifário]],RefTabGrupoTarifa[],3,FALSE),0) -> 11 | M83: =IFERROR(VLOOKUP(Financeiros[[#This Row],[Grupo Tarifário]],RefTabGrupoTarifa[],4,FALSE),0) -> 9 | P83: Passivo Financeiro Complementar de Conexão/DIT | Q83: 22 | R83: 60 | S83: 130
C84: ="Recálculo Sobrecontratação/Reversão de "&Financeiros[[#This Row],[Grupo Tarifário]] -> Recálculo Sobrecontratação/Reversão de Energia - Perda Não Técnica | D84: =CVA!$I$11*N4 -> 0 | E84: 0 | F84: SOBRECONTRATAÇÃO | G84: Energia - Perda Não Técnica | H84: =IFERROR(VLOOKUP(Financeiros[[#This Row],[Tipo]],RefTabTipo[],2,FALSE),0) -> 22 | I84: =IFERROR(VLOOKUP(Financeiros[[#This Row],[Tipo]],RefTabTipo[],3,FALSE),0) -> 60 | J84: =IFERROR(VLOOKUP(Financeiros[[#This Row],[Tipo]],RefTabTipo[],4,FALSE),0) -> 106 | K84: =IFERROR(VLOOKUP(Financeiros[[#This Row],[Grupo Tarifário]],RefTabGrupoTarifa[],2,FALSE),0) -> 2 | L84: =IFERROR(VLOOKUP(Financeiros[[#This Row],[Grupo Tarifário]],RefTabGrupoTarifa[],3,FALSE),0) -> 9 | M84: =IFERROR(VLOOKUP(Financeiros[[#This Row],[Grupo Tarifário]],RefTabGrupoTarifa[],4,FALSE),0) -> 9 | P84: Passivo PIS/COFINS | Q84: 22 | R84: 60 | S84: 165
C85: ="Recálculo Sobrecontratação/Reversão de "&Financeiros[[#This Row],[Grupo Tarifário]] -> Recálculo Sobrecontratação/Reversão de Energia - Perda Técnica | D85: =CVA!$I$11*N5 -> 0 | E85: 0 | F85: SOBRECONTRATAÇÃO | G85: Energia - Perda Técnica | H85: =IFERROR(VLOOKUP(Financeiros[[#This Row],[Tipo]],RefTabTipo[],2,FALSE),0) -> 22 | I85: =IFERROR(VLOOKUP(Financeiros[[#This Row],[Tipo]],RefTabTipo[],3,FALSE),0) -> 60 | J85: =IFERROR(VLOOKUP(Financeiros[[#This Row],[Tipo]],RefTabTipo[],4,FALSE),0) -> 106 | K85: =IFERROR(VLOOKUP(Financeiros[[#This Row],[Grupo Tarifário]],RefTabGrupoTarifa[],2,FALSE),0) -> 2 | L85: =IFERROR(VLOOKUP(Financeiros[[#This Row],[Grupo Tarifário]],RefTabGrupoTarifa[],3,FALSE),0) -> 8 | M85: =IFERROR(VLOOKUP(Financeiros[[#This Row],[Grupo Tarifário]],RefTabGrupoTarifa[],4,FALSE),0) -> 9 | P85: Passivo PIS/COFINS Distribuidora (50% do ativo regulatório) | Q85: 22 | R85: 60 | S85: 157
C86: ="Recálculo Sobrecontratação/Reversão de "&Financeiros[[#This Row],[Grupo Tarifário]] -> Recálculo Sobrecontratação/Reversão de Energia - Perda Rede Básica sobre Dist. | D86: =CVA!$I$11*N6 -> 0 | E86: 0 | F86: SOBRECONTRATAÇÃO | G86: Energia - Perda Rede Básica sobre Dist. | H86: =IFERROR(VLOOKUP(Financeiros[[#This Row],[Tipo]],RefTabTipo[],2,FALSE),0) -> 22 | I86: =IFERROR(VLOOKUP(Financeiros[[#This Row],[Tipo]],RefTabTipo[],3,FALSE),0) -> 60 | J86: =IFERROR(VLOOKUP(Financeiros[[#This Row],[Tipo]],RefTabTipo[],4,FALSE),0) -> 106 | K86: =IFERROR(VLOOKUP(Financeiros[[#This Row],[Grupo Tarifário]],RefTabGrupoTarifa[],2,FALSE),0) -> 2 | L86: =IFERROR(VLOOKUP(Financeiros[[#This Row],[Grupo Tarifário]],RefTabGrupoTarifa[],3,FALSE),0) -> 10 | M86: =IFERROR(VLOOKUP(Financeiros[[#This Row],[Grupo Tarifário]],RefTabGrupoTarifa[],4,FALSE),0) -> 9 | P86: PCH Paraíso | Q86: 22 | R86: 60 | S86: 156
C87: ="Recálculo Sobrecontratação/Reversão de "&Financeiros[[#This Row],[Grupo Tarifário]] -> Recálculo Sobrecontratação/Reversão de Energia - Perda Rede Básica sobre mercado Cat. | D87: =CVA!$I$11*N7 -> 0 | E87: 0 | F87: SOBRECONTRATAÇÃO | G87: Energia - Perda Rede Básica sobre mercado Cat. | H87: =IFERROR(VLOOKUP(Financeiros[[#This Row],[Tipo]],RefTabTipo[],2,FALSE),0) -> 22 | I87: =IFERROR(VLOOKUP(Financeiros[[#This Row],[Tipo]],RefTabTipo[],3,FALSE),0) -> 60 | J87: =IFERROR(VLOOKUP(Financeiros[[#This Row],[Tipo]],RefTabTipo[],4,FALSE),0) -> 106 | K87: =IFERROR(VLOOKUP(Financeiros[[#This Row],[Grupo Tarifário]],RefTabGrupoTarifa[],2,FALSE),0) -> 2 | L87: =IFERROR(VLOOKUP(Financeiros[[#This Row],[Grupo Tarifário]],RefTabGrupoTarifa[],3,FALSE),0) -> 24 | M87: =IFERROR(VLOOKUP(Financeiros[[#This Row],[Grupo Tarifário]],RefTabGrupoTarifa[],4,FALSE),0) -> 9 | P87: Penalidade por descumprimento de meta de universalização | Q87: 22 | R87: 60 | S87: 158
C88: ="Recálculo Exposição CCEAR entre Submercados de "&Financeiros[[#This Row],[Grupo Tarifário]] -> Recálculo Exposição CCEAR entre Submercados de Energia - Energia de Revenda | D88: =CVA!$I$12*N3 -> 0 | E88: 0 | F88: Exposição CCEAR entre Submercados | G88: Energia - Energia de Revenda | H88: =IFERROR(VLOOKUP(Financeiros[[#This Row],[Tipo]],RefTabTipo[],2,FALSE),0) -> 22 | I88: =IFERROR(VLOOKUP(Financeiros[[#This Row],[Tipo]],RefTabTipo[],3,FALSE),0) -> 60 | J88: =IFERROR(VLOOKUP(Financeiros[[#This Row],[Tipo]],RefTabTipo[],4,FALSE),0) -> 101 | K88: =IFERROR(VLOOKUP(Financeiros[[#This Row],[Grupo Tarifário]],RefTabGrupoTarifa[],2,FALSE),0) -> 2 | L88: =IFERROR(VLOOKUP(Financeiros[[#This Row],[Grupo Tarifário]],RefTabGrupoTarifa[],3,FALSE),0) -> 11 | M88: =IFERROR(VLOOKUP(Financeiros[[#This Row],[Grupo Tarifário]],RefTabGrupoTarifa[],4,FALSE),0) -> 9 | P88: PERMISSIONÁRIA | Q88: 22 | R88: 60 | S88: 105
C89: ="Recálculo Exposição CCEAR entre Submercados de "&Financeiros[[#This Row],[Grupo Tarifário]] -> Recálculo Exposição CCEAR entre Submercados de Energia - Perda Não Técnica | D89: =CVA!$I$12*N4 -> 0 | E89: 0 | F89: Exposição CCEAR entre Submercados | G89: Energia - Perda Não Técnica | H89: =IFERROR(VLOOKUP(Financeiros[[#This Row],[Tipo]],RefTabTipo[],2,FALSE),0) -> 22 | I89: =IFERROR(VLOOKUP(Financeiros[[#This Row],[Tipo]],RefTabTipo[],3,FALSE),0) -> 60 | J89: =IFERROR(VLOOKUP(Financeiros[[#This Row],[Tipo]],RefTabTipo[],4,FALSE),0) -> 101 | K89: =IFERROR(VLOOKUP(Financeiros[[#This Row],[Grupo Tarifário]],RefTabGrupoTarifa[],2,FALSE),0) -> 2 | L89: =IFERROR(VLOOKUP(Financeiros[[#This Row],[Grupo Tarifário]],RefTabGrupoTarifa[],3,FALSE),0) -> 9 | M89: =IFERROR(VLOOKUP(Financeiros[[#This Row],[Grupo Tarifário]],RefTabGrupoTarifa[],4,FALSE),0) -> 9 | P89: Permissionária CERES | Q89: 22 | R89: 60 | S89: 155
C90: ="Recálculo Exposição CCEAR entre Submercados de "&Financeiros[[#This Row],[Grupo Tarifário]] -> Recálculo Exposição CCEAR entre Submercados de Energia - Perda Técnica | D90: =CVA!$I$12*N5 -> 0 | E90: 0 | F90: Exposição CCEAR entre Submercados | G90: Energia - Perda Técnica | H90: =IFERROR(VLOOKUP(Financeiros[[#This Row],[Tipo]],RefTabTipo[],2,FALSE),0) -> 22 | I90: =IFERROR(VLOOKUP(Financeiros[[#This Row],[Tipo]],RefTabTipo[],3,FALSE),0) -> 60 | J90: =IFERROR(VLOOKUP(Financeiros[[#This Row],[Tipo]],RefTabTipo[],4,FALSE),0) -> 101 | K90: =IFERROR(VLOOKUP(Financeiros[[#This Row],[Grupo Tarifário]],RefTabGrupoTarifa[],2,FALSE),0) -> 2 | L90: =IFERROR(VLOOKUP(Financeiros[[#This Row],[Grupo Tarifário]],RefTabGrupoTarifa[],3,FALSE),0) -> 8 | M90: =IFERROR(VLOOKUP(Financeiros[[#This Row],[Grupo Tarifário]],RefTabGrupoTarifa[],4,FALSE),0) -> 9 | P90: Previsão de Risco Hidrológico | Q90: 22 | R90: 60 | S90: 220
C91: ="Recálculo Exposição CCEAR entre Submercados de "&Financeiros[[#This Row],[Grupo Tarifário]] -> Recálculo Exposição CCEAR entre Submercados de Energia - Perda Rede Básica sobre Dist. | D91: =CVA!$I$12*N6 -> 0 | E91: 0 | F91: Exposição CCEAR entre Submercados | G91: Energia - Perda Rede Básica sobre Dist. | H91: =IFERROR(VLOOKUP(Financeiros[[#This Row],[Tipo]],RefTabTipo[],2,FALSE),0) -> 22 | I91: =IFERROR(VLOOKUP(Financeiros[[#This Row],[Tipo]],RefTabTipo[],3,FALSE),0) -> 60 | J91: =IFERROR(VLOOKUP(Financeiros[[#This Row],[Tipo]],RefTabTipo[],4,FALSE),0) -> 101 | K91: =IFERROR(VLOOKUP(Financeiros[[#This Row],[Grupo Tarifário]],RefTabGrupoTarifa[],2,FALSE),0) -> 2 | L91: =IFERROR(VLOOKUP(Financeiros[[#This Row],[Grupo Tarifário]],RefTabGrupoTarifa[],3,FALSE),0) -> 10 | M91: =IFERROR(VLOOKUP(Financeiros[[#This Row],[Grupo Tarifário]],RefTabGrupoTarifa[],4,FALSE),0) -> 9 | P91: Recalculo Abertura Tarifária | Q91: 22 | R91: 60 | S91: 163
C92: ="Recálculo Exposição CCEAR entre Submercados de "&Financeiros[[#This Row],[Grupo Tarifário]] -> Recálculo Exposição CCEAR entre Submercados de Energia - Perda Rede Básica sobre mercado Cat. | D92: =CVA!$I$12*N7 -> 0 | E92: 0 | F92: Exposição CCEAR entre Submercados | G92: Energia - Perda Rede Básica sobre mercado Cat. | H92: =IFERROR(VLOOKUP(Financeiros[[#This Row],[Tipo]],RefTabTipo[],2,FALSE),0) -> 22 | I92: =IFERROR(VLOOKUP(Financeiros[[#This Row],[Tipo]],RefTabTipo[],3,FALSE),0) -> 60 | J92: =IFERROR(VLOOKUP(Financeiros[[#This Row],[Tipo]],RefTabTipo[],4,FALSE),0) -> 101 | K92: =IFERROR(VLOOKUP(Financeiros[[#This Row],[Grupo Tarifário]],RefTabGrupoTarifa[],2,FALSE),0) -> 2 | L92: =IFERROR(VLOOKUP(Financeiros[[#This Row],[Grupo Tarifário]],RefTabGrupoTarifa[],3,FALSE),0) -> 24 | M92: =IFERROR(VLOOKUP(Financeiros[[#This Row],[Grupo Tarifário]],RefTabGrupoTarifa[],4,FALSE),0) -> 9 | P92: Recálculo Neutralidade | Q92: 22 | R92: 60 | S92: 180
C93: ="Reversão de Risco Hidrológico de "&Financeiros[[#This Row],[Grupo Tarifário]] -> Reversão de Risco Hidrológico de Energia - Energia de Revenda | D93: =CVA!$I$14*N3 -> -58639414.24 | E93: -0.02625514343 | F93: Reversão de Risco Hidrológico | G93: Energia - Energia de Revenda | H93: =IFERROR(VLOOKUP(Financeiros[[#This Row],[Tipo]],RefTabTipo[],2,FALSE),0) -> 22 | I93: =IFERROR(VLOOKUP(Financeiros[[#This Row],[Tipo]],RefTabTipo[],3,FALSE),0) -> 62 | J93: =IFERROR(VLOOKUP(Financeiros[[#This Row],[Tipo]],RefTabTipo[],4,FALSE),0) -> 220 | K93: =IFERROR(VLOOKUP(Financeiros[[#This Row],[Grupo Tarifário]],RefTabGrupoTarifa[],2,FALSE),0) -> 2 | L93: =IFERROR(VLOOKUP(Financeiros[[#This Row],[Grupo Tarifário]],RefTabGrupoTarifa[],3,FALSE),0) -> 11 | M93: =IFERROR(VLOOKUP(Financeiros[[#This Row],[Grupo Tarifário]],RefTabGrupoTarifa[],4,FALSE),0) -> 9 | P93: Recálculo Reajuste/Revisão ano anterior | Q93: 22 | R93: 60 | S93: 123
C94: ="Reversão de Risco Hidrológico de "&Financeiros[[#This Row],[Grupo Tarifário]] -> Reversão de Risco Hidrológico de Energia - Perda Não Técnica | D94: =CVA!$I$14*N4 -> -3017340.739 | E94: -0.001350980649 | F94: Reversão de Risco Hidrológico | G94: Energia - Perda Não Técnica | H94: =IFERROR(VLOOKUP(Financeiros[[#This Row],[Tipo]],RefTabTipo[],2,FALSE),0) -> 22 | I94: =IFERROR(VLOOKUP(Financeiros[[#This Row],[Tipo]],RefTabTipo[],3,FALSE),0) -> 62 | J94: =IFERROR(VLOOKUP(Financeiros[[#This Row],[Tipo]],RefTabTipo[],4,FALSE),0) -> 220 | K94: =IFERROR(VLOOKUP(Financeiros[[#This Row],[Grupo Tarifário]],RefTabGrupoTarifa[],2,FALSE),0) -> 2 | L94: =IFERROR(VLOOKUP(Financeiros[[#This Row],[Grupo Tarifário]],RefTabGrupoTarifa[],3,FALSE),0) -> 9 | M94: =IFERROR(VLOOKUP(Financeiros[[#This Row],[Grupo Tarifário]],RefTabGrupoTarifa[],4,FALSE),0) -> 9 | P94: Receita COTEMINAS | Q94: 22 | R94: 60 | S94: 126
C95: ="Reversão de Risco Hidrológico de "&Financeiros[[#This Row],[Grupo Tarifário]] -> Reversão de Risco Hidrológico de Energia - Perda Técnica | D95: =CVA!$I$14*N5 -> -8271433.681 | E95: -0.003703442139 | F95: Reversão de Risco Hidrológico | G95: Energia - Perda Técnica | H95: =IFERROR(VLOOKUP(Financeiros[[#This Row],[Tipo]],RefTabTipo[],2,FALSE),0) -> 22 | I95: =IFERROR(VLOOKUP(Financeiros[[#This Row],[Tipo]],RefTabTipo[],3,FALSE),0) -> 62 | J95: =IFERROR(VLOOKUP(Financeiros[[#This Row],[Tipo]],RefTabTipo[],4,FALSE),0) -> 220 | K95: =IFERROR(VLOOKUP(Financeiros[[#This Row],[Grupo Tarifário]],RefTabGrupoTarifa[],2,FALSE),0) -> 2 | L95: =IFERROR(VLOOKUP(Financeiros[[#This Row],[Grupo Tarifário]],RefTabGrupoTarifa[],3,FALSE),0) -> 8 | M95: =IFERROR(VLOOKUP(Financeiros[[#This Row],[Grupo Tarifário]],RefTabGrupoTarifa[],4,FALSE),0) -> 9 | P95: Reclassificação Baixa Renda - Despacho NEGATIVO - Res 514/02 e 89/05 | Q95: 22 | R95: 60 | S95: 108
C96: ="Reversão de Risco Hidrológico de "&Financeiros[[#This Row],[Grupo Tarifário]] -> Reversão de Risco Hidrológico de Energia - Perda Rede Básica sobre Dist. | D96: =CVA!$I$14*N6 -> -252499.0269 | E96: -0.000113053622 | F96: Reversão de Risco Hidrológico | G96: Energia - Perda Rede Básica sobre Dist. | H96: =IFERROR(VLOOKUP(Financeiros[[#This Row],[Tipo]],RefTabTipo[],2,FALSE),0) -> 22 | I96: =IFERROR(VLOOKUP(Financeiros[[#This Row],[Tipo]],RefTabTipo[],3,FALSE),0) -> 62 | J96: =IFERROR(VLOOKUP(Financeiros[[#This Row],[Tipo]],RefTabTipo[],4,FALSE),0) -> 220 | K96: =IFERROR(VLOOKUP(Financeiros[[#This Row],[Grupo Tarifário]],RefTabGrupoTarifa[],2,FALSE),0) -> 2 | L96: =IFERROR(VLOOKUP(Financeiros[[#This Row],[Grupo Tarifário]],RefTabGrupoTarifa[],3,FALSE),0) -> 10 | M96: =IFERROR(VLOOKUP(Financeiros[[#This Row],[Grupo Tarifário]],RefTabGrupoTarifa[],4,FALSE),0) -> 9 | P96: Recurso Administrativo - 2º Parcela Delta PB | Q96: 22 | R96: 60 | S96: 159
C97: ="Reversão de Risco Hidrológico de "&Financeiros[[#This Row],[Grupo Tarifário]] -> Reversão de Risco Hidrológico de Energia - Perda Rede Básica sobre mercado Cat. | D97: =CVA!$I$14*N7 -> -1311603.411 | E97: -0.0005872557925 | F97: Reversão de Risco Hidrológico | G97: Energia - Perda Rede Básica sobre mercado Cat. | H97: =IFERROR(VLOOKUP(Financeiros[[#This Row],[Tipo]],RefTabTipo[],2,FALSE),0) -> 22 | I97: =IFERROR(VLOOKUP(Financeiros[[#This Row],[Tipo]],RefTabTipo[],3,FALSE),0) -> 62 | J97: =IFERROR(VLOOKUP(Financeiros[[#This Row],[Tipo]],RefTabTipo[],4,FALSE),0) -> 220 | K97: =IFERROR(VLOOKUP(Financeiros[[#This Row],[Grupo Tarifário]],RefTabGrupoTarifa[],2,FALSE),0) -> 2 | L97: =IFERROR(VLOOKUP(Financeiros[[#This Row],[Grupo Tarifário]],RefTabGrupoTarifa[],3,FALSE),0) -> 24 | M97: =IFERROR(VLOOKUP(Financeiros[[#This Row],[Grupo Tarifário]],RefTabGrupoTarifa[],4,FALSE),0) -> 9 | P97: ReN 451/2011 - Reversão de orçamento do Conselho de Consumidor | Q97: 22 | R97: 60 | S97: 188
C98: Ressarcimento de P&D | D98: =TabelaPID[Ressarcimento P&D] -> 0 | E98: 0 | F98: Ressarcimento P&D 0,3% | G98: Encargo - P&D | H98: =IFERROR(VLOOKUP(Financeiros[[#This Row],[Tipo]],RefTabTipo[],2,FALSE),0) -> 22 | I98: =IFERROR(VLOOKUP(Financeiros[[#This Row],[Tipo]],RefTabTipo[],3,FALSE),0) -> 60 | J98: =IFERROR(VLOOKUP(Financeiros[[#This Row],[Tipo]],RefTabTipo[],4,FALSE),0) -> 231 | K98: =IFERROR(VLOOKUP(Financeiros[[#This Row],[Grupo Tarifário]],RefTabGrupoTarifa[],2,FALSE),0) -> 3 | L98: =IFERROR(VLOOKUP(Financeiros[[#This Row],[Grupo Tarifário]],RefTabGrupoTarifa[],3,FALSE),0) -> 19 | M98: =IFERROR(VLOOKUP(Financeiros[[#This Row],[Grupo Tarifário]],RefTabGrupoTarifa[],4,FALSE),0) -> 9 | P98: Repasse de compensação DIC/FIC | Q98: 22 | R98: 60 | S98: 178
E99: 0 | F99: Acordo REN 824/2018 | G99: Energia - Energia de Revenda | H99: =IFERROR(VLOOKUP(Financeiros[[#This Row],[Tipo]],RefTabTipo[],2,FALSE),0) -> 22 | I99: =IFERROR(VLOOKUP(Financeiros[[#This Row],[Tipo]],RefTabTipo[],3,FALSE),0) -> 60 | J99: =IFERROR(VLOOKUP(Financeiros[[#This Row],[Tipo]],RefTabTipo[],4,FALSE),0) -> 232 | K99: =IFERROR(VLOOKUP(Financeiros[[#This Row],[Grupo Tarifário]],RefTabGrupoTarifa[],2,FALSE),0) -> 2 | L99: =IFERROR(VLOOKUP(Financeiros[[#This Row],[Grupo Tarifário]],RefTabGrupoTarifa[],3,FALSE),0) -> 11 | M99: =IFERROR(VLOOKUP(Financeiros[[#This Row],[Grupo Tarifário]],RefTabGrupoTarifa[],4,FALSE),0) -> 9 | P99: Repasse de ultrapassagem de Supridas/Permissionárias | Q99: 22 | R99: 60 | S99: 187
E100: 0 | F100: Acordo REN 824/2018 | G100: Energia - Perda Não Técnica | H100: =IFERROR(VLOOKUP(Financeiros[[#This Row],[Tipo]],RefTabTipo[],2,FALSE),0) -> 22 | I100: =IFERROR(VLOOKUP(Financeiros[[#This Row],[Tipo]],RefTabTipo[],3,FALSE),0) -> 60 | J100: =IFERROR(VLOOKUP(Financeiros[[#This Row],[Tipo]],RefTabTipo[],4,FALSE),0) -> 232 | K100: =IFERROR(VLOOKUP(Financeiros[[#This Row],[Grupo Tarifário]],RefTabGrupoTarifa[],2,FALSE),0) -> 2 | L100: =IFERROR(VLOOKUP(Financeiros[[#This Row],[Grupo Tarifário]],RefTabGrupoTarifa[],3,FALSE),0) -> 9 | M100: =IFERROR(VLOOKUP(Financeiros[[#This Row],[Grupo Tarifário]],RefTabGrupoTarifa[],4,FALSE),0) -> 9 | P100: Restituição de ICMS recolhido sobre as Perdas Elétricas Regulatórias | Q100: 22 | R100: 60 | S100: 175
E101: 0 | F101: Acordo REN 824/2018 | G101: Energia - Perda Técnica | H101: =IFERROR(VLOOKUP(Financeiros[[#This Row],[Tipo]],RefTabTipo[],2,FALSE),0) -> 22 | I101: =IFERROR(VLOOKUP(Financeiros[[#This Row],[Tipo]],RefTabTipo[],3,FALSE),0) -> 60 | J101: =IFERROR(VLOOKUP(Financeiros[[#This Row],[Tipo]],RefTabTipo[],4,FALSE),0) -> 232 | K101: =IFERROR(VLOOKUP(Financeiros[[#This Row],[Grupo Tarifário]],RefTabGrupoTarifa[],2,FALSE),0) -> 2 | L101: =IFERROR(VLOOKUP(Financeiros[[#This Row],[Grupo Tarifário]],RefTabGrupoTarifa[],3,FALSE),0) -> 8 | M101: =IFERROR(VLOOKUP(Financeiros[[#This Row],[Grupo Tarifário]],RefTabGrupoTarifa[],4,FALSE),0) -> 9 | P101: REVERSÃO da diferenças apuradas na Revisão | Q101: 22 | R101: 60 | S101: 139
E102: 0 | F102: Acordo REN 824/2018 | G102: Energia - Perda Rede Básica sobre Dist. | H102: =IFERROR(VLOOKUP(Financeiros[[#This Row],[Tipo]],RefTabTipo[],2,FALSE),0) -> 22 | I102: =IFERROR(VLOOKUP(Financeiros[[#This Row],[Tipo]],RefTabTipo[],3,FALSE),0) -> 60 | J102: =IFERROR(VLOOKUP(Financeiros[[#This Row],[Tipo]],RefTabTipo[],4,FALSE),0) -> 232 | K102: =IFERROR(VLOOKUP(Financeiros[[#This Row],[Grupo Tarifário]],RefTabGrupoTarifa[],2,FALSE),0) -> 2 | L102: =IFERROR(VLOOKUP(Financeiros[[#This Row],[Grupo Tarifário]],RefTabGrupoTarifa[],3,FALSE),0) -> 10 | M102: =IFERROR(VLOOKUP(Financeiros[[#This Row],[Grupo Tarifário]],RefTabGrupoTarifa[],4,FALSE),0) -> 9 | P102: REVERSÃO da diferenças apuradas na Revisão 2003 | Q102: 22 | R102: 60 | S102: 160
E103: 0 | F103: Acordo REN 824/2018 | G103: Energia - Perda Rede Básica sobre mercado Cat. | H103: =IFERROR(VLOOKUP(Financeiros[[#This Row],[Tipo]],RefTabTipo[],2,FALSE),0) -> 22 | I103: =IFERROR(VLOOKUP(Financeiros[[#This Row],[Tipo]],RefTabTipo[],3,FALSE),0) -> 60 | J103: =IFERROR(VLOOKUP(Financeiros[[#This Row],[Tipo]],RefTabTipo[],4,FALSE),0) -> 232 | K103: =IFERROR(VLOOKUP(Financeiros[[#This Row],[Grupo Tarifário]],RefTabGrupoTarifa[],2,FALSE),0) -> 2 | L103: =IFERROR(VLOOKUP(Financeiros[[#This Row],[Grupo Tarifário]],RefTabGrupoTarifa[],3,FALSE),0) -> 24 | M103: =IFERROR(VLOOKUP(Financeiros[[#This Row],[Grupo Tarifário]],RefTabGrupoTarifa[],4,FALSE),0) -> 9 | P103: Reversão de Angra III - Suprida (Energia) - CVA | Q103: 19 | R103: 60 | S103: 222
C104: ICMS não compesando na compra de energia - Energia de Revenda | E104: 0 | F104: ICMS substituição tributária | G104: Energia - Energia de Revenda | H104: =IFERROR(VLOOKUP(Financeiros[[#This Row],[Tipo]],RefTabTipo[],2,FALSE),0) -> 22 | I104: =IFERROR(VLOOKUP(Financeiros[[#This Row],[Tipo]],RefTabTipo[],3,FALSE),0) -> 60 | J104: =IFERROR(VLOOKUP(Financeiros[[#This Row],[Tipo]],RefTabTipo[],4,FALSE),0) -> 300 | K104: =IFERROR(VLOOKUP(Financeiros[[#This Row],[Grupo Tarifário]],RefTabGrupoTarifa[],2,FALSE),0) -> 2 | L104: =IFERROR(VLOOKUP(Financeiros[[#This Row],[Grupo Tarifário]],RefTabGrupoTarifa[],3,FALSE),0) -> 11 | M104: =IFERROR(VLOOKUP(Financeiros[[#This Row],[Grupo Tarifário]],RefTabGrupoTarifa[],4,FALSE),0) -> 9 | P104: Reversão de Angra III - Supridora (ESS/EER) - CVA | Q104: 19 | R104: 60 | S104: 221
C105: ICMS não compesando na compra de energia - Perda Não Técnica | E105: 0 | F105: ICMS substituição tributária | G105: Energia - Perda Não Técnica | H105: =IFERROR(VLOOKUP(Financeiros[[#This Row],[Tipo]],RefTabTipo[],2,FALSE),0) -> 22 | I105: =IFERROR(VLOOKUP(Financeiros[[#This Row],[Tipo]],RefTabTipo[],3,FALSE),0) -> 60 | J105: =IFERROR(VLOOKUP(Financeiros[[#This Row],[Tipo]],RefTabTipo[],4,FALSE),0) -> 300 | K105: =IFERROR(VLOOKUP(Financeiros[[#This Row],[Grupo Tarifário]],RefTabGrupoTarifa[],2,FALSE),0) -> 2 | L105: =IFERROR(VLOOKUP(Financeiros[[#This Row],[Grupo Tarifário]],RefTabGrupoTarifa[],3,FALSE),0) -> 9 | M105: =IFERROR(VLOOKUP(Financeiros[[#This Row],[Grupo Tarifário]],RefTabGrupoTarifa[],4,FALSE),0) -> 9 | P105: REVERSÃO PCH Paraíso | Q105: 22 | R105: 60 | S105: 154
C106: ICMS não compesando na compra de energia - Perda Técnica | E106: 0 | F106: ICMS substituição tributária | G106: Energia - Perda Técnica | H106: =IFERROR(VLOOKUP(Financeiros[[#This Row],[Tipo]],RefTabTipo[],2,FALSE),0) -> 22 | I106: =IFERROR(VLOOKUP(Financeiros[[#This Row],[Tipo]],RefTabTipo[],3,FALSE),0) -> 60 | J106: =IFERROR(VLOOKUP(Financeiros[[#This Row],[Tipo]],RefTabTipo[],4,FALSE),0) -> 300 | K106: =IFERROR(VLOOKUP(Financeiros[[#This Row],[Grupo Tarifário]],RefTabGrupoTarifa[],2,FALSE),0) -> 2 | L106: =IFERROR(VLOOKUP(Financeiros[[#This Row],[Grupo Tarifário]],RefTabGrupoTarifa[],3,FALSE),0) -> 8 | M106: =IFERROR(VLOOKUP(Financeiros[[#This Row],[Grupo Tarifário]],RefTabGrupoTarifa[],4,FALSE),0) -> 9 | P106: Saldo a compensar da RTE | Q106: 22 | R106: 60 | S106: 141
C107: ICMS não compesando na compra de energia - Perda Rede Básica sobre Dist. | E107: 0 | F107: ICMS substituição tributária | G107: Energia - Perda Rede Básica sobre Dist. | H107: =IFERROR(VLOOKUP(Financeiros[[#This Row],[Tipo]],RefTabTipo[],2,FALSE),0) -> 22 | I107: =IFERROR(VLOOKUP(Financeiros[[#This Row],[Tipo]],RefTabTipo[],3,FALSE),0) -> 60 | J107: =IFERROR(VLOOKUP(Financeiros[[#This Row],[Tipo]],RefTabTipo[],4,FALSE),0) -> 300 | K107: =IFERROR(VLOOKUP(Financeiros[[#This Row],[Grupo Tarifário]],RefTabGrupoTarifa[],2,FALSE),0) -> 2 | L107: =IFERROR(VLOOKUP(Financeiros[[#This Row],[Grupo Tarifário]],RefTabGrupoTarifa[],3,FALSE),0) -> 10 | M107: =IFERROR(VLOOKUP(Financeiros[[#This Row],[Grupo Tarifário]],RefTabGrupoTarifa[],4,FALSE),0) -> 9 | P107: Saldo a Compensar Financeiros ano anterior | Q107: 22 | R107: 60 | S107: 100
C108: ICMS não compesando na compra de energia - Perda Rede Básica sobre mercado Cat. | E108: 0 | F108: ICMS substituição tributária | G108: Energia - Perda Rede Básica sobre mercado Cat. | H108: =IFERROR(VLOOKUP(Financeiros[[#This Row],[Tipo]],RefTabTipo[],2,FALSE),0) -> 22 | I108: =IFERROR(VLOOKUP(Financeiros[[#This Row],[Tipo]],RefTabTipo[],3,FALSE),0) -> 60 | J108: =IFERROR(VLOOKUP(Financeiros[[#This Row],[Tipo]],RefTabTipo[],4,FALSE),0) -> 300 | K108: =IFERROR(VLOOKUP(Financeiros[[#This Row],[Grupo Tarifário]],RefTabGrupoTarifa[],2,FALSE),0) -> 2 | L108: =IFERROR(VLOOKUP(Financeiros[[#This Row],[Grupo Tarifário]],RefTabGrupoTarifa[],3,FALSE),0) -> 24 | M108: =IFERROR(VLOOKUP(Financeiros[[#This Row],[Grupo Tarifário]],RefTabGrupoTarifa[],4,FALSE),0) -> 9 | P108: SOBRECONTRATAÇÃO | Q108: 22 | R108: 60 | S108: 106
C109: Compensação ref. acordos bilaterais de CCEAR de Energia - Energia de Revenda | D109: =SUM('REN 711'!$Q$30:$Q$34)*N3 -> 112045.1175 | E109: 5.016695117e-05 | F109: Efeito de Acordo Bilateral com geradores | G109: Energia - Energia de Revenda | H109: =IFERROR(VLOOKUP(Financeiros[[#This Row],[Tipo]],RefTabTipo[],2,FALSE),0) -> 22 | I109: =IFERROR(VLOOKUP(Financeiros[[#This Row],[Tipo]],RefTabTipo[],3,FALSE),0) -> 60 | J109: =IFERROR(VLOOKUP(Financeiros[[#This Row],[Tipo]],RefTabTipo[],4,FALSE),0) -> 230 | K109: =IFERROR(VLOOKUP(Financeiros[[#This Row],[Grupo Tarifário]],RefTabGrupoTarifa[],2,FALSE),0) -> 2 | L109: =IFERROR(VLOOKUP(Financeiros[[#This Row],[Grupo Tarifário]],RefTabGrupoTarifa[],3,FALSE),0) -> 11 | M109: =IFERROR(VLOOKUP(Financeiros[[#This Row],[Grupo Tarifário]],RefTabGrupoTarifa[],4,FALSE),0) -> 9 | P109: Sobrereceita das Geradoras A2 - DUKE | Q109: 22 | R109: 60 | S109: 148
C110: Compensação ref. acordos bilaterais de CCEAR de Energia - Perda Não Técnica | D110: =SUM('REN 711'!$Q$30:$Q$34)*N4 -> 5765.376447 | E110: 2.581382974e-06 | F110: Efeito de Acordo Bilateral com geradores | G110: Energia - Perda Não Técnica | H110: =IFERROR(VLOOKUP(Financeiros[[#This Row],[Tipo]],RefTabTipo[],2,FALSE),0) -> 22 | I110: =IFERROR(VLOOKUP(Financeiros[[#This Row],[Tipo]],RefTabTipo[],3,FALSE),0) -> 60 | J110: =IFERROR(VLOOKUP(Financeiros[[#This Row],[Tipo]],RefTabTipo[],4,FALSE),0) -> 230 | K110: =IFERROR(VLOOKUP(Financeiros[[#This Row],[Grupo Tarifário]],RefTabGrupoTarifa[],2,FALSE),0) -> 2 | L110: =IFERROR(VLOOKUP(Financeiros[[#This Row],[Grupo Tarifário]],RefTabGrupoTarifa[],3,FALSE),0) -> 9 | M110: =IFERROR(VLOOKUP(Financeiros[[#This Row],[Grupo Tarifário]],RefTabGrupoTarifa[],4,FALSE),0) -> 9 | P110: Subsídio Distribuidora | Q110: 22 | R110: 60 | S110: 182
C111: Compensação ref. acordos bilaterais de CCEAR de Energia - Perda Técnica | D111: =SUM('REN 711'!$Q$30:$Q$34)*N5 -> 15804.6217 | E111: 7.076343019e-06 | F111: Efeito de Acordo Bilateral com geradores | G111: Energia - Perda Técnica | H111: =IFERROR(VLOOKUP(Financeiros[[#This Row],[Tipo]],RefTabTipo[],2,FALSE),0) -> 22 | I111: =IFERROR(VLOOKUP(Financeiros[[#This Row],[Tipo]],RefTabTipo[],3,FALSE),0) -> 60 | J111: =IFERROR(VLOOKUP(Financeiros[[#This Row],[Tipo]],RefTabTipo[],4,FALSE),0) -> 230 | K111: =IFERROR(VLOOKUP(Financeiros[[#This Row],[Grupo Tarifário]],RefTabGrupoTarifa[],2,FALSE),0) -> 2 | L111: =IFERROR(VLOOKUP(Financeiros[[#This Row],[Grupo Tarifário]],RefTabGrupoTarifa[],3,FALSE),0) -> 8 | M111: =IFERROR(VLOOKUP(Financeiros[[#This Row],[Grupo Tarifário]],RefTabGrupoTarifa[],4,FALSE),0) -> 9 | P111: Subsídio Rural | Q111: 22 | R111: 60 | S111: 184
C112: Compensação ref. acordos bilaterais de CCEAR de Energia - Perda Rede Básica sobre Dist. | D112: =SUM('REN 711'!$Q$30:$Q$34)*N6 -> 482.4618989 | E112: 2.16016932e-07 | F112: Efeito de Acordo Bilateral com geradores | G112: Energia - Perda Rede Básica sobre Dist. | H112: =IFERROR(VLOOKUP(Financeiros[[#This Row],[Tipo]],RefTabTipo[],2,FALSE),0) -> 22 | I112: =IFERROR(VLOOKUP(Financeiros[[#This Row],[Tipo]],RefTabTipo[],3,FALSE),0) -> 60 | J112: =IFERROR(VLOOKUP(Financeiros[[#This Row],[Tipo]],RefTabTipo[],4,FALSE),0) -> 230 | K112: =IFERROR(VLOOKUP(Financeiros[[#This Row],[Grupo Tarifário]],RefTabGrupoTarifa[],2,FALSE),0) -> 2 | L112: =IFERROR(VLOOKUP(Financeiros[[#This Row],[Grupo Tarifário]],RefTabGrupoTarifa[],3,FALSE),0) -> 10 | M112: =IFERROR(VLOOKUP(Financeiros[[#This Row],[Grupo Tarifário]],RefTabGrupoTarifa[],4,FALSE),0) -> 9 | P112: Subvenção CDE redução tarifária equilibrada | Q112: 22 | R112: 60 | S112: 179
C113: Compensação ref. acordos bilaterais de CCEAR de Energia - Perda Rede Básica sobre mercado Cat. | D113: =SUM('REN 711'!$Q$30:$Q$34)*N7 -> 2506.143013 | E113: 1.122097571e-06 | F113: Efeito de Acordo Bilateral com geradores | G113: Energia - Perda Rede Básica sobre mercado Cat. | H113: =IFERROR(VLOOKUP(Financeiros[[#This Row],[Tipo]],RefTabTipo[],2,FALSE),0) -> 22 | I113: =IFERROR(VLOOKUP(Financeiros[[#This Row],[Tipo]],RefTabTipo[],3,FALSE),0) -> 60 | J113: =IFERROR(VLOOKUP(Financeiros[[#This Row],[Tipo]],RefTabTipo[],4,FALSE),0) -> 230 | K113: =IFERROR(VLOOKUP(Financeiros[[#This Row],[Grupo Tarifário]],RefTabGrupoTarifa[],2,FALSE),0) -> 2 | L113: =IFERROR(VLOOKUP(Financeiros[[#This Row],[Grupo Tarifário]],RefTabGrupoTarifa[],3,FALSE),0) -> 24 | M113: =IFERROR(VLOOKUP(Financeiros[[#This Row],[Grupo Tarifário]],RefTabGrupoTarifa[],4,FALSE),0) -> 9 | P113: Suprida x Supridora - Res 243/2006 (Componente TE) | Q113: 22 | R113: 60 | S113: 115
C114: Diferimento - Postergação | E114: 0 | H114: =IFERROR(VLOOKUP(Financeiros[[#This Row],[Tipo]],RefTabTipo[],2,FALSE),0) -> 0 | I114: =IFERROR(VLOOKUP(Financeiros[[#This Row],[Tipo]],RefTabTipo[],3,FALSE),0) -> 0 | J114: =IFERROR(VLOOKUP(Financeiros[[#This Row],[Tipo]],RefTabTipo[],4,FALSE),0) -> 0 | K114: =IFERROR(VLOOKUP(Financeiros[[#This Row],[Grupo Tarifário]],RefTabGrupoTarifa[],2,FALSE),0) -> 0 | L114: =IFERROR(VLOOKUP(Financeiros[[#This Row],[Grupo Tarifário]],RefTabGrupoTarifa[],3,FALSE),0) -> 0 | M114: =IFERROR(VLOOKUP(Financeiros[[#This Row],[Grupo Tarifário]],RefTabGrupoTarifa[],4,FALSE),0) -> 0 | P114: Suprida x Supridora - Res 243/2006 (Componente TUSD) | Q114: 22 | R114: 60 | S114: 116
C115: Reescalonamento de custos de Transporte - ciclo 2021/2022 - RB | E115: 0 | F115: Genérico | G115: Rede Básica - Genérico | H115: =IFERROR(VLOOKUP(Financeiros[[#This Row],[Tipo]],RefTabTipo[],2,FALSE),0) -> 22 | I115: =IFERROR(VLOOKUP(Financeiros[[#This Row],[Tipo]],RefTabTipo[],3,FALSE),0) -> 60 | J115: =IFERROR(VLOOKUP(Financeiros[[#This Row],[Tipo]],RefTabTipo[],4,FALSE),0) -> 999 | K115: =IFERROR(VLOOKUP(Financeiros[[#This Row],[Grupo Tarifário]],RefTabGrupoTarifa[],2,FALSE),0) -> 1 | L115: =IFERROR(VLOOKUP(Financeiros[[#This Row],[Grupo Tarifário]],RefTabGrupoTarifa[],3,FALSE),0) -> 1 | M115: =IFERROR(VLOOKUP(Financeiros[[#This Row],[Grupo Tarifário]],RefTabGrupoTarifa[],4,FALSE),0) -> 9 | P115: Trajetória de Perdas Não Técnicas 1º ciclo de RTP | Q115: 22 | R115: 60 | S115: 140
C116: Reescalonamento de custos de Transporte - ciclo 2021/2022 - RB Fronteira | E116: 0 | F116: Genérico | G116: Rede Básica - Genérico | H116: =IFERROR(VLOOKUP(Financeiros[[#This Row],[Tipo]],RefTabTipo[],2,FALSE),0) -> 22 | I116: =IFERROR(VLOOKUP(Financeiros[[#This Row],[Tipo]],RefTabTipo[],3,FALSE),0) -> 60 | J116: =IFERROR(VLOOKUP(Financeiros[[#This Row],[Tipo]],RefTabTipo[],4,FALSE),0) -> 999 | K116: =IFERROR(VLOOKUP(Financeiros[[#This Row],[Grupo Tarifário]],RefTabGrupoTarifa[],2,FALSE),0) -> 1 | L116: =IFERROR(VLOOKUP(Financeiros[[#This Row],[Grupo Tarifário]],RefTabGrupoTarifa[],3,FALSE),0) -> 1 | M116: =IFERROR(VLOOKUP(Financeiros[[#This Row],[Grupo Tarifário]],RefTabGrupoTarifa[],4,FALSE),0) -> 9 | P116: TUSD Fio "B" dado à Suprida - Res 243/2006 | Q116: 22 | R116: 60 | S116: 113
C117: Reescalonamento de custos de Transporte - ciclo 2021/2022 - Must Itaipu | E117: 0 | F117: Genérico | G117: Rede Básica - Genérico | H117: =IFERROR(VLOOKUP(Financeiros[[#This Row],[Tipo]],RefTabTipo[],2,FALSE),0) -> 22 | I117: =IFERROR(VLOOKUP(Financeiros[[#This Row],[Tipo]],RefTabTipo[],3,FALSE),0) -> 60 | J117: =IFERROR(VLOOKUP(Financeiros[[#This Row],[Tipo]],RefTabTipo[],4,FALSE),0) -> 999 | K117: =IFERROR(VLOOKUP(Financeiros[[#This Row],[Grupo Tarifário]],RefTabGrupoTarifa[],2,FALSE),0) -> 1 | L117: =IFERROR(VLOOKUP(Financeiros[[#This Row],[Grupo Tarifário]],RefTabGrupoTarifa[],3,FALSE),0) -> 1 | M117: =IFERROR(VLOOKUP(Financeiros[[#This Row],[Grupo Tarifário]],RefTabGrupoTarifa[],4,FALSE),0) -> 9 | P117: TUSDccc, cde, proinfa - APE/PIE - Res. 166/2005 | Q117: 22 | R117: 60 | S117: 114
C118: Reescalonamento de custos de Transporte - ciclo 2021/2022 - Transp Itaipu | E118: 0 | F118: Genérico | G118: Rede Básica - Genérico | H118: =IFERROR(VLOOKUP(Financeiros[[#This Row],[Tipo]],RefTabTipo[],2,FALSE),0) -> 22 | I118: =IFERROR(VLOOKUP(Financeiros[[#This Row],[Tipo]],RefTabTipo[],3,FALSE),0) -> 60 | J118: =IFERROR(VLOOKUP(Financeiros[[#This Row],[Tipo]],RefTabTipo[],4,FALSE),0) -> 999 | K118: =IFERROR(VLOOKUP(Financeiros[[#This Row],[Grupo Tarifário]],RefTabGrupoTarifa[],2,FALSE),0) -> 1 | L118: =IFERROR(VLOOKUP(Financeiros[[#This Row],[Grupo Tarifário]],RefTabGrupoTarifa[],3,FALSE),0) -> 1 | M118: =IFERROR(VLOOKUP(Financeiros[[#This Row],[Grupo Tarifário]],RefTabGrupoTarifa[],4,FALSE),0) -> 9 | P118: TUSDg - REN 439/2011 | Q118: 22 | R118: 60 | S118: 124
C119: Reescalonamento de custos de Transporte - ciclo 2021/2022 - Conexão | E119: 0 | F119: Genérico | G119: Rede Básica - Genérico | H119: =IFERROR(VLOOKUP(Financeiros[[#This Row],[Tipo]],RefTabTipo[],2,FALSE),0) -> 22 | I119: =IFERROR(VLOOKUP(Financeiros[[#This Row],[Tipo]],RefTabTipo[],3,FALSE),0) -> 60 | J119: =IFERROR(VLOOKUP(Financeiros[[#This Row],[Tipo]],RefTabTipo[],4,FALSE),0) -> 999 | K119: =IFERROR(VLOOKUP(Financeiros[[#This Row],[Grupo Tarifário]],RefTabGrupoTarifa[],2,FALSE),0) -> 1 | L119: =IFERROR(VLOOKUP(Financeiros[[#This Row],[Grupo Tarifário]],RefTabGrupoTarifa[],3,FALSE),0) -> 1 | M119: =IFERROR(VLOOKUP(Financeiros[[#This Row],[Grupo Tarifário]],RefTabGrupoTarifa[],4,FALSE),0) -> 9 | P119: TUSD-G Geradoras/DIT's - Res 497/2007 | Q119: 22 | R119: 60 | S119: 125
C120: Financeiro de reversão dos créditos de PIS/COFiNS | D120: =-'Mitigação Efeito 2021'!H24 -> -22795309.78 | E120: -0.01020634561 | H120: 22 | I120: 60 | J120: 179 | K120: 99 | L120: 999 | M120: 3 | P120: Valesul/CSN/CSA | Q120: 22 | R120: 60 | S120: 149
E121: 0 | H121: =IFERROR(VLOOKUP(Financeiros[[#This Row],[Tipo]],RefTabTipo[],2,FALSE),0) -> 0 | I121: =IFERROR(VLOOKUP(Financeiros[[#This Row],[Tipo]],RefTabTipo[],3,FALSE),0) -> 0 | J121: =IFERROR(VLOOKUP(Financeiros[[#This Row],[Tipo]],RefTabTipo[],4,FALSE),0) -> 0 | K121: =IFERROR(VLOOKUP(Financeiros[[#This Row],[Grupo Tarifário]],RefTabGrupoTarifa[],2,FALSE),0) -> 0 | L121: =IFERROR(VLOOKUP(Financeiros[[#This Row],[Grupo Tarifário]],RefTabGrupoTarifa[],3,FALSE),0) -> 0 | M121: =IFERROR(VLOOKUP(Financeiros[[#This Row],[Grupo Tarifário]],RefTabGrupoTarifa[],4,FALSE),0) -> 0 | P121: Votorantim | Q121: 22 | R121: 60 | S121: 185
E122: 0 | H122: =IFERROR(VLOOKUP(Financeiros[[#This Row],[Tipo]],RefTabTipo[],2,FALSE),0) -> 0 | I122: =IFERROR(VLOOKUP(Financeiros[[#This Row],[Tipo]],RefTabTipo[],3,FALSE),0) -> 0 | J122: =IFERROR(VLOOKUP(Financeiros[[#This Row],[Tipo]],RefTabTipo[],4,FALSE),0) -> 0 | K122: =IFERROR(VLOOKUP(Financeiros[[#This Row],[Grupo Tarifário]],RefTabGrupoTarifa[],2,FALSE),0) -> 0 | L122: =IFERROR(VLOOKUP(Financeiros[[#This Row],[Grupo Tarifário]],RefTabGrupoTarifa[],3,FALSE),0) -> 0 | M122: =IFERROR(VLOOKUP(Financeiros[[#This Row],[Grupo Tarifário]],RefTabGrupoTarifa[],4,FALSE),0) -> 0 | P122: Reversão de Risco Hidrológico | Q122: 22 | R122: 62 | S122: 220
E123: 0 | H123: =IFERROR(VLOOKUP(Financeiros[[#This Row],[Tipo]],RefTabTipo[],2,FALSE),0) -> 0 | I123: =IFERROR(VLOOKUP(Financeiros[[#This Row],[Tipo]],RefTabTipo[],3,FALSE),0) -> 0 | J123: =IFERROR(VLOOKUP(Financeiros[[#This Row],[Tipo]],RefTabTipo[],4,FALSE),0) -> 0 | K123: =IFERROR(VLOOKUP(Financeiros[[#This Row],[Grupo Tarifário]],RefTabGrupoTarifa[],2,FALSE),0) -> 0 | L123: =IFERROR(VLOOKUP(Financeiros[[#This Row],[Grupo Tarifário]],RefTabGrupoTarifa[],3,FALSE),0) -> 0 | M123: =IFERROR(VLOOKUP(Financeiros[[#This Row],[Grupo Tarifário]],RefTabGrupoTarifa[],4,FALSE),0) -> 0 | P123: Ressarcimento P&D 0,3% | Q123: 22 | R123: 60 | S123: 231
E124: 0 | H124: =IFERROR(VLOOKUP(Financeiros[[#This Row],[Tipo]],RefTabTipo[],2,FALSE),0) -> 0 | I124: =IFERROR(VLOOKUP(Financeiros[[#This Row],[Tipo]],RefTabTipo[],3,FALSE),0) -> 0 | J124: =IFERROR(VLOOKUP(Financeiros[[#This Row],[Tipo]],RefTabTipo[],4,FALSE),0) -> 0 | K124: =IFERROR(VLOOKUP(Financeiros[[#This Row],[Grupo Tarifário]],RefTabGrupoTarifa[],2,FALSE),0) -> 0 | L124: =IFERROR(VLOOKUP(Financeiros[[#This Row],[Grupo Tarifário]],RefTabGrupoTarifa[],3,FALSE),0) -> 0 | M124: =IFERROR(VLOOKUP(Financeiros[[#This Row],[Grupo Tarifário]],RefTabGrupoTarifa[],4,FALSE),0) -> 0 | P124: Acordo REN 824/2018 | Q124: 22 | R124: 60 | S124: 232
E125: 0 | H125: =IFERROR(VLOOKUP(Financeiros[[#This Row],[Tipo]],RefTabTipo[],2,FALSE),0) -> 0 | I125: =IFERROR(VLOOKUP(Financeiros[[#This Row],[Tipo]],RefTabTipo[],3,FALSE),0) -> 0 | J125: =IFERROR(VLOOKUP(Financeiros[[#This Row],[Tipo]],RefTabTipo[],4,FALSE),0) -> 0 | K125: =IFERROR(VLOOKUP(Financeiros[[#This Row],[Grupo Tarifário]],RefTabGrupoTarifa[],2,FALSE),0) -> 0 | L125: =IFERROR(VLOOKUP(Financeiros[[#This Row],[Grupo Tarifário]],RefTabGrupoTarifa[],3,FALSE),0) -> 0 | M125: =IFERROR(VLOOKUP(Financeiros[[#This Row],[Grupo Tarifário]],RefTabGrupoTarifa[],4,FALSE),0) -> 0 | P125: Covid CVA | Q125: 19 | R125: 60 | S125: 233
E126: 0 | H126: =IFERROR(VLOOKUP(Financeiros[[#This Row],[Tipo]],RefTabTipo[],2,FALSE),0) -> 0 | I126: =IFERROR(VLOOKUP(Financeiros[[#This Row],[Tipo]],RefTabTipo[],3,FALSE),0) -> 0 | J126: =IFERROR(VLOOKUP(Financeiros[[#This Row],[Tipo]],RefTabTipo[],4,FALSE),0) -> 0 | K126: =IFERROR(VLOOKUP(Financeiros[[#This Row],[Grupo Tarifário]],RefTabGrupoTarifa[],2,FALSE),0) -> 0 | L126: =IFERROR(VLOOKUP(Financeiros[[#This Row],[Grupo Tarifário]],RefTabGrupoTarifa[],3,FALSE),0) -> 0 | M126: =IFERROR(VLOOKUP(Financeiros[[#This Row],[Grupo Tarifário]],RefTabGrupoTarifa[],4,FALSE),0) -> 0 | P126: Covid Neutralidade | Q126: 20 | R126: 60 | S126: 234
E127: 0 | H127: =IFERROR(VLOOKUP(Financeiros[[#This Row],[Tipo]],RefTabTipo[],2,FALSE),0) -> 0 | I127: =IFERROR(VLOOKUP(Financeiros[[#This Row],[Tipo]],RefTabTipo[],3,FALSE),0) -> 0 | J127: =IFERROR(VLOOKUP(Financeiros[[#This Row],[Tipo]],RefTabTipo[],4,FALSE),0) -> 0 | K127: =IFERROR(VLOOKUP(Financeiros[[#This Row],[Grupo Tarifário]],RefTabGrupoTarifa[],2,FALSE),0) -> 0 | L127: =IFERROR(VLOOKUP(Financeiros[[#This Row],[Grupo Tarifário]],RefTabGrupoTarifa[],3,FALSE),0) -> 0 | M127: =IFERROR(VLOOKUP(Financeiros[[#This Row],[Grupo Tarifário]],RefTabGrupoTarifa[],4,FALSE),0) -> 0 | P127: Covid Demais Componentes Financeiros | Q127: 22 | R127: 60 | S127: 235
E128: 0 | H128: =IFERROR(VLOOKUP(Financeiros[[#This Row],[Tipo]],RefTabTipo[],2,FALSE),0) -> 0 | I128: =IFERROR(VLOOKUP(Financeiros[[#This Row],[Tipo]],RefTabTipo[],3,FALSE),0) -> 0 | J128: =IFERROR(VLOOKUP(Financeiros[[#This Row],[Tipo]],RefTabTipo[],4,FALSE),0) -> 0 | K128: =IFERROR(VLOOKUP(Financeiros[[#This Row],[Grupo Tarifário]],RefTabGrupoTarifa[],2,FALSE),0) -> 0 | L128: =IFERROR(VLOOKUP(Financeiros[[#This Row],[Grupo Tarifário]],RefTabGrupoTarifa[],3,FALSE),0) -> 0 | M128: =IFERROR(VLOOKUP(Financeiros[[#This Row],[Grupo Tarifário]],RefTabGrupoTarifa[],4,FALSE),0) -> 0 | P128: Covid CVA Saldo a Compensar | Q128: 19 | R128: 64 | S128: 236
E129: 0 | H129: =IFERROR(VLOOKUP(Financeiros[[#This Row],[Tipo]],RefTabTipo[],2,FALSE),0) -> 0 | I129: =IFERROR(VLOOKUP(Financeiros[[#This Row],[Tipo]],RefTabTipo[],3,FALSE),0) -> 0 | J129: =IFERROR(VLOOKUP(Financeiros[[#This Row],[Tipo]],RefTabTipo[],4,FALSE),0) -> 0 | K129: =IFERROR(VLOOKUP(Financeiros[[#This Row],[Grupo Tarifário]],RefTabGrupoTarifa[],2,FALSE),0) -> 0 | L129: =IFERROR(VLOOKUP(Financeiros[[#This Row],[Grupo Tarifário]],RefTabGrupoTarifa[],3,FALSE),0) -> 0 | M129: =IFERROR(VLOOKUP(Financeiros[[#This Row],[Grupo Tarifário]],RefTabGrupoTarifa[],4,FALSE),0) -> 0 | P129: Covid Postergação | Q129: 22 | R129: 60 | S129: 196
E130: 0 | H130: =IFERROR(VLOOKUP(Financeiros[[#This Row],[Tipo]],RefTabTipo[],2,FALSE),0) -> 0 | I130: =IFERROR(VLOOKUP(Financeiros[[#This Row],[Tipo]],RefTabTipo[],3,FALSE),0) -> 0 | J130: =IFERROR(VLOOKUP(Financeiros[[#This Row],[Tipo]],RefTabTipo[],4,FALSE),0) -> 0 | K130: =IFERROR(VLOOKUP(Financeiros[[#This Row],[Grupo Tarifário]],RefTabGrupoTarifa[],2,FALSE),0) -> 0 | L130: =IFERROR(VLOOKUP(Financeiros[[#This Row],[Grupo Tarifário]],RefTabGrupoTarifa[],3,FALSE),0) -> 0 | M130: =IFERROR(VLOOKUP(Financeiros[[#This Row],[Grupo Tarifário]],RefTabGrupoTarifa[],4,FALSE),0) -> 0
E131: 0 | H131: =IFERROR(VLOOKUP(Financeiros[[#This Row],[Tipo]],RefTabTipo[],2,FALSE),0) -> 0 | I131: =IFERROR(VLOOKUP(Financeiros[[#This Row],[Tipo]],RefTabTipo[],3,FALSE),0) -> 0 | J131: =IFERROR(VLOOKUP(Financeiros[[#This Row],[Tipo]],RefTabTipo[],4,FALSE),0) -> 0 | K131: =IFERROR(VLOOKUP(Financeiros[[#This Row],[Grupo Tarifário]],RefTabGrupoTarifa[],2,FALSE),0) -> 0 | L131: =IFERROR(VLOOKUP(Financeiros[[#This Row],[Grupo Tarifário]],RefTabGrupoTarifa[],3,FALSE),0) -> 0 | M131: =IFERROR(VLOOKUP(Financeiros[[#This Row],[Grupo Tarifário]],RefTabGrupoTarifa[],4,FALSE),0) -> 0
E132: 0 | H132: =IFERROR(VLOOKUP(Financeiros[[#This Row],[Tipo]],RefTabTipo[],2,FALSE),0) -> 0 | I132: =IFERROR(VLOOKUP(Financeiros[[#This Row],[Tipo]],RefTabTipo[],3,FALSE),0) -> 0 | J132: =IFERROR(VLOOKUP(Financeiros[[#This Row],[Tipo]],RefTabTipo[],4,FALSE),0) -> 0 | K132: =IFERROR(VLOOKUP(Financeiros[[#This Row],[Grupo Tarifário]],RefTabGrupoTarifa[],2,FALSE),0) -> 0 | L132: =IFERROR(VLOOKUP(Financeiros[[#This Row],[Grupo Tarifário]],RefTabGrupoTarifa[],3,FALSE),0) -> 0 | M132: =IFERROR(VLOOKUP(Financeiros[[#This Row],[Grupo Tarifário]],RefTabGrupoTarifa[],4,FALSE),0) -> 0
E133: 0 | H133: =IFERROR(VLOOKUP(Financeiros[[#This Row],[Tipo]],RefTabTipo[],2,FALSE),0) -> 0 | I133: =IFERROR(VLOOKUP(Financeiros[[#This Row],[Tipo]],RefTabTipo[],3,FALSE),0) -> 0 | J133: =IFERROR(VLOOKUP(Financeiros[[#This Row],[Tipo]],RefTabTipo[],4,FALSE),0) -> 0 | K133: =IFERROR(VLOOKUP(Financeiros[[#This Row],[Grupo Tarifário]],RefTabGrupoTarifa[],2,FALSE),0) -> 0 | L133: =IFERROR(VLOOKUP(Financeiros[[#This Row],[Grupo Tarifário]],RefTabGrupoTarifa[],3,FALSE),0) -> 0 | M133: =IFERROR(VLOOKUP(Financeiros[[#This Row],[Grupo Tarifário]],RefTabGrupoTarifa[],4,FALSE),0) -> 0
E134: 0 | H134: =IFERROR(VLOOKUP(Financeiros[[#This Row],[Tipo]],RefTabTipo[],2,FALSE),0) -> 0 | I134: =IFERROR(VLOOKUP(Financeiros[[#This Row],[Tipo]],RefTabTipo[],3,FALSE),0) -> 0 | J134: =IFERROR(VLOOKUP(Financeiros[[#This Row],[Tipo]],RefTabTipo[],4,FALSE),0) -> 0 | K134: =IFERROR(VLOOKUP(Financeiros[[#This Row],[Grupo Tarifário]],RefTabGrupoTarifa[],2,FALSE),0) -> 0 | L134: =IFERROR(VLOOKUP(Financeiros[[#This Row],[Grupo Tarifário]],RefTabGrupoTarifa[],3,FALSE),0) -> 0 | M134: =IFERROR(VLOOKUP(Financeiros[[#This Row],[Grupo Tarifário]],RefTabGrupoTarifa[],4,FALSE),0) -> 0
E135: 0 | H135: =IFERROR(VLOOKUP(Financeiros[[#This Row],[Tipo]],RefTabTipo[],2,FALSE),0) -> 0 | I135: =IFERROR(VLOOKUP(Financeiros[[#This Row],[Tipo]],RefTabTipo[],3,FALSE),0) -> 0 | J135: =IFERROR(VLOOKUP(Financeiros[[#This Row],[Tipo]],RefTabTipo[],4,FALSE),0) -> 0 | K135: =IFERROR(VLOOKUP(Financeiros[[#This Row],[Grupo Tarifário]],RefTabGrupoTarifa[],2,FALSE),0) -> 0 | L135: =IFERROR(VLOOKUP(Financeiros[[#This Row],[Grupo Tarifário]],RefTabGrupoTarifa[],3,FALSE),0) -> 0 | M135: =IFERROR(VLOOKUP(Financeiros[[#This Row],[Grupo Tarifário]],RefTabGrupoTarifa[],4,FALSE),0) -> 0
E136: 0 | H136: =IFERROR(VLOOKUP(Financeiros[[#This Row],[Tipo]],RefTabTipo[],2,FALSE),0) -> 0 | I136: =IFERROR(VLOOKUP(Financeiros[[#This Row],[Tipo]],RefTabTipo[],3,FALSE),0) -> 0 | J136: =IFERROR(VLOOKUP(Financeiros[[#This Row],[Tipo]],RefTabTipo[],4,FALSE),0) -> 0 | K136: =IFERROR(VLOOKUP(Financeiros[[#This Row],[Grupo Tarifário]],RefTabGrupoTarifa[],2,FALSE),0) -> 0 | L136: =IFERROR(VLOOKUP(Financeiros[[#This Row],[Grupo Tarifário]],RefTabGrupoTarifa[],3,FALSE),0) -> 0 | M136: =IFERROR(VLOOKUP(Financeiros[[#This Row],[Grupo Tarifário]],RefTabGrupoTarifa[],4,FALSE),0) -> 0
E137: 0 | H137: =IFERROR(VLOOKUP(Financeiros[[#This Row],[Tipo]],RefTabTipo[],2,FALSE),0) -> 0 | I137: =IFERROR(VLOOKUP(Financeiros[[#This Row],[Tipo]],RefTabTipo[],3,FALSE),0) -> 0 | J137: =IFERROR(VLOOKUP(Financeiros[[#This Row],[Tipo]],RefTabTipo[],4,FALSE),0) -> 0 | K137: =IFERROR(VLOOKUP(Financeiros[[#This Row],[Grupo Tarifário]],RefTabGrupoTarifa[],2,FALSE),0) -> 0 | L137: =IFERROR(VLOOKUP(Financeiros[[#This Row],[Grupo Tarifário]],RefTabGrupoTarifa[],3,FALSE),0) -> 0 | M137: =IFERROR(VLOOKUP(Financeiros[[#This Row],[Grupo Tarifário]],RefTabGrupoTarifa[],4,FALSE),0) -> 0
E138: 0 | H138: =IFERROR(VLOOKUP(Financeiros[[#This Row],[Tipo]],RefTabTipo[],2,FALSE),0) -> 0 | I138: =IFERROR(VLOOKUP(Financeiros[[#This Row],[Tipo]],RefTabTipo[],3,FALSE),0) -> 0 | J138: =IFERROR(VLOOKUP(Financeiros[[#This Row],[Tipo]],RefTabTipo[],4,FALSE),0) -> 0 | K138: =IFERROR(VLOOKUP(Financeiros[[#This Row],[Grupo Tarifário]],RefTabGrupoTarifa[],2,FALSE),0) -> 0 | L138: =IFERROR(VLOOKUP(Financeiros[[#This Row],[Grupo Tarifário]],RefTabGrupoTarifa[],3,FALSE),0) -> 0 | M138: =IFERROR(VLOOKUP(Financeiros[[#This Row],[Grupo Tarifário]],RefTabGrupoTarifa[],4,FALSE),0) -> 0
E139: =IF(ISERROR(D139/$D$6),0,D139/$D$6) -> 0 | H139: =IFERROR(VLOOKUP(Financeiros[[#This Row],[Tipo]],RefTabTipo[],2,FALSE),0) -> 0 | I139: =IFERROR(VLOOKUP(Financeiros[[#This Row],[Tipo]],RefTabTipo[],3,FALSE),0) -> 0 | J139: =IFERROR(VLOOKUP(Financeiros[[#This Row],[Tipo]],RefTabTipo[],4,FALSE),0) -> 0 | K139: =IFERROR(VLOOKUP(Financeiros[[#This Row],[Grupo Tarifário]],RefTabGrupoTarifa[],2,FALSE),0) -> 0 | L139: =IFERROR(VLOOKUP(Financeiros[[#This Row],[Grupo Tarifário]],RefTabGrupoTarifa[],3,FALSE),0) -> 0 | M139: =IFERROR(VLOOKUP(Financeiros[[#This Row],[Grupo Tarifário]],RefTabGrupoTarifa[],4,FALSE),0) -> 0
E140: 0 | H140: =IFERROR(VLOOKUP(Financeiros[[#This Row],[Tipo]],RefTabTipo[],2,FALSE),0) -> 0 | I140: =IFERROR(VLOOKUP(Financeiros[[#This Row],[Tipo]],RefTabTipo[],3,FALSE),0) -> 0 | J140: =IFERROR(VLOOKUP(Financeiros[[#This Row],[Tipo]],RefTabTipo[],4,FALSE),0) -> 0 | K140: =IFERROR(VLOOKUP(Financeiros[[#This Row],[Grupo Tarifário]],RefTabGrupoTarifa[],2,FALSE),0) -> 0 | L140: =IFERROR(VLOOKUP(Financeiros[[#This Row],[Grupo Tarifário]],RefTabGrupoTarifa[],3,FALSE),0) -> 0 | M140: =IFERROR(VLOOKUP(Financeiros[[#This Row],[Grupo Tarifário]],RefTabGrupoTarifa[],4,FALSE),0) -> 0
E141: 0 | H141: =IFERROR(VLOOKUP(Financeiros[[#This Row],[Tipo]],RefTabTipo[],2,FALSE),0) -> 0 | I141: =IFERROR(VLOOKUP(Financeiros[[#This Row],[Tipo]],RefTabTipo[],3,FALSE),0) -> 0 | J141: =IFERROR(VLOOKUP(Financeiros[[#This Row],[Tipo]],RefTabTipo[],4,FALSE),0) -> 0 | K141: =IFERROR(VLOOKUP(Financeiros[[#This Row],[Grupo Tarifário]],RefTabGrupoTarifa[],2,FALSE),0) -> 0 | L141: =IFERROR(VLOOKUP(Financeiros[[#This Row],[Grupo Tarifário]],RefTabGrupoTarifa[],3,FALSE),0) -> 0 | M141: =IFERROR(VLOOKUP(Financeiros[[#This Row],[Grupo Tarifário]],RefTabGrupoTarifa[],4,FALSE),0) -> 0
E142: 0 | H142: =IFERROR(VLOOKUP(Financeiros[[#This Row],[Tipo]],RefTabTipo[],2,FALSE),0) -> 0 | I142: =IFERROR(VLOOKUP(Financeiros[[#This Row],[Tipo]],RefTabTipo[],3,FALSE),0) -> 0 | J142: =IFERROR(VLOOKUP(Financeiros[[#This Row],[Tipo]],RefTabTipo[],4,FALSE),0) -> 0 | K142: =IFERROR(VLOOKUP(Financeiros[[#This Row],[Grupo Tarifário]],RefTabGrupoTarifa[],2,FALSE),0) -> 0 | L142: =IFERROR(VLOOKUP(Financeiros[[#This Row],[Grupo Tarifário]],RefTabGrupoTarifa[],3,FALSE),0) -> 0 | M142: =IFERROR(VLOOKUP(Financeiros[[#This Row],[Grupo Tarifário]],RefTabGrupoTarifa[],4,FALSE),0) -> 0
E143: 0 | H143: =IFERROR(VLOOKUP(Financeiros[[#This Row],[Tipo]],RefTabTipo[],2,FALSE),0) -> 0 | I143: =IFERROR(VLOOKUP(Financeiros[[#This Row],[Tipo]],RefTabTipo[],3,FALSE),0) -> 0 | J143: =IFERROR(VLOOKUP(Financeiros[[#This Row],[Tipo]],RefTabTipo[],4,FALSE),0) -> 0 | K143: =IFERROR(VLOOKUP(Financeiros[[#This Row],[Grupo Tarifário]],RefTabGrupoTarifa[],2,FALSE),0) -> 0 | L143: =IFERROR(VLOOKUP(Financeiros[[#This Row],[Grupo Tarifário]],RefTabGrupoTarifa[],3,FALSE),0) -> 0 | M143: =IFERROR(VLOOKUP(Financeiros[[#This Row],[Grupo Tarifário]],RefTabGrupoTarifa[],4,FALSE),0) -> 0
E144: 0 | H144: =IFERROR(VLOOKUP(Financeiros[[#This Row],[Tipo]],RefTabTipo[],2,FALSE),0) -> 0 | I144: =IFERROR(VLOOKUP(Financeiros[[#This Row],[Tipo]],RefTabTipo[],3,FALSE),0) -> 0 | J144: =IFERROR(VLOOKUP(Financeiros[[#This Row],[Tipo]],RefTabTipo[],4,FALSE),0) -> 0 | K144: =IFERROR(VLOOKUP(Financeiros[[#This Row],[Grupo Tarifário]],RefTabGrupoTarifa[],2,FALSE),0) -> 0 | L144: =IFERROR(VLOOKUP(Financeiros[[#This Row],[Grupo Tarifário]],RefTabGrupoTarifa[],3,FALSE),0) -> 0 | M144: =IFERROR(VLOOKUP(Financeiros[[#This Row],[Grupo Tarifário]],RefTabGrupoTarifa[],4,FALSE),0) -> 0
E145: 0 | H145: =IFERROR(VLOOKUP(Financeiros[[#This Row],[Tipo]],RefTabTipo[],2,FALSE),0) -> 0 | I145: =IFERROR(VLOOKUP(Financeiros[[#This Row],[Tipo]],RefTabTipo[],3,FALSE),0) -> 0 | J145: =IFERROR(VLOOKUP(Financeiros[[#This Row],[Tipo]],RefTabTipo[],4,FALSE),0) -> 0 | K145: =IFERROR(VLOOKUP(Financeiros[[#This Row],[Grupo Tarifário]],RefTabGrupoTarifa[],2,FALSE),0) -> 0 | L145: =IFERROR(VLOOKUP(Financeiros[[#This Row],[Grupo Tarifário]],RefTabGrupoTarifa[],3,FALSE),0) -> 0 | M145: =IFERROR(VLOOKUP(Financeiros[[#This Row],[Grupo Tarifário]],RefTabGrupoTarifa[],4,FALSE),0) -> 0
E146: 0 | H146: =IFERROR(VLOOKUP(Financeiros[[#This Row],[Tipo]],RefTabTipo[],2,FALSE),0) -> 0 | I146: =IFERROR(VLOOKUP(Financeiros[[#This Row],[Tipo]],RefTabTipo[],3,FALSE),0) -> 0 | J146: =IFERROR(VLOOKUP(Financeiros[[#This Row],[Tipo]],RefTabTipo[],4,FALSE),0) -> 0 | K146: =IFERROR(VLOOKUP(Financeiros[[#This Row],[Grupo Tarifário]],RefTabGrupoTarifa[],2,FALSE),0) -> 0 | L146: =IFERROR(VLOOKUP(Financeiros[[#This Row],[Grupo Tarifário]],RefTabGrupoTarifa[],3,FALSE),0) -> 0 | M146: =IFERROR(VLOOKUP(Financeiros[[#This Row],[Grupo Tarifário]],RefTabGrupoTarifa[],4,FALSE),0) -> 0
E147: 0 | H147: =IFERROR(VLOOKUP(Financeiros[[#This Row],[Tipo]],RefTabTipo[],2,FALSE),0) -> 0 | I147: =IFERROR(VLOOKUP(Financeiros[[#This Row],[Tipo]],RefTabTipo[],3,FALSE),0) -> 0 | J147: =IFERROR(VLOOKUP(Financeiros[[#This Row],[Tipo]],RefTabTipo[],4,FALSE),0) -> 0 | K147: =IFERROR(VLOOKUP(Financeiros[[#This Row],[Grupo Tarifário]],RefTabGrupoTarifa[],2,FALSE),0) -> 0 | L147: =IFERROR(VLOOKUP(Financeiros[[#This Row],[Grupo Tarifário]],RefTabGrupoTarifa[],3,FALSE),0) -> 0 | M147: =IFERROR(VLOOKUP(Financeiros[[#This Row],[Grupo Tarifário]],RefTabGrupoTarifa[],4,FALSE),0) -> 0
E148: 0 | H148: =IFERROR(VLOOKUP(Financeiros[[#This Row],[Tipo]],RefTabTipo[],2,FALSE),0) -> 0 | I148: =IFERROR(VLOOKUP(Financeiros[[#This Row],[Tipo]],RefTabTipo[],3,FALSE),0) -> 0 | J148: =IFERROR(VLOOKUP(Financeiros[[#This Row],[Tipo]],RefTabTipo[],4,FALSE),0) -> 0 | K148: =IFERROR(VLOOKUP(Financeiros[[#This Row],[Grupo Tarifário]],RefTabGrupoTarifa[],2,FALSE),0) -> 0 | L148: =IFERROR(VLOOKUP(Financeiros[[#This Row],[Grupo Tarifário]],RefTabGrupoTarifa[],3,FALSE),0) -> 0 | M148: =IFERROR(VLOOKUP(Financeiros[[#This Row],[Grupo Tarifário]],RefTabGrupoTarifa[],4,FALSE),0) -> 0
E149: 0 | H149: =IFERROR(VLOOKUP(Financeiros[[#This Row],[Tipo]],RefTabTipo[],2,FALSE),0) -> 0 | I149: =IFERROR(VLOOKUP(Financeiros[[#This Row],[Tipo]],RefTabTipo[],3,FALSE),0) -> 0 | J149: =IFERROR(VLOOKUP(Financeiros[[#This Row],[Tipo]],RefTabTipo[],4,FALSE),0) -> 0 | K149: =IFERROR(VLOOKUP(Financeiros[[#This Row],[Grupo Tarifário]],RefTabGrupoTarifa[],2,FALSE),0) -> 0 | L149: =IFERROR(VLOOKUP(Financeiros[[#This Row],[Grupo Tarifário]],RefTabGrupoTarifa[],3,FALSE),0) -> 0 | M149: =IFERROR(VLOOKUP(Financeiros[[#This Row],[Grupo Tarifário]],RefTabGrupoTarifa[],4,FALSE),0) -> 0
E150: 0 | H150: =IFERROR(VLOOKUP(Financeiros[[#This Row],[Tipo]],RefTabTipo[],2,FALSE),0) -> 0 | I150: =IFERROR(VLOOKUP(Financeiros[[#This Row],[Tipo]],RefTabTipo[],3,FALSE),0) -> 0 | J150: =IFERROR(VLOOKUP(Financeiros[[#This Row],[Tipo]],RefTabTipo[],4,FALSE),0) -> 0 | K150: =IFERROR(VLOOKUP(Financeiros[[#This Row],[Grupo Tarifário]],RefTabGrupoTarifa[],2,FALSE),0) -> 0 | L150: =IFERROR(VLOOKUP(Financeiros[[#This Row],[Grupo Tarifário]],RefTabGrupoTarifa[],3,FALSE),0) -> 0 | M150: =IFERROR(VLOOKUP(Financeiros[[#This Row],[Grupo Tarifário]],RefTabGrupoTarifa[],4,FALSE),0) -> 0
E151: 0 | H151: =IFERROR(VLOOKUP(Financeiros[[#This Row],[Tipo]],RefTabTipo[],2,FALSE),0) -> 0 | I151: =IFERROR(VLOOKUP(Financeiros[[#This Row],[Tipo]],RefTabTipo[],3,FALSE),0) -> 0 | J151: =IFERROR(VLOOKUP(Financeiros[[#This Row],[Tipo]],RefTabTipo[],4,FALSE),0) -> 0 | K151: =IFERROR(VLOOKUP(Financeiros[[#This Row],[Grupo Tarifário]],RefTabGrupoTarifa[],2,FALSE),0) -> 0 | L151: =IFERROR(VLOOKUP(Financeiros[[#This Row],[Grupo Tarifário]],RefTabGrupoTarifa[],3,FALSE),0) -> 0 | M151: =IFERROR(VLOOKUP(Financeiros[[#This Row],[Grupo Tarifário]],RefTabGrupoTarifa[],4,FALSE),0) -> 0
E152: 0 | H152: =IFERROR(VLOOKUP(Financeiros[[#This Row],[Tipo]],RefTabTipo[],2,FALSE),0) -> 0 | I152: =IFERROR(VLOOKUP(Financeiros[[#This Row],[Tipo]],RefTabTipo[],3,FALSE),0) -> 0 | J152: =IFERROR(VLOOKUP(Financeiros[[#This Row],[Tipo]],RefTabTipo[],4,FALSE),0) -> 0 | K152: =IFERROR(VLOOKUP(Financeiros[[#This Row],[Grupo Tarifário]],RefTabGrupoTarifa[],2,FALSE),0) -> 0 | L152: =IFERROR(VLOOKUP(Financeiros[[#This Row],[Grupo Tarifário]],RefTabGrupoTarifa[],3,FALSE),0) -> 0 | M152: =IFERROR(VLOOKUP(Financeiros[[#This Row],[Grupo Tarifário]],RefTabGrupoTarifa[],4,FALSE),0) -> 0
E153: 0 | H153: =IFERROR(VLOOKUP(Financeiros[[#This Row],[Tipo]],RefTabTipo[],2,FALSE),0) -> 0 | I153: =IFERROR(VLOOKUP(Financeiros[[#This Row],[Tipo]],RefTabTipo[],3,FALSE),0) -> 0 | J153: =IFERROR(VLOOKUP(Financeiros[[#This Row],[Tipo]],RefTabTipo[],4,FALSE),0) -> 0 | K153: =IFERROR(VLOOKUP(Financeiros[[#This Row],[Grupo Tarifário]],RefTabGrupoTarifa[],2,FALSE),0) -> 0 | L153: =IFERROR(VLOOKUP(Financeiros[[#This Row],[Grupo Tarifário]],RefTabGrupoTarifa[],3,FALSE),0) -> 0 | M153: =IFERROR(VLOOKUP(Financeiros[[#This Row],[Grupo Tarifário]],RefTabGrupoTarifa[],4,FALSE),0) -> 0
E154: 0 | H154: =IFERROR(VLOOKUP(Financeiros[[#This Row],[Tipo]],RefTabTipo[],2,FALSE),0) -> 0 | I154: =IFERROR(VLOOKUP(Financeiros[[#This Row],[Tipo]],RefTabTipo[],3,FALSE),0) -> 0 | J154: =IFERROR(VLOOKUP(Financeiros[[#This Row],[Tipo]],RefTabTipo[],4,FALSE),0) -> 0 | K154: =IFERROR(VLOOKUP(Financeiros[[#This Row],[Grupo Tarifário]],RefTabGrupoTarifa[],2,FALSE),0) -> 0 | L154: =IFERROR(VLOOKUP(Financeiros[[#This Row],[Grupo Tarifário]],RefTabGrupoTarifa[],3,FALSE),0) -> 0 | M154: =IFERROR(VLOOKUP(Financeiros[[#This Row],[Grupo Tarifário]],RefTabGrupoTarifa[],4,FALSE),0) -> 0
B155: TUSD | C155: Conta Covid - CVA CDE | D155: =-COVID!M17 -> 14279063.48 | E155: 0.006393291349 | F155: Covid CVA | G155: Encargo - CDE - TUSD | H155: =IFERROR(VLOOKUP(Financeiros[[#This Row],[Tipo]],RefTabTipo[],2,FALSE),0) -> 19 | I155: =IFERROR(VLOOKUP(Financeiros[[#This Row],[Tipo]],RefTabTipo[],3,FALSE),0) -> 60 | J155: =IFERROR(VLOOKUP(Financeiros[[#This Row],[Tipo]],RefTabTipo[],4,FALSE),0) -> 233 | K155: =IFERROR(VLOOKUP(Financeiros[[#This Row],[Grupo Tarifário]],RefTabGrupoTarifa[],2,FALSE),0) -> 3 | L155: =IFERROR(VLOOKUP(Financeiros[[#This Row],[Grupo Tarifário]],RefTabGrupoTarifa[],3,FALSE),0) -> 15 | M155: =IFERROR(VLOOKUP(Financeiros[[#This Row],[Grupo Tarifário]],RefTabGrupoTarifa[],4,FALSE),0) -> 9
B156: TE | C156: Conta Covid - CVA Energia | D156: =-IFERROR((COVID!$M$11+COVID!$M$12)*N3,0) -> 56342661.53 | E156: 0.02522679804 | F156: Covid CVA | G156: Energia - Energia de Revenda | H156: =IFERROR(VLOOKUP(Financeiros[[#This Row],[Tipo]],RefTabTipo[],2,FALSE),0) -> 19 | I156: =IFERROR(VLOOKUP(Financeiros[[#This Row],[Tipo]],RefTabTipo[],3,FALSE),0) -> 60 | J156: =IFERROR(VLOOKUP(Financeiros[[#This Row],[Tipo]],RefTabTipo[],4,FALSE),0) -> 233 | K156: =IFERROR(VLOOKUP(Financeiros[[#This Row],[Grupo Tarifário]],RefTabGrupoTarifa[],2,FALSE),0) -> 2 | L156: =IFERROR(VLOOKUP(Financeiros[[#This Row],[Grupo Tarifário]],RefTabGrupoTarifa[],3,FALSE),0) -> 11 | M156: =IFERROR(VLOOKUP(Financeiros[[#This Row],[Grupo Tarifário]],RefTabGrupoTarifa[],4,FALSE),0) -> 9
B157: TUSD | C157: Conta Covid - CVA Energia | D157: =-IFERROR((COVID!$M$11+COVID!$M$12)*N4,0) -> 2899159.383 | E157: 0.001298066265 | F157: Covid CVA | G157: Energia - Perda Não Técnica | H157: =IFERROR(VLOOKUP(Financeiros[[#This Row],[Tipo]],RefTabTipo[],2,FALSE),0) -> 19 | I157: =IFERROR(VLOOKUP(Financeiros[[#This Row],[Tipo]],RefTabTipo[],3,FALSE),0) -> 60 | J157: =IFERROR(VLOOKUP(Financeiros[[#This Row],[Tipo]],RefTabTipo[],4,FALSE),0) -> 233 | K157: =IFERROR(VLOOKUP(Financeiros[[#This Row],[Grupo Tarifário]],RefTabGrupoTarifa[],2,FALSE),0) -> 2 | L157: =IFERROR(VLOOKUP(Financeiros[[#This Row],[Grupo Tarifário]],RefTabGrupoTarifa[],3,FALSE),0) -> 9 | M157: =IFERROR(VLOOKUP(Financeiros[[#This Row],[Grupo Tarifário]],RefTabGrupoTarifa[],4,FALSE),0) -> 9
B158: TUSD | C158: Conta Covid - CVA Energia | D158: =-IFERROR((COVID!$M$11+COVID!$M$12)*N5,0) -> 7947463.226 | E158: 0.003558387982 | F158: Covid CVA | G158: Energia - Perda Técnica | H158: =IFERROR(VLOOKUP(Financeiros[[#This Row],[Tipo]],RefTabTipo[],2,FALSE),0) -> 19 | I158: =IFERROR(VLOOKUP(Financeiros[[#This Row],[Tipo]],RefTabTipo[],3,FALSE),0) -> 60 | J158: =IFERROR(VLOOKUP(Financeiros[[#This Row],[Tipo]],RefTabTipo[],4,FALSE),0) -> 233 | K158: =IFERROR(VLOOKUP(Financeiros[[#This Row],[Grupo Tarifário]],RefTabGrupoTarifa[],2,FALSE),0) -> 2 | L158: =IFERROR(VLOOKUP(Financeiros[[#This Row],[Grupo Tarifário]],RefTabGrupoTarifa[],3,FALSE),0) -> 8 | M158: =IFERROR(VLOOKUP(Financeiros[[#This Row],[Grupo Tarifário]],RefTabGrupoTarifa[],4,FALSE),0) -> 9
B159: TUSD | C159: Conta Covid - CVA Energia | D159: =-IFERROR((COVID!$M$11+COVID!$M$12)*N6,0) -> 242609.2995 | E159: 0.0001086256068 | F159: Covid CVA | G159: Energia - Perda Rede Básica sobre Dist. | H159: =IFERROR(VLOOKUP(Financeiros[[#This Row],[Tipo]],RefTabTipo[],2,FALSE),0) -> 19 | I159: =IFERROR(VLOOKUP(Financeiros[[#This Row],[Tipo]],RefTabTipo[],3,FALSE),0) -> 60 | J159: =IFERROR(VLOOKUP(Financeiros[[#This Row],[Tipo]],RefTabTipo[],4,FALSE),0) -> 233 | K159: =IFERROR(VLOOKUP(Financeiros[[#This Row],[Grupo Tarifário]],RefTabGrupoTarifa[],2,FALSE),0) -> 2 | L159: =IFERROR(VLOOKUP(Financeiros[[#This Row],[Grupo Tarifário]],RefTabGrupoTarifa[],3,FALSE),0) -> 10 | M159: =IFERROR(VLOOKUP(Financeiros[[#This Row],[Grupo Tarifário]],RefTabGrupoTarifa[],4,FALSE),0) -> 9
B160: TE | C160: Conta Covid - CVA Energia | D160: =-IFERROR((COVID!$M$11+COVID!$M$12)*N7,0) -> 1260231.331 | E160: 0.0005642545169 | F160: Covid CVA | G160: Energia - Perda Rede Básica sobre mercado Cat. | H160: =IFERROR(VLOOKUP(Financeiros[[#This Row],[Tipo]],RefTabTipo[],2,FALSE),0) -> 19 | I160: =IFERROR(VLOOKUP(Financeiros[[#This Row],[Tipo]],RefTabTipo[],3,FALSE),0) -> 60 | J160: =IFERROR(VLOOKUP(Financeiros[[#This Row],[Tipo]],RefTabTipo[],4,FALSE),0) -> 233 | K160: =IFERROR(VLOOKUP(Financeiros[[#This Row],[Grupo Tarifário]],RefTabGrupoTarifa[],2,FALSE),0) -> 2 | L160: =IFERROR(VLOOKUP(Financeiros[[#This Row],[Grupo Tarifário]],RefTabGrupoTarifa[],3,FALSE),0) -> 24 | M160: =IFERROR(VLOOKUP(Financeiros[[#This Row],[Grupo Tarifário]],RefTabGrupoTarifa[],4,FALSE),0) -> 9
B161: TUSD | C161: Conta Covid - CVA Proinfa | D161: =-COVID!M13 -> -1812062.31 | E161: -0.0008113306803 | F161: Covid CVA | G161: Encargo - PROINFA | H161: =IFERROR(VLOOKUP(Financeiros[[#This Row],[Tipo]],RefTabTipo[],2,FALSE),0) -> 19 | I161: =IFERROR(VLOOKUP(Financeiros[[#This Row],[Tipo]],RefTabTipo[],3,FALSE),0) -> 60 | J161: =IFERROR(VLOOKUP(Financeiros[[#This Row],[Tipo]],RefTabTipo[],4,FALSE),0) -> 233 | K161: =IFERROR(VLOOKUP(Financeiros[[#This Row],[Grupo Tarifário]],RefTabGrupoTarifa[],2,FALSE),0) -> 3 | L161: =IFERROR(VLOOKUP(Financeiros[[#This Row],[Grupo Tarifário]],RefTabGrupoTarifa[],3,FALSE),0) -> 18 | M161: =IFERROR(VLOOKUP(Financeiros[[#This Row],[Grupo Tarifário]],RefTabGrupoTarifa[],4,FALSE),0) -> 9
B162: TE | C162: Conta Covid - CVA ESS/EER | D162: =-COVID!M16 -> -51952732.22 | E162: -0.02326125617 | F162: Covid CVA | G162: Encargo - ESS/EER | H162: =IFERROR(VLOOKUP(Financeiros[[#This Row],[Tipo]],RefTabTipo[],2,FALSE),0) -> 19 | I162: =IFERROR(VLOOKUP(Financeiros[[#This Row],[Tipo]],RefTabTipo[],3,FALSE),0) -> 60 | J162: =IFERROR(VLOOKUP(Financeiros[[#This Row],[Tipo]],RefTabTipo[],4,FALSE),0) -> 233 | K162: =IFERROR(VLOOKUP(Financeiros[[#This Row],[Grupo Tarifário]],RefTabGrupoTarifa[],2,FALSE),0) -> 3 | L162: =IFERROR(VLOOKUP(Financeiros[[#This Row],[Grupo Tarifário]],RefTabGrupoTarifa[],3,FALSE),0) -> 17 | M162: =IFERROR(VLOOKUP(Financeiros[[#This Row],[Grupo Tarifário]],RefTabGrupoTarifa[],4,FALSE),0) -> 9
B163: TUSD | C163: Conta Covid - CVA Transporte | D163: =-COVID!M14 -> 5321359.792 | E163: 0.002382579472 | F163: Covid CVA | G163: Rede Básica - Genérico | H163: =IFERROR(VLOOKUP(Financeiros[[#This Row],[Tipo]],RefTabTipo[],2,FALSE),0) -> 19 | I163: =IFERROR(VLOOKUP(Financeiros[[#This Row],[Tipo]],RefTabTipo[],3,FALSE),0) -> 60 | J163: =IFERROR(VLOOKUP(Financeiros[[#This Row],[Tipo]],RefTabTipo[],4,FALSE),0) -> 233 | K163: =IFERROR(VLOOKUP(Financeiros[[#This Row],[Grupo Tarifário]],RefTabGrupoTarifa[],2,FALSE),0) -> 1 | L163: =IFERROR(VLOOKUP(Financeiros[[#This Row],[Grupo Tarifário]],RefTabGrupoTarifa[],3,FALSE),0) -> 1 | M163: =IFERROR(VLOOKUP(Financeiros[[#This Row],[Grupo Tarifário]],RefTabGrupoTarifa[],4,FALSE),0) -> 9
B164: TE | C164: Conta Covid - CVA CFURH | D164: =-COVID!M18 -> 0 | E164: 0 | F164: Covid CVA | G164: Encargo - CFURH | H164: =IFERROR(VLOOKUP(Financeiros[[#This Row],[Tipo]],RefTabTipo[],2,FALSE),0) -> 19 | I164: =IFERROR(VLOOKUP(Financeiros[[#This Row],[Tipo]],RefTabTipo[],3,FALSE),0) -> 60 | J164: =IFERROR(VLOOKUP(Financeiros[[#This Row],[Tipo]],RefTabTipo[],4,FALSE),0) -> 233 | K164: =IFERROR(VLOOKUP(Financeiros[[#This Row],[Grupo Tarifário]],RefTabGrupoTarifa[],2,FALSE),0) -> 3 | L164: =IFERROR(VLOOKUP(Financeiros[[#This Row],[Grupo Tarifário]],RefTabGrupoTarifa[],3,FALSE),0) -> 16 | M164: =IFERROR(VLOOKUP(Financeiros[[#This Row],[Grupo Tarifário]],RefTabGrupoTarifa[],4,FALSE),0) -> 9
B165: TE | C165: Conta Covid - CVA Transporte Itaipu | D165: =-COVID!M15 -> 0 | E165: 0 | F165: Covid CVA | G165: Transporte - Tranporte Itaipu | H165: =IFERROR(VLOOKUP(Financeiros[[#This Row],[Tipo]],RefTabTipo[],2,FALSE),0) -> 19 | I165: =IFERROR(VLOOKUP(Financeiros[[#This Row],[Tipo]],RefTabTipo[],3,FALSE),0) -> 60 | J165: =IFERROR(VLOOKUP(Financeiros[[#This Row],[Tipo]],RefTabTipo[],4,FALSE),0) -> 233 | K165: =IFERROR(VLOOKUP(Financeiros[[#This Row],[Grupo Tarifário]],RefTabGrupoTarifa[],2,FALSE),0) -> 1 | L165: =IFERROR(VLOOKUP(Financeiros[[#This Row],[Grupo Tarifário]],RefTabGrupoTarifa[],3,FALSE),0) -> 21 | M165: =IFERROR(VLOOKUP(Financeiros[[#This Row],[Grupo Tarifário]],RefTabGrupoTarifa[],4,FALSE),0) -> 9
B166: TUSD | C166: Conta Covid - CVA Saldo a Compensar CDE | D166: =-COVID!M25 -> -3438881.755 | E166: -0.001539720935 | F166: Covid CVA Saldo a Compensar | G166: Encargo - CDE - TUSD | H166: =IFERROR(VLOOKUP(Financeiros[[#This Row],[Tipo]],RefTabTipo[],2,FALSE),0) -> 19 | I166: =IFERROR(VLOOKUP(Financeiros[[#This Row],[Tipo]],RefTabTipo[],3,FALSE),0) -> 64 | J166: =IFERROR(VLOOKUP(Financeiros[[#This Row],[Tipo]],RefTabTipo[],4,FALSE),0) -> 236 | K166: =IFERROR(VLOOKUP(Financeiros[[#This Row],[Grupo Tarifário]],RefTabGrupoTarifa[],2,FALSE),0) -> 3 | L166: =IFERROR(VLOOKUP(Financeiros[[#This Row],[Grupo Tarifário]],RefTabGrupoTarifa[],3,FALSE),0) -> 15 | M166: =IFERROR(VLOOKUP(Financeiros[[#This Row],[Grupo Tarifário]],RefTabGrupoTarifa[],4,FALSE),0) -> 9
B167: TE | C167: Conta Covid - CVA Saldo a Compensar Energia | D167: =-IFERROR((COVID!$M$19+COVID!$M$20)*N3,0) -> -77968132.8 | E167: -0.0349093615 | F167: Covid CVA Saldo a Compensar | G167: Energia - Energia de Revenda | H167: =IFERROR(VLOOKUP(Financeiros[[#This Row],[Tipo]],RefTabTipo[],2,FALSE),0) -> 19 | I167: =IFERROR(VLOOKUP(Financeiros[[#This Row],[Tipo]],RefTabTipo[],3,FALSE),0) -> 64 | J167: =IFERROR(VLOOKUP(Financeiros[[#This Row],[Tipo]],RefTabTipo[],4,FALSE),0) -> 236 | K167: =IFERROR(VLOOKUP(Financeiros[[#This Row],[Grupo Tarifário]],RefTabGrupoTarifa[],2,FALSE),0) -> 2 | L167: =IFERROR(VLOOKUP(Financeiros[[#This Row],[Grupo Tarifário]],RefTabGrupoTarifa[],3,FALSE),0) -> 11 | M167: =IFERROR(VLOOKUP(Financeiros[[#This Row],[Grupo Tarifário]],RefTabGrupoTarifa[],4,FALSE),0) -> 9
B168: TUSD | C168: Conta Covid - CVA Saldo a Compensar Energia | D168: =-IFERROR((COVID!$M$19+COVID!$M$20)*N4,0) -> -4011916.329 | E168: -0.001796290771 | F168: Covid CVA Saldo a Compensar | G168: Energia - Perda Não Técnica | H168: =IFERROR(VLOOKUP(Financeiros[[#This Row],[Tipo]],RefTabTipo[],2,FALSE),0) -> 19 | I168: =IFERROR(VLOOKUP(Financeiros[[#This Row],[Tipo]],RefTabTipo[],3,FALSE),0) -> 64 | J168: =IFERROR(VLOOKUP(Financeiros[[#This Row],[Tipo]],RefTabTipo[],4,FALSE),0) -> 236 | K168: =IFERROR(VLOOKUP(Financeiros[[#This Row],[Grupo Tarifário]],RefTabGrupoTarifa[],2,FALSE),0) -> 2 | L168: =IFERROR(VLOOKUP(Financeiros[[#This Row],[Grupo Tarifário]],RefTabGrupoTarifa[],3,FALSE),0) -> 9 | M168: =IFERROR(VLOOKUP(Financeiros[[#This Row],[Grupo Tarifário]],RefTabGrupoTarifa[],4,FALSE),0) -> 9
B169: TUSD | C169: Conta Covid - CVA Saldo a Compensar Energia | D169: =-IFERROR((COVID!$M$19+COVID!$M$20)*N5,0) -> -10997862.92 | E169: -0.004924170411 | F169: Covid CVA Saldo a Compensar | G169: Energia - Perda Técnica | H169: =IFERROR(VLOOKUP(Financeiros[[#This Row],[Tipo]],RefTabTipo[],2,FALSE),0) -> 19 | I169: =IFERROR(VLOOKUP(Financeiros[[#This Row],[Tipo]],RefTabTipo[],3,FALSE),0) -> 64 | J169: =IFERROR(VLOOKUP(Financeiros[[#This Row],[Tipo]],RefTabTipo[],4,FALSE),0) -> 236 | K169: =IFERROR(VLOOKUP(Financeiros[[#This Row],[Grupo Tarifário]],RefTabGrupoTarifa[],2,FALSE),0) -> 2 | L169: =IFERROR(VLOOKUP(Financeiros[[#This Row],[Grupo Tarifário]],RefTabGrupoTarifa[],3,FALSE),0) -> 8 | M169: =IFERROR(VLOOKUP(Financeiros[[#This Row],[Grupo Tarifário]],RefTabGrupoTarifa[],4,FALSE),0) -> 9
B170: TUSD | C170: Conta Covid - CVA Saldo a Compensar Energia | D170: =-IFERROR((COVID!$M$19+COVID!$M$20)*N6,0) -> -335727.734 | E170: -0.0001503183469 | F170: Covid CVA Saldo a Compensar | G170: Energia - Perda Rede Básica sobre Dist. | H170: =IFERROR(VLOOKUP(Financeiros[[#This Row],[Tipo]],RefTabTipo[],2,FALSE),0) -> 19 | I170: =IFERROR(VLOOKUP(Financeiros[[#This Row],[Tipo]],RefTabTipo[],3,FALSE),0) -> 64 | J170: =IFERROR(VLOOKUP(Financeiros[[#This Row],[Tipo]],RefTabTipo[],4,FALSE),0) -> 236 | K170: =IFERROR(VLOOKUP(Financeiros[[#This Row],[Grupo Tarifário]],RefTabGrupoTarifa[],2,FALSE),0) -> 2 | L170: =IFERROR(VLOOKUP(Financeiros[[#This Row],[Grupo Tarifário]],RefTabGrupoTarifa[],3,FALSE),0) -> 10 | M170: =IFERROR(VLOOKUP(Financeiros[[#This Row],[Grupo Tarifário]],RefTabGrupoTarifa[],4,FALSE),0) -> 9
B171: TE | C171: Conta Covid - CVA Saldo a Compensar Energia | D171: =-IFERROR((COVID!$M$19+COVID!$M$20)*N7,0) -> -1743934.012 | E171: -0.0007808269952 | F171: Covid CVA Saldo a Compensar | G171: Energia - Perda Rede Básica sobre mercado Cat. | H171: =IFERROR(VLOOKUP(Financeiros[[#This Row],[Tipo]],RefTabTipo[],2,FALSE),0) -> 19 | I171: =IFERROR(VLOOKUP(Financeiros[[#This Row],[Tipo]],RefTabTipo[],3,FALSE),0) -> 64 | J171: =IFERROR(VLOOKUP(Financeiros[[#This Row],[Tipo]],RefTabTipo[],4,FALSE),0) -> 236 | K171: =IFERROR(VLOOKUP(Financeiros[[#This Row],[Grupo Tarifário]],RefTabGrupoTarifa[],2,FALSE),0) -> 2 | L171: =IFERROR(VLOOKUP(Financeiros[[#This Row],[Grupo Tarifário]],RefTabGrupoTarifa[],3,FALSE),0) -> 24 | M171: =IFERROR(VLOOKUP(Financeiros[[#This Row],[Grupo Tarifário]],RefTabGrupoTarifa[],4,FALSE),0) -> 9
B172: TUSD | C172: Conta Covid - CVA Saldo a Compensar Proinfa | D172: =-COVID!M21 -> 1710072.287 | E172: 0.0007656657857 | F172: Covid CVA Saldo a Compensar | G172: Encargo - PROINFA | H172: =IFERROR(VLOOKUP(Financeiros[[#This Row],[Tipo]],RefTabTipo[],2,FALSE),0) -> 19 | I172: =IFERROR(VLOOKUP(Financeiros[[#This Row],[Tipo]],RefTabTipo[],3,FALSE),0) -> 64 | J172: =IFERROR(VLOOKUP(Financeiros[[#This Row],[Tipo]],RefTabTipo[],4,FALSE),0) -> 236 | K172: =IFERROR(VLOOKUP(Financeiros[[#This Row],[Grupo Tarifário]],RefTabGrupoTarifa[],2,FALSE),0) -> 3 | L172: =IFERROR(VLOOKUP(Financeiros[[#This Row],[Grupo Tarifário]],RefTabGrupoTarifa[],3,FALSE),0) -> 18 | M172: =IFERROR(VLOOKUP(Financeiros[[#This Row],[Grupo Tarifário]],RefTabGrupoTarifa[],4,FALSE),0) -> 9
B173: TE | C173: Conta Covid - CVA Saldo a Compensar ESS/EER | D173: =-COVID!M24 -> 56078512.54 | E173: 0.02510852827 | F173: Covid CVA Saldo a Compensar | G173: Encargo - ESS/EER | H173: =IFERROR(VLOOKUP(Financeiros[[#This Row],[Tipo]],RefTabTipo[],2,FALSE),0) -> 19 | I173: =IFERROR(VLOOKUP(Financeiros[[#This Row],[Tipo]],RefTabTipo[],3,FALSE),0) -> 64 | J173: =IFERROR(VLOOKUP(Financeiros[[#This Row],[Tipo]],RefTabTipo[],4,FALSE),0) -> 236 | K173: =IFERROR(VLOOKUP(Financeiros[[#This Row],[Grupo Tarifário]],RefTabGrupoTarifa[],2,FALSE),0) -> 3 | L173: =IFERROR(VLOOKUP(Financeiros[[#This Row],[Grupo Tarifário]],RefTabGrupoTarifa[],3,FALSE),0) -> 17 | M173: =IFERROR(VLOOKUP(Financeiros[[#This Row],[Grupo Tarifário]],RefTabGrupoTarifa[],4,FALSE),0) -> 9
B174: TUSD | C174: Conta Covid - CVA Saldo a Compensar Transporte | D174: =-COVID!M22 -> -13927348.85 | E174: -0.006235815046 | F174: Covid CVA Saldo a Compensar | G174: Rede Básica - Genérico | H174: =IFERROR(VLOOKUP(Financeiros[[#This Row],[Tipo]],RefTabTipo[],2,FALSE),0) -> 19 | I174: =IFERROR(VLOOKUP(Financeiros[[#This Row],[Tipo]],RefTabTipo[],3,FALSE),0) -> 64 | J174: =IFERROR(VLOOKUP(Financeiros[[#This Row],[Tipo]],RefTabTipo[],4,FALSE),0) -> 236 | K174: =IFERROR(VLOOKUP(Financeiros[[#This Row],[Grupo Tarifário]],RefTabGrupoTarifa[],2,FALSE),0) -> 1 | L174: =IFERROR(VLOOKUP(Financeiros[[#This Row],[Grupo Tarifário]],RefTabGrupoTarifa[],3,FALSE),0) -> 1 | M174: =IFERROR(VLOOKUP(Financeiros[[#This Row],[Grupo Tarifário]],RefTabGrupoTarifa[],4,FALSE),0) -> 9
B175: TE | C175: Conta Covid - CVA Saldo a Compensar CFURH | D175: =-COVID!M26 -> 0 | E175: 0 | F175: Covid CVA Saldo a Compensar | G175: Encargo - CFURH | H175: =IFERROR(VLOOKUP(Financeiros[[#This Row],[Tipo]],RefTabTipo[],2,FALSE),0) -> 19 | I175: =IFERROR(VLOOKUP(Financeiros[[#This Row],[Tipo]],RefTabTipo[],3,FALSE),0) -> 64 | J175: =IFERROR(VLOOKUP(Financeiros[[#This Row],[Tipo]],RefTabTipo[],4,FALSE),0) -> 236 | K175: =IFERROR(VLOOKUP(Financeiros[[#This Row],[Grupo Tarifário]],RefTabGrupoTarifa[],2,FALSE),0) -> 3 | L175: =IFERROR(VLOOKUP(Financeiros[[#This Row],[Grupo Tarifário]],RefTabGrupoTarifa[],3,FALSE),0) -> 16 | M175: =IFERROR(VLOOKUP(Financeiros[[#This Row],[Grupo Tarifário]],RefTabGrupoTarifa[],4,FALSE),0) -> 9
B176: TE | C176: Conta Covid - CVA Saldo a Compensar Transporte Itaipu | D176: =-COVID!M23 -> 0 | E176: 0 | F176: Covid CVA Saldo a Compensar | G176: Transporte - Tranporte Itaipu | H176: =IFERROR(VLOOKUP(Financeiros[[#This Row],[Tipo]],RefTabTipo[],2,FALSE),0) -> 19 | I176: =IFERROR(VLOOKUP(Financeiros[[#This Row],[Tipo]],RefTabTipo[],3,FALSE),0) -> 64 | J176: =IFERROR(VLOOKUP(Financeiros[[#This Row],[Tipo]],RefTabTipo[],4,FALSE),0) -> 236 | K176: =IFERROR(VLOOKUP(Financeiros[[#This Row],[Grupo Tarifário]],RefTabGrupoTarifa[],2,FALSE),0) -> 1 | L176: =IFERROR(VLOOKUP(Financeiros[[#This Row],[Grupo Tarifário]],RefTabGrupoTarifa[],3,FALSE),0) -> 21 | M176: =IFERROR(VLOOKUP(Financeiros[[#This Row],[Grupo Tarifário]],RefTabGrupoTarifa[],4,FALSE),0) -> 9
B177: TE | C177: Conta Covid - Neutralidade CDE Conta ACR | D177: =-IFERROR(COVID!$M$10*Encargos!E27/Encargos!$E$37,0) -> -8.758631074e-08 | E177: -3.921579335e-17 | F177: Covid Neutralidade | G177: Encargo - CDE - TE | H177: =IFERROR(VLOOKUP(Financeiros[[#This Row],[Tipo]],RefTabTipo[],2,FALSE),0) -> 20 | I177: =IFERROR(VLOOKUP(Financeiros[[#This Row],[Tipo]],RefTabTipo[],3,FALSE),0) -> 60 | J177: =IFERROR(VLOOKUP(Financeiros[[#This Row],[Tipo]],RefTabTipo[],4,FALSE),0) -> 234 | K177: =IFERROR(VLOOKUP(Financeiros[[#This Row],[Grupo Tarifário]],RefTabGrupoTarifa[],2,FALSE),0) -> 3 | L177: =IFERROR(VLOOKUP(Financeiros[[#This Row],[Grupo Tarifário]],RefTabGrupoTarifa[],3,FALSE),0) -> 25 | M177: =IFERROR(VLOOKUP(Financeiros[[#This Row],[Grupo Tarifário]],RefTabGrupoTarifa[],4,FALSE),0) -> 9
B178: TE | C178: Conta Covid - Neutralidade CDE Energia: Decreto | D178: =-IFERROR(COVID!$M$10*Encargos!E28/Encargos!$E$37,0) -> -8.758631074e-08 | E178: -3.921579335e-17 | F178: Covid Neutralidade | G178: Encargo - CDE - TE | H178: =IFERROR(VLOOKUP(Financeiros[[#This Row],[Tipo]],RefTabTipo[],2,FALSE),0) -> 20 | I178: =IFERROR(VLOOKUP(Financeiros[[#This Row],[Tipo]],RefTabTipo[],3,FALSE),0) -> 60 | J178: =IFERROR(VLOOKUP(Financeiros[[#This Row],[Tipo]],RefTabTipo[],4,FALSE),0) -> 234 | K178: =IFERROR(VLOOKUP(Financeiros[[#This Row],[Grupo Tarifário]],RefTabGrupoTarifa[],2,FALSE),0) -> 3 | L178: =IFERROR(VLOOKUP(Financeiros[[#This Row],[Grupo Tarifário]],RefTabGrupoTarifa[],3,FALSE),0) -> 25 | M178: =IFERROR(VLOOKUP(Financeiros[[#This Row],[Grupo Tarifário]],RefTabGrupoTarifa[],4,FALSE),0) -> 9
B179: TUSD | C179: Conta Covid - Neutralidade TFSEE | D179: =-IFERROR(COVID!$M$10*Encargos!E29/Encargos!$E$37,0) -> -39512.4161 | E179: -1.769124343e-05 | F179: Covid Neutralidade | G179: Encargo - TFSEE | H179: =IFERROR(VLOOKUP(Financeiros[[#This Row],[Tipo]],RefTabTipo[],2,FALSE),0) -> 20 | I179: =IFERROR(VLOOKUP(Financeiros[[#This Row],[Tipo]],RefTabTipo[],3,FALSE),0) -> 60 | J179: =IFERROR(VLOOKUP(Financeiros[[#This Row],[Tipo]],RefTabTipo[],4,FALSE),0) -> 234 | K179: =IFERROR(VLOOKUP(Financeiros[[#This Row],[Grupo Tarifário]],RefTabGrupoTarifa[],2,FALSE),0) -> 3 | L179: =IFERROR(VLOOKUP(Financeiros[[#This Row],[Grupo Tarifário]],RefTabGrupoTarifa[],3,FALSE),0) -> 14 | M179: =IFERROR(VLOOKUP(Financeiros[[#This Row],[Grupo Tarifário]],RefTabGrupoTarifa[],4,FALSE),0) -> 9
B180: TUSD | C180: Conta Covid - Neutralidade CDE | D180: =-IFERROR(COVID!$M$10*Encargos!E30/Encargos!$E$37,0) -> -716882.3147 | E180: -0.0003209760575 | F180: Covid Neutralidade | G180: Encargo - CDE - TUSD | H180: =IFERROR(VLOOKUP(Financeiros[[#This Row],[Tipo]],RefTabTipo[],2,FALSE),0) -> 20 | I180: =IFERROR(VLOOKUP(Financeiros[[#This Row],[Tipo]],RefTabTipo[],3,FALSE),0) -> 60 | J180: =IFERROR(VLOOKUP(Financeiros[[#This Row],[Tipo]],RefTabTipo[],4,FALSE),0) -> 234 | K180: =IFERROR(VLOOKUP(Financeiros[[#This Row],[Grupo Tarifário]],RefTabGrupoTarifa[],2,FALSE),0) -> 3 | L180: =IFERROR(VLOOKUP(Financeiros[[#This Row],[Grupo Tarifário]],RefTabGrupoTarifa[],3,FALSE),0) -> 15 | M180: =IFERROR(VLOOKUP(Financeiros[[#This Row],[Grupo Tarifário]],RefTabGrupoTarifa[],4,FALSE),0) -> 9
B181: TE | C181: Conta Covid - Neutralidade CFURH | D181: =-IFERROR(COVID!$M$10*Encargos!E31/Encargos!$E$37,0) -> 0 | E181: 0 | F181: Covid Neutralidade | G181: Encargo - CFURH | H181: =IFERROR(VLOOKUP(Financeiros[[#This Row],[Tipo]],RefTabTipo[],2,FALSE),0) -> 20 | I181: =IFERROR(VLOOKUP(Financeiros[[#This Row],[Tipo]],RefTabTipo[],3,FALSE),0) -> 60 | J181: =IFERROR(VLOOKUP(Financeiros[[#This Row],[Tipo]],RefTabTipo[],4,FALSE),0) -> 234 | K181: =IFERROR(VLOOKUP(Financeiros[[#This Row],[Grupo Tarifário]],RefTabGrupoTarifa[],2,FALSE),0) -> 3 | L181: =IFERROR(VLOOKUP(Financeiros[[#This Row],[Grupo Tarifário]],RefTabGrupoTarifa[],3,FALSE),0) -> 16 | M181: =IFERROR(VLOOKUP(Financeiros[[#This Row],[Grupo Tarifário]],RefTabGrupoTarifa[],4,FALSE),0) -> 9
B182: TE | C182: Conta Covid - Neutralidade ESS/ERR | D182: =-IFERROR(COVID!$M$10*Encargos!E32/Encargos!$E$37,0) -> -347165.0739 | E182: -0.0001554392882 | F182: Covid Neutralidade | G182: Encargo - ESS/EER | H182: =IFERROR(VLOOKUP(Financeiros[[#This Row],[Tipo]],RefTabTipo[],2,FALSE),0) -> 20 | I182: =IFERROR(VLOOKUP(Financeiros[[#This Row],[Tipo]],RefTabTipo[],3,FALSE),0) -> 60 | J182: =IFERROR(VLOOKUP(Financeiros[[#This Row],[Tipo]],RefTabTipo[],4,FALSE),0) -> 234 | K182: =IFERROR(VLOOKUP(Financeiros[[#This Row],[Grupo Tarifário]],RefTabGrupoTarifa[],2,FALSE),0) -> 3 | L182: =IFERROR(VLOOKUP(Financeiros[[#This Row],[Grupo Tarifário]],RefTabGrupoTarifa[],3,FALSE),0) -> 17 | M182: =IFERROR(VLOOKUP(Financeiros[[#This Row],[Grupo Tarifário]],RefTabGrupoTarifa[],4,FALSE),0) -> 9
B183: TUSD | C183: Conta Covid - Neutralidade PROINFA | D183: =-IFERROR(COVID!$M$10*Encargos!E33/Encargos!$E$37,0) -> -323465.1436 | E183: -0.0001448279089 | F183: Covid Neutralidade | G183: Encargo - PROINFA | H183: =IFERROR(VLOOKUP(Financeiros[[#This Row],[Tipo]],RefTabTipo[],2,FALSE),0) -> 20 | I183: =IFERROR(VLOOKUP(Financeiros[[#This Row],[Tipo]],RefTabTipo[],3,FALSE),0) -> 60 | J183: =IFERROR(VLOOKUP(Financeiros[[#This Row],[Tipo]],RefTabTipo[],4,FALSE),0) -> 234 | K183: =IFERROR(VLOOKUP(Financeiros[[#This Row],[Grupo Tarifário]],RefTabGrupoTarifa[],2,FALSE),0) -> 3 | L183: =IFERROR(VLOOKUP(Financeiros[[#This Row],[Grupo Tarifário]],RefTabGrupoTarifa[],3,FALSE),0) -> 18 | M183: =IFERROR(VLOOKUP(Financeiros[[#This Row],[Grupo Tarifário]],RefTabGrupoTarifa[],4,FALSE),0) -> 9
B184: TE | C184: Conta Covid - Neutralidade P&D | D184: =-IFERROR(COVID!$M$10*Encargos!E34/Encargos!$E$37,0) -> 0 | E184: 0 | F184: Covid Neutralidade | G184: Encargo - P&D | H184: =IFERROR(VLOOKUP(Financeiros[[#This Row],[Tipo]],RefTabTipo[],2,FALSE),0) -> 20 | I184: =IFERROR(VLOOKUP(Financeiros[[#This Row],[Tipo]],RefTabTipo[],3,FALSE),0) -> 60 | J184: =IFERROR(VLOOKUP(Financeiros[[#This Row],[Tipo]],RefTabTipo[],4,FALSE),0) -> 234 | K184: =IFERROR(VLOOKUP(Financeiros[[#This Row],[Grupo Tarifário]],RefTabGrupoTarifa[],2,FALSE),0) -> 3 | L184: =IFERROR(VLOOKUP(Financeiros[[#This Row],[Grupo Tarifário]],RefTabGrupoTarifa[],3,FALSE),0) -> 19 | M184: =IFERROR(VLOOKUP(Financeiros[[#This Row],[Grupo Tarifário]],RefTabGrupoTarifa[],4,FALSE),0) -> 9
B185: TUSD | C185: Conta Covid - Neutralidade ONS | D185: =-IFERROR(COVID!$M$10*Encargos!E35/Encargos!$E$37,0) -> -1082.375533 | E185: -4.846215679e-07 | F185: Covid Neutralidade | G185: Encargo - ONS | H185: =IFERROR(VLOOKUP(Financeiros[[#This Row],[Tipo]],RefTabTipo[],2,FALSE),0) -> 20 | I185: =IFERROR(VLOOKUP(Financeiros[[#This Row],[Tipo]],RefTabTipo[],3,FALSE),0) -> 60 | J185: =IFERROR(VLOOKUP(Financeiros[[#This Row],[Tipo]],RefTabTipo[],4,FALSE),0) -> 234 | K185: =IFERROR(VLOOKUP(Financeiros[[#This Row],[Grupo Tarifário]],RefTabGrupoTarifa[],2,FALSE),0) -> 3 | L185: =IFERROR(VLOOKUP(Financeiros[[#This Row],[Grupo Tarifário]],RefTabGrupoTarifa[],3,FALSE),0) -> 20 | M185: =IFERROR(VLOOKUP(Financeiros[[#This Row],[Grupo Tarifário]],RefTabGrupoTarifa[],4,FALSE),0) -> 9
B186: TE | C186: Conta Covid - Sobrecontratação | D186: =-IFERROR(COVID!$M$9*N3,0) -> 6339620.409 | E186: 0.002838494301 | F186: Covid Demais Componentes Financeiros | G186: Energia - Energia de Revenda | H186: =IFERROR(VLOOKUP(Financeiros[[#This Row],[Tipo]],RefTabTipo[],2,FALSE),0) -> 22 | I186: =IFERROR(VLOOKUP(Financeiros[[#This Row],[Tipo]],RefTabTipo[],3,FALSE),0) -> 60 | J186: =IFERROR(VLOOKUP(Financeiros[[#This Row],[Tipo]],RefTabTipo[],4,FALSE),0) -> 235 | K186: =IFERROR(VLOOKUP(Financeiros[[#This Row],[Grupo Tarifário]],RefTabGrupoTarifa[],2,FALSE),0) -> 2 | L186: =IFERROR(VLOOKUP(Financeiros[[#This Row],[Grupo Tarifário]],RefTabGrupoTarifa[],3,FALSE),0) -> 11 | M186: =IFERROR(VLOOKUP(Financeiros[[#This Row],[Grupo Tarifário]],RefTabGrupoTarifa[],4,FALSE),0) -> 9
B187: TUSD | C187: Conta Covid - Sobrecontratação | D187: =-IFERROR(COVID!$M$9*N4,0) -> 326210.5391 | E187: 0.0001460571291 | F187: Covid Demais Componentes Financeiros | G187: Energia - Perda Não Técnica | H187: =IFERROR(VLOOKUP(Financeiros[[#This Row],[Tipo]],RefTabTipo[],2,FALSE),0) -> 22 | I187: =IFERROR(VLOOKUP(Financeiros[[#This Row],[Tipo]],RefTabTipo[],3,FALSE),0) -> 60 | J187: =IFERROR(VLOOKUP(Financeiros[[#This Row],[Tipo]],RefTabTipo[],4,FALSE),0) -> 235 | K187: =IFERROR(VLOOKUP(Financeiros[[#This Row],[Grupo Tarifário]],RefTabGrupoTarifa[],2,FALSE),0) -> 2 | L187: =IFERROR(VLOOKUP(Financeiros[[#This Row],[Grupo Tarifário]],RefTabGrupoTarifa[],3,FALSE),0) -> 9 | M187: =IFERROR(VLOOKUP(Financeiros[[#This Row],[Grupo Tarifário]],RefTabGrupoTarifa[],4,FALSE),0) -> 9
B188: TUSD | C188: Conta Covid - Sobrecontratação | D188: =-IFERROR(COVID!$M$9*N5,0) -> 894240.6819 | E188: 0.0004003862874 | F188: Covid Demais Componentes Financeiros | G188: Energia - Perda Técnica | H188: =IFERROR(VLOOKUP(Financeiros[[#This Row],[Tipo]],RefTabTipo[],2,FALSE),0) -> 22 | I188: =IFERROR(VLOOKUP(Financeiros[[#This Row],[Tipo]],RefTabTipo[],3,FALSE),0) -> 60 | J188: =IFERROR(VLOOKUP(Financeiros[[#This Row],[Tipo]],RefTabTipo[],4,FALSE),0) -> 235 | K188: =IFERROR(VLOOKUP(Financeiros[[#This Row],[Grupo Tarifário]],RefTabGrupoTarifa[],2,FALSE),0) -> 2 | L188: =IFERROR(VLOOKUP(Financeiros[[#This Row],[Grupo Tarifário]],RefTabGrupoTarifa[],3,FALSE),0) -> 8 | M188: =IFERROR(VLOOKUP(Financeiros[[#This Row],[Grupo Tarifário]],RefTabGrupoTarifa[],4,FALSE),0) -> 9
B189: TUSD | C189: Conta Covid - Sobrecontratação | D189: =-IFERROR(COVID!$M$9*N6,0) -> 27298.15782 | E189: 1.222244557e-05 | F189: Covid Demais Componentes Financeiros | G189: Energia - Perda Rede Básica sobre Dist. | H189: =IFERROR(VLOOKUP(Financeiros[[#This Row],[Tipo]],RefTabTipo[],2,FALSE),0) -> 22 | I189: =IFERROR(VLOOKUP(Financeiros[[#This Row],[Tipo]],RefTabTipo[],3,FALSE),0) -> 60 | J189: =IFERROR(VLOOKUP(Financeiros[[#This Row],[Tipo]],RefTabTipo[],4,FALSE),0) -> 235 | K189: =IFERROR(VLOOKUP(Financeiros[[#This Row],[Grupo Tarifário]],RefTabGrupoTarifa[],2,FALSE),0) -> 2 | L189: =IFERROR(VLOOKUP(Financeiros[[#This Row],[Grupo Tarifário]],RefTabGrupoTarifa[],3,FALSE),0) -> 10 | M189: =IFERROR(VLOOKUP(Financeiros[[#This Row],[Grupo Tarifário]],RefTabGrupoTarifa[],4,FALSE),0) -> 9
B190: TE | C190: Conta Covid - Sobrecontratação | D190: =-IFERROR(COVID!$M$9*N7,0) -> 141799.9798 | E190: 6.348935875e-05 | F190: Covid Demais Componentes Financeiros | G190: Energia - Perda Rede Básica sobre mercado Cat. | H190: =IFERROR(VLOOKUP(Financeiros[[#This Row],[Tipo]],RefTabTipo[],2,FALSE),0) -> 22 | I190: =IFERROR(VLOOKUP(Financeiros[[#This Row],[Tipo]],RefTabTipo[],3,FALSE),0) -> 60 | J190: =IFERROR(VLOOKUP(Financeiros[[#This Row],[Tipo]],RefTabTipo[],4,FALSE),0) -> 235 | K190: =IFERROR(VLOOKUP(Financeiros[[#This Row],[Grupo Tarifário]],RefTabGrupoTarifa[],2,FALSE),0) -> 2 | L190: =IFERROR(VLOOKUP(Financeiros[[#This Row],[Grupo Tarifário]],RefTabGrupoTarifa[],3,FALSE),0) -> 24 | M190: =IFERROR(VLOOKUP(Financeiros[[#This Row],[Grupo Tarifário]],RefTabGrupoTarifa[],4,FALSE),0) -> 9
B191: TUSD | C191: Conta Covid - Parcela B | D191: =-COVID!M27 -> 0 | E191: 0 | F191: Covid Demais Componentes Financeiros | G191: Parcela B | H191: =IFERROR(VLOOKUP(Financeiros[[#This Row],[Tipo]],RefTabTipo[],2,FALSE),0) -> 22 | I191: =IFERROR(VLOOKUP(Financeiros[[#This Row],[Tipo]],RefTabTipo[],3,FALSE),0) -> 60 | J191: =IFERROR(VLOOKUP(Financeiros[[#This Row],[Tipo]],RefTabTipo[],4,FALSE),0) -> 235 | K191: =IFERROR(VLOOKUP(Financeiros[[#This Row],[Grupo Tarifário]],RefTabGrupoTarifa[],2,FALSE),0) -> 4 | L191: =IFERROR(VLOOKUP(Financeiros[[#This Row],[Grupo Tarifário]],RefTabGrupoTarifa[],3,FALSE),0) -> 999 | M191: =IFERROR(VLOOKUP(Financeiros[[#This Row],[Grupo Tarifário]],RefTabGrupoTarifa[],4,FALSE),0) -> 9
